Workbook

Sheet Herbestedingsverplichting (hidden)
C3: Rugzaklln LWOO en PRO | D3: 2011-10-01 | F3: 2012-10-01 | H3: 2013-10-01
C4: cat Cluster 4 | D4: =IF(VLOOKUP('SWV gegevens'!E8,VerbandenVO!$BU$3:$CY$77,1)='SWV gegevens'!E8,VLOOKUP('SWV gegevens'!E8,VerbandenVO!$BU$3:$CY$77,21)) -> 57 | F4: =VLOOKUP('SWV gegevens'!E8,VerbandenVO!AP1:BS78,21) -> 64 | H4: =VLOOKUP('SWV gegevens'!E8,VerbandenVO!K1:AO77,21) -> 74
C5: LG | D5: =IF(VLOOKUP('SWV gegevens'!E8,VerbandenVO!$BU$3:$CY$77,1)='SWV gegevens'!E8,VLOOKUP('SWV gegevens'!E8,VerbandenVO!$BU$3:$CY$77,22)) -> 14 | F5: =VLOOKUP('SWV gegevens'!E8,VerbandenVO!AP1:BS78,22) -> 17 | H5: =VLOOKUP('SWV gegevens'!E8,VerbandenVO!K1:AO77,22) -> 15
C6: cat MG | D6: =IF(VLOOKUP('SWV gegevens'!E8,VerbandenVO!$BU$3:$CY$77,1)='SWV gegevens'!E8,VLOOKUP('SWV gegevens'!E8,VerbandenVO!$BU$3:$CY$77,23)) -> 3 | F6: =VLOOKUP('SWV gegevens'!E8,VerbandenVO!AP1:BS78,23) -> 4 | H6: =VLOOKUP('SWV gegevens'!E8,VerbandenVO!K1:AO77,23) -> 5
C7: cat LZ | D7: =IF(VLOOKUP('SWV gegevens'!E8,VerbandenVO!$BU$3:$CY$77,1)='SWV gegevens'!E8,VLOOKUP('SWV gegevens'!E8,VerbandenVO!$BU$3:$CY$77,24)) -> 3 | F7: =VLOOKUP('SWV gegevens'!E8,VerbandenVO!AP1:BS78,24) -> 7 | H7: =VLOOKUP('SWV gegevens'!E8,VerbandenVO!K1:AO77,24) -> 7
C8: ZMLK | D8: =IF(VLOOKUP('SWV gegevens'!E8,VerbandenVO!$BU$3:$CY$77,1)='SWV gegevens'!E8,VLOOKUP('SWV gegevens'!E8,VerbandenVO!$BU$3:$CY$77,25)) -> 14 | F8: =VLOOKUP('SWV gegevens'!E8,VerbandenVO!AP1:BS78,25) -> 15 | H8: =VLOOKUP('SWV gegevens'!E8,VerbandenVO!K1:AO77,25) -> 18
C9: ZMLK/SVD | D9: =IF(VLOOKUP('SWV gegevens'!E8,VerbandenVO!$BU$3:$CY$77,1)='SWV gegevens'!E8,VLOOKUP('SWV gegevens'!E8,VerbandenVO!$BU$3:$CY$77,31)) -> 0
C10: totaal rugzakken LWOO/PRO | D10: =SUM(D4:D8) -> 91 | F10: =SUM(F4:F8) -> 107 | H10: =SUM(H4:H8) -> 119
C12: Rugzaklln in overig VO | D12: 40817 | E12: Is in 2014 door het SWV gekozen voor opting out voor AB VSO? | F12: 41183 | H12: 41548
C13: Cluster 4 | D13: =IF(VLOOKUP('SWV gegevens'!E8,VerbandenVO!$BU$3:$CY$77,1)='SWV gegevens'!E8,VLOOKUP('SWV gegevens'!E8,VerbandenVO!$BU$3:$CY$77,16)) -> 328 | F13: =VLOOKUP('SWV gegevens'!E8,VerbandenVO!AP1:BS78,16) -> 366 | H13: =VLOOKUP('SWV gegevens'!E8,VerbandenVO!K1:AO77,16) -> 454
C14: LG | D14: =IF(VLOOKUP('SWV gegevens'!E8,VerbandenVO!$BU$3:$CY$77,1)='SWV gegevens'!E8,VLOOKUP('SWV gegevens'!E8,VerbandenVO!$BU$3:$CY$77,17)) -> 21 | F14: =VLOOKUP('SWV gegevens'!E8,VerbandenVO!AP1:BS78,17) -> 22 | H14: =VLOOKUP('SWV gegevens'!E8,VerbandenVO!K1:AO77,17) -> 13 | L14: Let op: om de verevening zware ondersteuning juist te kunnen weergeven is het noodzakelijk dat de rugzakaantallen op 1/10/2011 correct worden ingevoerd. Als men niet beschikt over de splitsing LWOO/PRO en overig VO kan worden volstaan met het opnemen van alle rugzakken onder overig VO.
C15: MG | D15: =IF(VLOOKUP('SWV gegevens'!E8,VerbandenVO!$BU$3:$CY$77,1)='SWV gegevens'!E8,VLOOKUP('SWV gegevens'!E8,VerbandenVO!$BU$3:$CY$77,18)) -> 0 | F15: =VLOOKUP('SWV gegevens'!E8,VerbandenVO!AP1:BS78,18) -> 0 | H15: =VLOOKUP('SWV gegevens'!E8,VerbandenVO!K1:AO77,18) -> 0
C16: LZ | D16: =IF(VLOOKUP('SWV gegevens'!E8,VerbandenVO!$BU$3:$CY$77,1)='SWV gegevens'!E8,VLOOKUP('SWV gegevens'!E8,VerbandenVO!$BU$3:$CY$77,19)) -> 16 | F16: =VLOOKUP('SWV gegevens'!E8,VerbandenVO!AP1:BS78,19) -> 23 | H16: =VLOOKUP('SWV gegevens'!E8,VerbandenVO!K1:AO77,19) -> 26
C17: ZMLK | D17: =IF(VLOOKUP('SWV gegevens'!E8,VerbandenVO!$BU$3:$CY$77,1)='SWV gegevens'!E8,VLOOKUP('SWV gegevens'!E8,VerbandenVO!$BU$3:$CY$77,20))-D18 -> 1 | F17: =VLOOKUP('SWV gegevens'!E8,VerbandenVO!AP1:BS78,20) -> 0 | H17: =VLOOKUP('SWV gegevens'!E8,VerbandenVO!K1:AO77,20) -> 0
C18: ZMLK/SVD | D18: =IF(VLOOKUP('SWV gegevens'!E8,VerbandenVO!$BU$3:$CY$77,1)='SWV gegevens'!E8,VLOOKUP('SWV gegevens'!E8,VerbandenVO!$BU$3:$CY$77,30)) -> 0
C19: totaal rugzakken overig VO | D19: =SUM(D13:D18) -> 366 | F19: =SUM(F13:F17) -> 411 | H19: =SUM(H13:H17) -> 493
C21: totaal rugzakken | D21: =D10+D19 -> 457 | F21: =F10+F19 -> 518 | H21: =H10+H19 -> 612
C28: Rugzakken LWOO/PRO* | D28: Regeling bekostiging personeel PO 2014-2015 en vaststelling bedragen voor ondersteuning van leerlingen in het PO en VO 2014-2015, SC 3-2-2015 | J28: Verevening | X28: school deel | Y28: ab deel
C29: cluster 4 | D29: schooldeel | F29: 1613.35 | H29: =F29 -> 1613.35 | I29: lgf pers. | J29: 4817.99 | X29: =Herbestedingsverplichting!F29*H4 -> 119387.9
D30: ambulante begeleiding (pers) | F30: 2994.96 | H30: 2994.96 | Y30: =F30*H4 -> 221627.04
D31: ambulante begeleiding (mat) | F31: 252 | H31: 252 | I31: lgf mat. | J31: 252 | L31: De iets afwijkende bedragen ZMLK/Down | Y31: =F31*H4 -> 18648
C32: LG | D32: schooldeel | F32: 1643.24 | H32: 1643.24 | I32: lgf pers. | J32: 6494.32 | L32: zijn niet apart vermeld. | X32: =Herbestedingsverplichting!F32*H5 -> 24648.6
D33: ambulante begeleiding (pers) | F33: 4630.81 | H33: 4630.81 | L33: De materiele LGF bedragen worden alleen gebruikt | Y33: =F33*H5 -> 69462.15
D34: ambulante begeleiding (mat) | F34: 432 | H34: 432 | I34: lgf mat. | J34: 432 | L34: voor het berekenen van het vereveningsbedrag | Y34: =F34*H5 -> 6480
C35: MG | D35: schooldeel | F35: 1613.35 | H35: 1613.35 | I35: lgf pers. | J35: 4817.99 | X35: =Herbestedingsverplichting!F35*H6 -> 8066.75
D36: ambulante begeleiding (pers) | F36: 2994.96 | H36: 2994.96 | Y36: =F36*H6 -> 14974.8
D37: ambulante begeleiding (mat) | F37: 252 | H37: 252 | I37: lgf mat. | J37: 252 | Y37: =F37*H6 -> 1260
C38: LZ | D38: schooldeel | F38: 1613.35 | H38: 1613.35 | I38: lgf pers. | J38: 4817.99 | X38: =Herbestedingsverplichting!F38*H7 -> 11293.45
D39: ambulante begeleiding (pers) | F39: 2994.96 | H39: 2994.96 | Y39: =F39*H7 -> 20964.72
D40: ambulante begeleiding (mat) | F40: 252 | H40: 252 | I40: lgf mat. | J40: 252 | Y40: =F40*H7 -> 1764
C41: ZMLK | D41: schooldeel | F41: 1613.35 | H41: 1613.35 | I41: lgf pers. | J41: 4817.99 | X41: =Herbestedingsverplichting!F41*H8 -> 29040.3
D42: ambulante begeleiding (pers) | F42: 2994.96 | H42: 2994.96 | Y42: =F42*H8 -> 53909.28
D43: ambulante begeleiding (mat) | F43: 137 | H43: 137 | I43: lgf mat. | J43: 137 | Y43: =F43*H8 -> 2466
C45: Rugzakken overig VO* | D45: =D28 -> Regeling bekostiging personeel PO 2014-2015 en vaststelling bedragen voor ondersteuning van leerlingen in het PO en VO 2014-2015, SC 3-2-2015
C46: cluster 4 | D46: schooldeel | F46: 3256.61 | H46: =F46 -> 3256.61 | I46: lgf pers. | J46: 6471.7 | X46: =F46*H13 -> 1478500.94
D47: ambulante begeleiding (pers) | F47: =F30 -> 2994.96 | H47: 2994.96 | Y47: =F47*H13 -> 1359711.84
D48: ambulante begeleiding (mat) | F48: 252 | H48: 252 | I48: lgf mat. | J48: 252 | Y48: =F48*H13 -> 114408
C49: LG | D49: schooldeel | F49: 3256.61 | H49: 3256.61 | I49: lgf pers. | J49: 8117.95 | X49: =F49*H14 -> 42335.93
D50: ambulante begeleiding (pers) | F50: =F33 -> 4630.81 | H50: 4630.81 | Y50: =F50*H14 -> 60200.53
D51: ambulante begeleiding (mat) | F51: 432 | H51: 432 | I51: lgf mat. | J51: 432 | Y51: =F51*H14 -> 5616
C52: MG | D52: schooldeel | F52: 3256.61 | H52: 3256.61 | I52: lgf pers. | J52: 6471.7 | X52: =F52*H15 -> 0
D53: ambulante begeleiding (pers) | F53: =F36 -> 2994.96 | H53: 2994.96 | Y53: =F53*H15 -> 0
D54: ambulante begeleiding (mat) | F54: 252 | H54: 252 | I54: lgf mat. | J54: 252 | Y54: =F54*H15 -> 0
C55: LZ | D55: schooldeel | F55: 3256.61 | H55: 3256.61 | I55: lgf pers. | J55: 6471.7 | X55: =F55*H16 -> 84671.86
D56: ambulante begeleiding (pers) | F56: =F39 -> 2994.96 | H56: 2994.96 | Y56: =F56*H16 -> 77868.96
D57: ambulante begeleiding (mat) | F57: 252 | H57: 252 | I57: lgf mat. | J57: 252 | Y57: =F57*H16 -> 6552
C58: ZMLK | D58: schooldeel | F58: 3256.61 | H58: 3256.61 | I58: lgf pers. | J58: 6471.7 | X58: =F58*H17 -> 0
D59: ambulante begeleiding (pers) | F59: =F42 -> 2994.96 | H59: 2994.96 | Y59: =F59*H17 -> 0
D60: ambulante begeleiding (mat) | F60: 137 | H60: 137 | I60: lgf mat. | J60: 137 | Y60: =F60*H17 -> 0
C61: ZMLK/SvD | I61: pers | J61: 8380.37
I62: mat | J62: 137
C63: Totaal (VO, LWOO en PRO) | X63: =X29+X32+X35+X38+X41+X46+X49+X52+X55+X58 -> 1797945.73 | Y63: =Y60+Y59+Y57+Y56+Y54+Y53+Y51+Y50+Y48+Y47+Y43+Y42+Y40+Y39+Y37+Y36+Y34+Y33+Y31+Y30 -> 2035913.32
C64: Totaal (alleen personele deel AB in verband met herbestedingsverplichting) | Y64: =Y30+Y33+Y36+Y39+Y42+Y47+Y50+Y53+Y56+Y59 -> 1878719.32

Sheet Begin (hidden)
R7: import 3.0
R8: import 4.0
R9: import40

Sheet Bekostigingsgegevens (hidden)
A1: =TODAY() -> 2018-10-30 | B1: =YEAR(A1) -> 2018
C3: BEKOSTIGINGSGEGEVENS PER KALENDER- OF SCHOOLJAAR
D4: geactualiseerd op 15 oktober 2018
G5: 2015 | H5: 2015/16 | I5: 2016 | J5: 2016/17 | K5: 2017 | L5: 2017/18 | M5: 2018 | N5: 2018/19 | O5: 2019 | P5: 2019/20 | Q5: 2020 | R5: 2020/21 | S5: 2021 | T5: 2021/22 | U5: 2022 | V5: 2022/23 | W5: 2023 | X5: 2023/24 | Y5: 2024 | Z5: 2024/25 | AA5: 2025 | AB5: 2025/26 | AC5: 2026
C6: Budget lichte ondersteuning per VO leerling
C7: budget lichte ondersteuning (per VO ll) | E7: =G7*6/12 -> 43.5 | G7: 87 | I7: 94 | K7: =79+14 -> 93 | M7: =81+14.5 -> 95.5 | O7: =81+14.5 -> 95.5 | Q7: =O7 -> 95.5 | S7: =Q7 -> 95.5 | U7: =S7 -> 95.5 | W7: =U7 -> 95.5 | Y7: =W7 -> 95.5 | AA7: =Y7 -> 95.5 | AC7: =AA7 -> 95.5
C8: correctie % verevening budget lichte ondersteuning | E8: =0.666 -> 0.666 | G8: =2/3 -> 0.6666666667 | I8: 0.3333333333
C9: budget LWOO/PRO personeel | I9: 4111.35 | K9: 4214.06 | M9: 4324.05
C10: budget LWOO/PRO materieel | I10: 174.86 | K10: 178.65 | M10: 181.49
C11: budget LWOO (per VO ll x deelname % 1/10/2012) | G11: =I11 -> 4286.21 | I11: =SUM(I9:I10) -> 4286.21 | K11: =SUM(K9:K10) -> 4392.71 | M11: =SUM(M9:M10) -> 4505.54 | O11: =M11 -> 4505.54 | Q11: =O11 -> 4505.54 | S11: =Q11 -> 4505.54 | U11: =S11 -> 4505.54 | W11: =U11 -> 4505.54 | Y11: =W11 -> 4505.54 | AA11: =Y11 -> 4505.54 | AC11: =AA11 -> 4505.54
C12: budget PRO (per VO ll x deelname % 1/10/2012) | G12: =I12 -> 4286.21 | I12: =SUM(I9:I10) -> 4286.21 | K12: =SUM(K9:K10) -> 4392.71 | M12: =SUM(M9:M10) -> 4505.54 | O12: =M12 -> 4505.54 | Q12: =O12 -> 4505.54 | S12: =Q12 -> 4505.54 | U12: =S12 -> 4505.54 | W12: =U12 -> 4505.54 | Y12: =W12 -> 4505.54 | AA12: =Y12 -> 4505.54 | AC12: =AA12 -> 4505.54
C14: Budget zware ondersteuning verevening
C15: personeel (artikel 24) | D15: 466.01
C16: materieel (bijlage 5.B.1) | D16: 26.5
C18: Percentage vereveningsbedragen (MEV-percentage) personeel (artikel 23) | H18: 0.03586 | J18: 0.0272 | L18: 0.05238 | N18: 0.02987 | P18: =N18 -> 0.02987 | R18: =P18 -> 0.02987 | T18: =R18 -> 0.02987 | V18: =T18 -> 0.02987 | X18: =V18 -> 0.02987 | Z18: =X18 -> 0.02987 | AB18: =Z18 -> 0.02987
C19: Percentage vereveningsbedragen (MEV-percentage) materieel (bijlage 5.B) | I19: 0.0457 | K19: 0.002 | M19: 0.0221 | O19: 0.015 | Q19: =O19 -> 0.015 | S19: =Q19 -> 0.015 | U19: =S19 -> 0.015 | W19: =U19 -> 0.015 | Y19: =W19 -> 0.015 | AA19: =Y19 -> 0.015 | AC19: =AA19 -> 0.015
C21: Budget zware ondersteuning overgangsjaar* | F21: Regeling bekostiging personeel PO 2014-2015 en vaststelling bedragen voor ondersteuning van leerlingen in het PO en VO 2014-2015, SC 3-2-2015
C22: bekostiging personeel | F22: 16.56
C23: bekostiging materieel (aug-dec 2014) | E23: =0.26*5/12 -> 0.1083333333
C24: * Bij meer of minder groei van het VSO op de peildatum zal dit bedrag achteraf worden bijgesteld.
C26: Budget zware ondersteuning per VO leerling
C27: zware ondersteuning personeel (artikel 22) | H27: 514.29 | J27: 531.58 | L27: 559.76 | N27: 577.11 | P27: =N27 -> 577.11 | R27: 577.11 | T27: 577.11 | V27: 577.11 | X27: =V27 -> 577.11 | Z27: 577.11 | AB27: =Z27 -> 577.11
C28: zware ondersteuning materieel (bijlage 4.B.1) | G28: 27.12 | I28: 28.36 | K28: 28.42 | M28: 29.13 | O28: 29.57 | Q28: 29.57 | S28: 29.57 | U28: 29.57 | W28: =U28 -> 29.57 | Y28: 29.57 | AA28: 29.57 | AC28: =AA28 -> 29.57
C29: correctie % positieve verevening budget zware ondersteuning personeel | H29: 1 | J29: 0.9 | L29: 0.75 | N29: 0.6 | P29: 0.3
C30: correctie % positieve verevening budget zware ondersteuning materieel | G30: 1 | I30: 0.9 | K30: 0.75 | M30: 0.6 | O30: 0.3
C31: correctie % negatieve verevening budget zware ondersteuning personeel | H31: 1 | J31: 0.95 | L31: 0.8 | N31: 0.6 | P31: 0.3
C32: correctie % negatieve verevening budget zware ondersteuning materieel | G32: 1 | I32: 0.95 | K32: 0.8 | M32: 0.6 | O32: 0.3
C34: Afdracht ondersteuningsbekostiging VSO door DUO | F34: fixatiebedrag ivm verevening
C35: categorie 1 (laag) (cluster 4, ZMLK, LZ) personeel (artikel 15) | F35: 8852.67 | H35: 9168.5 | J35: 9413.02 | L35: 9847.22 | N35: 10109.54 | P35: =N35 -> 10109.54 | R35: =P35 -> 10109.54 | T35: =R35 -> 10109.54 | V35: =T35 -> 10109.54 | X35: =V35 -> 10109.54 | Z35: 10109.54 | AB35: =Z35 -> 10109.54
C36: categorie 1 (laag) (cluster 4, ZMLK, LZ) materieel (bijlage 4.B.2) | G36: 575.27 | I36: 610.47 | K36: 611.69 | M36: 627.91 | O36: 637.33 | Q36: =O36 -> 637.33 | S36: =Q36 -> 637.33 | U36: =S36 -> 637.33 | W36: =U36 -> 637.33 | Y36: =W36 -> 637.33 | AA36: =Y36 -> 637.33 | AC36: =AA36 -> 637.33
C37: categorie 2 (midden) (LG) personeel (artikel 15) | F37: 15710.24 | H37: 16271.97 | J37: 16696.56 | L37: 17352.82 | N37: 17753.16 | P37: 17753.16 | R37: 17753.16 | T37: 17753.16 | V37: =T37 -> 17753.16 | X37: =V37 -> 17753.16 | Z37: 17753.16 | AB37: =Z37 -> 17753.16
C38: categorie 2 (midden) (LG) materieel (bijlage 4.B.2) | G38: 915.14 | I38: 951.02 | K38: 952.92 | M38: 976.68 | O38: 991.33 | Q38: =O38 -> 991.33 | S38: =Q38 -> 991.33 | U38: =S38 -> 991.33 | W38: =U38 -> 991.33 | Y38: =W38 -> 991.33 | AA38: =Y38 -> 991.33 | AC38: =AA38 -> 991.33
C39: categorie 3 (hoog) (MG) personeel (artikel 15) | F39: 19540.53 | H39: 20239.54 | J39: 20763.52 | L39: 21529.33 | N39: 21998.49 | P39: 21998.49 | R39: 21998.49 | T39: 21998.49 | V39: =T39 -> 21998.49 | X39: =V39 -> 21998.49 | Z39: 21998.49 | AB39: =Z39 -> 21998.49
C40: categorie 3 (hoog) (MG) materieel (bijlage 4.B.2) | G40: 1066.91 | I40: 1103.09 | K40: 1105.3 | M40: 1132.43 | O40: 1149.42 | Q40: =O40 -> 1149.42 | S40: =Q40 -> 1149.42 | U40: =S40 -> 1149.42 | W40: =U40 -> 1149.42 | Y40: =W40 -> 1149.42 | AA40: =Y40 -> 1149.42 | AC40: =AA40 -> 1149.42
C42: Afdracht basisbekostiging VSO in verband met overdracht op peildatum
C43: Personeel basisbekostiging vast inclusief budget P&A (artikel 14.3 en 18.1) | H43: =1703.48+453.5 -> 2156.98 | J43: =1748.16+462.78 -> 2210.94 | L43: =1840.6+492.78 -> 2333.38 | N43: =1898.86+663.05 -> 2561.91 | P43: =N43 -> 2561.91 | R43: =P43 -> 2561.91 | T43: =R43 -> 2561.91 | V43: =T43 -> 2561.91 | X43: =V43 -> 2561.91 | Z43: 2561.91 | AB43: =Z43 -> 2561.91
C44: Personeel leeftijdsafhankelijk obv GGL (artikel 14.3 bedrag en 14.1 leeftijd) | H44: =77.17*41.48 -> 3201.0116 | J44: =79.19*41.54 -> 3289.5526 | L44: =41.51*83.38 -> 3461.1038 | N44: =41.4*86.02 -> 3561.228 | P44: =N44 -> 3561.228 | R44: =P44 -> 3561.228 | T44: =R44 -> 3561.228 | V44: 3561.228 | X44: 3561.228 | Z44: 3561.228 | AB44: 3561.228
C45: Materieel (bijlage 2.1.I) | G45: =I45*5/12 -> 499.2458333 | I45: 1198.19 | K45: 1205.24 | M45: 1232.87 | O45: 1253.02 | Q45: =O45 -> 1253.02 | S45: =Q45 -> 1253.02 | U45: =S45 -> 1253.02 | W45: =U45 -> 1253.02 | Y45: =W45 -> 1253.02 | AA45: =Y45 -> 1253.02 | AC45: =AA45 -> 1253.02

Sheet InUitstroomVSO (hidden)
A1: 3 | B1: 4 | C1: 5 | D1: 6 | E1: 7 | F1: 8 | G1: 9 | H1: 10 | I1: 11 | J1: 12 | N1: ='SWV gegevens'!$E$8 -> VO0001 | S1: =[1]Invoer!J5 -> 0 | Y1: =[1]Invoer!P5 -> 0
C2: In-uitstroom in het (V)SO
C3: Instroom SWV-BRIN | G3: Uitstroom SWV-BRIN | K3: Saldo | P3: Ondersteuningsbekostiging personeel | V3: Saldo
A4: SWV | B4: BRIN (V)SO | C4: CAT LAAG | D4: CAT MIDDEN | E4: CAT HOOG | F4: TOTAAL | G4: CAT LAAG | H4: CAT MIDDEN | I4: CAT HOOG | J4: TOTAAL | K4: CAT LAAG | L4: CAT MIDDEN | M4: CAT HOOG | N4: TOTAAL | P4: CAT LAAG | Q4: CAT MIDDEN | R4: CAT HOOG | S4: TOTAAL | V4: CAT LAAG | W4: CAT MIDDEN | X4: CAT HOOG | Y4: TOTAAL
A5: VO0001 | B5: 01QH | C5: 0 | D5: 0 | E5: 0 | F5: 0 | G5: 0 | H5: 0 | I5: 0 | J5: 0 | K5: =IF($N$1=$A5,SUM(C5-G5),"") -> 0 | L5: =IF($N$1=$A5,SUM(D5-H5),"") -> 0 | M5: =IF($N$1=$A5,SUM(E5-I5),"") -> 0 | N5: =IF($N$1=$A5,SUM(K5:M5),"") -> 0 | P5: =IF($N$1=A5,(Bekostigingsgegevens!$H$35+Bekostigingsgegevens!$G$36)*InUitstroomVSO!K5,"") -> 0 | Q5: =IF($N$1=A5,(Bekostigingsgegevens!$H$37+Bekostigingsgegevens!$G$38)*InUitstroomVSO!L5,"") -> 0 | R5: =IF($N$1=A5,Bekostigingsgegevens!$H$39*InUitstroomVSO!M5,"") -> 0 | S5: =IF($N$1=$A5,SUM(P5:R5),"") -> 0 | T5: =IF(S5<0,0,S5) -> 0 | V5: =IF(K5<0,0,K5) -> 0 | W5: =IF(L5<0,0,L5) -> 0 | X5: 0 | Y5: =SUM(V5:X5) -> 0
A6: VO0001 | B6: 01UC | C6: 0 | D6: 0 | E6: 0 | F6: 0 | G6: 1 | H6: 0 | I6: 0 | J6: 1 | K6: =IF($N$1=A6,SUM(C6-G6),"") -> -1 | L6: =IF($N$1=$A6,SUM(D6-H6),"") -> 0 | M6: 0 | N6: =IF($N$1=$A6,SUM(K6:M6),"") -> -1 | P6: =IF($N$1=A6,(Bekostigingsgegevens!$H$35+Bekostigingsgegevens!$G$36)*InUitstroomVSO!K6,"") -> -9743.77 | Q6: =IF($N$1=A6,(Bekostigingsgegevens!$H$37+Bekostigingsgegevens!$G$38)*InUitstroomVSO!L6,"") -> 0 | R6: =IF($N$1=A6,Bekostigingsgegevens!$H$39*InUitstroomVSO!M6,"") -> 0 | S6: =IF($N$1=$A6,SUM(P6:R6),"") -> -9743.77 | T6: =IF(S6<0,0,S6) -> 0 | V6: =IF(K6<0,0,K6) -> 0 | W6: 0 | X6: 0 | Y6: 0
A7: VO0001 | B7: 14NA | C7: 0 | D7: 0 | E7: 0 | F7: 0 | G7: 0 | H7: 0 | I7: 0 | J7: 0 | K7: 0 | L7: 0 | M7: 0 | N7: 0 | P7: =IF($N$1=A7,(Bekostigingsgegevens!$H$35+Bekostigingsgegevens!$G$36)*InUitstroomVSO!K7,"") -> 0 | Q7: =IF($N$1=A7,(Bekostigingsgegevens!$H$37+Bekostigingsgegevens!$G$38)*InUitstroomVSO!L7,"") -> 0 | R7: =IF($N$1=A7,Bekostigingsgegevens!$H$39*InUitstroomVSO!M7,"") -> 0 | S7: 0 | T7: 0 | V7: 0 | W7: 0 | X7: 0 | Y7: 0 | AB7: Dit blad niet verwijderen.
A8: VO0001 | B8: 26MN | C8: 0 | D8: 0 | E8: 0 | F8: 0 | G8: 0 | H8: 0 | I8: 0 | J8: 0 | K8: 0 | L8: 0 | M8: 0 | N8: 0 | P8: =IF($N$1=A8,(Bekostigingsgegevens!$H$35+Bekostigingsgegevens!$G$36)*InUitstroomVSO!K8,"") -> 0 | Q8: =IF($N$1=A8,(Bekostigingsgegevens!$H$37+Bekostigingsgegevens!$G$38)*InUitstroomVSO!L8,"") -> 0 | R8: =IF($N$1=A8,Bekostigingsgegevens!$H$39*InUitstroomVSO!M8,"") -> 0 | S8: 0 | T8: 0 | V8: 0 | W8: 0 | X8: 0 | Y8: 0
A9: VO0001 | B9: 26NC | C9: 7 | D9: 0 | E9: 0 | F9: 7 | G9: 3 | H9: 0 | I9: 2 | J9: 5 | K9: 4 | L9: 0 | M9: -2 | N9: 2 | P9: =IF($N$1=A9,(Bekostigingsgegevens!$H$35+Bekostigingsgegevens!$G$36)*InUitstroomVSO!K9,"") -> 38975.08 | Q9: =IF($N$1=A9,(Bekostigingsgegevens!$H$37+Bekostigingsgegevens!$G$38)*InUitstroomVSO!L9,"") -> 0 | R9: =IF($N$1=A9,Bekostigingsgegevens!$H$39*InUitstroomVSO!M9,"") -> -40479.08 | S9: -1504 | T9: 0 | V9: 4 | W9: 0 | X9: 0 | Y9: 4 | AB9: Dit model maakt gebruik van dit blad. Wilt u de data weergeven, klik dan | AI9: hier.
A10: VO0001 | B10: 26NE | C10: 1 | D10: 0 | E10: 0 | F10: 1 | G10: 1 | H10: 0 | I10: 0 | J10: 1 | K10: 0 | L10: 0 | M10: 0 | N10: 0 | P10: =IF($N$1=A10,(Bekostigingsgegevens!$H$35+Bekostigingsgegevens!$G$36)*InUitstroomVSO!K10,"") -> 0 | Q10: =IF($N$1=A10,(Bekostigingsgegevens!$H$37+Bekostigingsgegevens!$G$38)*InUitstroomVSO!L10,"") -> 0 | R10: =IF($N$1=A10,Bekostigingsgegevens!$H$39*InUitstroomVSO!M10,"") -> 0 | S10: 0 | T10: 0 | V10: 0 | W10: 0 | X10: 0 | Y10: 0 | AB10: Let op: u heeft een wachtwoord om de beveiliging op te heffen.
A11: VO0001 | B11: 26NU | C11: 0 | D11: 0 | E11: 0 | F11: 0 | G11: 1 | H11: 0 | I11: 0 | J11: 1 | K11: -1 | L11: 0 | M11: 0 | N11: -1 | P11: =IF($N$1=A11,(Bekostigingsgegevens!$H$35+Bekostigingsgegevens!$G$36)*InUitstroomVSO!K11,"") -> -9743.77 | Q11: =IF($N$1=A11,(Bekostigingsgegevens!$H$37+Bekostigingsgegevens!$G$38)*InUitstroomVSO!L11,"") -> 0 | R11: =IF($N$1=A11,Bekostigingsgegevens!$H$39*InUitstroomVSO!M11,"") -> 0 | S11: -9743.77 | T11: 0 | V11: 0 | W11: 0 | X11: 0 | Y11: 0
A12: VO2001 | B12: 00KM | C12: 1 | D12: 0 | E12: 0 | F12: 1 | G12: 1 | H12: 0 | I12: 0 | J12: 1 | P12: =IF($N$1=A12,(Bekostigingsgegevens!$H$35+Bekostigingsgegevens!$G$36)*InUitstroomVSO!K12,"") ->  | Q12: =IF($N$1=A12,(Bekostigingsgegevens!$H$37+Bekostigingsgegevens!$G$38)*InUitstroomVSO!L12,"") ->  | R12: =IF($N$1=A12,Bekostigingsgegevens!$H$39*InUitstroomVSO!M12,"") ->  | Y12: 0
A13: VO2001 | B13: 00ZF | C13: 2 | D13: 0 | E13: 0 | F13: 2 | G13: 0 | H13: 0 | I13: 0 | J13: 0 | P13: =IF($N$1=A13,(Bekostigingsgegevens!$H$35+Bekostigingsgegevens!$G$36)*InUitstroomVSO!K13,"") ->  | Q13: =IF($N$1=A13,(Bekostigingsgegevens!$H$37+Bekostigingsgegevens!$G$38)*InUitstroomVSO!L13,"") ->  | R13: =IF($N$1=A13,Bekostigingsgegevens!$H$39*InUitstroomVSO!M13,"") ->  | Y13: 0
A14: VO2001 | B14: 02EY | C14: 4 | D14: 0 | E14: 0 | F14: 4 | G14: 1 | H14: 0 | I14: 0 | J14: 1 | P14: =IF($N$1=A14,(Bekostigingsgegevens!$H$35+Bekostigingsgegevens!$G$36)*InUitstroomVSO!K14,"") ->  | Q14: =IF($N$1=A14,(Bekostigingsgegevens!$H$37+Bekostigingsgegevens!$G$38)*InUitstroomVSO!L14,"") ->  | R14: =IF($N$1=A14,Bekostigingsgegevens!$H$39*InUitstroomVSO!M14,"") ->  | Y14: 0
A15: VO2001 | B15: 02YL | C15: 7 | D15: 0 | E15: 0 | F15: 7 | G15: 6 | H15: 0 | I15: 0 | J15: 6 | P15: =IF($N$1=A15,(Bekostigingsgegevens!$H$35+Bekostigingsgegevens!$G$36)*InUitstroomVSO!K15,"") ->  | Q15: =IF($N$1=A15,(Bekostigingsgegevens!$H$37+Bekostigingsgegevens!$G$38)*InUitstroomVSO!L15,"") ->  | R15: =IF($N$1=A15,Bekostigingsgegevens!$H$39*InUitstroomVSO!M15,"") ->  | Y15: 0
A16: VO2001 | B16: 02YM | C16: 0 | D16: 0 | E16: 0 | F16: 0 | G16: 0 | H16: 0 | I16: 0 | J16: 0 | P16: =IF($N$1=A16,(Bekostigingsgegevens!$H$35+Bekostigingsgegevens!$G$36)*InUitstroomVSO!K16,"") ->  | Q16: =IF($N$1=A16,(Bekostigingsgegevens!$H$37+Bekostigingsgegevens!$G$38)*InUitstroomVSO!L16,"") ->  | R16: =IF($N$1=A16,Bekostigingsgegevens!$H$39*InUitstroomVSO!M16,"") ->  | Y16: 0
A17: VO2001 | B17: 06SV | C17: 3 | D17: 0 | E17: 0 | F17: 3 | G17: 2 | H17: 0 | I17: 0 | J17: 2 | P17: =IF($N$1=A17,(Bekostigingsgegevens!$H$35+Bekostigingsgegevens!$G$36)*InUitstroomVSO!K17,"") ->  | Q17: =IF($N$1=A17,(Bekostigingsgegevens!$H$37+Bekostigingsgegevens!$G$38)*InUitstroomVSO!L17,"") ->  | R17: =IF($N$1=A17,Bekostigingsgegevens!$H$39*InUitstroomVSO!M17,"") ->  | Y17: 0
A18: VO2001 | B18: 14OR | C18: 11 | D18: 0 | E18: 0 | F18: 11 | G18: 1 | H18: 0 | I18: 0 | J18: 1 | P18: =IF($N$1=A18,(Bekostigingsgegevens!$H$35+Bekostigingsgegevens!$G$36)*InUitstroomVSO!K18,"") ->  | Q18: =IF($N$1=A18,(Bekostigingsgegevens!$H$37+Bekostigingsgegevens!$G$38)*InUitstroomVSO!L18,"") ->  | R18: =IF($N$1=A18,Bekostigingsgegevens!$H$39*InUitstroomVSO!M18,"") ->  | Y18: 0
A19: VO2001 | B19: 14WT | C19: 1 | D19: 0 | E19: 0 | F19: 1 | G19: 0 | H19: 0 | I19: 0 | J19: 0 | P19: =IF($N$1=A19,(Bekostigingsgegevens!$H$35+Bekostigingsgegevens!$G$36)*InUitstroomVSO!K19,"") ->  | Q19: =IF($N$1=A19,(Bekostigingsgegevens!$H$37+Bekostigingsgegevens!$G$38)*InUitstroomVSO!L19,"") ->  | R19: =IF($N$1=A19,Bekostigingsgegevens!$H$39*InUitstroomVSO!M19,"") ->  | Y19: 0
A20: VO2001 | B20: 18ZJ | C20: 1 | D20: 0 | E20: 0 | F20: 1 | G20: 0 | H20: 0 | I20: 0 | J20: 0 | P20: =IF($N$1=A20,(Bekostigingsgegevens!$H$35+Bekostigingsgegevens!$G$36)*InUitstroomVSO!K20,"") ->  | Q20: =IF($N$1=A20,(Bekostigingsgegevens!$H$37+Bekostigingsgegevens!$G$38)*InUitstroomVSO!L20,"") ->  | R20: =IF($N$1=A20,Bekostigingsgegevens!$H$39*InUitstroomVSO!M20,"") ->  | Y20: 0
A21: VO2001 | B21: 19SO | C21: 0 | D21: 0 | E21: 0 | F21: 0 | G21: 4 | H21: 1 | I21: 0 | J21: 5 | P21: =IF($N$1=A21,(Bekostigingsgegevens!$H$35+Bekostigingsgegevens!$G$36)*InUitstroomVSO!K21,"") ->  | Q21: =IF($N$1=A21,(Bekostigingsgegevens!$H$37+Bekostigingsgegevens!$G$38)*InUitstroomVSO!L21,"") ->  | R21: =IF($N$1=A21,Bekostigingsgegevens!$H$39*InUitstroomVSO!M21,"") ->  | Y21: 0
A22: VO2001 | B22: 19VO | C22: 0 | D22: 0 | E22: 0 | F22: 0 | G22: 0 | H22: 1 | I22: 1 | J22: 2 | P22: =IF($N$1=A22,(Bekostigingsgegevens!$H$35+Bekostigingsgegevens!$G$36)*InUitstroomVSO!K22,"") ->  | Q22: =IF($N$1=A22,(Bekostigingsgegevens!$H$37+Bekostigingsgegevens!$G$38)*InUitstroomVSO!L22,"") ->  | R22: =IF($N$1=A22,Bekostigingsgegevens!$H$39*InUitstroomVSO!M22,"") ->  | Y22: 0
A23: VO2001 | B23: 23JT | C23: 0 | D23: 0 | E23: 0 | F23: 0 | G23: 0 | H23: 0 | I23: 0 | J23: 0 | P23: =IF($N$1=A23,(Bekostigingsgegevens!$H$35+Bekostigingsgegevens!$G$36)*InUitstroomVSO!K23,"") ->  | Q23: =IF($N$1=A23,(Bekostigingsgegevens!$H$37+Bekostigingsgegevens!$G$38)*InUitstroomVSO!L23,"") ->  | R23: =IF($N$1=A23,Bekostigingsgegevens!$H$39*InUitstroomVSO!M23,"") ->  | Y23: 0
A24: VO2001 | B24: 26MU | C24: 0 | D24: 0 | E24: 0 | F24: 0 | G24: 0 | H24: 0 | I24: 0 | J24: 0 | P24: =IF($N$1=A24,(Bekostigingsgegevens!$H$35+Bekostigingsgegevens!$G$36)*InUitstroomVSO!K24,"") ->  | Q24: =IF($N$1=A24,(Bekostigingsgegevens!$H$37+Bekostigingsgegevens!$G$38)*InUitstroomVSO!L24,"") ->  | R24: =IF($N$1=A24,Bekostigingsgegevens!$H$39*InUitstroomVSO!M24,"") ->  | Y24: 0
A25: VO2002 | B25: 00LD | C25: 0 | D25: 0 | E25: 0 | F25: 0 | G25: 1 | H25: 0 | I25: 0 | J25: 1 | P25: =IF($N$1=A25,(Bekostigingsgegevens!$H$35+Bekostigingsgegevens!$G$36)*InUitstroomVSO!K25,"") ->  | Q25: =IF($N$1=A25,(Bekostigingsgegevens!$H$37+Bekostigingsgegevens!$G$38)*InUitstroomVSO!L25,"") ->  | R25: =IF($N$1=A25,Bekostigingsgegevens!$H$39*InUitstroomVSO!M25,"") ->  | Y25: 0
A26: VO2002 | B26: 00RS | C26: 0 | D26: 0 | E26: 0 | F26: 0 | G26: 0 | H26: 0 | I26: 1 | J26: 1 | P26: =IF($N$1=A26,(Bekostigingsgegevens!$H$35+Bekostigingsgegevens!$G$36)*InUitstroomVSO!K26,"") ->  | Q26: =IF($N$1=A26,(Bekostigingsgegevens!$H$37+Bekostigingsgegevens!$G$38)*InUitstroomVSO!L26,"") ->  | R26: =IF($N$1=A26,Bekostigingsgegevens!$H$39*InUitstroomVSO!M26,"") ->  | Y26: 0
A27: VO2002 | B27: 00ZF | C27: 0 | D27: 0 | E27: 0 | F27: 0 | G27: 4 | H27: 0 | I27: 0 | J27: 4 | P27: =IF($N$1=A27,(Bekostigingsgegevens!$H$35+Bekostigingsgegevens!$G$36)*InUitstroomVSO!K27,"") ->  | Q27: =IF($N$1=A27,(Bekostigingsgegevens!$H$37+Bekostigingsgegevens!$G$38)*InUitstroomVSO!L27,"") ->  | R27: =IF($N$1=A27,Bekostigingsgegevens!$H$39*InUitstroomVSO!M27,"") ->  | Y27: 0
A28: VO2002 | B28: 01QH | C28: 0 | D28: 0 | E28: 0 | F28: 0 | G28: 2 | H28: 0 | I28: 0 | J28: 2 | P28: =IF($N$1=A28,(Bekostigingsgegevens!$H$35+Bekostigingsgegevens!$G$36)*InUitstroomVSO!K28,"") ->  | Q28: =IF($N$1=A28,(Bekostigingsgegevens!$H$37+Bekostigingsgegevens!$G$38)*InUitstroomVSO!L28,"") ->  | R28: =IF($N$1=A28,Bekostigingsgegevens!$H$39*InUitstroomVSO!M28,"") ->  | Y28: 0
A29: VO2002 | B29: 02EY | C29: 1 | D29: 0 | E29: 0 | F29: 1 | G29: 2 | H29: 0 | I29: 0 | J29: 2 | P29: =IF($N$1=A29,(Bekostigingsgegevens!$H$35+Bekostigingsgegevens!$G$36)*InUitstroomVSO!K29,"") ->  | Q29: =IF($N$1=A29,(Bekostigingsgegevens!$H$37+Bekostigingsgegevens!$G$38)*InUitstroomVSO!L29,"") ->  | R29: =IF($N$1=A29,Bekostigingsgegevens!$H$39*InUitstroomVSO!M29,"") ->  | Y29: 0
A30: VO2002 | B30: 02YL | C30: 2 | D30: 0 | E30: 0 | F30: 2 | G30: 1 | H30: 0 | I30: 0 | J30: 1 | P30: =IF($N$1=A30,(Bekostigingsgegevens!$H$35+Bekostigingsgegevens!$G$36)*InUitstroomVSO!K30,"") ->  | Q30: =IF($N$1=A30,(Bekostigingsgegevens!$H$37+Bekostigingsgegevens!$G$38)*InUitstroomVSO!L30,"") ->  | R30: =IF($N$1=A30,Bekostigingsgegevens!$H$39*InUitstroomVSO!M30,"") ->  | Y30: 0
A31: VO2002 | B31: 02YM | C31: 0 | D31: 0 | E31: 0 | F31: 0 | G31: 2 | H31: 0 | I31: 0 | J31: 2 | P31: =IF($N$1=A31,(Bekostigingsgegevens!$H$35+Bekostigingsgegevens!$G$36)*InUitstroomVSO!K31,"") ->  | Q31: =IF($N$1=A31,(Bekostigingsgegevens!$H$37+Bekostigingsgegevens!$G$38)*InUitstroomVSO!L31,"") ->  | R31: =IF($N$1=A31,Bekostigingsgegevens!$H$39*InUitstroomVSO!M31,"") ->  | Y31: 0
A32: VO2002 | B32: 06SV | C32: 3 | D32: 0 | E32: 0 | F32: 3 | G32: 1 | H32: 0 | I32: 0 | J32: 1 | P32: =IF($N$1=A32,(Bekostigingsgegevens!$H$35+Bekostigingsgegevens!$G$36)*InUitstroomVSO!K32,"") ->  | Q32: =IF($N$1=A32,(Bekostigingsgegevens!$H$37+Bekostigingsgegevens!$G$38)*InUitstroomVSO!L32,"") ->  | R32: =IF($N$1=A32,Bekostigingsgegevens!$H$39*InUitstroomVSO!M32,"") ->  | Y32: 0
A33: VO2002 | B33: 14OR | C33: 6 | D33: 0 | E33: 0 | F33: 6 | G33: 6 | H33: 0 | I33: 0 | J33: 6 | P33: =IF($N$1=A33,(Bekostigingsgegevens!$H$35+Bekostigingsgegevens!$G$36)*InUitstroomVSO!K33,"") ->  | Q33: =IF($N$1=A33,(Bekostigingsgegevens!$H$37+Bekostigingsgegevens!$G$38)*InUitstroomVSO!L33,"") ->  | R33: =IF($N$1=A33,Bekostigingsgegevens!$H$39*InUitstroomVSO!M33,"") ->  | Y33: 0
A34: VO2002 | B34: 14WT | C34: 0 | D34: 0 | E34: 0 | F34: 0 | G34: 1 | H34: 0 | I34: 0 | J34: 1 | P34: =IF($N$1=A34,(Bekostigingsgegevens!$H$35+Bekostigingsgegevens!$G$36)*InUitstroomVSO!K34,"") ->  | Q34: =IF($N$1=A34,(Bekostigingsgegevens!$H$37+Bekostigingsgegevens!$G$38)*InUitstroomVSO!L34,"") ->  | R34: =IF($N$1=A34,Bekostigingsgegevens!$H$39*InUitstroomVSO!M34,"") ->  | Y34: 0
A35: VO2002 | B35: 19SO | C35: 0 | D35: 0 | E35: 0 | F35: 0 | G35: 4 | H35: 0 | I35: 0 | J35: 4 | P35: =IF($N$1=A35,(Bekostigingsgegevens!$H$35+Bekostigingsgegevens!$G$36)*InUitstroomVSO!K35,"") ->  | Q35: =IF($N$1=A35,(Bekostigingsgegevens!$H$37+Bekostigingsgegevens!$G$38)*InUitstroomVSO!L35,"") ->  | R35: =IF($N$1=A35,Bekostigingsgegevens!$H$39*InUitstroomVSO!M35,"") ->  | Y35: 0
A36: VO2002 | B36: 19TZ | C36: 0 | D36: 0 | E36: 0 | F36: 0 | G36: 2 | H36: 0 | I36: 1 | J36: 3 | P36: =IF($N$1=A36,(Bekostigingsgegevens!$H$35+Bekostigingsgegevens!$G$36)*InUitstroomVSO!K36,"") ->  | Q36: =IF($N$1=A36,(Bekostigingsgegevens!$H$37+Bekostigingsgegevens!$G$38)*InUitstroomVSO!L36,"") ->  | R36: =IF($N$1=A36,Bekostigingsgegevens!$H$39*InUitstroomVSO!M36,"") ->  | Y36: 0
A37: VO2002 | B37: 19VD | C37: 0 | D37: 1 | E37: 0 | F37: 1 | G37: 0 | H37: 0 | I37: 0 | J37: 0 | P37: =IF($N$1=A37,(Bekostigingsgegevens!$H$35+Bekostigingsgegevens!$G$36)*InUitstroomVSO!K37,"") ->  | Q37: =IF($N$1=A37,(Bekostigingsgegevens!$H$37+Bekostigingsgegevens!$G$38)*InUitstroomVSO!L37,"") ->  | R37: =IF($N$1=A37,Bekostigingsgegevens!$H$39*InUitstroomVSO!M37,"") ->  | Y37: 0
A38: VO2002 | B38: 19VO | C38: 0 | D38: 1 | E38: 0 | F38: 1 | G38: 0 | H38: 0 | I38: 0 | J38: 0 | P38: =IF($N$1=A38,(Bekostigingsgegevens!$H$35+Bekostigingsgegevens!$G$36)*InUitstroomVSO!K38,"") ->  | Q38: =IF($N$1=A38,(Bekostigingsgegevens!$H$37+Bekostigingsgegevens!$G$38)*InUitstroomVSO!L38,"") ->  | R38: =IF($N$1=A38,Bekostigingsgegevens!$H$39*InUitstroomVSO!M38,"") ->  | Y38: 0
A39: VO2002 | B39: 23JT | C39: 0 | D39: 0 | E39: 0 | F39: 0 | G39: 0 | H39: 0 | I39: 0 | J39: 0 | P39: =IF($N$1=A39,(Bekostigingsgegevens!$H$35+Bekostigingsgegevens!$G$36)*InUitstroomVSO!K39,"") ->  | Q39: =IF($N$1=A39,(Bekostigingsgegevens!$H$37+Bekostigingsgegevens!$G$38)*InUitstroomVSO!L39,"") ->  | R39: =IF($N$1=A39,Bekostigingsgegevens!$H$39*InUitstroomVSO!M39,"") ->  | Y39: 0
A40: VO2002 | B40: 26MK | C40: 0 | D40: 0 | E40: 0 | F40: 0 | G40: 1 | H40: 0 | I40: 0 | J40: 1 | P40: =IF($N$1=A40,(Bekostigingsgegevens!$H$35+Bekostigingsgegevens!$G$36)*InUitstroomVSO!K40,"") ->  | Q40: =IF($N$1=A40,(Bekostigingsgegevens!$H$37+Bekostigingsgegevens!$G$38)*InUitstroomVSO!L40,"") ->  | R40: =IF($N$1=A40,Bekostigingsgegevens!$H$39*InUitstroomVSO!M40,"") ->  | Y40: 0
A41: VO2002 | B41: 26MU | C41: 1 | D41: 0 | E41: 0 | F41: 1 | G41: 5 | H41: 0 | I41: 0 | J41: 5 | P41: =IF($N$1=A41,(Bekostigingsgegevens!$H$35+Bekostigingsgegevens!$G$36)*InUitstroomVSO!K41,"") ->  | Q41: =IF($N$1=A41,(Bekostigingsgegevens!$H$37+Bekostigingsgegevens!$G$38)*InUitstroomVSO!L41,"") ->  | R41: =IF($N$1=A41,Bekostigingsgegevens!$H$39*InUitstroomVSO!M41,"") ->  | Y41: 0
A42: VO2002 | B42: 26NL | C42: 3 | D42: 0 | E42: 0 | F42: 3 | G42: 3 | H42: 0 | I42: 0 | J42: 3 | P42: =IF($N$1=A42,(Bekostigingsgegevens!$H$35+Bekostigingsgegevens!$G$36)*InUitstroomVSO!K42,"") ->  | Q42: =IF($N$1=A42,(Bekostigingsgegevens!$H$37+Bekostigingsgegevens!$G$38)*InUitstroomVSO!L42,"") ->  | R42: =IF($N$1=A42,Bekostigingsgegevens!$H$39*InUitstroomVSO!M42,"") ->  | Y42: 0
A43: VO2101 | B43: 00LD | C43: 1 | D43: 2 | E43: 0 | F43: 3 | G43: 0 | H43: 0 | I43: 0 | J43: 0 | P43: =IF($N$1=A43,(Bekostigingsgegevens!$H$35+Bekostigingsgegevens!$G$36)*InUitstroomVSO!K43,"") ->  | Q43: =IF($N$1=A43,(Bekostigingsgegevens!$H$37+Bekostigingsgegevens!$G$38)*InUitstroomVSO!L43,"") ->  | R43: =IF($N$1=A43,Bekostigingsgegevens!$H$39*InUitstroomVSO!M43,"") ->  | Y43: 0
A44: VO2101 | B44: 00MU | C44: 0 | D44: 0 | E44: 1 | F44: 1 | G44: 0 | H44: 0 | I44: 0 | J44: 0 | P44: =IF($N$1=A44,(Bekostigingsgegevens!$H$35+Bekostigingsgegevens!$G$36)*InUitstroomVSO!K44,"") ->  | Q44: =IF($N$1=A44,(Bekostigingsgegevens!$H$37+Bekostigingsgegevens!$G$38)*InUitstroomVSO!L44,"") ->  | R44: =IF($N$1=A44,Bekostigingsgegevens!$H$39*InUitstroomVSO!M44,"") ->  | Y44: 0
A45: VO2101 | B45: 00RS | C45: 1 | D45: 0 | E45: 0 | F45: 1 | G45: 0 | H45: 0 | I45: 1 | J45: 1 | P45: =IF($N$1=A45,(Bekostigingsgegevens!$H$35+Bekostigingsgegevens!$G$36)*InUitstroomVSO!K45,"") ->  | Q45: =IF($N$1=A45,(Bekostigingsgegevens!$H$37+Bekostigingsgegevens!$G$38)*InUitstroomVSO!L45,"") ->  | R45: =IF($N$1=A45,Bekostigingsgegevens!$H$39*InUitstroomVSO!M45,"") ->  | Y45: 0
A46: VO2101 | B46: 00ZF | C46: 2 | D46: 0 | E46: 0 | F46: 2 | G46: 0 | H46: 0 | I46: 0 | J46: 0 | P46: =IF($N$1=A46,(Bekostigingsgegevens!$H$35+Bekostigingsgegevens!$G$36)*InUitstroomVSO!K46,"") ->  | Q46: =IF($N$1=A46,(Bekostigingsgegevens!$H$37+Bekostigingsgegevens!$G$38)*InUitstroomVSO!L46,"") ->  | R46: =IF($N$1=A46,Bekostigingsgegevens!$H$39*InUitstroomVSO!M46,"") ->  | Y46: 0
A47: VO2101 | B47: 02EY | C47: 3 | D47: 0 | E47: 0 | F47: 3 | G47: 3 | H47: 0 | I47: 0 | J47: 3 | P47: =IF($N$1=A47,(Bekostigingsgegevens!$H$35+Bekostigingsgegevens!$G$36)*InUitstroomVSO!K47,"") ->  | Q47: =IF($N$1=A47,(Bekostigingsgegevens!$H$37+Bekostigingsgegevens!$G$38)*InUitstroomVSO!L47,"") ->  | R47: =IF($N$1=A47,Bekostigingsgegevens!$H$39*InUitstroomVSO!M47,"") ->  | Y47: 0
A48: VO2101 | B48: 02XF | C48: 1 | D48: 0 | E48: 0 | F48: 1 | G48: 5 | H48: 0 | I48: 3 | J48: 8 | P48: =IF($N$1=A48,(Bekostigingsgegevens!$H$35+Bekostigingsgegevens!$G$36)*InUitstroomVSO!K48,"") ->  | Q48: =IF($N$1=A48,(Bekostigingsgegevens!$H$37+Bekostigingsgegevens!$G$38)*InUitstroomVSO!L48,"") ->  | R48: =IF($N$1=A48,Bekostigingsgegevens!$H$39*InUitstroomVSO!M48,"") ->  | Y48: 0
A49: VO2101 | B49: 02YL | C49: 3 | D49: 0 | E49: 0 | F49: 3 | G49: 3 | H49: 0 | I49: 0 | J49: 3 | P49: =IF($N$1=A49,(Bekostigingsgegevens!$H$35+Bekostigingsgegevens!$G$36)*InUitstroomVSO!K49,"") ->  | Q49: =IF($N$1=A49,(Bekostigingsgegevens!$H$37+Bekostigingsgegevens!$G$38)*InUitstroomVSO!L49,"") ->  | R49: =IF($N$1=A49,Bekostigingsgegevens!$H$39*InUitstroomVSO!M49,"") ->  | Y49: 0
A50: VO2101 | B50: 02YN | C50: 0 | D50: 0 | E50: 0 | F50: 0 | G50: 1 | H50: 0 | I50: 0 | J50: 1 | P50: =IF($N$1=A50,(Bekostigingsgegevens!$H$35+Bekostigingsgegevens!$G$36)*InUitstroomVSO!K50,"") ->  | Q50: =IF($N$1=A50,(Bekostigingsgegevens!$H$37+Bekostigingsgegevens!$G$38)*InUitstroomVSO!L50,"") ->  | R50: =IF($N$1=A50,Bekostigingsgegevens!$H$39*InUitstroomVSO!M50,"") ->  | Y50: 0
A51: VO2101 | B51: 03TV | C51: 0 | D51: 0 | E51: 0 | F51: 0 | G51: 0 | H51: 0 | I51: 0 | J51: 0 | P51: =IF($N$1=A51,(Bekostigingsgegevens!$H$35+Bekostigingsgegevens!$G$36)*InUitstroomVSO!K51,"") ->  | Q51: =IF($N$1=A51,(Bekostigingsgegevens!$H$37+Bekostigingsgegevens!$G$38)*InUitstroomVSO!L51,"") ->  | R51: =IF($N$1=A51,Bekostigingsgegevens!$H$39*InUitstroomVSO!M51,"") ->  | Y51: 0
A52: VO2101 | B52: 05YX | C52: 1 | D52: 0 | E52: 0 | F52: 1 | G52: 0 | H52: 0 | I52: 0 | J52: 0 | P52: =IF($N$1=A52,(Bekostigingsgegevens!$H$35+Bekostigingsgegevens!$G$36)*InUitstroomVSO!K52,"") ->  | Q52: =IF($N$1=A52,(Bekostigingsgegevens!$H$37+Bekostigingsgegevens!$G$38)*InUitstroomVSO!L52,"") ->  | R52: =IF($N$1=A52,Bekostigingsgegevens!$H$39*InUitstroomVSO!M52,"") ->  | Y52: 0
A53: VO2101 | B53: 07IQ | C53: 0 | D53: 0 | E53: 0 | F53: 0 | G53: 1 | H53: 0 | I53: 0 | J53: 1 | P53: =IF($N$1=A53,(Bekostigingsgegevens!$H$35+Bekostigingsgegevens!$G$36)*InUitstroomVSO!K53,"") ->  | Q53: =IF($N$1=A53,(Bekostigingsgegevens!$H$37+Bekostigingsgegevens!$G$38)*InUitstroomVSO!L53,"") ->  | R53: =IF($N$1=A53,Bekostigingsgegevens!$H$39*InUitstroomVSO!M53,"") ->  | Y53: 0
A54: VO2101 | B54: 08ST | C54: 0 | D54: 0 | E54: 0 | F54: 0 | G54: 3 | H54: 0 | I54: 0 | J54: 3 | P54: =IF($N$1=A54,(Bekostigingsgegevens!$H$35+Bekostigingsgegevens!$G$36)*InUitstroomVSO!K54,"") ->  | Q54: =IF($N$1=A54,(Bekostigingsgegevens!$H$37+Bekostigingsgegevens!$G$38)*InUitstroomVSO!L54,"") ->  | R54: =IF($N$1=A54,Bekostigingsgegevens!$H$39*InUitstroomVSO!M54,"") ->  | Y54: 0
A55: VO2101 | B55: 17JJ | C55: 0 | D55: 0 | E55: 0 | F55: 0 | G55: 0 | H55: 0 | I55: 0 | J55: 0 | P55: =IF($N$1=A55,(Bekostigingsgegevens!$H$35+Bekostigingsgegevens!$G$36)*InUitstroomVSO!K55,"") ->  | Q55: =IF($N$1=A55,(Bekostigingsgegevens!$H$37+Bekostigingsgegevens!$G$38)*InUitstroomVSO!L55,"") ->  | R55: =IF($N$1=A55,Bekostigingsgegevens!$H$39*InUitstroomVSO!M55,"") ->  | Y55: 0
A56: VO2101 | B56: 23JT | C56: 23 | D56: 0 | E56: 2 | F56: 25 | G56: 20 | H56: 0 | I56: 1 | J56: 21 | P56: =IF($N$1=A56,(Bekostigingsgegevens!$H$35+Bekostigingsgegevens!$G$36)*InUitstroomVSO!K56,"") ->  | Q56: =IF($N$1=A56,(Bekostigingsgegevens!$H$37+Bekostigingsgegevens!$G$38)*InUitstroomVSO!L56,"") ->  | R56: =IF($N$1=A56,Bekostigingsgegevens!$H$39*InUitstroomVSO!M56,"") ->  | Y56: 0
A57: VO2101 | B57: 26LD | C57: 3 | D57: 0 | E57: 0 | F57: 3 | G57: 2 | H57: 0 | I57: 0 | J57: 2 | P57: =IF($N$1=A57,(Bekostigingsgegevens!$H$35+Bekostigingsgegevens!$G$36)*InUitstroomVSO!K57,"") ->  | Q57: =IF($N$1=A57,(Bekostigingsgegevens!$H$37+Bekostigingsgegevens!$G$38)*InUitstroomVSO!L57,"") ->  | R57: =IF($N$1=A57,Bekostigingsgegevens!$H$39*InUitstroomVSO!M57,"") ->  | Y57: 0
A58: VO2101 | B58: 26MC | C58: 1 | D58: 0 | E58: 0 | F58: 1 | G58: 0 | H58: 0 | I58: 0 | J58: 0 | P58: =IF($N$1=A58,(Bekostigingsgegevens!$H$35+Bekostigingsgegevens!$G$36)*InUitstroomVSO!K58,"") ->  | Q58: =IF($N$1=A58,(Bekostigingsgegevens!$H$37+Bekostigingsgegevens!$G$38)*InUitstroomVSO!L58,"") ->  | R58: =IF($N$1=A58,Bekostigingsgegevens!$H$39*InUitstroomVSO!M58,"") ->  | Y58: 0
A59: VO2102 | B59: 00LD | C59: 0 | D59: 4 | E59: 0 | F59: 4 | G59: 1 | H59: 1 | I59: 1 | J59: 3 | P59: =IF($N$1=A59,(Bekostigingsgegevens!$H$35+Bekostigingsgegevens!$G$36)*InUitstroomVSO!K59,"") ->  | Q59: =IF($N$1=A59,(Bekostigingsgegevens!$H$37+Bekostigingsgegevens!$G$38)*InUitstroomVSO!L59,"") ->  | R59: =IF($N$1=A59,Bekostigingsgegevens!$H$39*InUitstroomVSO!M59,"") ->  | Y59: 0
A60: VO2102 | B60: 00RS | C60: 0 | D60: 0 | E60: 1 | F60: 1 | G60: 5 | H60: 0 | I60: 3 | J60: 8 | P60: =IF($N$1=A60,(Bekostigingsgegevens!$H$35+Bekostigingsgegevens!$G$36)*InUitstroomVSO!K60,"") ->  | Q60: =IF($N$1=A60,(Bekostigingsgegevens!$H$37+Bekostigingsgegevens!$G$38)*InUitstroomVSO!L60,"") ->  | R60: =IF($N$1=A60,Bekostigingsgegevens!$H$39*InUitstroomVSO!M60,"") ->  | Y60: 0
A61: VO2102 | B61: 00ZF | C61: 0 | D61: 0 | E61: 0 | F61: 0 | G61: 1 | H61: 0 | I61: 0 | J61: 1 | P61: =IF($N$1=A61,(Bekostigingsgegevens!$H$35+Bekostigingsgegevens!$G$36)*InUitstroomVSO!K61,"") ->  | Q61: =IF($N$1=A61,(Bekostigingsgegevens!$H$37+Bekostigingsgegevens!$G$38)*InUitstroomVSO!L61,"") ->  | R61: =IF($N$1=A61,Bekostigingsgegevens!$H$39*InUitstroomVSO!M61,"") ->  | Y61: 0
A62: VO2102 | B62: 01UC | C62: 1 | D62: 0 | E62: 0 | F62: 1 | G62: 0 | H62: 0 | I62: 0 | J62: 0 | P62: =IF($N$1=A62,(Bekostigingsgegevens!$H$35+Bekostigingsgegevens!$G$36)*InUitstroomVSO!K62,"") ->  | Q62: =IF($N$1=A62,(Bekostigingsgegevens!$H$37+Bekostigingsgegevens!$G$38)*InUitstroomVSO!L62,"") ->  | R62: =IF($N$1=A62,Bekostigingsgegevens!$H$39*InUitstroomVSO!M62,"") ->  | Y62: 0
A63: VO2102 | B63: 02EY | C63: 4 | D63: 0 | E63: 0 | F63: 4 | G63: 0 | H63: 0 | I63: 0 | J63: 0 | P63: =IF($N$1=A63,(Bekostigingsgegevens!$H$35+Bekostigingsgegevens!$G$36)*InUitstroomVSO!K63,"") ->  | Q63: =IF($N$1=A63,(Bekostigingsgegevens!$H$37+Bekostigingsgegevens!$G$38)*InUitstroomVSO!L63,"") ->  | R63: =IF($N$1=A63,Bekostigingsgegevens!$H$39*InUitstroomVSO!M63,"") ->  | Y63: 0
A64: VO2102 | B64: 02YL | C64: 7 | D64: 0 | E64: 0 | F64: 7 | G64: 8 | H64: 0 | I64: 0 | J64: 8 | P64: =IF($N$1=A64,(Bekostigingsgegevens!$H$35+Bekostigingsgegevens!$G$36)*InUitstroomVSO!K64,"") ->  | Q64: =IF($N$1=A64,(Bekostigingsgegevens!$H$37+Bekostigingsgegevens!$G$38)*InUitstroomVSO!L64,"") ->  | R64: =IF($N$1=A64,Bekostigingsgegevens!$H$39*InUitstroomVSO!M64,"") ->  | Y64: 0
A65: VO2102 | B65: 02YN | C65: 0 | D65: 0 | E65: 0 | F65: 0 | G65: 3 | H65: 0 | I65: 0 | J65: 3 | P65: =IF($N$1=A65,(Bekostigingsgegevens!$H$35+Bekostigingsgegevens!$G$36)*InUitstroomVSO!K65,"") ->  | Q65: =IF($N$1=A65,(Bekostigingsgegevens!$H$37+Bekostigingsgegevens!$G$38)*InUitstroomVSO!L65,"") ->  | R65: =IF($N$1=A65,Bekostigingsgegevens!$H$39*InUitstroomVSO!M65,"") ->  | Y65: 0
A66: VO2102 | B66: 02YU | C66: 0 | D66: 0 | E66: 0 | F66: 0 | G66: 1 | H66: 0 | I66: 0 | J66: 1 | P66: =IF($N$1=A66,(Bekostigingsgegevens!$H$35+Bekostigingsgegevens!$G$36)*InUitstroomVSO!K66,"") ->  | Q66: =IF($N$1=A66,(Bekostigingsgegevens!$H$37+Bekostigingsgegevens!$G$38)*InUitstroomVSO!L66,"") ->  | R66: =IF($N$1=A66,Bekostigingsgegevens!$H$39*InUitstroomVSO!M66,"") ->  | Y66: 0
A67: VO2102 | B67: 06SV | C67: 2 | D67: 0 | E67: 0 | F67: 2 | G67: 4 | H67: 0 | I67: 0 | J67: 4 | P67: =IF($N$1=A67,(Bekostigingsgegevens!$H$35+Bekostigingsgegevens!$G$36)*InUitstroomVSO!K67,"") ->  | Q67: =IF($N$1=A67,(Bekostigingsgegevens!$H$37+Bekostigingsgegevens!$G$38)*InUitstroomVSO!L67,"") ->  | R67: =IF($N$1=A67,Bekostigingsgegevens!$H$39*InUitstroomVSO!M67,"") ->  | Y67: 0
A68: VO2102 | B68: 19SK | C68: 0 | D68: 0 | E68: 0 | F68: 0 | G68: 1 | H68: 0 | I68: 0 | J68: 1 | P68: =IF($N$1=A68,(Bekostigingsgegevens!$H$35+Bekostigingsgegevens!$G$36)*InUitstroomVSO!K68,"") ->  | Q68: =IF($N$1=A68,(Bekostigingsgegevens!$H$37+Bekostigingsgegevens!$G$38)*InUitstroomVSO!L68,"") ->  | R68: =IF($N$1=A68,Bekostigingsgegevens!$H$39*InUitstroomVSO!M68,"") ->  | Y68: 0
A69: VO2102 | B69: 19SU | C69: 0 | D69: 0 | E69: 0 | F69: 0 | G69: 0 | H69: 0 | I69: 0 | J69: 0 | P69: =IF($N$1=A69,(Bekostigingsgegevens!$H$35+Bekostigingsgegevens!$G$36)*InUitstroomVSO!K69,"") ->  | Q69: =IF($N$1=A69,(Bekostigingsgegevens!$H$37+Bekostigingsgegevens!$G$38)*InUitstroomVSO!L69,"") ->  | R69: =IF($N$1=A69,Bekostigingsgegevens!$H$39*InUitstroomVSO!M69,"") ->  | Y69: =SUM(V69:X69) -> 0
A70: VO2102 | B70: 19TX | C70: 0 | D70: 0 | E70: 0 | F70: 0 | G70: 5 | H70: 0 | I70: 3 | J70: 8 | K70: =IF($N$1=A70,SUM(C70-G70),"") ->  | L70: =IF($N$1=$A70,SUM(D70-H70),"") ->  | N70: =IF($N$1=$A70,SUM(K70:M70),"") ->  | P70: =IF($N$1=A70,(Bekostigingsgegevens!$H$35+Bekostigingsgegevens!$G$36)*InUitstroomVSO!K70,"") ->  | Q70: =IF($N$1=A70,(Bekostigingsgegevens!$H$37+Bekostigingsgegevens!$G$38)*InUitstroomVSO!L70,"") ->  | R70: =IF($N$1=A70,Bekostigingsgegevens!$H$39*InUitstroomVSO!M70,"") ->  | S70: =IF($N$1=$A70,SUM(P70:R70),"") ->  | T70: =IF(S70<0,0,S70) ->  | V70: =IF(K70<0,0,K70) ->  | Y70: 0
A71: VO2102 | B71: 19VD | C71: 0 | D71: 0 | E71: 0 | F71: 0 | G71: 0 | H71: 1 | I71: 0 | J71: 1 | P71: =IF($N$1=A71,(Bekostigingsgegevens!$H$35+Bekostigingsgegevens!$G$36)*InUitstroomVSO!K71,"") ->  | Q71: =IF($N$1=A71,(Bekostigingsgegevens!$H$37+Bekostigingsgegevens!$G$38)*InUitstroomVSO!L71,"") ->  | R71: =IF($N$1=A71,Bekostigingsgegevens!$H$39*InUitstroomVSO!M71,"") ->  | Y71: 0
A72: VO2102 | B72: 23HU | C72: 1 | D72: 0 | E72: 0 | F72: 1 | G72: 0 | H72: 0 | I72: 0 | J72: 0 | P72: =IF($N$1=A72,(Bekostigingsgegevens!$H$35+Bekostigingsgegevens!$G$36)*InUitstroomVSO!K72,"") ->  | Q72: =IF($N$1=A72,(Bekostigingsgegevens!$H$37+Bekostigingsgegevens!$G$38)*InUitstroomVSO!L72,"") ->  | R72: =IF($N$1=A72,Bekostigingsgegevens!$H$39*InUitstroomVSO!M72,"") ->  | Y72: 0
A73: VO2102 | B73: 23JT | C73: 3 | D73: 0 | E73: 0 | F73: 3 | G73: 10 | H73: 0 | I73: 0 | J73: 10 | P73: =IF($N$1=A73,(Bekostigingsgegevens!$H$35+Bekostigingsgegevens!$G$36)*InUitstroomVSO!K73,"") ->  | Q73: =IF($N$1=A73,(Bekostigingsgegevens!$H$37+Bekostigingsgegevens!$G$38)*InUitstroomVSO!L73,"") ->  | R73: =IF($N$1=A73,Bekostigingsgegevens!$H$39*InUitstroomVSO!M73,"") ->  | Y73: 0
A74: VO2102 | B74: 26MC | C74: 0 | D74: 0 | E74: 0 | F74: 0 | G74: 0 | H74: 0 | I74: 1 | J74: 1 | P74: =IF($N$1=A74,(Bekostigingsgegevens!$H$35+Bekostigingsgegevens!$G$36)*InUitstroomVSO!K74,"") ->  | Q74: =IF($N$1=A74,(Bekostigingsgegevens!$H$37+Bekostigingsgegevens!$G$38)*InUitstroomVSO!L74,"") ->  | R74: =IF($N$1=A74,Bekostigingsgegevens!$H$39*InUitstroomVSO!M74,"") ->  | Y74: 0
A75: VO2102 | B75: 26MK | C75: 0 | D75: 0 | E75: 0 | F75: 0 | G75: 1 | H75: 0 | I75: 0 | J75: 1 | P75: =IF($N$1=A75,(Bekostigingsgegevens!$H$35+Bekostigingsgegevens!$G$36)*InUitstroomVSO!K75,"") ->  | Q75: =IF($N$1=A75,(Bekostigingsgegevens!$H$37+Bekostigingsgegevens!$G$38)*InUitstroomVSO!L75,"") ->  | R75: =IF($N$1=A75,Bekostigingsgegevens!$H$39*InUitstroomVSO!M75,"") ->  | Y75: 0
A76: VO2103 | B76: 00LD | C76: 0 | D76: 0 | E76: 0 | F76: 0 | G76: 1 | H76: 1 | I76: 0 | J76: 2 | P76: =IF($N$1=A76,(Bekostigingsgegevens!$H$35+Bekostigingsgegevens!$G$36)*InUitstroomVSO!K76,"") ->  | Q76: =IF($N$1=A76,(Bekostigingsgegevens!$H$37+Bekostigingsgegevens!$G$38)*InUitstroomVSO!L76,"") ->  | R76: =IF($N$1=A76,Bekostigingsgegevens!$H$39*InUitstroomVSO!M76,"") ->  | Y76: 0
A77: VO2103 | B77: 00MU | C77: 0 | D77: 0 | E77: 0 | F77: 0 | G77: 1 | H77: 0 | I77: 0 | J77: 1 | P77: =IF($N$1=A77,(Bekostigingsgegevens!$H$35+Bekostigingsgegevens!$G$36)*InUitstroomVSO!K77,"") ->  | Q77: =IF($N$1=A77,(Bekostigingsgegevens!$H$37+Bekostigingsgegevens!$G$38)*InUitstroomVSO!L77,"") ->  | R77: =IF($N$1=A77,Bekostigingsgegevens!$H$39*InUitstroomVSO!M77,"") ->  | Y77: 0
A78: VO2103 | B78: 02EY | C78: 1 | D78: 0 | E78: 0 | F78: 1 | G78: 0 | H78: 0 | I78: 0 | J78: 0 | P78: =IF($N$1=A78,(Bekostigingsgegevens!$H$35+Bekostigingsgegevens!$G$36)*InUitstroomVSO!K78,"") ->  | Q78: =IF($N$1=A78,(Bekostigingsgegevens!$H$37+Bekostigingsgegevens!$G$38)*InUitstroomVSO!L78,"") ->  | R78: =IF($N$1=A78,Bekostigingsgegevens!$H$39*InUitstroomVSO!M78,"") ->  | Y78: 0
A79: VO2103 | B79: 02YL | C79: 1 | D79: 0 | E79: 0 | F79: 1 | G79: 0 | H79: 0 | I79: 0 | J79: 0 | P79: =IF($N$1=A79,(Bekostigingsgegevens!$H$35+Bekostigingsgegevens!$G$36)*InUitstroomVSO!K79,"") ->  | Q79: =IF($N$1=A79,(Bekostigingsgegevens!$H$37+Bekostigingsgegevens!$G$38)*InUitstroomVSO!L79,"") ->  | R79: =IF($N$1=A79,Bekostigingsgegevens!$H$39*InUitstroomVSO!M79,"") ->  | Y79: 0
A80: VO2103 | B80: 08ST | C80: 0 | D80: 0 | E80: 0 | F80: 0 | G80: 2 | H80: 0 | I80: 0 | J80: 2 | P80: =IF($N$1=A80,(Bekostigingsgegevens!$H$35+Bekostigingsgegevens!$G$36)*InUitstroomVSO!K80,"") ->  | Q80: =IF($N$1=A80,(Bekostigingsgegevens!$H$37+Bekostigingsgegevens!$G$38)*InUitstroomVSO!L80,"") ->  | R80: =IF($N$1=A80,Bekostigingsgegevens!$H$39*InUitstroomVSO!M80,"") ->  | Y80: 0
A81: VO2103 | B81: 23JT | C81: 1 | D81: 0 | E81: 0 | F81: 1 | G81: 4 | H81: 0 | I81: 0 | J81: 4 | P81: =IF($N$1=A81,(Bekostigingsgegevens!$H$35+Bekostigingsgegevens!$G$36)*InUitstroomVSO!K81,"") ->  | Q81: =IF($N$1=A81,(Bekostigingsgegevens!$H$37+Bekostigingsgegevens!$G$38)*InUitstroomVSO!L81,"") ->  | R81: =IF($N$1=A81,Bekostigingsgegevens!$H$39*InUitstroomVSO!M81,"") ->  | Y81: 0
A82: VO2103 | B82: 26MC | C82: 0 | D82: 0 | E82: 0 | F82: 0 | G82: 2 | H82: 0 | I82: 1 | J82: 3 | P82: =IF($N$1=A82,(Bekostigingsgegevens!$H$35+Bekostigingsgegevens!$G$36)*InUitstroomVSO!K82,"") ->  | Q82: =IF($N$1=A82,(Bekostigingsgegevens!$H$37+Bekostigingsgegevens!$G$38)*InUitstroomVSO!L82,"") ->  | R82: =IF($N$1=A82,Bekostigingsgegevens!$H$39*InUitstroomVSO!M82,"") ->  | Y82: 0
A83: VO2201 | B83: 00LD | C83: 0 | D83: 0 | E83: 0 | F83: 0 | G83: 0 | H83: 1 | I83: 0 | J83: 1 | P83: =IF($N$1=A83,(Bekostigingsgegevens!$H$35+Bekostigingsgegevens!$G$36)*InUitstroomVSO!K83,"") ->  | Q83: =IF($N$1=A83,(Bekostigingsgegevens!$H$37+Bekostigingsgegevens!$G$38)*InUitstroomVSO!L83,"") ->  | R83: =IF($N$1=A83,Bekostigingsgegevens!$H$39*InUitstroomVSO!M83,"") ->  | Y83: 0
A84: VO2201 | B84: 00ZF | C84: 0 | D84: 0 | E84: 0 | F84: 0 | G84: 4 | H84: 0 | I84: 0 | J84: 4 | P84: =IF($N$1=A84,(Bekostigingsgegevens!$H$35+Bekostigingsgegevens!$G$36)*InUitstroomVSO!K84,"") ->  | Q84: =IF($N$1=A84,(Bekostigingsgegevens!$H$37+Bekostigingsgegevens!$G$38)*InUitstroomVSO!L84,"") ->  | R84: =IF($N$1=A84,Bekostigingsgegevens!$H$39*InUitstroomVSO!M84,"") ->  | Y84: 0
A85: VO2201 | B85: 01UC | C85: 0 | D85: 0 | E85: 0 | F85: 0 | G85: 0 | H85: 0 | I85: 0 | J85: 0 | P85: =IF($N$1=A85,(Bekostigingsgegevens!$H$35+Bekostigingsgegevens!$G$36)*InUitstroomVSO!K85,"") ->  | Q85: =IF($N$1=A85,(Bekostigingsgegevens!$H$37+Bekostigingsgegevens!$G$38)*InUitstroomVSO!L85,"") ->  | R85: =IF($N$1=A85,Bekostigingsgegevens!$H$39*InUitstroomVSO!M85,"") ->  | Y85: 0
A86: VO2201 | B86: 02EY | C86: 0 | D86: 0 | E86: 0 | F86: 0 | G86: 1 | H86: 0 | I86: 0 | J86: 1 | P86: =IF($N$1=A86,(Bekostigingsgegevens!$H$35+Bekostigingsgegevens!$G$36)*InUitstroomVSO!K86,"") ->  | Q86: =IF($N$1=A86,(Bekostigingsgegevens!$H$37+Bekostigingsgegevens!$G$38)*InUitstroomVSO!L86,"") ->  | R86: =IF($N$1=A86,Bekostigingsgegevens!$H$39*InUitstroomVSO!M86,"") ->  | Y86: 0
A87: VO2201 | B87: 06SV | C87: 6 | D87: 0 | E87: 0 | F87: 6 | G87: 1 | H87: 0 | I87: 0 | J87: 1 | P87: =IF($N$1=A87,(Bekostigingsgegevens!$H$35+Bekostigingsgegevens!$G$36)*InUitstroomVSO!K87,"") ->  | Q87: =IF($N$1=A87,(Bekostigingsgegevens!$H$37+Bekostigingsgegevens!$G$38)*InUitstroomVSO!L87,"") ->  | R87: =IF($N$1=A87,Bekostigingsgegevens!$H$39*InUitstroomVSO!M87,"") ->  | Y87: 0
A88: VO2201 | B88: 14OR | C88: 3 | D88: 0 | E88: 0 | F88: 3 | G88: 0 | H88: 0 | I88: 0 | J88: 0 | P88: =IF($N$1=A88,(Bekostigingsgegevens!$H$35+Bekostigingsgegevens!$G$36)*InUitstroomVSO!K88,"") ->  | Q88: =IF($N$1=A88,(Bekostigingsgegevens!$H$37+Bekostigingsgegevens!$G$38)*InUitstroomVSO!L88,"") ->  | R88: =IF($N$1=A88,Bekostigingsgegevens!$H$39*InUitstroomVSO!M88,"") ->  | Y88: 0
A89: VO2201 | B89: 16QX | C89: 0 | D89: 0 | E89: 0 | F89: 0 | G89: 1 | H89: 0 | I89: 1 | J89: 2 | P89: =IF($N$1=A89,(Bekostigingsgegevens!$H$35+Bekostigingsgegevens!$G$36)*InUitstroomVSO!K89,"") ->  | Q89: =IF($N$1=A89,(Bekostigingsgegevens!$H$37+Bekostigingsgegevens!$G$38)*InUitstroomVSO!L89,"") ->  | R89: =IF($N$1=A89,Bekostigingsgegevens!$H$39*InUitstroomVSO!M89,"") ->  | Y89: 0
A90: VO2201 | B90: 19VO | C90: 0 | D90: 0 | E90: 0 | F90: 0 | G90: 1 | H90: 0 | I90: 0 | J90: 1 | P90: =IF($N$1=A90,(Bekostigingsgegevens!$H$35+Bekostigingsgegevens!$G$36)*InUitstroomVSO!K90,"") ->  | Q90: =IF($N$1=A90,(Bekostigingsgegevens!$H$37+Bekostigingsgegevens!$G$38)*InUitstroomVSO!L90,"") ->  | R90: =IF($N$1=A90,Bekostigingsgegevens!$H$39*InUitstroomVSO!M90,"") ->  | Y90: 0
A91: VO2201 | B91: 20BG | C91: 0 | D91: 0 | E91: 0 | F91: 0 | G91: 0 | H91: 0 | I91: 1 | J91: 1 | P91: =IF($N$1=A91,(Bekostigingsgegevens!$H$35+Bekostigingsgegevens!$G$36)*InUitstroomVSO!K91,"") ->  | Q91: =IF($N$1=A91,(Bekostigingsgegevens!$H$37+Bekostigingsgegevens!$G$38)*InUitstroomVSO!L91,"") ->  | R91: =IF($N$1=A91,Bekostigingsgegevens!$H$39*InUitstroomVSO!M91,"") ->  | Y91: 0
A92: VO2201 | B92: 23JT | C92: 0 | D92: 0 | E92: 0 | F92: 0 | G92: 0 | H92: 0 | I92: 0 | J92: 0 | P92: =IF($N$1=A92,(Bekostigingsgegevens!$H$35+Bekostigingsgegevens!$G$36)*InUitstroomVSO!K92,"") ->  | Q92: =IF($N$1=A92,(Bekostigingsgegevens!$H$37+Bekostigingsgegevens!$G$38)*InUitstroomVSO!L92,"") ->  | R92: =IF($N$1=A92,Bekostigingsgegevens!$H$39*InUitstroomVSO!M92,"") ->  | Y92: 0
A93: VO2201 | B93: 26MU | C93: 0 | D93: 0 | E93: 0 | F93: 0 | G93: 1 | H93: 0 | I93: 0 | J93: 1 | P93: =IF($N$1=A93,(Bekostigingsgegevens!$H$35+Bekostigingsgegevens!$G$36)*InUitstroomVSO!K93,"") ->  | Q93: =IF($N$1=A93,(Bekostigingsgegevens!$H$37+Bekostigingsgegevens!$G$38)*InUitstroomVSO!L93,"") ->  | R93: =IF($N$1=A93,Bekostigingsgegevens!$H$39*InUitstroomVSO!M93,"") ->  | Y93: 0
A94: VO2202 | B94: 00KM | C94: 0 | D94: 0 | E94: 0 | F94: 0 | G94: 0 | H94: 0 | I94: 0 | J94: 0 | P94: =IF($N$1=A94,(Bekostigingsgegevens!$H$35+Bekostigingsgegevens!$G$36)*InUitstroomVSO!K94,"") ->  | Q94: =IF($N$1=A94,(Bekostigingsgegevens!$H$37+Bekostigingsgegevens!$G$38)*InUitstroomVSO!L94,"") ->  | R94: =IF($N$1=A94,Bekostigingsgegevens!$H$39*InUitstroomVSO!M94,"") ->  | Y94: 0
A95: VO2202 | B95: 00SU | C95: 1 | D95: 0 | E95: 0 | F95: 1 | G95: 9 | H95: 0 | I95: 1 | J95: 10 | P95: =IF($N$1=A95,(Bekostigingsgegevens!$H$35+Bekostigingsgegevens!$G$36)*InUitstroomVSO!K95,"") ->  | Q95: =IF($N$1=A95,(Bekostigingsgegevens!$H$37+Bekostigingsgegevens!$G$38)*InUitstroomVSO!L95,"") ->  | R95: =IF($N$1=A95,Bekostigingsgegevens!$H$39*InUitstroomVSO!M95,"") ->  | Y95: 0
A96: VO2202 | B96: 00ZF | C96: 7 | D96: 0 | E96: 0 | F96: 7 | G96: 7 | H96: 0 | I96: 0 | J96: 7 | P96: =IF($N$1=A96,(Bekostigingsgegevens!$H$35+Bekostigingsgegevens!$G$36)*InUitstroomVSO!K96,"") ->  | Q96: =IF($N$1=A96,(Bekostigingsgegevens!$H$37+Bekostigingsgegevens!$G$38)*InUitstroomVSO!L96,"") ->  | R96: =IF($N$1=A96,Bekostigingsgegevens!$H$39*InUitstroomVSO!M96,"") ->  | Y96: 0
A97: VO2202 | B97: 02EY | C97: 1 | D97: 0 | E97: 0 | F97: 1 | G97: 0 | H97: 0 | I97: 0 | J97: 0 | P97: =IF($N$1=A97,(Bekostigingsgegevens!$H$35+Bekostigingsgegevens!$G$36)*InUitstroomVSO!K97,"") ->  | Q97: =IF($N$1=A97,(Bekostigingsgegevens!$H$37+Bekostigingsgegevens!$G$38)*InUitstroomVSO!L97,"") ->  | R97: =IF($N$1=A97,Bekostigingsgegevens!$H$39*InUitstroomVSO!M97,"") ->  | Y97: 0
A98: VO2202 | B98: 02GD | C98: 0 | D98: 0 | E98: 0 | F98: 0 | G98: 0 | H98: 1 | I98: 0 | J98: 1 | P98: =IF($N$1=A98,(Bekostigingsgegevens!$H$35+Bekostigingsgegevens!$G$36)*InUitstroomVSO!K98,"") ->  | Q98: =IF($N$1=A98,(Bekostigingsgegevens!$H$37+Bekostigingsgegevens!$G$38)*InUitstroomVSO!L98,"") ->  | R98: =IF($N$1=A98,Bekostigingsgegevens!$H$39*InUitstroomVSO!M98,"") ->  | Y98: 0
A99: VO2202 | B99: 02PQ | C99: 1 | D99: 0 | E99: 0 | F99: 1 | G99: 0 | H99: 0 | I99: 0 | J99: 0 | P99: =IF($N$1=A99,(Bekostigingsgegevens!$H$35+Bekostigingsgegevens!$G$36)*InUitstroomVSO!K99,"") ->  | Q99: =IF($N$1=A99,(Bekostigingsgegevens!$H$37+Bekostigingsgegevens!$G$38)*InUitstroomVSO!L99,"") ->  | R99: =IF($N$1=A99,Bekostigingsgegevens!$H$39*InUitstroomVSO!M99,"") ->  | Y99: 0
A100: VO2202 | B100: 06SV | C100: 2 | D100: 0 | E100: 0 | F100: 2 | G100: 0 | H100: 0 | I100: 0 | J100: 0 | P100: =IF($N$1=A100,(Bekostigingsgegevens!$H$35+Bekostigingsgegevens!$G$36)*InUitstroomVSO!K100,"") ->  | Q100: =IF($N$1=A100,(Bekostigingsgegevens!$H$37+Bekostigingsgegevens!$G$38)*InUitstroomVSO!L100,"") ->  | R100: =IF($N$1=A100,Bekostigingsgegevens!$H$39*InUitstroomVSO!M100,"") ->  | Y100: 0
A101: VO2202 | B101: 14XF | C101: 0 | D101: 0 | E101: 0 | F101: 0 | G101: 2 | H101: 0 | I101: 0 | J101: 2 | P101: =IF($N$1=A101,(Bekostigingsgegevens!$H$35+Bekostigingsgegevens!$G$36)*InUitstroomVSO!K101,"") ->  | Q101: =IF($N$1=A101,(Bekostigingsgegevens!$H$37+Bekostigingsgegevens!$G$38)*InUitstroomVSO!L101,"") ->  | R101: =IF($N$1=A101,Bekostigingsgegevens!$H$39*InUitstroomVSO!M101,"") ->  | Y101: 0
A102: VO2202 | B102: 16QX | C102: 0 | D102: 0 | E102: 0 | F102: 0 | G102: 2 | H102: 0 | I102: 0 | J102: 2 | P102: =IF($N$1=A102,(Bekostigingsgegevens!$H$35+Bekostigingsgegevens!$G$36)*InUitstroomVSO!K102,"") ->  | Q102: =IF($N$1=A102,(Bekostigingsgegevens!$H$37+Bekostigingsgegevens!$G$38)*InUitstroomVSO!L102,"") ->  | R102: =IF($N$1=A102,Bekostigingsgegevens!$H$39*InUitstroomVSO!M102,"") ->  | Y102: 0
A103: VO2202 | B103: 19VO | C103: 0 | D103: 0 | E103: 0 | F103: 0 | G103: 0 | H103: 0 | I103: 1 | J103: 1 | P103: =IF($N$1=A103,(Bekostigingsgegevens!$H$35+Bekostigingsgegevens!$G$36)*InUitstroomVSO!K103,"") ->  | Q103: =IF($N$1=A103,(Bekostigingsgegevens!$H$37+Bekostigingsgegevens!$G$38)*InUitstroomVSO!L103,"") ->  | R103: =IF($N$1=A103,Bekostigingsgegevens!$H$39*InUitstroomVSO!M103,"") ->  | Y103: 0
A104: VO2203 | B104: 00KM | C104: 0 | D104: 0 | E104: 0 | F104: 0 | G104: 1 | H104: 0 | I104: 0 | J104: 1 | P104: =IF($N$1=A104,(Bekostigingsgegevens!$H$35+Bekostigingsgegevens!$G$36)*InUitstroomVSO!K104,"") ->  | Q104: =IF($N$1=A104,(Bekostigingsgegevens!$H$37+Bekostigingsgegevens!$G$38)*InUitstroomVSO!L104,"") ->  | R104: =IF($N$1=A104,Bekostigingsgegevens!$H$39*InUitstroomVSO!M104,"") ->  | Y104: 0
A105: VO2203 | B105: 00ZF | C105: 7 | D105: 0 | E105: 0 | F105: 7 | G105: 9 | H105: 0 | I105: 0 | J105: 9 | P105: =IF($N$1=A105,(Bekostigingsgegevens!$H$35+Bekostigingsgegevens!$G$36)*InUitstroomVSO!K105,"") ->  | Q105: =IF($N$1=A105,(Bekostigingsgegevens!$H$37+Bekostigingsgegevens!$G$38)*InUitstroomVSO!L105,"") ->  | R105: =IF($N$1=A105,Bekostigingsgegevens!$H$39*InUitstroomVSO!M105,"") ->  | Y105: 0
A106: VO2203 | B106: 02EY | C106: 1 | D106: 0 | E106: 0 | F106: 1 | G106: 0 | H106: 0 | I106: 0 | J106: 0 | P106: =IF($N$1=A106,(Bekostigingsgegevens!$H$35+Bekostigingsgegevens!$G$36)*InUitstroomVSO!K106,"") ->  | Q106: =IF($N$1=A106,(Bekostigingsgegevens!$H$37+Bekostigingsgegevens!$G$38)*InUitstroomVSO!L106,"") ->  | R106: =IF($N$1=A106,Bekostigingsgegevens!$H$39*InUitstroomVSO!M106,"") ->  | Y106: 0
A107: VO2203 | B107: 02KX | C107: 0 | D107: 0 | E107: 0 | F107: 0 | G107: 0 | H107: 0 | I107: 0 | J107: 0 | P107: =IF($N$1=A107,(Bekostigingsgegevens!$H$35+Bekostigingsgegevens!$G$36)*InUitstroomVSO!K107,"") ->  | Q107: =IF($N$1=A107,(Bekostigingsgegevens!$H$37+Bekostigingsgegevens!$G$38)*InUitstroomVSO!L107,"") ->  | R107: =IF($N$1=A107,Bekostigingsgegevens!$H$39*InUitstroomVSO!M107,"") ->  | Y107: 0
A108: VO2203 | B108: 02YL | C108: 1 | D108: 0 | E108: 0 | F108: 1 | G108: 1 | H108: 0 | I108: 0 | J108: 1 | P108: =IF($N$1=A108,(Bekostigingsgegevens!$H$35+Bekostigingsgegevens!$G$36)*InUitstroomVSO!K108,"") ->  | Q108: =IF($N$1=A108,(Bekostigingsgegevens!$H$37+Bekostigingsgegevens!$G$38)*InUitstroomVSO!L108,"") ->  | R108: =IF($N$1=A108,Bekostigingsgegevens!$H$39*InUitstroomVSO!M108,"") ->  | Y108: 0
A109: VO2203 | B109: 02YM | C109: 0 | D109: 0 | E109: 0 | F109: 0 | G109: 1 | H109: 0 | I109: 0 | J109: 1 | P109: =IF($N$1=A109,(Bekostigingsgegevens!$H$35+Bekostigingsgegevens!$G$36)*InUitstroomVSO!K109,"") ->  | Q109: =IF($N$1=A109,(Bekostigingsgegevens!$H$37+Bekostigingsgegevens!$G$38)*InUitstroomVSO!L109,"") ->  | R109: =IF($N$1=A109,Bekostigingsgegevens!$H$39*InUitstroomVSO!M109,"") ->  | Y109: 0
A110: VO2203 | B110: 02YN | C110: 2 | D110: 0 | E110: 0 | F110: 2 | G110: 2 | H110: 0 | I110: 0 | J110: 2 | P110: =IF($N$1=A110,(Bekostigingsgegevens!$H$35+Bekostigingsgegevens!$G$36)*InUitstroomVSO!K110,"") ->  | Q110: =IF($N$1=A110,(Bekostigingsgegevens!$H$37+Bekostigingsgegevens!$G$38)*InUitstroomVSO!L110,"") ->  | R110: =IF($N$1=A110,Bekostigingsgegevens!$H$39*InUitstroomVSO!M110,"") ->  | Y110: 0
A111: VO2203 | B111: 06SV | C111: 4 | D111: 0 | E111: 0 | F111: 4 | G111: 0 | H111: 0 | I111: 0 | J111: 0 | P111: =IF($N$1=A111,(Bekostigingsgegevens!$H$35+Bekostigingsgegevens!$G$36)*InUitstroomVSO!K111,"") ->  | Q111: =IF($N$1=A111,(Bekostigingsgegevens!$H$37+Bekostigingsgegevens!$G$38)*InUitstroomVSO!L111,"") ->  | R111: =IF($N$1=A111,Bekostigingsgegevens!$H$39*InUitstroomVSO!M111,"") ->  | Y111: 0
A112: VO2203 | B112: 14XF | C112: 1 | D112: 0 | E112: 0 | F112: 1 | G112: 3 | H112: 0 | I112: 0 | J112: 3 | P112: =IF($N$1=A112,(Bekostigingsgegevens!$H$35+Bekostigingsgegevens!$G$36)*InUitstroomVSO!K112,"") ->  | Q112: =IF($N$1=A112,(Bekostigingsgegevens!$H$37+Bekostigingsgegevens!$G$38)*InUitstroomVSO!L112,"") ->  | R112: =IF($N$1=A112,Bekostigingsgegevens!$H$39*InUitstroomVSO!M112,"") ->  | Y112: 0
A113: VO2203 | B113: 16QX | C113: 0 | D113: 0 | E113: 0 | F113: 0 | G113: 4 | H113: 0 | I113: 0 | J113: 4 | P113: =IF($N$1=A113,(Bekostigingsgegevens!$H$35+Bekostigingsgegevens!$G$36)*InUitstroomVSO!K113,"") ->  | Q113: =IF($N$1=A113,(Bekostigingsgegevens!$H$37+Bekostigingsgegevens!$G$38)*InUitstroomVSO!L113,"") ->  | R113: =IF($N$1=A113,Bekostigingsgegevens!$H$39*InUitstroomVSO!M113,"") ->  | Y113: 0
A114: VO2203 | B114: 19QK | C114: 0 | D114: 0 | E114: 0 | F114: 0 | G114: 0 | H114: 0 | I114: 1 | J114: 1 | P114: =IF($N$1=A114,(Bekostigingsgegevens!$H$35+Bekostigingsgegevens!$G$36)*InUitstroomVSO!K114,"") ->  | Q114: =IF($N$1=A114,(Bekostigingsgegevens!$H$37+Bekostigingsgegevens!$G$38)*InUitstroomVSO!L114,"") ->  | R114: =IF($N$1=A114,Bekostigingsgegevens!$H$39*InUitstroomVSO!M114,"") ->  | Y114: 0
A115: VO2203 | B115: 19SK | C115: 0 | D115: 0 | E115: 0 | F115: 0 | G115: 4 | H115: 0 | I115: 2 | J115: 6 | P115: =IF($N$1=A115,(Bekostigingsgegevens!$H$35+Bekostigingsgegevens!$G$36)*InUitstroomVSO!K115,"") ->  | Q115: =IF($N$1=A115,(Bekostigingsgegevens!$H$37+Bekostigingsgegevens!$G$38)*InUitstroomVSO!L115,"") ->  | R115: =IF($N$1=A115,Bekostigingsgegevens!$H$39*InUitstroomVSO!M115,"") ->  | Y115: 0
A116: VO2203 | B116: 19VD | C116: 0 | D116: 0 | E116: 0 | F116: 0 | G116: 0 | H116: 1 | I116: 0 | J116: 1 | P116: =IF($N$1=A116,(Bekostigingsgegevens!$H$35+Bekostigingsgegevens!$G$36)*InUitstroomVSO!K116,"") ->  | Q116: =IF($N$1=A116,(Bekostigingsgegevens!$H$37+Bekostigingsgegevens!$G$38)*InUitstroomVSO!L116,"") ->  | R116: =IF($N$1=A116,Bekostigingsgegevens!$H$39*InUitstroomVSO!M116,"") ->  | Y116: 0
A117: VO2203 | B117: 19VO | C117: 0 | D117: 0 | E117: 0 | F117: 0 | G117: 0 | H117: 0 | I117: 1 | J117: 1 | P117: =IF($N$1=A117,(Bekostigingsgegevens!$H$35+Bekostigingsgegevens!$G$36)*InUitstroomVSO!K117,"") ->  | Q117: =IF($N$1=A117,(Bekostigingsgegevens!$H$37+Bekostigingsgegevens!$G$38)*InUitstroomVSO!L117,"") ->  | R117: =IF($N$1=A117,Bekostigingsgegevens!$H$39*InUitstroomVSO!M117,"") ->  | Y117: 0
A118: VO2301 | B118: 00AO | C118: 0 | D118: 0 | E118: 0 | F118: 0 | G118: 0 | H118: 0 | I118: 0 | J118: 0 | P118: =IF($N$1=A118,(Bekostigingsgegevens!$H$35+Bekostigingsgegevens!$G$36)*InUitstroomVSO!K118,"") ->  | Q118: =IF($N$1=A118,(Bekostigingsgegevens!$H$37+Bekostigingsgegevens!$G$38)*InUitstroomVSO!L118,"") ->  | R118: =IF($N$1=A118,Bekostigingsgegevens!$H$39*InUitstroomVSO!M118,"") ->  | Y118: 0
A119: VO2301 | B119: 00KM | C119: 10 | D119: 0 | E119: 0 | F119: 10 | G119: 10 | H119: 0 | I119: 0 | J119: 10 | P119: =IF($N$1=A119,(Bekostigingsgegevens!$H$35+Bekostigingsgegevens!$G$36)*InUitstroomVSO!K119,"") ->  | Q119: =IF($N$1=A119,(Bekostigingsgegevens!$H$37+Bekostigingsgegevens!$G$38)*InUitstroomVSO!L119,"") ->  | R119: =IF($N$1=A119,Bekostigingsgegevens!$H$39*InUitstroomVSO!M119,"") ->  | Y119: 0
A120: VO2301 | B120: 01CN | C120: 0 | D120: 0 | E120: 0 | F120: 0 | G120: 0 | H120: 0 | I120: 0 | J120: 0 | P120: =IF($N$1=A120,(Bekostigingsgegevens!$H$35+Bekostigingsgegevens!$G$36)*InUitstroomVSO!K120,"") ->  | Q120: =IF($N$1=A120,(Bekostigingsgegevens!$H$37+Bekostigingsgegevens!$G$38)*InUitstroomVSO!L120,"") ->  | R120: =IF($N$1=A120,Bekostigingsgegevens!$H$39*InUitstroomVSO!M120,"") ->  | Y120: 0
A121: VO2301 | B121: 01JH | C121: 0 | D121: 0 | E121: 0 | F121: 0 | G121: 0 | H121: 0 | I121: 0 | J121: 0 | P121: =IF($N$1=A121,(Bekostigingsgegevens!$H$35+Bekostigingsgegevens!$G$36)*InUitstroomVSO!K121,"") ->  | Q121: =IF($N$1=A121,(Bekostigingsgegevens!$H$37+Bekostigingsgegevens!$G$38)*InUitstroomVSO!L121,"") ->  | R121: =IF($N$1=A121,Bekostigingsgegevens!$H$39*InUitstroomVSO!M121,"") ->  | Y121: 0
A122: VO2301 | B122: 01QH | C122: 11 | D122: 0 | E122: 0 | F122: 11 | G122: 3 | H122: 0 | I122: 0 | J122: 3 | P122: =IF($N$1=A122,(Bekostigingsgegevens!$H$35+Bekostigingsgegevens!$G$36)*InUitstroomVSO!K122,"") ->  | Q122: =IF($N$1=A122,(Bekostigingsgegevens!$H$37+Bekostigingsgegevens!$G$38)*InUitstroomVSO!L122,"") ->  | R122: =IF($N$1=A122,Bekostigingsgegevens!$H$39*InUitstroomVSO!M122,"") ->  | Y122: 0
A123: VO2301 | B123: 02GD | C123: 0 | D123: 0 | E123: 0 | F123: 0 | G123: 0 | H123: 1 | I123: 0 | J123: 1 | P123: =IF($N$1=A123,(Bekostigingsgegevens!$H$35+Bekostigingsgegevens!$G$36)*InUitstroomVSO!K123,"") ->  | Q123: =IF($N$1=A123,(Bekostigingsgegevens!$H$37+Bekostigingsgegevens!$G$38)*InUitstroomVSO!L123,"") ->  | R123: =IF($N$1=A123,Bekostigingsgegevens!$H$39*InUitstroomVSO!M123,"") ->  | Y123: 0
A124: VO2301 | B124: 02PQ | C124: 2 | D124: 0 | E124: 0 | F124: 2 | G124: 0 | H124: 0 | I124: 0 | J124: 0 | P124: =IF($N$1=A124,(Bekostigingsgegevens!$H$35+Bekostigingsgegevens!$G$36)*InUitstroomVSO!K124,"") ->  | Q124: =IF($N$1=A124,(Bekostigingsgegevens!$H$37+Bekostigingsgegevens!$G$38)*InUitstroomVSO!L124,"") ->  | R124: =IF($N$1=A124,Bekostigingsgegevens!$H$39*InUitstroomVSO!M124,"") ->  | Y124: 0
A125: VO2301 | B125: 02YL | C125: 1 | D125: 0 | E125: 0 | F125: 1 | G125: 0 | H125: 0 | I125: 0 | J125: 0 | P125: =IF($N$1=A125,(Bekostigingsgegevens!$H$35+Bekostigingsgegevens!$G$36)*InUitstroomVSO!K125,"") ->  | Q125: =IF($N$1=A125,(Bekostigingsgegevens!$H$37+Bekostigingsgegevens!$G$38)*InUitstroomVSO!L125,"") ->  | R125: =IF($N$1=A125,Bekostigingsgegevens!$H$39*InUitstroomVSO!M125,"") ->  | Y125: 0
A126: VO2301 | B126: 02YN | C126: 2 | D126: 0 | E126: 0 | F126: 2 | G126: 0 | H126: 0 | I126: 0 | J126: 0 | P126: =IF($N$1=A126,(Bekostigingsgegevens!$H$35+Bekostigingsgegevens!$G$36)*InUitstroomVSO!K126,"") ->  | Q126: =IF($N$1=A126,(Bekostigingsgegevens!$H$37+Bekostigingsgegevens!$G$38)*InUitstroomVSO!L126,"") ->  | R126: =IF($N$1=A126,Bekostigingsgegevens!$H$39*InUitstroomVSO!M126,"") ->  | Y126: 0
A127: VO2301 | B127: 06RJ | C127: 0 | D127: 0 | E127: 0 | F127: 0 | G127: 2 | H127: 0 | I127: 0 | J127: 2 | P127: =IF($N$1=A127,(Bekostigingsgegevens!$H$35+Bekostigingsgegevens!$G$36)*InUitstroomVSO!K127,"") ->  | Q127: =IF($N$1=A127,(Bekostigingsgegevens!$H$37+Bekostigingsgegevens!$G$38)*InUitstroomVSO!L127,"") ->  | R127: =IF($N$1=A127,Bekostigingsgegevens!$H$39*InUitstroomVSO!M127,"") ->  | Y127: 0
A128: VO2301 | B128: 06SV | C128: 1 | D128: 0 | E128: 0 | F128: 1 | G128: 0 | H128: 0 | I128: 0 | J128: 0 | P128: =IF($N$1=A128,(Bekostigingsgegevens!$H$35+Bekostigingsgegevens!$G$36)*InUitstroomVSO!K128,"") ->  | Q128: =IF($N$1=A128,(Bekostigingsgegevens!$H$37+Bekostigingsgegevens!$G$38)*InUitstroomVSO!L128,"") ->  | R128: =IF($N$1=A128,Bekostigingsgegevens!$H$39*InUitstroomVSO!M128,"") ->  | Y128: 0
A129: VO2301 | B129: 14XF | C129: 0 | D129: 0 | E129: 0 | F129: 0 | G129: 2 | H129: 0 | I129: 0 | J129: 2 | P129: =IF($N$1=A129,(Bekostigingsgegevens!$H$35+Bekostigingsgegevens!$G$36)*InUitstroomVSO!K129,"") ->  | Q129: =IF($N$1=A129,(Bekostigingsgegevens!$H$37+Bekostigingsgegevens!$G$38)*InUitstroomVSO!L129,"") ->  | R129: =IF($N$1=A129,Bekostigingsgegevens!$H$39*InUitstroomVSO!M129,"") ->  | Y129: 0
A130: VO2301 | B130: 19QO | C130: 0 | D130: 0 | E130: 0 | F130: 0 | G130: 9 | H130: 0 | I130: 1 | J130: 10 | P130: =IF($N$1=A130,(Bekostigingsgegevens!$H$35+Bekostigingsgegevens!$G$36)*InUitstroomVSO!K130,"") ->  | Q130: =IF($N$1=A130,(Bekostigingsgegevens!$H$37+Bekostigingsgegevens!$G$38)*InUitstroomVSO!L130,"") ->  | R130: =IF($N$1=A130,Bekostigingsgegevens!$H$39*InUitstroomVSO!M130,"") ->  | Y130: 0
A131: VO2301 | B131: 23KF | C131: 0 | D131: 0 | E131: 0 | F131: 0 | G131: 2 | H131: 0 | I131: 0 | J131: 2 | P131: =IF($N$1=A131,(Bekostigingsgegevens!$H$35+Bekostigingsgegevens!$G$36)*InUitstroomVSO!K131,"") ->  | Q131: =IF($N$1=A131,(Bekostigingsgegevens!$H$37+Bekostigingsgegevens!$G$38)*InUitstroomVSO!L131,"") ->  | R131: =IF($N$1=A131,Bekostigingsgegevens!$H$39*InUitstroomVSO!M131,"") ->  | Y131: 0
A132: VO2301 | B132: 26NR | C132: 0 | D132: 0 | E132: 0 | F132: 0 | G132: 2 | H132: 0 | I132: 0 | J132: 2 | P132: =IF($N$1=A132,(Bekostigingsgegevens!$H$35+Bekostigingsgegevens!$G$36)*InUitstroomVSO!K132,"") ->  | Q132: =IF($N$1=A132,(Bekostigingsgegevens!$H$37+Bekostigingsgegevens!$G$38)*InUitstroomVSO!L132,"") ->  | R132: =IF($N$1=A132,Bekostigingsgegevens!$H$39*InUitstroomVSO!M132,"") ->  | Y132: 0
A133: VO2302 | B133: 00KM | C133: 14 | D133: 0 | E133: 0 | F133: 14 | G133: 39 | H133: 0 | I133: 0 | J133: 39 | P133: =IF($N$1=A133,(Bekostigingsgegevens!$H$35+Bekostigingsgegevens!$G$36)*InUitstroomVSO!K133,"") ->  | Q133: =IF($N$1=A133,(Bekostigingsgegevens!$H$37+Bekostigingsgegevens!$G$38)*InUitstroomVSO!L133,"") ->  | R133: =IF($N$1=A133,Bekostigingsgegevens!$H$39*InUitstroomVSO!M133,"") ->  | Y133: =SUM(V133:X133) -> 0
A134: VO2302 | B134: 01CN | C134: 0 | D134: 0 | E134: 0 | F134: 0 | G134: 15 | H134: 0 | I134: 0 | J134: 15 | K134: =IF($N$1=A134,SUM(C134-G134),"") ->  | L134: =IF($N$1=$A134,SUM(D134-H134),"") ->  | N134: =IF($N$1=$A134,SUM(K134:M134),"") ->  | P134: =IF($N$1=A134,(Bekostigingsgegevens!$H$35+Bekostigingsgegevens!$G$36)*InUitstroomVSO!K134,"") ->  | Q134: =IF($N$1=A134,(Bekostigingsgegevens!$H$37+Bekostigingsgegevens!$G$38)*InUitstroomVSO!L134,"") ->  | R134: =IF($N$1=A134,Bekostigingsgegevens!$H$39*InUitstroomVSO!M134,"") ->  | S134: =IF($N$1=$A134,SUM(P134:R134),"") ->  | T134: =IF(S134<0,0,S134) ->  | V134: =IF(K134<0,0,K134) ->  | Y134: 0
A135: VO2302 | B135: 01QH | C135: 2 | D135: 0 | E135: 0 | F135: 2 | G135: 7 | H135: 0 | I135: 0 | J135: 7 | P135: =IF($N$1=A135,(Bekostigingsgegevens!$H$35+Bekostigingsgegevens!$G$36)*InUitstroomVSO!K135,"") ->  | Q135: =IF($N$1=A135,(Bekostigingsgegevens!$H$37+Bekostigingsgegevens!$G$38)*InUitstroomVSO!L135,"") ->  | R135: =IF($N$1=A135,Bekostigingsgegevens!$H$39*InUitstroomVSO!M135,"") ->  | Y135: 0
A136: VO2302 | B136: 02GD | C136: 0 | D136: 1 | E136: 0 | F136: 1 | G136: 0 | H136: 4 | I136: 4 | J136: 8 | P136: =IF($N$1=A136,(Bekostigingsgegevens!$H$35+Bekostigingsgegevens!$G$36)*InUitstroomVSO!K136,"") ->  | Q136: =IF($N$1=A136,(Bekostigingsgegevens!$H$37+Bekostigingsgegevens!$G$38)*InUitstroomVSO!L136,"") ->  | R136: =IF($N$1=A136,Bekostigingsgegevens!$H$39*InUitstroomVSO!M136,"") ->  | Y136: 0
A137: VO2302 | B137: 02PQ | C137: 0 | D137: 0 | E137: 0 | F137: 0 | G137: 0 | H137: 0 | I137: 0 | J137: 0 | P137: =IF($N$1=A137,(Bekostigingsgegevens!$H$35+Bekostigingsgegevens!$G$36)*InUitstroomVSO!K137,"") ->  | Q137: =IF($N$1=A137,(Bekostigingsgegevens!$H$37+Bekostigingsgegevens!$G$38)*InUitstroomVSO!L137,"") ->  | R137: =IF($N$1=A137,Bekostigingsgegevens!$H$39*InUitstroomVSO!M137,"") ->  | Y137: 0
A138: VO2302 | B138: 02RM | C138: 0 | D138: 0 | E138: 0 | F138: 0 | G138: 1 | H138: 0 | I138: 0 | J138: 1 | P138: =IF($N$1=A138,(Bekostigingsgegevens!$H$35+Bekostigingsgegevens!$G$36)*InUitstroomVSO!K138,"") ->  | Q138: =IF($N$1=A138,(Bekostigingsgegevens!$H$37+Bekostigingsgegevens!$G$38)*InUitstroomVSO!L138,"") ->  | R138: =IF($N$1=A138,Bekostigingsgegevens!$H$39*InUitstroomVSO!M138,"") ->  | Y138: 0
A139: VO2302 | B139: 02YU | C139: 0 | D139: 0 | E139: 0 | F139: 0 | G139: 1 | H139: 0 | I139: 0 | J139: 1 | P139: =IF($N$1=A139,(Bekostigingsgegevens!$H$35+Bekostigingsgegevens!$G$36)*InUitstroomVSO!K139,"") ->  | Q139: =IF($N$1=A139,(Bekostigingsgegevens!$H$37+Bekostigingsgegevens!$G$38)*InUitstroomVSO!L139,"") ->  | R139: =IF($N$1=A139,Bekostigingsgegevens!$H$39*InUitstroomVSO!M139,"") ->  | Y139: 0
A140: VO2302 | B140: 06SV | C140: 2 | D140: 0 | E140: 0 | F140: 2 | G140: 1 | H140: 0 | I140: 0 | J140: 1 | P140: =IF($N$1=A140,(Bekostigingsgegevens!$H$35+Bekostigingsgegevens!$G$36)*InUitstroomVSO!K140,"") ->  | Q140: =IF($N$1=A140,(Bekostigingsgegevens!$H$37+Bekostigingsgegevens!$G$38)*InUitstroomVSO!L140,"") ->  | R140: =IF($N$1=A140,Bekostigingsgegevens!$H$39*InUitstroomVSO!M140,"") ->  | Y140: 0
A141: VO2302 | B141: 19LZ | C141: 0 | D141: 0 | E141: 0 | F141: 0 | G141: 8 | H141: 0 | I141: 0 | J141: 8 | P141: =IF($N$1=A141,(Bekostigingsgegevens!$H$35+Bekostigingsgegevens!$G$36)*InUitstroomVSO!K141,"") ->  | Q141: =IF($N$1=A141,(Bekostigingsgegevens!$H$37+Bekostigingsgegevens!$G$38)*InUitstroomVSO!L141,"") ->  | R141: =IF($N$1=A141,Bekostigingsgegevens!$H$39*InUitstroomVSO!M141,"") ->  | Y141: 0
A142: VO2302 | B142: 19QO | C142: 0 | D142: 0 | E142: 0 | F142: 0 | G142: 0 | H142: 0 | I142: 0 | J142: 0 | P142: =IF($N$1=A142,(Bekostigingsgegevens!$H$35+Bekostigingsgegevens!$G$36)*InUitstroomVSO!K142,"") ->  | Q142: =IF($N$1=A142,(Bekostigingsgegevens!$H$37+Bekostigingsgegevens!$G$38)*InUitstroomVSO!L142,"") ->  | R142: =IF($N$1=A142,Bekostigingsgegevens!$H$39*InUitstroomVSO!M142,"") ->  | Y142: 0
A143: VO2302 | B143: 19VD | C143: 0 | D143: 0 | E143: 0 | F143: 0 | G143: 0 | H143: 0 | I143: 0 | J143: 0 | P143: =IF($N$1=A143,(Bekostigingsgegevens!$H$35+Bekostigingsgegevens!$G$36)*InUitstroomVSO!K143,"") ->  | Q143: =IF($N$1=A143,(Bekostigingsgegevens!$H$37+Bekostigingsgegevens!$G$38)*InUitstroomVSO!L143,"") ->  | R143: =IF($N$1=A143,Bekostigingsgegevens!$H$39*InUitstroomVSO!M143,"") ->  | Y143: 0
A144: VO2302 | B144: 23KF | C144: 3 | D144: 0 | E144: 0 | F144: 3 | G144: 1 | H144: 0 | I144: 0 | J144: 1 | P144: =IF($N$1=A144,(Bekostigingsgegevens!$H$35+Bekostigingsgegevens!$G$36)*InUitstroomVSO!K144,"") ->  | Q144: =IF($N$1=A144,(Bekostigingsgegevens!$H$37+Bekostigingsgegevens!$G$38)*InUitstroomVSO!L144,"") ->  | R144: =IF($N$1=A144,Bekostigingsgegevens!$H$39*InUitstroomVSO!M144,"") ->  | Y144: 0
A145: VO2303 | B145: 00AO | C145: 1 | D145: 0 | E145: 0 | F145: 1 | G145: 2 | H145: 0 | I145: 0 | J145: 2 | P145: =IF($N$1=A145,(Bekostigingsgegevens!$H$35+Bekostigingsgegevens!$G$36)*InUitstroomVSO!K145,"") ->  | Q145: =IF($N$1=A145,(Bekostigingsgegevens!$H$37+Bekostigingsgegevens!$G$38)*InUitstroomVSO!L145,"") ->  | R145: =IF($N$1=A145,Bekostigingsgegevens!$H$39*InUitstroomVSO!M145,"") ->  | Y145: 0
A146: VO2303 | B146: 01QH | C146: 4 | D146: 0 | E146: 0 | F146: 4 | G146: 1 | H146: 0 | I146: 0 | J146: 1 | P146: =IF($N$1=A146,(Bekostigingsgegevens!$H$35+Bekostigingsgegevens!$G$36)*InUitstroomVSO!K146,"") ->  | Q146: =IF($N$1=A146,(Bekostigingsgegevens!$H$37+Bekostigingsgegevens!$G$38)*InUitstroomVSO!L146,"") ->  | R146: =IF($N$1=A146,Bekostigingsgegevens!$H$39*InUitstroomVSO!M146,"") ->  | Y146: 0
A147: VO2303 | B147: 02EY | C147: 0 | D147: 0 | E147: 0 | F147: 0 | G147: 0 | H147: 0 | I147: 0 | J147: 0 | P147: =IF($N$1=A147,(Bekostigingsgegevens!$H$35+Bekostigingsgegevens!$G$36)*InUitstroomVSO!K147,"") ->  | Q147: =IF($N$1=A147,(Bekostigingsgegevens!$H$37+Bekostigingsgegevens!$G$38)*InUitstroomVSO!L147,"") ->  | R147: =IF($N$1=A147,Bekostigingsgegevens!$H$39*InUitstroomVSO!M147,"") ->  | Y147: 0
A148: VO2303 | B148: 02GM | C148: 0 | D148: 0 | E148: 0 | F148: 0 | G148: 0 | H148: 0 | I148: 1 | J148: 1 | P148: =IF($N$1=A148,(Bekostigingsgegevens!$H$35+Bekostigingsgegevens!$G$36)*InUitstroomVSO!K148,"") ->  | Q148: =IF($N$1=A148,(Bekostigingsgegevens!$H$37+Bekostigingsgegevens!$G$38)*InUitstroomVSO!L148,"") ->  | R148: =IF($N$1=A148,Bekostigingsgegevens!$H$39*InUitstroomVSO!M148,"") ->  | Y148: 0
A149: VO2303 | B149: 02PQ | C149: 4 | D149: 0 | E149: 0 | F149: 4 | G149: 2 | H149: 0 | I149: 0 | J149: 2 | P149: =IF($N$1=A149,(Bekostigingsgegevens!$H$35+Bekostigingsgegevens!$G$36)*InUitstroomVSO!K149,"") ->  | Q149: =IF($N$1=A149,(Bekostigingsgegevens!$H$37+Bekostigingsgegevens!$G$38)*InUitstroomVSO!L149,"") ->  | R149: =IF($N$1=A149,Bekostigingsgegevens!$H$39*InUitstroomVSO!M149,"") ->  | Y149: 0
A150: VO2303 | B150: 02YN | C150: 0 | D150: 0 | E150: 0 | F150: 0 | G150: 4 | H150: 0 | I150: 0 | J150: 4 | P150: =IF($N$1=A150,(Bekostigingsgegevens!$H$35+Bekostigingsgegevens!$G$36)*InUitstroomVSO!K150,"") ->  | Q150: =IF($N$1=A150,(Bekostigingsgegevens!$H$37+Bekostigingsgegevens!$G$38)*InUitstroomVSO!L150,"") ->  | R150: =IF($N$1=A150,Bekostigingsgegevens!$H$39*InUitstroomVSO!M150,"") ->  | Y150: 0
A151: VO2303 | B151: 14XF | C151: 1 | D151: 0 | E151: 0 | F151: 1 | G151: 3 | H151: 0 | I151: 0 | J151: 3 | P151: =IF($N$1=A151,(Bekostigingsgegevens!$H$35+Bekostigingsgegevens!$G$36)*InUitstroomVSO!K151,"") ->  | Q151: =IF($N$1=A151,(Bekostigingsgegevens!$H$37+Bekostigingsgegevens!$G$38)*InUitstroomVSO!L151,"") ->  | R151: =IF($N$1=A151,Bekostigingsgegevens!$H$39*InUitstroomVSO!M151,"") ->  | Y151: 0
A152: VO2303 | B152: 18QP | C152: 0 | D152: 0 | E152: 0 | F152: 0 | G152: 0 | H152: 0 | I152: 1 | J152: 1 | P152: =IF($N$1=A152,(Bekostigingsgegevens!$H$35+Bekostigingsgegevens!$G$36)*InUitstroomVSO!K152,"") ->  | Q152: =IF($N$1=A152,(Bekostigingsgegevens!$H$37+Bekostigingsgegevens!$G$38)*InUitstroomVSO!L152,"") ->  | R152: =IF($N$1=A152,Bekostigingsgegevens!$H$39*InUitstroomVSO!M152,"") ->  | Y152: 0
A153: VO2303 | B153: 19SY | C153: 0 | D153: 0 | E153: 0 | F153: 0 | G153: 0 | H153: 0 | I153: 0 | J153: 0 | P153: =IF($N$1=A153,(Bekostigingsgegevens!$H$35+Bekostigingsgegevens!$G$36)*InUitstroomVSO!K153,"") ->  | Q153: =IF($N$1=A153,(Bekostigingsgegevens!$H$37+Bekostigingsgegevens!$G$38)*InUitstroomVSO!L153,"") ->  | R153: =IF($N$1=A153,Bekostigingsgegevens!$H$39*InUitstroomVSO!M153,"") ->  | Y153: 0
A154: VO2303 | B154: 19TG | C154: 0 | D154: 0 | E154: 0 | F154: 0 | G154: 0 | H154: 0 | I154: 0 | J154: 0 | P154: =IF($N$1=A154,(Bekostigingsgegevens!$H$35+Bekostigingsgegevens!$G$36)*InUitstroomVSO!K154,"") ->  | Q154: =IF($N$1=A154,(Bekostigingsgegevens!$H$37+Bekostigingsgegevens!$G$38)*InUitstroomVSO!L154,"") ->  | R154: =IF($N$1=A154,Bekostigingsgegevens!$H$39*InUitstroomVSO!M154,"") ->  | Y154: 0
A155: VO2303 | B155: 19VD | C155: 0 | D155: 0 | E155: 0 | F155: 0 | G155: 1 | H155: 0 | I155: 0 | J155: 1 | P155: =IF($N$1=A155,(Bekostigingsgegevens!$H$35+Bekostigingsgegevens!$G$36)*InUitstroomVSO!K155,"") ->  | Q155: =IF($N$1=A155,(Bekostigingsgegevens!$H$37+Bekostigingsgegevens!$G$38)*InUitstroomVSO!L155,"") ->  | R155: =IF($N$1=A155,Bekostigingsgegevens!$H$39*InUitstroomVSO!M155,"") ->  | Y155: 0
A156: VO2303 | B156: 23KF | C156: 0 | D156: 0 | E156: 0 | F156: 0 | G156: 1 | H156: 0 | I156: 0 | J156: 1 | P156: =IF($N$1=A156,(Bekostigingsgegevens!$H$35+Bekostigingsgegevens!$G$36)*InUitstroomVSO!K156,"") ->  | Q156: =IF($N$1=A156,(Bekostigingsgegevens!$H$37+Bekostigingsgegevens!$G$38)*InUitstroomVSO!L156,"") ->  | R156: =IF($N$1=A156,Bekostigingsgegevens!$H$39*InUitstroomVSO!M156,"") ->  | Y156: 0
A157: VO2305 | B157: 00AO | C157: 1 | D157: 0 | E157: 0 | F157: 1 | G157: 0 | H157: 0 | I157: 0 | J157: 0 | P157: =IF($N$1=A157,(Bekostigingsgegevens!$H$35+Bekostigingsgegevens!$G$36)*InUitstroomVSO!K157,"") ->  | Q157: =IF($N$1=A157,(Bekostigingsgegevens!$H$37+Bekostigingsgegevens!$G$38)*InUitstroomVSO!L157,"") ->  | R157: =IF($N$1=A157,Bekostigingsgegevens!$H$39*InUitstroomVSO!M157,"") ->  | Y157: 0
A158: VO2305 | B158: 00KM | C158: 0 | D158: 0 | E158: 0 | F158: 0 | G158: 1 | H158: 0 | I158: 0 | J158: 1 | P158: =IF($N$1=A158,(Bekostigingsgegevens!$H$35+Bekostigingsgegevens!$G$36)*InUitstroomVSO!K158,"") ->  | Q158: =IF($N$1=A158,(Bekostigingsgegevens!$H$37+Bekostigingsgegevens!$G$38)*InUitstroomVSO!L158,"") ->  | R158: =IF($N$1=A158,Bekostigingsgegevens!$H$39*InUitstroomVSO!M158,"") ->  | Y158: 0
A159: VO2305 | B159: 01JH | C159: 1 | D159: 0 | E159: 0 | F159: 1 | G159: 1 | H159: 0 | I159: 0 | J159: 1 | P159: =IF($N$1=A159,(Bekostigingsgegevens!$H$35+Bekostigingsgegevens!$G$36)*InUitstroomVSO!K159,"") ->  | Q159: =IF($N$1=A159,(Bekostigingsgegevens!$H$37+Bekostigingsgegevens!$G$38)*InUitstroomVSO!L159,"") ->  | R159: =IF($N$1=A159,Bekostigingsgegevens!$H$39*InUitstroomVSO!M159,"") ->  | Y159: 0
A160: VO2305 | B160: 01QH | C160: 0 | D160: 0 | E160: 0 | F160: 0 | G160: 2 | H160: 0 | I160: 0 | J160: 2 | P160: =IF($N$1=A160,(Bekostigingsgegevens!$H$35+Bekostigingsgegevens!$G$36)*InUitstroomVSO!K160,"") ->  | Q160: =IF($N$1=A160,(Bekostigingsgegevens!$H$37+Bekostigingsgegevens!$G$38)*InUitstroomVSO!L160,"") ->  | R160: =IF($N$1=A160,Bekostigingsgegevens!$H$39*InUitstroomVSO!M160,"") ->  | Y160: 0
A161: VO2305 | B161: 02EY | C161: 0 | D161: 0 | E161: 0 | F161: 0 | G161: 2 | H161: 0 | I161: 0 | J161: 2 | P161: =IF($N$1=A161,(Bekostigingsgegevens!$H$35+Bekostigingsgegevens!$G$36)*InUitstroomVSO!K161,"") ->  | Q161: =IF($N$1=A161,(Bekostigingsgegevens!$H$37+Bekostigingsgegevens!$G$38)*InUitstroomVSO!L161,"") ->  | R161: =IF($N$1=A161,Bekostigingsgegevens!$H$39*InUitstroomVSO!M161,"") ->  | Y161: 0
A162: VO2305 | B162: 02PQ | C162: 1 | D162: 0 | E162: 0 | F162: 1 | G162: 0 | H162: 0 | I162: 0 | J162: 0 | P162: =IF($N$1=A162,(Bekostigingsgegevens!$H$35+Bekostigingsgegevens!$G$36)*InUitstroomVSO!K162,"") ->  | Q162: =IF($N$1=A162,(Bekostigingsgegevens!$H$37+Bekostigingsgegevens!$G$38)*InUitstroomVSO!L162,"") ->  | R162: =IF($N$1=A162,Bekostigingsgegevens!$H$39*InUitstroomVSO!M162,"") ->  | Y162: 0
A163: VO2305 | B163: 02YL | C163: 1 | D163: 0 | E163: 0 | F163: 1 | G163: 0 | H163: 0 | I163: 0 | J163: 0 | P163: =IF($N$1=A163,(Bekostigingsgegevens!$H$35+Bekostigingsgegevens!$G$36)*InUitstroomVSO!K163,"") ->  | Q163: =IF($N$1=A163,(Bekostigingsgegevens!$H$37+Bekostigingsgegevens!$G$38)*InUitstroomVSO!L163,"") ->  | R163: =IF($N$1=A163,Bekostigingsgegevens!$H$39*InUitstroomVSO!M163,"") ->  | Y163: 0
A164: VO2305 | B164: 02YN | C164: 11 | D164: 0 | E164: 0 | F164: 11 | G164: 4 | H164: 0 | I164: 0 | J164: 4 | P164: =IF($N$1=A164,(Bekostigingsgegevens!$H$35+Bekostigingsgegevens!$G$36)*InUitstroomVSO!K164,"") ->  | Q164: =IF($N$1=A164,(Bekostigingsgegevens!$H$37+Bekostigingsgegevens!$G$38)*InUitstroomVSO!L164,"") ->  | R164: =IF($N$1=A164,Bekostigingsgegevens!$H$39*InUitstroomVSO!M164,"") ->  | Y164: 0
A165: VO2305 | B165: 02YU | C165: 0 | D165: 0 | E165: 0 | F165: 0 | G165: 4 | H165: 0 | I165: 0 | J165: 4 | P165: =IF($N$1=A165,(Bekostigingsgegevens!$H$35+Bekostigingsgegevens!$G$36)*InUitstroomVSO!K165,"") ->  | Q165: =IF($N$1=A165,(Bekostigingsgegevens!$H$37+Bekostigingsgegevens!$G$38)*InUitstroomVSO!L165,"") ->  | R165: =IF($N$1=A165,Bekostigingsgegevens!$H$39*InUitstroomVSO!M165,"") ->  | Y165: 0
A166: VO2305 | B166: 05PZ | C166: 1 | D166: 0 | E166: 0 | F166: 1 | G166: 5 | H166: 0 | I166: 0 | J166: 5 | P166: =IF($N$1=A166,(Bekostigingsgegevens!$H$35+Bekostigingsgegevens!$G$36)*InUitstroomVSO!K166,"") ->  | Q166: =IF($N$1=A166,(Bekostigingsgegevens!$H$37+Bekostigingsgegevens!$G$38)*InUitstroomVSO!L166,"") ->  | R166: =IF($N$1=A166,Bekostigingsgegevens!$H$39*InUitstroomVSO!M166,"") ->  | Y166: 0
A167: VO2305 | B167: 06RJ | C167: 0 | D167: 0 | E167: 0 | F167: 0 | G167: 1 | H167: 0 | I167: 0 | J167: 1 | P167: =IF($N$1=A167,(Bekostigingsgegevens!$H$35+Bekostigingsgegevens!$G$36)*InUitstroomVSO!K167,"") ->  | Q167: =IF($N$1=A167,(Bekostigingsgegevens!$H$37+Bekostigingsgegevens!$G$38)*InUitstroomVSO!L167,"") ->  | R167: =IF($N$1=A167,Bekostigingsgegevens!$H$39*InUitstroomVSO!M167,"") ->  | Y167: 0
A168: VO2305 | B168: 06SV | C168: 2 | D168: 0 | E168: 0 | F168: 2 | G168: 1 | H168: 0 | I168: 0 | J168: 1 | P168: =IF($N$1=A168,(Bekostigingsgegevens!$H$35+Bekostigingsgegevens!$G$36)*InUitstroomVSO!K168,"") ->  | Q168: =IF($N$1=A168,(Bekostigingsgegevens!$H$37+Bekostigingsgegevens!$G$38)*InUitstroomVSO!L168,"") ->  | R168: =IF($N$1=A168,Bekostigingsgegevens!$H$39*InUitstroomVSO!M168,"") ->  | Y168: 0
A169: VO2305 | B169: 08PQ | C169: 0 | D169: 0 | E169: 0 | F169: 0 | G169: 1 | H169: 0 | I169: 0 | J169: 1 | P169: =IF($N$1=A169,(Bekostigingsgegevens!$H$35+Bekostigingsgegevens!$G$36)*InUitstroomVSO!K169,"") ->  | Q169: =IF($N$1=A169,(Bekostigingsgegevens!$H$37+Bekostigingsgegevens!$G$38)*InUitstroomVSO!L169,"") ->  | R169: =IF($N$1=A169,Bekostigingsgegevens!$H$39*InUitstroomVSO!M169,"") ->  | Y169: 0
A170: VO2305 | B170: 14XF | C170: 1 | D170: 0 | E170: 0 | F170: 1 | G170: 6 | H170: 0 | I170: 0 | J170: 6 | P170: =IF($N$1=A170,(Bekostigingsgegevens!$H$35+Bekostigingsgegevens!$G$36)*InUitstroomVSO!K170,"") ->  | Q170: =IF($N$1=A170,(Bekostigingsgegevens!$H$37+Bekostigingsgegevens!$G$38)*InUitstroomVSO!L170,"") ->  | R170: =IF($N$1=A170,Bekostigingsgegevens!$H$39*InUitstroomVSO!M170,"") ->  | Y170: 0
A171: VO2305 | B171: 17JJ | C171: 3 | D171: 0 | E171: 0 | F171: 3 | G171: 0 | H171: 0 | I171: 0 | J171: 0 | P171: =IF($N$1=A171,(Bekostigingsgegevens!$H$35+Bekostigingsgegevens!$G$36)*InUitstroomVSO!K171,"") ->  | Q171: =IF($N$1=A171,(Bekostigingsgegevens!$H$37+Bekostigingsgegevens!$G$38)*InUitstroomVSO!L171,"") ->  | R171: =IF($N$1=A171,Bekostigingsgegevens!$H$39*InUitstroomVSO!M171,"") ->  | Y171: 0
A172: VO2305 | B172: 19QK | C172: 0 | D172: 0 | E172: 0 | F172: 0 | G172: 2 | H172: 0 | I172: 0 | J172: 2 | P172: =IF($N$1=A172,(Bekostigingsgegevens!$H$35+Bekostigingsgegevens!$G$36)*InUitstroomVSO!K172,"") ->  | Q172: =IF($N$1=A172,(Bekostigingsgegevens!$H$37+Bekostigingsgegevens!$G$38)*InUitstroomVSO!L172,"") ->  | R172: =IF($N$1=A172,Bekostigingsgegevens!$H$39*InUitstroomVSO!M172,"") ->  | Y172: 0
A173: VO2305 | B173: 19VD | C173: 0 | D173: 0 | E173: 0 | F173: 0 | G173: 0 | H173: 1 | I173: 1 | J173: 2 | P173: =IF($N$1=A173,(Bekostigingsgegevens!$H$35+Bekostigingsgegevens!$G$36)*InUitstroomVSO!K173,"") ->  | Q173: =IF($N$1=A173,(Bekostigingsgegevens!$H$37+Bekostigingsgegevens!$G$38)*InUitstroomVSO!L173,"") ->  | R173: =IF($N$1=A173,Bekostigingsgegevens!$H$39*InUitstroomVSO!M173,"") ->  | Y173: 0
A174: VO2305 | B174: 23GK | C174: 0 | D174: 0 | E174: 0 | F174: 0 | G174: 1 | H174: 0 | I174: 0 | J174: 1 | P174: =IF($N$1=A174,(Bekostigingsgegevens!$H$35+Bekostigingsgegevens!$G$36)*InUitstroomVSO!K174,"") ->  | Q174: =IF($N$1=A174,(Bekostigingsgegevens!$H$37+Bekostigingsgegevens!$G$38)*InUitstroomVSO!L174,"") ->  | R174: =IF($N$1=A174,Bekostigingsgegevens!$H$39*InUitstroomVSO!M174,"") ->  | Y174: 0
A175: VO2305 | B175: 23HU | C175: 1 | D175: 0 | E175: 0 | F175: 1 | G175: 3 | H175: 0 | I175: 0 | J175: 3 | P175: =IF($N$1=A175,(Bekostigingsgegevens!$H$35+Bekostigingsgegevens!$G$36)*InUitstroomVSO!K175,"") ->  | Q175: =IF($N$1=A175,(Bekostigingsgegevens!$H$37+Bekostigingsgegevens!$G$38)*InUitstroomVSO!L175,"") ->  | R175: =IF($N$1=A175,Bekostigingsgegevens!$H$39*InUitstroomVSO!M175,"") ->  | Y175: 0
A176: VO2305 | B176: 23JT | C176: 0 | D176: 0 | E176: 0 | F176: 0 | G176: 1 | H176: 0 | I176: 0 | J176: 1 | P176: =IF($N$1=A176,(Bekostigingsgegevens!$H$35+Bekostigingsgegevens!$G$36)*InUitstroomVSO!K176,"") ->  | Q176: =IF($N$1=A176,(Bekostigingsgegevens!$H$37+Bekostigingsgegevens!$G$38)*InUitstroomVSO!L176,"") ->  | R176: =IF($N$1=A176,Bekostigingsgegevens!$H$39*InUitstroomVSO!M176,"") ->  | Y176: 0
A177: VO2305 | B177: 23KF | C177: 0 | D177: 0 | E177: 0 | F177: 0 | G177: 0 | H177: 0 | I177: 0 | J177: 0 | P177: =IF($N$1=A177,(Bekostigingsgegevens!$H$35+Bekostigingsgegevens!$G$36)*InUitstroomVSO!K177,"") ->  | Q177: =IF($N$1=A177,(Bekostigingsgegevens!$H$37+Bekostigingsgegevens!$G$38)*InUitstroomVSO!L177,"") ->  | R177: =IF($N$1=A177,Bekostigingsgegevens!$H$39*InUitstroomVSO!M177,"") ->  | Y177: 0
A178: VO2305 | B178: 26NR | C178: 0 | D178: 0 | E178: 0 | F178: 0 | G178: 3 | H178: 0 | I178: 2 | J178: 5 | P178: =IF($N$1=A178,(Bekostigingsgegevens!$H$35+Bekostigingsgegevens!$G$36)*InUitstroomVSO!K178,"") ->  | Q178: =IF($N$1=A178,(Bekostigingsgegevens!$H$37+Bekostigingsgegevens!$G$38)*InUitstroomVSO!L178,"") ->  | R178: =IF($N$1=A178,Bekostigingsgegevens!$H$39*InUitstroomVSO!M178,"") ->  | Y178: 0
A179: VO2307 | B179: 00KM | C179: 1 | D179: 0 | E179: 0 | F179: 1 | G179: 0 | H179: 0 | I179: 0 | J179: 0 | P179: =IF($N$1=A179,(Bekostigingsgegevens!$H$35+Bekostigingsgegevens!$G$36)*InUitstroomVSO!K179,"") ->  | Q179: =IF($N$1=A179,(Bekostigingsgegevens!$H$37+Bekostigingsgegevens!$G$38)*InUitstroomVSO!L179,"") ->  | R179: =IF($N$1=A179,Bekostigingsgegevens!$H$39*InUitstroomVSO!M179,"") ->  | Y179: 0
A180: VO2307 | B180: 00LD | C180: 0 | D180: 1 | E180: 0 | F180: 1 | G180: 0 | H180: 0 | I180: 0 | J180: 0 | P180: =IF($N$1=A180,(Bekostigingsgegevens!$H$35+Bekostigingsgegevens!$G$36)*InUitstroomVSO!K180,"") ->  | Q180: =IF($N$1=A180,(Bekostigingsgegevens!$H$37+Bekostigingsgegevens!$G$38)*InUitstroomVSO!L180,"") ->  | R180: =IF($N$1=A180,Bekostigingsgegevens!$H$39*InUitstroomVSO!M180,"") ->  | Y180: 0
A181: VO2307 | B181: 02GD | C181: 0 | D181: 0 | E181: 0 | F181: 0 | G181: 0 | H181: 1 | I181: 0 | J181: 1 | P181: =IF($N$1=A181,(Bekostigingsgegevens!$H$35+Bekostigingsgegevens!$G$36)*InUitstroomVSO!K181,"") ->  | Q181: =IF($N$1=A181,(Bekostigingsgegevens!$H$37+Bekostigingsgegevens!$G$38)*InUitstroomVSO!L181,"") ->  | R181: =IF($N$1=A181,Bekostigingsgegevens!$H$39*InUitstroomVSO!M181,"") ->  | Y181: 0
A182: VO2307 | B182: 02YN | C182: 2 | D182: 0 | E182: 0 | F182: 2 | G182: 0 | H182: 0 | I182: 0 | J182: 0 | P182: =IF($N$1=A182,(Bekostigingsgegevens!$H$35+Bekostigingsgegevens!$G$36)*InUitstroomVSO!K182,"") ->  | Q182: =IF($N$1=A182,(Bekostigingsgegevens!$H$37+Bekostigingsgegevens!$G$38)*InUitstroomVSO!L182,"") ->  | R182: =IF($N$1=A182,Bekostigingsgegevens!$H$39*InUitstroomVSO!M182,"") ->  | Y182: 0
A183: VO2307 | B183: 06RJ | C183: 0 | D183: 0 | E183: 0 | F183: 0 | G183: 1 | H183: 0 | I183: 0 | J183: 1 | P183: =IF($N$1=A183,(Bekostigingsgegevens!$H$35+Bekostigingsgegevens!$G$36)*InUitstroomVSO!K183,"") ->  | Q183: =IF($N$1=A183,(Bekostigingsgegevens!$H$37+Bekostigingsgegevens!$G$38)*InUitstroomVSO!L183,"") ->  | R183: =IF($N$1=A183,Bekostigingsgegevens!$H$39*InUitstroomVSO!M183,"") ->  | Y183: 0
A184: VO2307 | B184: 14XF | C184: 0 | D184: 0 | E184: 0 | F184: 0 | G184: 2 | H184: 0 | I184: 0 | J184: 2 | P184: =IF($N$1=A184,(Bekostigingsgegevens!$H$35+Bekostigingsgegevens!$G$36)*InUitstroomVSO!K184,"") ->  | Q184: =IF($N$1=A184,(Bekostigingsgegevens!$H$37+Bekostigingsgegevens!$G$38)*InUitstroomVSO!L184,"") ->  | R184: =IF($N$1=A184,Bekostigingsgegevens!$H$39*InUitstroomVSO!M184,"") ->  | Y184: 0
A185: VO2307 | B185: 16QX | C185: 0 | D185: 0 | E185: 0 | F185: 0 | G185: 1 | H185: 0 | I185: 0 | J185: 1 | P185: =IF($N$1=A185,(Bekostigingsgegevens!$H$35+Bekostigingsgegevens!$G$36)*InUitstroomVSO!K185,"") ->  | Q185: =IF($N$1=A185,(Bekostigingsgegevens!$H$37+Bekostigingsgegevens!$G$38)*InUitstroomVSO!L185,"") ->  | R185: =IF($N$1=A185,Bekostigingsgegevens!$H$39*InUitstroomVSO!M185,"") ->  | Y185: 0
A186: VO2307 | B186: 19VD | C186: 1 | D186: 0 | E186: 0 | F186: 1 | G186: 0 | H186: 0 | I186: 0 | J186: 0 | P186: =IF($N$1=A186,(Bekostigingsgegevens!$H$35+Bekostigingsgegevens!$G$36)*InUitstroomVSO!K186,"") ->  | Q186: =IF($N$1=A186,(Bekostigingsgegevens!$H$37+Bekostigingsgegevens!$G$38)*InUitstroomVSO!L186,"") ->  | R186: =IF($N$1=A186,Bekostigingsgegevens!$H$39*InUitstroomVSO!M186,"") ->  | Y186: 0
A187: VO2401 | B187: 00NT | C187: 0 | D187: 0 | E187: 0 | F187: 0 | G187: 1 | H187: 0 | I187: 0 | J187: 1 | P187: =IF($N$1=A187,(Bekostigingsgegevens!$H$35+Bekostigingsgegevens!$G$36)*InUitstroomVSO!K187,"") ->  | Q187: =IF($N$1=A187,(Bekostigingsgegevens!$H$37+Bekostigingsgegevens!$G$38)*InUitstroomVSO!L187,"") ->  | R187: =IF($N$1=A187,Bekostigingsgegevens!$H$39*InUitstroomVSO!M187,"") ->  | Y187: 0
A188: VO2401 | B188: 02EY | C188: 1 | D188: 0 | E188: 0 | F188: 1 | G188: 0 | H188: 0 | I188: 0 | J188: 0 | P188: =IF($N$1=A188,(Bekostigingsgegevens!$H$35+Bekostigingsgegevens!$G$36)*InUitstroomVSO!K188,"") ->  | Q188: =IF($N$1=A188,(Bekostigingsgegevens!$H$37+Bekostigingsgegevens!$G$38)*InUitstroomVSO!L188,"") ->  | R188: =IF($N$1=A188,Bekostigingsgegevens!$H$39*InUitstroomVSO!M188,"") ->  | Y188: 0
A189: VO2401 | B189: 02YL | C189: 0 | D189: 0 | E189: 0 | F189: 0 | G189: 0 | H189: 0 | I189: 0 | J189: 0 | P189: =IF($N$1=A189,(Bekostigingsgegevens!$H$35+Bekostigingsgegevens!$G$36)*InUitstroomVSO!K189,"") ->  | Q189: =IF($N$1=A189,(Bekostigingsgegevens!$H$37+Bekostigingsgegevens!$G$38)*InUitstroomVSO!L189,"") ->  | R189: =IF($N$1=A189,Bekostigingsgegevens!$H$39*InUitstroomVSO!M189,"") ->  | Y189: 0
A190: VO2401 | B190: 07IQ | C190: 0 | D190: 0 | E190: 0 | F190: 0 | G190: 1 | H190: 0 | I190: 0 | J190: 1 | P190: =IF($N$1=A190,(Bekostigingsgegevens!$H$35+Bekostigingsgegevens!$G$36)*InUitstroomVSO!K190,"") ->  | Q190: =IF($N$1=A190,(Bekostigingsgegevens!$H$37+Bekostigingsgegevens!$G$38)*InUitstroomVSO!L190,"") ->  | R190: =IF($N$1=A190,Bekostigingsgegevens!$H$39*InUitstroomVSO!M190,"") ->  | Y190: 0
A191: VO2401 | B191: 16OJ | C191: 1 | D191: 0 | E191: 0 | F191: 1 | G191: 2 | H191: 0 | I191: 0 | J191: 2 | P191: =IF($N$1=A191,(Bekostigingsgegevens!$H$35+Bekostigingsgegevens!$G$36)*InUitstroomVSO!K191,"") ->  | Q191: =IF($N$1=A191,(Bekostigingsgegevens!$H$37+Bekostigingsgegevens!$G$38)*InUitstroomVSO!L191,"") ->  | R191: =IF($N$1=A191,Bekostigingsgegevens!$H$39*InUitstroomVSO!M191,"") ->  | Y191: 0
A192: VO2401 | B192: 17JJ | C192: 0 | D192: 0 | E192: 0 | F192: 0 | G192: 0 | H192: 0 | I192: 0 | J192: 0 | P192: =IF($N$1=A192,(Bekostigingsgegevens!$H$35+Bekostigingsgegevens!$G$36)*InUitstroomVSO!K192,"") ->  | Q192: =IF($N$1=A192,(Bekostigingsgegevens!$H$37+Bekostigingsgegevens!$G$38)*InUitstroomVSO!L192,"") ->  | R192: =IF($N$1=A192,Bekostigingsgegevens!$H$39*InUitstroomVSO!M192,"") ->  | Y192: 0
A193: VO2401 | B193: 20JG | C193: 0 | D193: 0 | E193: 0 | F193: 0 | G193: 0 | H193: 0 | I193: 0 | J193: 0 | P193: =IF($N$1=A193,(Bekostigingsgegevens!$H$35+Bekostigingsgegevens!$G$36)*InUitstroomVSO!K193,"") ->  | Q193: =IF($N$1=A193,(Bekostigingsgegevens!$H$37+Bekostigingsgegevens!$G$38)*InUitstroomVSO!L193,"") ->  | R193: =IF($N$1=A193,Bekostigingsgegevens!$H$39*InUitstroomVSO!M193,"") ->  | Y193: 0
A194: VO2401 | B194: 21EJ | C194: 0 | D194: 0 | E194: 0 | F194: 0 | G194: 0 | H194: 0 | I194: 0 | J194: 0 | P194: =IF($N$1=A194,(Bekostigingsgegevens!$H$35+Bekostigingsgegevens!$G$36)*InUitstroomVSO!K194,"") ->  | Q194: =IF($N$1=A194,(Bekostigingsgegevens!$H$37+Bekostigingsgegevens!$G$38)*InUitstroomVSO!L194,"") ->  | R194: =IF($N$1=A194,Bekostigingsgegevens!$H$39*InUitstroomVSO!M194,"") ->  | Y194: 0
A195: VO2401 | B195: 23HU | C195: 3 | D195: 0 | E195: 0 | F195: 3 | G195: 14 | H195: 0 | I195: 0 | J195: 14 | P195: =IF($N$1=A195,(Bekostigingsgegevens!$H$35+Bekostigingsgegevens!$G$36)*InUitstroomVSO!K195,"") ->  | Q195: =IF($N$1=A195,(Bekostigingsgegevens!$H$37+Bekostigingsgegevens!$G$38)*InUitstroomVSO!L195,"") ->  | R195: =IF($N$1=A195,Bekostigingsgegevens!$H$39*InUitstroomVSO!M195,"") ->  | Y195: 0
A196: VO2401 | B196: 30EF | C196: 0 | D196: 0 | E196: 0 | F196: 0 | G196: 6 | H196: 0 | I196: 0 | J196: 6 | P196: =IF($N$1=A196,(Bekostigingsgegevens!$H$35+Bekostigingsgegevens!$G$36)*InUitstroomVSO!K196,"") ->  | Q196: =IF($N$1=A196,(Bekostigingsgegevens!$H$37+Bekostigingsgegevens!$G$38)*InUitstroomVSO!L196,"") ->  | R196: =IF($N$1=A196,Bekostigingsgegevens!$H$39*InUitstroomVSO!M196,"") ->  | Y196: 0
A197: VO2402 | B197: 00LD | C197: 0 | D197: 1 | E197: 0 | F197: 1 | G197: 0 | H197: 0 | I197: 0 | J197: 0 | P197: =IF($N$1=A197,(Bekostigingsgegevens!$H$35+Bekostigingsgegevens!$G$36)*InUitstroomVSO!K197,"") ->  | Q197: =IF($N$1=A197,(Bekostigingsgegevens!$H$37+Bekostigingsgegevens!$G$38)*InUitstroomVSO!L197,"") ->  | R197: =IF($N$1=A197,Bekostigingsgegevens!$H$39*InUitstroomVSO!M197,"") ->  | Y197: =SUM(V197:X197) -> 0
A198: VO2402 | B198: 01UC | C198: 0 | D198: 0 | E198: 0 | F198: 0 | G198: 1 | H198: 0 | I198: 0 | J198: 1 | K198: =IF($N$1=A198,SUM(C198-G198),"") ->  | L198: =IF($N$1=$A198,SUM(D198-H198),"") ->  | N198: =IF($N$1=$A198,SUM(K198:M198),"") ->  | P198: =IF($N$1=A198,(Bekostigingsgegevens!$H$35+Bekostigingsgegevens!$G$36)*InUitstroomVSO!K198,"") ->  | Q198: =IF($N$1=A198,(Bekostigingsgegevens!$H$37+Bekostigingsgegevens!$G$38)*InUitstroomVSO!L198,"") ->  | R198: =IF($N$1=A198,Bekostigingsgegevens!$H$39*InUitstroomVSO!M198,"") ->  | S198: =IF($N$1=$A198,SUM(P198:R198),"") ->  | T198: =IF(S198<0,0,S198) ->  | V198: =IF(K198<0,0,K198) ->  | Y198: 0
A199: VO2402 | B199: 02YL | C199: 0 | D199: 0 | E199: 0 | F199: 0 | G199: 0 | H199: 0 | I199: 0 | J199: 0 | P199: =IF($N$1=A199,(Bekostigingsgegevens!$H$35+Bekostigingsgegevens!$G$36)*InUitstroomVSO!K199,"") ->  | Q199: =IF($N$1=A199,(Bekostigingsgegevens!$H$37+Bekostigingsgegevens!$G$38)*InUitstroomVSO!L199,"") ->  | R199: =IF($N$1=A199,Bekostigingsgegevens!$H$39*InUitstroomVSO!M199,"") ->  | Y199: 0
A200: VO2402 | B200: 02YN | C200: 0 | D200: 0 | E200: 0 | F200: 0 | G200: 0 | H200: 0 | I200: 0 | J200: 0 | P200: =IF($N$1=A200,(Bekostigingsgegevens!$H$35+Bekostigingsgegevens!$G$36)*InUitstroomVSO!K200,"") ->  | Q200: =IF($N$1=A200,(Bekostigingsgegevens!$H$37+Bekostigingsgegevens!$G$38)*InUitstroomVSO!L200,"") ->  | R200: =IF($N$1=A200,Bekostigingsgegevens!$H$39*InUitstroomVSO!M200,"") ->  | Y200: 0
... 722 more rows

Sheet VerbandenVO (hidden)
A1: 2014 | K1: 2013 | L1: 2 | M1: =L1+1 -> 3 | N1: =M1+1 -> 4 | O1: 5 | P1: 6 | Q1: 7 | R1: 8 | S1: 9 | T1: 10 | U1: 11 | V1: 12 | W1: 13 | X1: 14 | Y1: 15 | Z1: 16 | AA1: 17 | AB1: 18 | AC1: 19 | AD1: 20 | AE1: 21 | AF1: 22 | AG1: 23 | AH1: 24 | AI1: 25 | AJ1: 26 | AK1: 27 | AL1: 28 | AM1: 29 | AN1: 30 | AO1: 31 | AP1: 2012 | AQ1: 2 | AR1: =AQ1+1 -> 3 | AS1: 4 | AT1: 5 | AU1: 6 | AV1: 7 | AW1: 8 | AX1: 9 | AY1: 10 | AZ1: 11 | BA1: 12 | BB1: 13 | BC1: 14 | BD1: 15 | BE1: 16 | BF1: 17 | BG1: 18 | BH1: 19 | BI1: 20 | BJ1: 21 | BK1: 22 | BL1: 23 | BM1: 24 | BN1: 25 | BO1: 26 | BP1: 27 | BQ1: 28 | BR1: 29 | BS1: 30 | BU1: 2011 | BV1: 2 | BW1: =BV1+1 -> 3 | BX1: 4 | BY1: 5 | BZ1: 6 | CA1: 7 | CB1: 8 | CC1: 9 | CD1: 10 | CE1: 11 | CF1: 12 | CG1: 13 | CH1: 14 | CI1: 15 | CJ1: 16 | CK1: 17 | CL1: 18 | CM1: 19 | CN1: 20 | CO1: 21 | CP1: 22 | CQ1: 23 | CR1: 24 | CS1: 25 | CT1: 26 | CU1: 27 | CV1: 28 | CW1: 29 | CX1: 30 | CY1: 31 | DB1: 2015 | DC1: 2 | DD1: 3 | DE1: 4 | DF1: 5 | DG1: 6 | DH1: 7 | DI1: 8 | DJ1: 9 | DK1: 10 | DL1: 11 | DO1: 2016 | DQ1: inclusief nieuwkomers | DR1: 4 | DS1: 5 | DT1: 6 | DU1: 7 | DV1: 8 | DW1: 9 | DX1: 10 | DY1: 11 | DZ1: exclusief nieuwkomers | EA1: 12 | EB1: 13 | EC1: 0.02506 | ED1: 0.002 | EF1: 2017 | EH1: inclusief nieuwkomers | EQ1: exclusief nieuwkomers | ET1: 0.00191 | EU1: 0.0221
A2: SWV | B2: Naam | C2: Overig vo | D2: lwoo | E2: pro | F2: vso cat 1 | G2: vso cat 2 | H2: vso cat 3 | I2: vo woon | K2: SWV | L2: Naam | M2: Overig vo | N2: lwoo | O2: pro | P2: vso cat 1 | Q2: vso cat 2 | R2: vso cat 3 | S2: VMBO34 | T2: vo woon | U2: Cluster 4 | V2: LG | W2: MGF | X2: LZ/S | Y2: ZMLK | Z2: CLUSTER 4 | AA2: LG | AB2: LG/ZMLK | AC2: LZ | AD2: ZMLK | AE2: CLUSTER 4 | AF2: LG | AG2: LG/ZMLK | AH2: LZ | AI2: ZMLK | AJ2: cluster 2 | AK2: VO cl2 | AL2: cluster 1 | AM2: VO cl1 | AN2: ZMLK/SVD | AO2: ZMLK/SVDLP | AP2: SWV | AQ2: Naam | AR2: Overig vo | AS2: lwoo | AT2: pro | AU2: vso cat 1 | AV2: vso cat 2 | AW2: vso cat 3 | AX2: VMBO34 | AY2: vo woon | AZ2: Cluster 4 | BA2: LG | BB2: MGF | BC2: LZ/S | BD2: ZMLK | BE2: CLUSTER 4 | BF2: LG | BG2: LG/ZMLK | BH2: LZ | BI2: ZMLK | BJ2: CLUSTER 4 | BK2: LG | BL2: LG/ZMLK | BM2: LZ | BN2: ZMLK | BO2: cluster 2 | BP2: VO cl2 | BQ2: cluster 1 | BR2: VO cl1 | BS2: Verevening | BU2: SWV | BV2: Naam | BW2: Overig vo | BX2: lwoo | BY2: pro | BZ2: vso cat 1 | CA2: vso cat 2 | CB2: vso cat 3 | CC2: VMBO34 | CD2: vo totaal | CE2: Cluster 4 | CF2: LG | CG2: MGF | CH2: LZ/S | CI2: ZMLK | CJ2: CLUSTER 4 | CK2: LG | CL2: LG/ZMLK | CM2: LZ | CN2: ZMLK | CO2: CLUSTER 4 | CP2: LG | CQ2: LG/ZMLK | CR2: LZ | CS2: ZMLK | CT2: cluster 2 | CU2: VO cl2 | CV2: cluster 1 | CW2: VO cl1 | CX2: ZMLK/SVD | CY2: ZMLK/SVD-LP | DB2: SWV | DC2: Naam | DD2: Overig vo | DE2: lwoo | DF2: pro | DG2: vso cat 1 | DH2: vso cat 2 | DI2: vso cat 3 | DJ2: vo woon | DK2: cl1 | DL2: cl2 | DO2: SWV | DP2: Naam | DQ2: overig VO | DR2: LWOO | DS2: PRO | DT2: vso cat 1 | DU2: vso cat 2 | DV2: vso cat 3 | DW2: vo woon | DX2: cl1 | DY2: cl2 | DZ2: overig VO | EA2: LWOO | EB2: PRO | EC2: Verevening P 2017-2018 voorlopig | ED2: Verevening M 2017 | EF2: SWV | EG2: Naam | EH2: overig VO | EI2: LWOO | EJ2: PRO | EK2: vso cat 1 | EL2: vso cat 2 | EM2: vso cat 3 | EN2: vo woon | EO2: cl1 | EP2: cl2 | EQ2: overig VO | ER2: LWOO | ES2: PRO | ET2: Verevening P 2018-2019 voorlopig | EU2: Verevening M 2018
A3: VO0001 | B3: Vereniging Reformatorisch Passend Onderwijs voor Voortgezet Onderwijs | C3: 20582 | D3: 1685 | E3: 471 | F3: 294 | G3: 1 | H3: 69 | I3: 22768 | K3: VO0001 | L3: Vereniging Reformatorisch Passend Onderwijs voor Voortgezet Onderwijs | M3: 20477 | N3: 1614 | O3: 434 | P3: 280 | Q3: 0 | R3: 55 | S3: 5653.5 | T3: 22556 | U3: 104 | V3: 0 | W3: 55 | X3: 0 | Y3: 176 | Z3: 454 | AA3: 13 | AB3: 0 | AC3: 26 | AD3: 0 | AE3: 74 | AF3: 15 | AG3: 5 | AH3: 7 | AI3: 18 | AJ3: 0 | AK3: 77 | AL3: 0 | AM3: 14 | AN3: 0 | AO3: 1 | AP3: VO0001 | AQ3: Vereniging Reformatorisch Passend Onderwijs voor Voortgezet Onderwijs | AR3: 20414.5 | AS3: 1532 | AT3: 391 | AU3: 281 | AV3: 0 | AW3: 51 | AX3: 5524.5 | AY3: 22377 | AZ3: 112 | BA3: 0 | BB3: 51 | BC3: 0 | BD3: 169 | BE3: 366 | BF3: 22 | BG3: 0 | BH3: 23 | BI3: 0 | BJ3: 64 | BK3: 17 | BL3: 4 | BM3: 7 | BN3: 15 | BO3: 0 | BP3: 76 | BQ3: 0 | BR3: 14 | BU3: VO0001 | BV3: Vereniging Reformatorisch Passend Onderwijs voor Voortgezet Onderwijs | BW3: 20517.5 | BX3: 1406 | BY3: 352 | BZ3: 278 | CA3: 0 | CB3: 44 | CC3: 5600.5 | CD3: 22328 | CE3: 114 | CF3: 0 | CG3: 44 | CH3: 0 | CI3: 164 | CJ3: 328 | CK3: 21 | CL3: 0 | CM3: 16 | CN3: 1 | CO3: 57 | CP3: 14 | CQ3: 3 | CR3: 3 | CS3: 14 | CT3: 0 | CU3: 69 | CV3: 0 | CW3: 18 | CX3: 0 | CY3: 0 | DB3: VO0001 | DC3: Vereniging Reformatorisch Passend Onderwijs voor Voortgezet Onderwijs | DD3: 20417 | DE3: 1588 | DF3: 479 | DG3: 329 | DH3: 0 | DI3: 81 | DJ3: 22492 | DK3: 0 | DL3: 0 | DO3: VO0001 | DP3: Vereniging Reformatorisch Passend Onderwijs voor Voortgezet Onderwijs | DQ3: 20174.5 | DR3: 1549 | DS3: 472 | DT3: 335 | DU3: 6 | DV3: 79 | DW3: 22223 | DX3: 0 | DY3: 0 | DZ3: 20173.5 | EA3: 1549 | EB3: 472 | EC3: =ROUND(ER3*(1+$O$1),2) -> 8760 | ED3: =ROUND(ES3*(1+$P$1),2) -> 3255 | EF3: VO0001 | EG3: Vereniging Reformatorisch Passend Onderwijs voor Voortgezet Onderwijs | EH3: 20091 | EI3: 1460 | EJ3: 465 | EK3: 357 | EL3: 5 | EM3: 83 | EN3: 22223 | EO3: 0 | EP3: 0 | EQ3: 20091 | ER3: 1460 | ES3: 465 | ET3: =ROUND(FK3*(1+$P$1),2) -> 0 | EU3: =ROUND(FL3*(1+$P$1),2) -> 0
A4: VO2001 | B4: Stichting Samenwerkingsverband Passend Onderwijs VO20.01 | C4: 15451.5 | D4: 938 | E4: 517 | F4: 252 | G4: 13 | H4: 24 | I4: 10469 | K4: VO2001 | L4: Stichting Samenwerkingsverband Passend Onderwijs VO20.01 | M4: 15491.5 | N4: 948 | O4: 520 | P4: 243 | Q4: 9 | R4: 21 | S4: 2822 | T4: 10351 | U4: 147 | V4: 9 | W4: 21 | X4: 8 | Y4: 88 | Z4: 389 | AA4: 23 | AB4: 0 | AC4: 21 | AD4: 0 | AE4: 91 | AF4: 5 | AG4: 1 | AH4: 16 | AI4: 52 | AJ4: 47 | AK4: 18 | AL4: 11 | AM4: 12 | AN4: 0 | AO4: 0 | AP4: VO2001 | AQ4: Stichting Samenwerkingsverband Passend Onderwijs VO20.01 | AR4: 15458.5 | AS4: 938 | AT4: 489 | AU4: 213 | AV4: 8 | AW4: 6 | AX4: 2691 | AY4: 10171 | AZ4: 119 | BA4: 8 | BB4: 6 | BC4: 7 | BD4: 87 | BE4: 404 | BF4: 24 | BG4: 0 | BH4: 14 | BI4: 1 | BJ4: 70 | BK4: 5 | BL4: 0 | BM4: 10 | BN4: 52 | BO4: 46 | BP4: 14 | BQ4: 8 | BR4: 12 | BU4: VO2001 | BV4: Stichting Samenwerkingsverband Passend Onderwijs VO20.01 | BW4: 15191.5 | BX4: 955 | BY4: 450 | BZ4: =191+14 -> 205 | CA4: 12 | CB4: 13 | CC4: 2483 | CD4: 9885 | CE4: 105 | CF4: 12 | CG4: 13 | CH4: 7 | CI4: 79 | CJ4: 372 | CK4: 21 | CL4: 0 | CM4: 14 | CN4: 3 | CO4: 51 | CP4: 4 | CQ4: 2 | CR4: 6 | CS4: 39 | CT4: 45 | CU4: 12 | CV4: 8 | CW4: 18 | CX4: 0 | CY4: 0 | DB4: VO2001 | DC4: Stichting Samenwerkingsverband Passend Onderwijs VO20.01 | DD4: 15476 | DE4: 839.5 | DF4: 515 | DG4: 264 | DH4: 14 | DI4: 23 | DJ4: 10359 | DK4: 12 | DL4: 54 | DO4: VO2001 | DP4: Stichting Samenwerkingsverband Passend Onderwijs VO20.01 | DQ4: 15765.5 | DR4: 582 | DS4: 477 | DT4: 254 | DU4: 18 | DV4: 14 | DW4: 10630 | DX4: 14 | DY4: 57 | DZ4: 15635.5 | EA4: 582 | EB4: 477 | EC4: =ROUND(ER4*(1+$O$1),2) -> 1998 | ED4: =ROUND(ES4*(1+$P$1),2) -> 3332 | EF4: VO2001 | EG4: Stichting Samenwerkingsverband Passend Onderwijs VO20.01 | EH4: 15758 | EI4: 333 | EJ4: 476 | EK4: 243 | EL4: 16 | EM4: 13 | EN4: 10630 | EO4: 14 | EP4: 57 | EQ4: 15688 | ER4: 333 | ES4: 476 | ET4: =ROUND(FK4*(1+$P$1),2) -> 0 | EU4: 0 | EW4: Dit blad niet verwijderen.
A5: VO2002 | B5: Samenwerkingsverband Groningen Ommelanden V(S)O | C5: 14671 | D5: 2716 | E5: 989 | F5: 522 | G5: 21 | H5: 38 | I5: 22808 | K5: VO2002 | L5: Samenwerkingsverband Groningen Ommelanden V(S)O | M5: 14542 | N5: 2841 | O5: 957 | P5: 519 | Q5: 19 | R5: 35 | S5: 5279.5 | T5: 22626 | U5: 212 | V5: 19 | W5: 35 | X5: 10 | Y5: 297 | Z5: 197 | AA5: 11 | AB5: 3 | AC5: 22 | AD5: 1 | AE5: 115 | AF5: 7 | AG5: 1 | AH5: 8 | AI5: 29 | AJ5: 61 | AK5: 9 | AL5: 5 | AM5: 8 | AN5: 0 | AO5: 0 | AP5: VO2002 | AQ5: Samenwerkingsverband Groningen Ommelanden V(S)O | AR5: 14339 | AS5: 2846 | AT5: 933 | AU5: 511 | AV5: 21 | AW5: 29 | AX5: 5234.5 | AY5: 22408 | AZ5: 205 | BA5: 21 | BB5: 29 | BC5: 10 | BD5: 296 | BE5: 171 | BF5: 10 | BG5: 2 | BH5: 18 | BI5: 0 | BJ5: 104 | BK5: 7 | BL5: 1 | BM5: 9 | BN5: 30 | BO5: 63 | BP5: 4 | BQ5: 4 | BR5: 8 | BU5: VO2002 | BV5: Samenwerkingsverband Groningen Ommelanden V(S)O | BW5: 14526 | BX5: 2813 | BY5: 900 | BZ5: 504 | CA5: 18 | CB5: 37 | CC5: 5182 | CD5: 22426 | CE5: 202 | CF5: 18 | CG5: 37 | CH5: 8 | CI5: 294 | CJ5: 143 | CK5: 10 | CL5: 0 | CM5: 20 | CN5: 1 | CO5: 87 | CP5: 9 | CQ5: 1 | CR5: 9 | CS5: 30 | CT5: 50 | CU5: 4 | CV5: 5 | CW5: 6 | CX5: 0 | CY5: 0 | DB5: VO2002 | DC5: Samenwerkingsverband Groningen Ommelanden V(S)O | DD5: 14876 | DE5: 2620 | DF5: 1013 | DG5: 512 | DH5: 20 | DI5: 25 | DJ5: 22993 | DK5: 3 | DL5: 67 | DO5: VO2002 | DP5: Samenwerkingsverband Groningen Ommelanden V(S)O | DQ5: 15339 | DR5: 1796 | DS5: 1016 | DT5: 517 | DU5: 31 | DV5: 13 | DW5: 22617 | DX5: 3 | DY5: 77 | DZ5: 15245 | EA5: 1796 | EB5: 1016 | EC5: 7047 | ED5: 6986 | EF5: VO2002 | EG5: Samenwerkingsverband Groningen Ommelanden V(S)O | EH5: 15312.5 | EI5: 1174.5 | EJ5: 998 | EK5: 518 | EL5: 31 | EM5: 13 | EN5: 22617 | EO5: 3 | EP5: 77 | EQ5: 15231.5 | ER5: 1174.5 | ES5: 998 | ET5: 0 | EU5: 0
A6: VO2101 | B6: Stichting VO Samenwerkingsverband Passend Onderwijs Fryslan-Noard | C6: 12531 | D6: 1571 | E6: 500 | F6: 381 | G6: 13 | H6: 68 | I6: 14930 | K6: VO2101 | L6: Stichting VO Samenwerkingsverband Passend Onderwijs Fryslan-Noard | M6: 12398 | N6: 1619 | O6: 527 | P6: 395 | Q6: 7 | R6: 59 | S6: 3745.5 | T6: 14930 | U6: 228 | V6: 7 | W6: 59 | X6: 3 | Y6: 164 | Z6: 168 | AA6: 8 | AB6: 0 | AC6: 12 | AD6: 1 | AE6: 39 | AF6: 4 | AG6: 1 | AH6: 2 | AI6: 22 | AJ6: 24 | AK6: 17 | AL6: 2 | AM6: 4 | AN6: 0 | AO6: 0 | AP6: VO2101 | AQ6: Stichting VO Samenwerkingsverband Passend Onderwijs Fryslan-Noard | AR6: 12269.5 | AS6: 1721.5 | AT6: 515 | AU6: 395 | AV6: 10 | AW6: 60 | AX6: 3693 | AY6: 14947 | AZ6: 223 | BA6: 10 | BB6: 60 | BC6: 5 | BD6: 167 | BE6: 171 | BF6: 9 | BG6: 0 | BH6: 7 | BI6: 0 | BJ6: 55 | BK6: 2 | BL6: 1 | BM6: 3 | BN6: 22 | BO6: 23 | BP6: 16 | BQ6: 4 | BR6: 4 | BU6: VO2101 | BV6: Stichting VO Samenwerkingsverband Passend Onderwijs Fryslan-Noard | BW6: 12323 | BX6: 1707 | BY6: 492 | BZ6: 404 | CA6: 13 | CB6: 49 | CC6: 3735 | CD6: 14853 | CE6: 216 | CF6: 13 | CG6: 49 | CH6: 4 | CI6: 184 | CJ6: 167 | CK6: 6 | CL6: 1 | CM6: 5 | CN6: 0 | CO6: 45 | CP6: 0 | CQ6: 0 | CR6: 4 | CS6: 25 | CT6: 22 | CU6: 22 | CV6: 3 | CW6: 2 | CX6: 0 | CY6: 0 | DB6: VO2101 | DC6: Stichting VO Samenwerkingsverband Passend Onderwijs Fryslan-Noard | DD6: 12789 | DE6: 1429 | DF6: 531 | DG6: 376 | DH6: 13 | DI6: 68 | DJ6: 15169 | DK6: 1 | DL6: 23 | DO6: VO2101 | DP6: Stichting VO Samenwerkingsverband Passend Onderwijs Fryslan-Noard | DQ6: 12881.5 | DR6: 1190.5 | DS6: 531 | DT6: 399 | DU6: 28 | DV6: 46 | DW6: 15171 | DX6: 1 | DY6: 23 | DZ6: 12788.5 | EA6: 1190.5 | EB6: 531 | EC6: 6603 | ED6: 3752 | EF6: VO2101 | EG6: Stichting VO Samenwerkingsverband Passend Onderwijs Fryslan-Noard | EH6: 12870.5 | EI6: 1100.5 | EJ6: 536 | EK6: 420 | EL6: 35 | EM6: 46 | EN6: 15171 | EO6: 1 | EP6: 23 | EQ6: 12766.5 | ER6: 1100.5 | ES6: 536 | ET6: 0 | EU6: 0 | EW6: Dit model maakt gebruik van dit blad. Wilt u de data weergeven, klik dan | FD6: hier.
A7: VO2102 | B7: Stichting Samenwerkingsverband Zuidoost-Friesland VO | C7: 15214 | D7: 2368 | E7: 516 | F7: 490 | G7: 21 | H7: 112 | I7: 17056 | K7: VO2102 | L7: Stichting Samenwerkingsverband Zuidoost-Friesland VO | M7: 14939 | N7: 2272.5 | O7: 525 | P7: 474 | Q7: 21 | R7: 91 | S7: 4422 | T7: 16786 | U7: 261 | V7: 21 | W7: 91 | X7: 7 | Y7: 206 | Z7: 192 | AA7: 9 | AB7: 0 | AC7: 20 | AD7: 1 | AE7: 62 | AF7: 5 | AG7: 1 | AH7: 8 | AI7: 15 | AJ7: 23 | AK7: 21 | AL7: 2 | AM7: 11 | AN7: 1 | AO7: 0 | AP7: VO2102 | AQ7: Stichting Samenwerkingsverband Zuidoost-Friesland VO | AR7: 14689 | AS7: 2198 | AT7: 537 | AU7: 445 | AV7: 20 | AW7: 89 | AX7: 4183 | AY7: 16561 | AZ7: 231 | BA7: 20 | BB7: 89 | BC7: 12 | BD7: 202 | BE7: 203 | BF7: 12 | BG7: 0 | BH7: 16 | BI7: 2 | BJ7: 56 | BK7: 3 | BL7: 1 | BM7: 7 | BN7: 13 | BO7: 24 | BP7: 21 | BQ7: 0 | BR7: 11 | BU7: VO2102 | BV7: Stichting Samenwerkingsverband Zuidoost-Friesland VO | BW7: 14383.5 | BX7: 2103 | BY7: 512 | BZ7: =451+22 -> 473 | CA7: 22 | CB7: 80 | CC7: 3997 | CD7: 16283 | CE7: 238 | CF7: 22 | CG7: 80 | CH7: 10 | CI7: 203 | CJ7: 201 | CK7: 18 | CL7: 0 | CM7: 24 | CN7: 1 | CO7: 63 | CP7: 3 | CQ7: 1 | CR7: 7 | CS7: 17 | CT7: 22 | CU7: 19 | CV7: 3 | CW7: 9 | CX7: 1 | CY7: 0 | DB7: VO2102 | DC7: Stichting Samenwerkingsverband Zuidoost-Friesland VO | DD7: 15498.5 | DE7: 2311 | DF7: 516 | DG7: 486 | DH7: 24 | DI7: 95 | DJ7: 17174.5 | DK7: 3 | DL7: 27 | DO7: VO2102 | DP7: Stichting Samenwerkingsverband Zuidoost-Friesland VO | DQ7: 15291 | DR7: 2228.5 | DS7: 550 | DT7: 467 | DU7: 37 | DV7: 72 | DW7: 16973 | DX7: 3 | DY7: 29 | DZ7: 15121 | EA7: 2228.5 | EB7: 550 | EC7: 12681 | ED7: 3724 | EF7: VO2102 | EG7: Stichting Samenwerkingsverband Zuidoost-Friesland VO | EH7: 15218.5 | EI7: 2113.5 | EJ7: 532 | EK7: 407 | EL7: 45 | EM7: 76 | EN7: 16973 | EO7: 3 | EP7: 29 | EQ7: 15124.5 | ER7: 2113.5 | ES7: 532 | ET7: 0 | EU7: 0 | EW7: Let op: u heeft een wachtwoord om de beveiliging op te heffen.
A8: VO2103 | B8: Stichting Samenwerkingsverband Zuidwest Friesland Fultura VO | C8: 6095.5 | D8: 505 | E8: 216 | F8: 130 | G8: 3 | H8: 42 | I8: 6868 | K8: VO2103 | L8: Stichting Samenwerkingsverband Zuidwest Friesland Fultura VO | M8: 6127 | N8: 506 | O8: 225 | P8: 122 | Q8: 5 | R8: 36 | S8: 1661 | T8: 6853 | U8: 51 | V8: 5 | W8: 36 | X8: 1 | Y8: 70 | Z8: 77 | AA8: 4 | AB8: 0 | AC8: 4 | AD8: 0 | AE8: 25 | AF8: 1 | AG8: 1 | AH8: 2 | AI8: 7 | AJ8: 4 | AK8: 9 | AL8: 1 | AM8: 7 | AN8: 0 | AO8: 0 | AP8: VO2103 | AQ8: Stichting Samenwerkingsverband Zuidwest Friesland Fultura VO | AR8: 6025.5 | AS8: 517 | AT8: 227 | AU8: 132 | AV8: 9 | AW8: 33 | AX8: 1654 | AY8: 6740 | AZ8: 51 | BA8: 9 | BB8: 33 | BC8: 2 | BD8: 79 | BE8: 79 | BF8: 7 | BG8: 0 | BH8: 3 | BI8: 0 | BJ8: 27 | BK8: 2 | BL8: 1 | BM8: 2 | BN8: 7 | BO8: 4 | BP8: 7 | BQ8: 0 | BR8: 7 | BU8: VO2103 | BV8: Stichting Samenwerkingsverband Zuidwest Friesland Fultura VO | BW8: 5964 | BX8: 535 | BY8: 202 | BZ8: 124 | CA8: 8 | CB8: 38 | CC8: 1570 | CD8: 6671 | CE8: 49 | CF8: 8 | CG8: 38 | CH8: 3 | CI8: 72 | CJ8: 79 | CK8: 7 | CL8: 0 | CM8: 4 | CN8: 0 | CO8: 22 | CP8: 2 | CQ8: 0 | CR8: 0 | CS8: 12 | CT8: 6 | CU8: 6 | CV8: 1 | CW8: 4 | CX8: 0 | CY8: 0 | DB8: VO2103 | DC8: Stichting Samenwerkingsverband Zuidwest Friesland Fultura VO | DD8: 6151.5 | DE8: 513 | DF8: 209 | DG8: 128 | DH8: 3 | DI8: 45 | DJ8: 6935 | DK8: 1 | DL8: 1 | DO8: VO2103 | DP8: Stichting Samenwerkingsverband Zuidwest Friesland Fultura VO | DQ8: 6196 | DR8: 444 | DS8: 215 | DT8: 117 | DU8: 9 | DV8: 36 | DW8: 6891 | DX8: 0 | DY8: 3 | DZ8: 6176 | EA8: 444 | EB8: 215 | EC8: 2712 | ED8: 1589 | EF8: VO2103 | EG8: Stichting Samenwerkingsverband Zuidwest Friesland Fultura VO | EH8: 6101 | EI8: 452 | EJ8: 227 | EK8: 117 | EL8: 11 | EM8: 31 | EN8: 6891 | EO8: 0 | EP8: 3 | EQ8: 5979 | ER8: 452 | ES8: 227 | ET8: 0 | EU8: 0
A9: VO2201 | B9: Stichting Samenwerkingsverband Passend Onderwijs VO22.01 Noord-en Midden Drenthe | C9: 6436 | D9: 922 | E9: 253 | F9: 218 | G9: 10 | H9: 20 | I9: 9570 | K9: VO2201 | L9: Stichting Samenwerkingsverband Passend Onderwijs VO22.01 Noord-en Midden Drenthe | M9: 6119.5 | N9: 918 | O9: 232 | P9: 232 | Q9: 11 | R9: 22 | S9: 1884.5 | T9: 9425 | U9: 142 | V9: 11 | W9: 22 | X9: 7 | Y9: 83 | Z9: 99 | AA9: 10 | AB9: 0 | AC9: 16 | AD9: 0 | AE9: 41 | AF9: 3 | AG9: 0 | AH9: 2 | AI9: 15 | AJ9: 23 | AK9: 9 | AL9: 8 | AM9: 7 | AN9: 0 | AO9: 0 | AP9: VO2201 | AQ9: Stichting Samenwerkingsverband Passend Onderwijs VO22.01 Noord-en Midden Drenthe | AR9: 5919.5 | AS9: 962 | AT9: 225 | AU9: 230 | AV9: 6 | AW9: 25 | AX9: 1835.5 | AY9: 9395 | AZ9: 123 | BA9: 6 | BB9: 25 | BC9: 6 | BD9: 101 | BE9: 102 | BF9: 9 | BG9: 0 | BH9: 10 | BI9: 0 | BJ9: 51 | BK9: 5 | BL9: 0 | BM9: 6 | BN9: 11 | BO9: 17 | BP9: 8 | BQ9: 3 | BR9: 7 | BU9: VO2201 | BV9: Stichting Samenwerkingsverband Passend Onderwijs VO22.01 Noord-en Midden Drenthe | BW9: 5800.5 | BX9: 1011 | BY9: 216 | BZ9: 219 | CA9: 5 | CB9: 28 | CC9: 1874 | CD9: 9397 | CE9: 105 | CF9: 5 | CG9: 28 | CH9: 6 | CI9: 108 | CJ9: 90 | CK9: 7 | CL9: 0 | CM9: 12 | CN9: 0 | CO9: 57 | CP9: 7 | CQ9: 0 | CR9: 7 | CS9: 6 | CT9: 17 | CU9: 5 | CV9: 5 | CW9: 3 | CX9: 0 | CY9: 0 | DB9: VO2201 | DC9: Stichting Samenwerkingsverband Passend Onderwijs VO22.01 Noord-en Midden Drenthe | DD9: 6700 | DE9: 897 | DF9: 272 | DG9: 203 | DH9: 12 | DI9: 13 | DJ9: 9609.5 | DK9: 4 | DL9: 21 | DO9: VO2201 | DP9: Stichting Samenwerkingsverband Passend Onderwijs VO22.01 Noord-en Midden Drenthe | DQ9: 6865.5 | DR9: 912 | DS9: 274 | DT9: 214 | DU9: 10 | DV9: 4 | DW9: 9725 | DX9: 3 | DY9: 18 | DZ9: 6716.5 | EA9: 912 | EB9: 274 | EC9: 5634 | ED9: 1694 | EF9: VO2201 | EG9: Stichting Samenwerkingsverband Passend Onderwijs VO22.01 Noord-en Midden Drenthe | EH9: 6819 | EI9: 939 | EJ9: 242 | EK9: 228 | EL9: 8 | EM9: 4 | EN9: 9725 | EO9: 3 | EP9: 18 | EQ9: 6741 | ER9: 939 | ES9: 242 | ET9: 0 | EU9: 0
A10: VO2202 | B10: Coöperatie VO-22-02 U.A. | C10: 9588.5 | D10: 1100 | E10: 423 | F10: 265 | G10: 6 | H10: 14 | I10: 11396 | K10: VO2202 | L10: Coöperatie VO-22-02 U.A. | M10: 9511 | N10: 1133 | O10: 390 | P10: 234 | Q10: 7 | R10: 16 | S10: 3001 | T10: 11337 | U10: 112 | V10: 7 | W10: 16 | X10: 5 | Y10: 117 | Z10: 110 | AA10: 15 | AB10: 0 | AC10: 27 | AD10: 0 | AE10: 41 | AF10: 5 | AG10: 2 | AH10: 10 | AI10: 13 | AJ10: 21 | AK10: 16 | AL10: 2 | AM10: 6 | AN10: 0 | AO10: 1 | AP10: VO2202 | AQ10: Coöperatie VO-22-02 U.A. | AR10: 9232 | AS10: 1245 | AT10: 350 | AU10: 243 | AV10: 7 | AW10: 17 | AX10: 2828.5 | AY10: 11152 | AZ10: 114 | BA10: 7 | BB10: 17 | BC10: 4 | BD10: 125 | BE10: 119 | BF10: 13 | BG10: 0 | BH10: 20 | BI10: 0 | BJ10: 43 | BK10: 4 | BL10: 3 | BM10: 7 | BN10: 13 | BO10: 17 | BP10: 12 | BQ10: 1 | BR10: 6 | BU10: VO2202 | BV10: Coöperatie VO-22-02 U.A. | BW10: 9055 | BX10: 1290 | BY10: 334 | BZ10: 232 | CA10: 9 | CB10: 22 | CC10: 2762 | CD10: 11049 | CE10: 109 | CF10: 9 | CG10: 22 | CH10: 5 | CI10: 118 | CJ10: 115 | CK10: 13 | CL10: 0 | CM10: 13 | CN10: 0 | CO10: 43 | CP10: 4 | CQ10: 2 | CR10: 5 | CS10: 17 | CT10: 13 | CU10: 13 | CV10: 0 | CW10: 7 | CX10: 0 | CY10: 1 | DB10: VO2202 | DC10: Coöperatie VO-22-02 U.A. | DD10: 9620 | DE10: 989 | DF10: 425 | DG10: 257 | DH10: 5 | DI10: 18 | DJ10: 11174.5 | DK10: 2 | DL10: 23 | DO10: VO2202 | DP10: Coöperatie VO-22-02 U.A. | DQ10: 9470 | DR10: 903 | DS10: 428 | DT10: 252 | DU10: 32 | DV10: 17 | DW10: 11026 | DX10: 2 | DY10: 27 | DZ10: 9335 | EA10: 903 | EB10: 428 | EC10: 5460 | ED10: 3010 | EF10: VO2202 | EG10: Coöperatie VO-22-02 U.A. | EH10: 9235 | EI10: 910 | EJ10: 430 | EK10: 257 | EL10: 33 | EM10: 17 | EN10: 11026 | EO10: 2 | EP10: 27 | EQ10: 9077 | ER10: 910 | ES10: 430 | ET10: 0 | EU10: 0
A11: VO2203 | B11: Stichting SWV-VO 22.03 | C11: 9411.5 | D11: 1092 | E11: 416 | F11: 387 | G11: 13 | H11: 32 | I11: 11126 | K11: VO2203 | L11: Stichting SWV-VO 22.03 | M11: 9254 | N11: 1109 | O11: 400 | P11: 347 | Q11: 10 | R11: 33 | S11: 2622.5 | T11: 10874 | U11: 240 | V11: 10 | W11: 33 | X11: 10 | Y11: 97 | Z11: 182 | AA11: 15 | AB11: 0 | AC11: 10 | AD11: 0 | AE11: 74 | AF11: 6 | AG11: 1 | AH11: 5 | AI11: 19 | AJ11: 14 | AK11: 10 | AL11: 1 | AM11: 7 | AN11: 0 | AO11: 0 | AP11: VO2203 | AQ11: Stichting SWV-VO 22.03 | AR11: 9065.5 | AS11: 1089 | AT11: 391 | AU11: 324 | AV11: 11 | AW11: 39 | AX11: 2407.5 | AY11: 10685 | AZ11: 213 | BA11: 11 | BB11: 39 | BC11: 10 | BD11: 101 | BE11: 156 | BF11: 15 | BG11: 1 | BH11: 13 | BI11: 0 | BJ11: 67 | BK11: 5 | BL11: 3 | BM11: 3 | BN11: 17 | BO11: 10 | BP11: 12 | BQ11: 1 | BR11: 7 | BU11: VO2203 | BV11: Stichting SWV-VO 22.03 | BW11: 8838.5 | BX11: 1047 | BY11: 407 | BZ11: 319 | CA11: 7 | CB11: 43 | CC11: 2386 | CD11: 10298 | CE11: 207 | CF11: 7 | CG11: 43 | CH11: 7 | CI11: 105 | CJ11: 141 | CK11: 12 | CL11: 1 | CM11: 13 | CN11: 0 | CO11: 79 | CP11: 6 | CQ11: 2 | CR11: 0 | CS11: 21 | CT11: 6 | CU11: 13 | CV11: 2 | CW11: 7 | CX11: 0 | CY11: 0 | DB11: VO2203 | DC11: Stichting SWV-VO 22.03 | DD11: 9423.5 | DE11: 1072 | DF11: 400 | DG11: 342 | DH11: 12 | DI11: 24 | DJ11: 11204 | DK11: 4 | DL11: 11 | DO11: VO2203 | DP11: Stichting SWV-VO 22.03 | DQ11: 9424.5 | DR11: 1040 | DS11: 384 | DT11: 319 | DU11: 17 | DV11: 25 | DW11: 11158 | DX11: 3 | DY11: 13 | DZ11: 9303.5 | EA11: 1040 | EB11: 384 | EC11: 5784 | ED11: 2618 | EF11: VO2203 | EG11: Stichting SWV-VO 22.03 | EH11: 9268.5 | EI11: 964 | EJ11: 374 | EK11: 216 | EL11: 15 | EM11: 17 | EN11: 11158 | EO11: 3 | EP11: 13 | EQ11: 9172.5 | ER11: 964 | ES11: 374 | ET11: 0 | EU11: 0
A12: VO2301 | B12: Stichting Samenwerkingsverband Regio Almelo VO/VSO | C12: 11729 | D12: 2691.5 | E12: 377 | F12: 623 | G12: 14 | H12: 46 | I12: 13914 | K12: VO2301 | L12: Stichting Samenwerkingsverband Regio Almelo VO/VSO | M12: 11516.5 | N12: 2614.5 | O12: 347 | P12: 606 | Q12: 16 | R12: 46 | S12: 3521.5 | T12: 13599 | U12: 419 | V12: 16 | W12: 46 | X12: 12 | Y12: 175 | Z12: 183 | AA12: 5 | AB12: 0 | AC12: 7 | AD12: 0 | AE12: 84 | AF12: 5 | AG12: 0 | AH12: 6 | AI12: 11 | AJ12: 21 | AK12: 20 | AL12: 4 | AM12: 11 | AN12: 0 | AO12: 0 | AP12: VO2301 | AQ12: Stichting Samenwerkingsverband Regio Almelo VO/VSO | AR12: 11435.5 | AS12: 2382 | AT12: 335 | AU12: 607 | AV12: 17 | AW12: 46 | AX12: 3393 | AY12: 13310 | AZ12: 420 | BA12: 17 | BB12: 46 | BC12: 9 | BD12: 178 | BE12: 183 | BF12: 10 | BG12: 0 | BH12: 8 | BI12: 0 | BJ12: 56 | BK12: 4 | BL12: 0 | BM12: 6 | BN12: 10 | BO12: 21 | BP12: 19 | BQ12: 4 | BR12: 11 | BU12: VO2301 | BV12: Stichting Samenwerkingsverband Regio Almelo VO/VSO | BW12: 11359.5 | BX12: 2266 | BY12: 304 | BZ12: 615 | CA12: 21 | CB12: 52 | CC12: 3302 | CD12: 13098 | CE12: 423 | CF12: 21 | CG12: 52 | CH12: 7 | CI12: 185 | CJ12: 200 | CK12: 10 | CL12: 0 | CM12: 8 | CN12: 0 | CO12: 42 | CP12: 6 | CQ12: 0 | CR12: 5 | CS12: 12 | CT12: 21 | CU12: 13 | CV12: 3 | CW12: 6 | CX12: 0 | CY12: 0 | DB12: VO2301 | DC12: Stichting Samenwerkingsverband Regio Almelo VO/VSO | DD12: 11931.5 | DE12: 2677 | DF12: 385 | DG12: 607 | DH12: 25 | DI12: 54 | DJ12: 14058.5 | DK12: 3 | DL12: 19 | DO12: VO2301 | DP12: Stichting Samenwerkingsverband Regio Almelo VO/VSO | DQ12: 12268 | DR12: 2447 | DS12: 364 | DT12: 579 | DU12: 31 | DV12: 53 | DW12: 14179 | DX12: 3 | DY12: 25 | DZ12: 12111 | EA12: 2447 | EB12: 364 | EC12: 10692 | ED12: 2464 | EF12: VO2301 | EG12: Stichting Samenwerkingsverband Regio Almelo VO/VSO | EH12: 12795 | EI12: 1782 | EJ12: 352 | EK12: 540 | EL12: 27 | EM12: 50 | EN12: 14179 | EO12: 3 | EP12: 25 | EQ12: 12689 | ER12: 1782 | ES12: 352 | ET12: 0 | EU12: 0
A13: VO2302 | B13: Stichting SWV VO Twente Oost | C13: 17218 | D13: 3197 | E13: 758 | F13: 911 | G13: 37 | H13: 81 | I13: 21948 | K13: VO2302 | L13: Stichting SWV VO Twente Oost | M13: 17306.5 | N13: 3131 | O13: 745 | P13: 958 | Q13: 28 | R13: 75 | S13: 5002 | T13: 21911 | U13: 669 | V13: 28 | W13: 75 | X13: 22 | Y13: 267 | Z13: 315 | AA13: 8 | AB13: 1 | AC13: 13 | AD13: 1 | AE13: 92 | AF13: 4 | AG13: 1 | AH13: 6 | AI13: 19 | AJ13: 70 | AK13: 19 | AL13: 3 | AM13: 7 | AN13: 0 | AO13: 0 | AP13: VO2302 | AQ13: Stichting SWV VO Twente Oost | AR13: 17148.5 | AS13: 3034.5 | AT13: 733 | AU13: 984 | AV13: 30 | AW13: 73 | AX13: 4810 | AY13: 21685 | AZ13: 702 | BA13: 30 | BB13: 73 | BC13: 21 | BD13: 261 | BE13: 262 | BF13: 16 | BG13: 1 | BH13: 14 | BI13: 0 | BJ13: 90 | BK13: 4 | BL13: 1 | BM13: 6 | BN13: 20 | BO13: 77 | BP13: 19 | BQ13: 2 | BR13: 7 | BU13: VO2302 | BV13: Stichting SWV VO Twente Oost | BW13: 16848 | BX13: 2960 | BY13: 783 | BZ13: 944 | CA13: 34 | CB13: 65 | CC13: 4549 | CD13: 21388 | CE13: 655 | CF13: 34 | CG13: 65 | CH13: 27 | CI13: 262 | CJ13: 249 | CK13: 20 | CL13: 0 | CM13: 17 | CN13: 0 | CO13: 86 | CP13: 3 | CQ13: 2 | CR13: 6 | CS13: 22 | CT13: 77 | CU13: 21 | CV13: 2 | CW13: 8 | CX13: 0 | CY13: 0 | DB13: VO2302 | DC13: Stichting SWV VO Twente Oost | DD13: 17557.5 | DE13: 3255 | DF13: 744 | DG13: 853 | DH13: 61 | DI13: 79 | DJ13: 22336 | DK13: 2 | DL13: 64 | DO13: VO2302 | DP13: Stichting SWV VO Twente Oost | DQ13: 18560.5 | DR13: 2364.5 | DS13: 749 | DT13: 776 | DU13: 64 | DV13: 91 | DW13: 22450 | DX13: 2 | DY13: 63 | DZ13: 18400.5 | EA13: 2364.5 | EB13: 749 | EC13: 9582 | ED13: 5334 | EF13: VO2302 | EG13: Stichting SWV VO Twente Oost | EH13: 19072 | EI13: 1597 | EJ13: 762 | EK13: 739 | EL13: 60 | EM13: 101 | EN13: 22450 | EO13: 2 | EP13: 63 | EQ13: 18968 | ER13: 1597 | ES13: 762 | ET13: 0 | EU13: 0
A14: VO2303 | B14: Stichting Samenwerkingsverband VO Deventer | C14: 4198 | D14: 663 | E14: 156 | F14: 329 | G14: 2 | H14: 23 | I14: 5838 | K14: VO2303 | L14: Stichting Samenwerkingsverband VO Deventer | M14: 4117.5 | N14: 662.5 | O14: 157 | P14: 346 | Q14: 3 | R14: 18 | S14: 891 | T14: 5713 | U14: 254 | V14: 3 | W14: 18 | X14: 4 | Y14: 88 | Z14: 78 | AA14: 1 | AB14: 0 | AC14: 7 | AD14: 0 | AE14: 11 | AF14: 1 | AG14: 3 | AH14: 1 | AI14: 6 | AJ14: 6 | AK14: 10 | AL14: 0 | AM14: 5 | AN14: 0 | AO14: 0 | AP14: VO2303 | AQ14: Stichting Samenwerkingsverband VO Deventer | AR14: 4060.5 | AS14: 663 | AT14: 157 | AU14: 349 | AV14: 4 | AW14: 19 | AX14: 888 | AY14: 5577 | AZ14: 265 | BA14: 4 | BB14: 19 | BC14: 3 | BD14: 81 | BE14: 76 | BF14: 0 | BG14: 0 | BH14: 10 | BI14: 0 | BJ14: 18 | BK14: 1 | BL14: 2 | BM14: 1 | BN14: 5 | BO14: 7 | BP14: 8 | BQ14: 0 | BR14: 5 | BU14: VO2303 | BV14: Stichting Samenwerkingsverband VO Deventer | BW14: 4013 | BX14: 653 | BY14: 163 | BZ14: 320 | CA14: 5 | CB14: 18 | CC14: 865.5 | CD14: 5502 | CE14: 237 | CF14: 5 | CG14: 18 | CH14: 4 | CI14: 79 | CJ14: 71 | CK14: 2 | CL14: 0 | CM14: 10 | CN14: 0 | CO14: 20 | CP14: 2 | CQ14: 1 | CR14: 1 | CS14: 8 | CT14: 6 | CU14: 9 | CV14: 0 | CW14: 6 | CX14: 0 | CY14: 0 | DB14: VO2303 | DC14: Stichting Samenwerkingsverband VO Deventer | DD14: 4331 | DE14: 700 | DF14: 168 | DG14: 287 | DH14: 3 | DI14: 21 | DJ14: 6065 | DK14: 0 | DL14: 6 | DO14: VO2303 | DP14: Stichting Samenwerkingsverband VO Deventer | DQ14: 4458 | DR14: 636 | DS14: 172 | DT14: 235 | DU14: 4 | DV14: 27 | DW14: 6114 | DX14: 0 | DY14: 4 | DZ14: 4342 | EA14: 636 | EB14: 172 | EC14: 2472 | ED14: 1260 | EF14: VO2303 | EG14: Stichting Samenwerkingsverband VO Deventer | EH14: 4715 | EI14: 412 | EJ14: 180 | EK14: 213 | EL14: 8 | EM14: 25 | EN14: 6114 | EO14: 0 | EP14: 4 | EQ14: 4584 | ER14: 412 | ES14: 180 | ET14: 0 | EU14: 0
A15: VO2305 | B15: Stichting VO2305 | C15: 20054 | D15: 2002 | E15: 612 | F15: 1137 | G15: 33 | H15: 88 | I15: 22980 | K15: VO2305 | L15: Stichting VO2305 | M15: 19489 | N15: 2009.5 | O15: 626 | P15: 1112 | Q15: 25 | R15: 87 | S15: 4611 | T15: 22410 | U15: 866 | V15: 25 | W15: 87 | X15: 26 | Y15: 220 | Z15: 459 | AA15: 19 | AB15: 0 | AC15: 52 | AD15: 1 | AE15: 179 | AF15: 14 | AG15: 2 | AH15: 9 | AI15: 11 | AJ15: 35 | AK15: 31 | AL15: 10 | AM15: 8 | AN15: 1 | AO15: 1 | AP15: VO2305 | AQ15: Stichting VO2305 | AR15: 19225 | AS15: 2002 | AT15: 621 | AU15: 1119 | AV15: 25 | AW15: 75 | AX15: 4582 | AY15: 22051 | AZ15: 864 | BA15: 25 | BB15: 75 | BC15: 19 | BD15: 236 | BE15: 458 | BF15: 12 | BG15: 0 | BH15: 45 | BI15: 1 | BJ15: 146 | BK15: 7 | BL15: 2 | BM15: 11 | BN15: 2 | BO15: 24 | BP15: 16 | BQ15: 8 | BR15: 8 | BU15: VO2305 | BV15: Stichting VO2305 | BW15: 18708.5 | BX15: 1997 | BY15: 633 | BZ15: 1044 | CA15: 24 | CB15: 71 | CC15: 4364 | CD15: 21557 | CE15: 792 | CF15: 24 | CG15: 71 | CH15: 19 | CI15: 233 | CJ15: 407 | CK15: 12 | CL15: 0 | CM15: 31 | CN15: 0 | CO15: 151 | CP15: 4 | CQ15: 0 | CR15: 7 | CS15: 7 | CT15: 19 | CU15: 21 | CV15: 6 | CW15: 18 | CX15: 0 | CY15: 0 | DB15: VO2305 | DC15: Stichting VO2305 | DD15: 20747.5 | DE15: 2025 | DF15: 626 | DG15: 1030 | DH15: 39 | DI15: 83 | DJ15: 23404.5 | DK15: 8 | DL15: 43 | DO15: VO2305 | DP15: Stichting VO2305 | DQ15: 20764.5 | DR15: 1902 | DS15: 598 | DT15: 944 | DU15: 46 | DV15: 42 | DW15: 23507 | DX15: 7 | DY15: 33 | DZ15: 20543.5 | EA15: 1902 | EB15: 598 | EC15: 10785 | ED15: 4088 | EF15: VO2305 | EG15: Stichting VO2305 | EH15: 20783 | EI15: 1797.5 | EJ15: 584 | EK15: 898 | EL15: 46 | EM15: 47 | EN15: 23507 | EO15: 7 | EP15: 33 | EQ15: 20615 | ER15: 1797.5 | ES15: 584 | ET15: 0 | EU15: 0
A16: VO2307 | B16: Stichting Regionaal Samenwerkingsverband VO Noord Oost Overijssel | C16: 4789 | D16: 615 | E16: 292 | F16: 186 | G16: 4 | H16: 13 | I16: 5078 | K16: VO2307 | L16: Stichting Regionaal Samenwerkingsverband VO Noord Oost Overijssel | M16: 4654 | N16: 655 | O16: 271 | P16: 172 | Q16: 3 | R16: 18 | S16: 1490.5 | T16: 4998 | U16: 113 | V16: 3 | W16: 18 | X16: 5 | Y16: 54 | Z16: 111 | AA16: 6 | AB16: 0 | AC16: 3 | AD16: 0 | AE16: 29 | AF16: 0 | AG16: 3 | AH16: 5 | AI16: 2 | AJ16: 4 | AK16: 6 | AL16: 0 | AM16: 3 | AN16: 0 | AO16: 0 | AP16: VO2307 | AQ16: Stichting Regionaal Samenwerkingsverband VO Noord Oost Overijssel | AR16: 4465 | AS16: 649 | AT16: 268 | AU16: 152 | AV16: 3 | AW16: 25 | AX16: 1434.5 | AY16: 4876 | AZ16: 93 | BA16: 3 | BB16: 25 | BC16: 5 | BD16: 54 | BE16: 116 | BF16: 8 | BG16: 0 | BH16: 3 | BI16: 0 | BJ16: 44 | BK16: 1 | BL16: 2 | BM16: 2 | BN16: 4 | BO16: 3 | BP16: 11 | BQ16: 0 | BR16: 3 | BU16: VO2307 | BV16: Stichting Regionaal Samenwerkingsverband VO Noord Oost Overijssel | BW16: 4318 | BX16: 648 | BY16: 280 | BZ16: 126 | CA16: 1 | CB16: 28 | CC16: 1361.5 | CD16: 4796 | CE16: 79 | CF16: 1 | CG16: 28 | CH16: 7 | CI16: 40 | CJ16: 114 | CK16: 3 | CL16: 2 | CM16: 4 | CN16: 7 | CO16: 38 | CP16: 0 | CQ16: 1 | CR16: 3 | CS16: 5 | CT16: 2 | CU16: 13 | CV16: 0 | CW16: 5 | CX16: 1 | CY16: 0 | DB16: VO2307 | DC16: Stichting Regionaal Samenwerkingsverband VO Noord Oost Overijssel | DD16: 4900 | DE16: 609 | DF16: 302 | DG16: 168 | DH16: 4 | DI16: 14 | DJ16: 5121 | DK16: 0 | DL16: 4 | DO16: VO2307 | DP16: Stichting Regionaal Samenwerkingsverband VO Noord Oost Overijssel | DQ16: 5028 | DR16: 568 | DS16: 300 | DT16: 147 | DU16: 9 | DV16: 9 | DW16: 5210 | DX16: 0 | DY16: 6 | DZ16: 5028 | EA16: 568 | EB16: 300 | EC16: 3102 | ED16: 2107 | EF16: VO2307 | EG16: Stichting Regionaal Samenwerkingsverband VO Noord Oost Overijssel | EH16: 5067 | EI16: 517 | EJ16: 301 | EK16: 150 | EL16: 11 | EM16: 10 | EN16: 5210 | EO16: 0 | EP16: 6 | EQ16: 5025 | ER16: 517 | ES16: 301 | ET16: 0 | EU16: 0
A17: VO2401 | B17: Stichting Leerlingzorg Voortgezet Onderwijs Almere | C17: 11147 | D17: 1607 | E17: 523 | F17: 528 | G17: 13 | H17: 28 | I17: 13322 | K17: VO2401 | L17: Stichting Leerlingzorg Voortgezet Onderwijs Almere | M17: 11026.5 | N17: 1563 | O17: 506 | P17: 530 | Q17: 14 | R17: 27 | S17: 3263.5 | T17: 13145 | U17: 380 | V17: 14 | W17: 27 | X17: 9 | Y17: 141 | Z17: 100 | AA17: 4 | AB17: 0 | AC17: 13 | AD17: 0 | AE17: 42 | AF17: 3 | AG17: 0 | AH17: 7 | AI17: 19 | AJ17: 17 | AK17: 13 | AL17: 4 | AM17: 4 | AN17: 0 | AO17: 0 | AP17: VO2401 | AQ17: Stichting Leerlingzorg Voortgezet Onderwijs Almere | AR17: 10831.5 | AS17: 1596 | AT17: 523 | AU17: 529 | AV17: 15 | AW17: 24 | AX17: 3270 | AY17: 13061 | AZ17: 377 | BA17: 15 | BB17: 24 | BC17: 6 | BD17: 146 | BE17: 99 | BF17: 1 | BG17: 0 | BH17: 26 | BI17: 0 | BJ17: 40 | BK17: 4 | BL17: 0 | BM17: 10 | BN17: 21 | BO17: 13 | BP17: 11 | BQ17: 4 | BR17: 4 | BU17: VO2401 | BV17: Stichting Leerlingzorg Voortgezet Onderwijs Almere | BW17: 10547 | BX17: 1626 | BY17: 551 | BZ17: 503 | CA17: 13 | CB17: 27 | CC17: 3024.5 | CD17: 12826 | CE17: 374 | CF17: 13 | CG17: 27 | CH17: 5 | CI17: 124 | CJ17: 100 | CK17: 3 | CL17: 0 | CM17: 20 | CN17: 0 | CO17: 36 | CP17: 2 | CQ17: 1 | CR17: 4 | CS17: 24 | CT17: 14 | CU17: 4 | CV17: 5 | CW17: 7 | CX17: 0 | CY17: 0 | DB17: VO2401 | DC17: Stichting Leerlingzorg Voortgezet Onderwijs Almere | DD17: 11356 | DE17: 1557 | DF17: 542 | DG17: 493 | DH17: 15 | DI17: 20 | DJ17: 13530.5 | DK17: 2 | DL17: 16 | DO17: VO2401 | DP17: Stichting Leerlingzorg Voortgezet Onderwijs Almere | DQ17: 11644 | DR17: 1421 | DS17: 556 | DT17: 464 | DU17: 15 | DV17: 25 | DW17: 13687 | DX17: 3 | DY17: 17 | DZ17: 11561 | EA17: 1421 | EB17: 556 | EC17: 7854 | ED17: 3857 | EF17: VO2401 | EG17: Stichting Leerlingzorg Voortgezet Onderwijs Almere | EH17: 11619.5 | EI17: 1309 | EJ17: 551 | EK17: 478 | EL17: 23 | EM17: 24 | EN17: 13687 | EO17: 3 | EP17: 17 | EQ17: 11543.5 | ER17: 1309 | ES17: 551 | ET17: 0 | EU17: 0
A18: VO2402 | B18: Stichting Aandacht+ | C18: 4113.5 | D18: 389 | E18: 116 | F18: 238 | G18: 2 | H18: 43 | I18: 4731 | K18: VO2402 | L18: Stichting Aandacht+ | M18: 4114.5 | N18: 371 | O18: 114 | P18: 225 | Q18: 2 | R18: 41 | S18: 1166.5 | T18: 4829 | U18: 159 | V18: 2 | W18: 41 | X18: 4 | Y18: 62 | Z18: 73 | AA18: 2 | AB18: 0 | AC18: 15 | AD18: 0 | AE18: 14 | AF18: 1 | AG18: 0 | AH18: 1 | AI18: 5 | AJ18: 9 | AK18: 12 | AL18: 3 | AM18: 3 | AN18: 0 | AO18: 0 | AP18: VO2402 | AQ18: Stichting Aandacht+ | AR18: 4064.5 | AS18: 355 | AT18: 106 | AU18: 207 | AV18: 4 | AW18: 36 | AX18: 1126.5 | AY18: 4763 | AZ18: 146 | BA18: 4 | BB18: 36 | BC18: 3 | BD18: 58 | BE18: 62 | BF18: 2 | BG18: 0 | BH18: 10 | BI18: 0 | BJ18: 10 | BK18: 1 | BL18: 0 | BM18: 0 | BN18: 4 | BO18: 6 | BP18: 6 | BQ18: 3 | BR18: 3 | BU18: VO2402 | BV18: Stichting Aandacht+ | BW18: 4093.5 | BX18: 319 | BY18: 106 | BZ18: 176 | CA18: 2 | CB18: 39 | CC18: 1094.5 | CD18: 4696 | CE18: 126 | CF18: 2 | CG18: 39 | CH18: 1 | CI18: 49 | CJ18: 54 | CK18: 3 | CL18: 0 | CM18: 10 | CN18: 0 | CO18: 16 | CP18: 0 | CQ18: 0 | CR18: 1 | CS18: 3 | CT18: 7 | CU18: 6 | CV18: 2 | CW18: 4 | CX18: 0 | CY18: 0 | DB18: VO2402 | DC18: Stichting Aandacht+ | DD18: 4224 | DE18: 375 | DF18: 128 | DG18: 209 | DH18: 7 | DI18: 40 | DJ18: 4954 | DK18: 4 | DL18: 8 | DO18: VO2402 | DP18: Stichting Aandacht+ | DQ18: 4255.5 | DR18: 368 | DS18: 147 | DT18: 203 | DU18: 7 | DV18: 38 | DW18: 4911 | DX18: 4 | DY18: 6 | DZ18: 4142.5 | EA18: 368 | EB18: 147 | EC18: 1884 | ED18: 1078 | EF18: VO2402 | EG18: Stichting Aandacht+ | EH18: 4260.5 | EI18: 314 | EJ18: 154 | EK18: 183 | EL18: 16 | EM18: 33 | EN18: 4911 | EO18: 4 | EP18: 6 | EQ18: 4156.5 | ER18: 314 | ES18: 154 | ET18: 0 | EU18: 0
A19: VO2403 | B19: Stichting Samenwerkingsverband VO Lelystad | C19: 3699.5 | D19: 451 | E19: 247 | F19: 308 | G19: 5 | H19: 21 | I19: 4590 | K19: VO2403 | L19: Stichting Samenwerkingsverband VO Lelystad | M19: 3594 | N19: 457 | O19: 229 | P19: 314 | Q19: 3 | R19: 20 | S19: 1090 | T19: 4436 | U19: 254 | V19: 3 | W19: 20 | X19: 6 | Y19: 54 | Z19: 71 | AA19: 2 | AB19: 0 | AC19: 4 | AD19: 0 | AE19: 28 | AF19: 2 | AG19: 0 | AH19: 2 | AI19: 18 | AJ19: 6 | AK19: 5 | AL19: 1 | AM19: 4 | AN19: 0 | AO19: 0 | AP19: VO2403 | AQ19: Stichting Samenwerkingsverband VO Lelystad | AR19: 3452.5 | AS19: 481 | AT19: 205 | AU19: 294 | AV19: 2 | AW19: 18 | AX19: 1052 | AY19: 4303 | AZ19: 237 | BA19: 2 | BB19: 18 | BC19: 4 | BD19: 53 | BE19: 67 | BF19: 3 | BG19: 0 | BH19: 8 | BI19: 0 | BJ19: 19 | BK19: 2 | BL19: 0 | BM19: 2 | BN19: 17 | BO19: 7 | BP19: 2 | BQ19: 2 | BR19: 4 | BU19: VO2403 | BV19: Stichting Samenwerkingsverband VO Lelystad | BW19: 3314 | BX19: 516 | BY19: 198 | BZ19: 279 | CA19: 2 | CB19: 20 | CC19: 1006 | CD19: 4202 | CE19: 221 | CF19: 2 | CG19: 20 | CH19: 2 | CI19: 56 | CJ19: 63 | CK19: 2 | CL19: 0 | CM19: 5 | CN19: 0 | CO19: 21 | CP19: 1 | CQ19: 0 | CR19: 3 | CS19: 11 | CT19: 5 | CU19: 1 | CV19: 4 | CW19: 2 | CX19: 0 | CY19: 0 | DB19: VO2403 | DC19: Stichting Samenwerkingsverband VO Lelystad | DD19: 3797.5 | DE19: 442 | DF19: 255 | DG19: 310 | DH19: 4 | DI19: 21 | DJ19: 4691.5 | DK19: 2 | DL19: 6 | DO19: VO2403 | DP19: Stichting Samenwerkingsverband VO Lelystad | DQ19: 3834.5 | DR19: 426 | DS19: 249 | DT19: 317 | DU19: 4 | DV19: 15 | DW19: 4763 | DX19: 2 | DY19: 4 | DZ19: 3834.5 | EA19: 426 | EB19: 249 | EC19: 2406 | ED19: 1645 | EF19: VO2403 | EG19: Stichting Samenwerkingsverband VO Lelystad | EH19: 3791.5 | EI19: 401 | EJ19: 235 | EK19: 321 | EL19: 5 | EM19: 13 | EN19: 4763 | EO19: 2 | EP19: 4 | EQ19: 3763.5 | ER19: 401 | ES19: 235 | ET19: 0 | EU19: 0
A20: VO2501 | B20: Vereniging Samenwerkingsverband Regio Zutphen | C20: 7445 | D20: 749 | E20: 420 | F20: 279 | G20: 10 | H20: 41 | I20: 6211 | K20: VO2501 | L20: Vereniging Samenwerkingsverband Regio Zutphen | M20: 7584.5 | N20: 630.5 | O20: 391 | P20: 285 | Q20: 6 | R20: 50 | S20: 1717.5 | T20: 6232 | U20: 187 | V20: 6 | W20: 50 | X20: 8 | Y20: 90 | Z20: 133 | AA20: 12 | AB20: 0 | AC20: 28 | AD20: 0 | AE20: 57 | AF20: 6 | AG20: 2 | AH20: 4 | AI20: 14 | AJ20: 13 | AK20: 17 | AL20: 2 | AM20: 4 | AN20: 0 | AO20: 0 | AP20: VO2501 | AQ20: Vereniging Samenwerkingsverband Regio Zutphen | AR20: 7352.5 | AS20: 753 | AT20: 354 | AU20: 282 | AV20: 4 | AW20: 44 | AX20: 1606 | AY20: 6140 | AZ20: 179 | BA20: 4 | BB20: 44 | BC20: 5 | BD20: 98 | BE20: 133 | BF20: 13 | BG20: 1 | BH20: 23 | BI20: 0 | BJ20: 52 | BK20: 4 | BL20: 3 | BM20: 5 | BN20: 17 | BO20: 8 | BP20: 15 | BQ20: 1 | BR20: 4 | BU20: VO2501 | BV20: Vereniging Samenwerkingsverband Regio Zutphen | BW20: 7129 | BX20: 744 | BY20: 314 | BZ20: 271 | CA20: 3 | CB20: 35 | CC20: 1534.5 | CD20: 6057 | CE20: 167 | CF20: 3 | CG20: 35 | CH20: 4 | CI20: 100 | CJ20: 108 | CK20: 12 | CL20: 2 | CM20: 23 | CN20: 1 | CO20: 51 | CP20: 4 | CQ20: 4 | CR20: 5 | CS20: 13 | CT20: 4 | CU20: 11 | CV20: 1 | CW20: 3 | CX20: 0 | CY20: 0 | DB20: VO2501 | DC20: Vereniging Samenwerkingsverband Regio Zutphen | DD20: 7436 | DE20: 718 | DF20: 465 | DG20: 277 | DH20: 6 | DI20: 42 | DJ20: 6182.5 | DK20: 1 | DL20: 10 | DO20: VO2501 | DP20: Vereniging Samenwerkingsverband Regio Zutphen | DQ20: 7354.5 | DR20: 710.5 | DS20: 454 | DT20: 298 | DU20: 9 | DV20: 30 | DW20: 6198 | DX20: 2 | DY20: 12 | DZ20: 7288.5 | EA20: 710.5 | EB20: 454 | EC20: 3870 | ED20: 3010 | EF20: VO2501 | EG20: Vereniging Samenwerkingsverband Regio Zutphen | EH20: 7282.5 | EI20: 645 | EJ20: 430 | EK20: 306 | EL20: 12 | EM20: 31 | EN20: 6198 | EO20: 2 | EP20: 12 | EQ20: 7225.5 | ER20: 645 | ES20: 430 | ET20: 0 | EU20: 0
A21: VO2502 | B21: SWV Slinge-Berkel | C21: 9036 | D21: 1078 | E21: 373 | F21: 622 | G21: 12 | H21: 65 | I21: 11844 | K21: VO2502 | L21: SWV Slinge-Berkel | M21: 9033 | N21: 1089 | O21: 366 | P21: 621 | Q21: 9 | R21: 54 | S21: 2513 | T21: 11852 | U21: 476 | V21: 9 | W21: 54 | X21: 8 | Y21: 137 | Z21: 136 | AA21: 8 | AB21: 0 | AC21: 11 | AD21: 0 | AE21: 63 | AF21: 5 | AG21: 1 | AH21: 7 | AI21: 5 | AJ21: 10 | AK21: 19 | AL21: 3 | AM21: 10 | AN21: 0 | AO21: 0 | AP21: VO2502 | AQ21: SWV Slinge-Berkel | AR21: 8949.5 | AS21: 1085 | AT21: 384 | AU21: 613 | AV21: 9 | AW21: 46 | AX21: 2429.5 | AY21: 11782 | AZ21: 462 | BA21: 9 | BB21: 46 | BC21: 10 | BD21: 141 | BE21: 127 | BF21: 10 | BG21: 1 | BH21: 11 | BI21: 0 | BJ21: 49 | BK21: 7 | BL21: 1 | BM21: 3 | BN21: 10 | BO21: 12 | BP21: 18 | BQ21: 4 | BR21: 10 | BU21: VO2502 | BV21: SWV Slinge-Berkel | BW21: =8942.5-58 -> 8884.5 | BX21: 1066 | BY21: 400 | BZ21: =530+58 -> 588 | CA21: 9 | CB21: 40 | CC21: 2393 | CD21: 11661 | CE21: 385 | CF21: 9 | CG21: 40 | CH21: 8 | CI21: 137 | CJ21: 110 | CK21: 13 | CL21: 1 | CM21: 11 | CN21: 1 | CO21: 35 | CP21: 5 | CQ21: 5 | CR21: 4 | CS21: 10 | CT21: 14 | CU21: 14 | CV21: 4 | CW21: 13 | CX21: 0 | CY21: 0 | DB21: VO2502 | DC21: SWV Slinge-Berkel | DD21: 9141.5 | DE21: 1133 | DF21: 379 | DG21: 494 | DH21: 15 | DI21: 58 | DJ21: 11971 | DK21: 2 | DL21: 11 | DO21: VO2502 | DP21: SWV Slinge-Berkel | DQ21: 9357.5 | DR21: 1078 | DS21: 419 | DT21: 438 | DU21: 23 | DV21: 36 | DW21: 12214 | DX21: 4 | DY21: 9 | DZ21: 9213.5 | EA21: 1078 | EB21: 419 | EC21: 6192 | ED21: 2849 | EF21: VO2502 | EG21: SWV Slinge-Berkel | EH21: 9089 | EI21: 1032 | EJ21: 407 | EK21: 427 | EL21: 18 | EM21: 37 | EN21: 12214 | EO21: 4 | EP21: 9 | EQ21: 9008 | ER21: 1032 | ES21: 407 | ET21: 0 | EU21: 0
A22: VO2503 | B22: Samenwerkingsverband VO Doetinchem e.o. | C22: 7878.5 | D22: 1140 | E22: 376 | F22: 372 | G22: 9 | H22: 38 | I22: 9789 | K22: VO2503 | L22: Samenwerkingsverband VO Doetinchem e.o. | M22: 7778 | N22: 1109 | O22: 364 | P22: 363 | Q22: 5 | R22: 43 | S22: 2088 | T22: 9700 | U22: 260 | V22: 5 | W22: 43 | X22: 8 | Y22: 95 | Z22: 157 | AA22: 8 | AB22: 0 | AC22: 13 | AD22: 0 | AE22: 31 | AF22: 5 | AG22: 1 | AH22: 5 | AI22: 15 | AJ22: 11 | AK22: 31 | AL22: 4 | AM22: 6 | AN22: 0 | AO22: 0 | AP22: VO2503 | AQ22: Samenwerkingsverband VO Doetinchem e.o. | AR22: 7615 | AS22: 1110.5 | AT22: 335 | AU22: 376 | AV22: 8 | AW22: 47 | AX22: 2025 | AY22: 9474 | AZ22: 271 | BA22: 8 | BB22: 47 | BC22: 14 | BD22: 91 | BE22: 148 | BF22: 6 | BG22: 2 | BH22: 19 | BI22: 1 | BJ22: 40 | BK22: 6 | BL22: 1 | BM22: 6 | BN22: 13 | BO22: 9 | BP22: 32 | BQ22: 2 | BR22: 6 | BU22: VO2503 | BV22: Samenwerkingsverband VO Doetinchem e.o. | BW22: 7589.5 | BX22: 1123.5 | BY22: 308 | BZ22: 372 | CA22: 6 | CB22: 49 | CC22: 2086.5 | CD22: 9406 | CE22: 262 | CF22: 6 | CG22: 49 | CH22: 14 | CI22: 96 | CJ22: 142 | CK22: 7 | CL22: 2 | CM22: 22 | CN22: 3 | CO22: 39 | CP22: 7 | CQ22: 1 | CR22: 3 | CS22: 14 | CT22: 12 | CU22: 18 | CV22: 2 | CW22: 10 | CX22: 0 | CY22: 0 | DB22: VO2503 | DC22: Samenwerkingsverband VO Doetinchem e.o. | DD22: 8060 | DE22: 1154.5 | DF22: 369 | DG22: 392 | DH22: 12 | DI22: 34 | DJ22: 9924 | DK22: 2 | DL22: 11 | DO22: VO2503 | DP22: Samenwerkingsverband VO Doetinchem e.o. | DQ22: 8069 | DR22: 1182.5 | DS22: 379 | DT22: 395 | DU22: 15 | DV22: 30 | DW22: 9898 | DX22: 3 | DY22: 11 | DZ22: 7997 | EA22: 1182.5 | EB22: 379 | EC22: 5418 | ED22: 2618 | EF22: VO2503 | EG22: Samenwerkingsverband VO Doetinchem e.o. | EH22: 8069.5 | EI22: 903 | EJ22: 374 | EK22: 425 | EL22: 14 | EM22: 30 | EN22: 9898 | EO22: 3 | EP22: 11 | EQ22: 8000.5 | ER22: 903 | ES22: 374 | ET22: 0 | EU22: 0
A23: VO2504 | B23: Stichting Samenwerkingsverband Passend Onderwijs V(S)O 25.04 | C23: 4665.5 | D23: 646 | E23: 225 | F23: 236 | G23: 8 | H23: 33 | I23: 6459 | K23: VO2504 | L23: Stichting Samenwerkingsverband Passend Onderwijs V(S)O 25.04 | M23: 4779.5 | N23: 639 | O23: 209 | P23: 222 | Q23: 12 | R23: 33 | S23: 1236.5 | T23: 6488 | U23: 143 | V23: 12 | W23: 33 | X23: 16 | Y23: 63 | Z23: 21 | AA23: 12 | AB23: 0 | AC23: 8 | AD23: 0 | AE23: 7 | AF23: 1 | AG23: 0 | AH23: 2 | AI23: 3 | AJ23: 24 | AK23: 6 | AL23: 3 | AM23: 2 | AN23: 0 | AO23: 0 | AP23: VO2504 | AQ23: Stichting Samenwerkingsverband Passend Onderwijs V(S)O 25.04 | AR23: 4801 | AS23: 602 | AT23: 214 | AU23: 197 | AV23: 12 | AW23: 34 | AX23: 1189 | AY23: 6459 | AZ23: 122 | BA23: 12 | BB23: 34 | BC23: 13 | BD23: 62 | BE23: 23 | BF23: 13 | BG23: 0 | BH23: 11 | BI23: 0 | BJ23: 8 | BK23: 0 | BL23: 0 | BM23: 1 | BN23: 1 | BO23: 22 | BP23: 4 | BQ23: 2 | BR23: 2 | BU23: VO2504 | BV23: Stichting Samenwerkingsverband Passend Onderwijs V(S)O 25.04 | BW23: 4798 | BX23: 581 | BY23: 204 | BZ23: 192 | CA23: 10 | CB23: 29 | CC23: 1176.5 | CD23: 6452 | CE23: 119 | CF23: 10 | CG23: 29 | CH23: 14 | CI23: 59 | CJ23: 22 | CK23: 15 | CL23: 0 | CM23: 7 | CN23: 0 | CO23: 10 | CP23: 1 | CQ23: 0 | CR23: 1 | CS23: 1 | CT23: 22 | CU23: 4 | CV23: 2 | CW23: 4 | CX23: 0 | CY23: 0 | DB23: VO2504 | DC23: Stichting Samenwerkingsverband Passend Onderwijs V(S)O 25.04 | DD23: 4583.5 | DE23: 650 | DF23: 246 | DG23: 225 | DH23: 10 | DI23: 26 | DJ23: 6419.5 | DK23: 3 | DL23: 23 | DO23: VO2504 | DP23: Stichting Samenwerkingsverband Passend Onderwijs V(S)O 25.04 | DQ23: 4423.5 | DR23: 621 | DS23: 228 | DT23: 219 | DU23: 8 | DV23: 13 | DW23: 6246 | DX23: 4 | DY23: 16 | DZ23: 4422.5 | EA23: 621 | EB23: 228 | EC23: 2388 | ED23: 1491 | EF23: VO2504 | EG23: Stichting Samenwerkingsverband Passend Onderwijs V(S)O 25.04 | EH23: 4380.5 | EI23: 398 | EJ23: 213 | EK23: 224 | EL23: 11 | EM23: 13 | EN23: 6246 | EO23: 4 | EP23: 16 | EQ23: 4380.5 | ER23: 398 | ES23: 213 | ET23: 0 | EU23: 0
A24: VO2505 | B24: Coöperatie SWV 25-05 U.A. | C24: 9662.5 | D24: 2179 | E24: 373 | F24: 761 | G24: 8 | H24: 68 | I24: 12147 | K24: VO2505 | L24: Coöperatie SWV 25-05 U.A. | M24: 9481 | N24: 2165.5 | O24: 366 | P24: 790 | Q24: 11 | R24: 57 | S24: 2956 | T24: 11912 | U24: 629 | V24: 11 | W24: 57 | X24: 7 | Y24: 154 | Z24: 152 | AA24: 14 | AB24: 0 | AC24: 21 | AD24: 0 | AE24: 62 | AF24: 8 | AG24: 0 | AH24: 11 | AI24: 0 | AJ24: 15 | AK24: 9 | AL24: 4 | AM24: 8 | AN24: 0 | AO24: 0 | AP24: VO2505 | AQ24: Coöperatie SWV 25-05 U.A. | AR24: 9530 | AS24: 1916 | AT24: 349 | AU24: 811 | AV24: 9 | AW24: 57 | AX24: 2911.5 | AY24: 11802 | AZ24: 650 | BA24: 9 | BB24: 57 | BC24: 11 | BD24: 150 | BE24: 166 | BF24: 17 | BG24: 0 | BH24: 21 | BI24: 1 | BJ24: 33 | BK24: 3 | BL24: 1 | BM24: 5 | BN24: 2 | BO24: 13 | BP24: 12 | BQ24: 5 | BR24: 8 | BU24: VO2505 | BV24: Coöperatie SWV 25-05 U.A. | BW24: 9552.5 | BX24: 1808 | BY24: 346 | BZ24: 735 | CA24: 8 | CB24: 48 | CC24: 2795 | CD24: 11664 | CE24: 596 | CF24: 8 | CG24: 48 | CH24: 7 | CI24: 132 | CJ24: 155 | CK24: 18 | CL24: 1 | CM24: 20 | CN24: 0 | CO24: 32 | CP24: 3 | CQ24: 1 | CR24: 3 | CS24: 4 | CT24: 12 | CU24: 10 | CV24: 5 | CW24: 6 | CX24: 0 | CY24: 1 | DB24: VO2505 | DC24: Coöperatie SWV 25-05 U.A. | DD24: 9823.5 | DE24: 2116 | DF24: 388 | DG24: 666 | DH24: 6 | DI24: 65 | DJ24: 12277.5 | DK24: 3 | DL24: 14 | DO24: VO2505 | DP24: Coöperatie SWV 25-05 U.A. | DQ24: 10142.5 | DR24: 1840.5 | DS24: 368 | DT24: 588 | DU24: 11 | DV24: 59 | DW24: 12257 | DX24: 1 | DY24: 11 | DZ24: 10083.5 | EA24: 1840.5 | EB24: 368 | EC24: 9390 | ED24: 2576 | EF24: VO2505 | EG24: Coöperatie SWV 25-05 U.A. | EH24: 10210 | EI24: 1565 | EJ24: 368 | EK24: 512 | EL24: 19 | EM24: 63 | EN24: 12257 | EO24: 1 | EP24: 11 | EQ24: 10150 | ER24: 1565 | ES24: 368 | ET24: 0 | EU24: 0
A25: VO2506 | B25: Stichting Samenwerkingsverband Passend Onderwijs V(S)O2506 | C25: 14157 | D25: 1768 | E25: 438 | F25: 702 | G25: 32 | H25: 72 | I25: 17731 | K25: VO2506 | L25: Stichting Samenwerkingsverband Passend Onderwijs V(S)O2506 | M25: 13944.5 | N25: 1674 | O25: 416 | P25: 688 | Q25: 32 | R25: 76 | S25: 3294.5 | T25: 17292 | U25: 537 | V25: 32 | W25: 76 | X25: 30 | Y25: 121 | Z25: 135 | AA25: 26 | AB25: 1 | AC25: 28 | AD25: 2 | AE25: 25 | AF25: 4 | AG25: 2 | AH25: 7 | AI25: 23 | AJ25: 67 | AK25: 37 | AL25: 9 | AM25: 12 | AN25: 0 | AO25: 0 | AP25: VO2506 | AQ25: Stichting Samenwerkingsverband Passend Onderwijs V(S)O2506 | AR25: 13932 | AS25: 1538 | AT25: 373 | AU25: 648 | AV25: 27 | AW25: 68 | AX25: 3161.5 | AY25: 17023 | AZ25: 495 | BA25: 27 | BB25: 68 | BC25: 25 | BD25: 128 | BE25: 129 | BF25: 30 | BG25: 1 | BH25: 24 | BI25: 1 | BJ25: 11 | BK25: 1 | BL25: 1 | BM25: 6 | BN25: 18 | BO25: 65 | BP25: 33 | BQ25: 8 | BR25: 12 | BU25: VO2506 | BV25: Stichting Samenwerkingsverband Passend Onderwijs V(S)O2506 | BW25: 13774 | BX25: 1502.5 | BY25: 373 | BZ25: 615 | CA25: 27 | CB25: 62 | CC25: 3030.5 | CD25: 16486 | CE25: 476 | CF25: 27 | CG25: 62 | CH25: 13 | CI25: 126 | CJ25: 119 | CK25: 34 | CL25: 0 | CM25: 28 | CN25: 1 | CO25: 20 | CP25: 4 | CQ25: 0 | CR25: 6 | CS25: 14 | CT25: 58 | CU25: 37 | CV25: 5 | CW25: 11 | CX25: 0 | CY25: 0 | DB25: VO2506 | DC25: Stichting Samenwerkingsverband Passend Onderwijs V(S)O2506 | DD25: 14507.5 | DE25: 1766.5 | DF25: 459 | DG25: 694 | DH25: 22 | DI25: 72 | DJ25: 18070.5 | DK25: 9 | DL25: 64 | DO25: VO2506 | DP25: Stichting Samenwerkingsverband Passend Onderwijs V(S)O2506 | DQ25: 14813 | DR25: 1895 | DS25: 449 | DT25: 606 | DU25: 30 | DV25: 69 | DW25: 18486 | DX25: 8 | DY25: 57 | DZ25: 14556 | EA25: 1895 | EB25: 449 | EC25: 11079 | ED25: 3178 | EF25: VO2506 | EG25: Stichting Samenwerkingsverband Passend Onderwijs V(S)O2506 | EH25: 14955.5 | EI25: 1846.5 | EJ25: 454 | EK25: 554 | EL25: 42 | EM25: 61 | EN25: 18486 | EO25: 8 | EP25: 57 | EQ25: 14738.5 | ER25: 1846.5 | ES25: 454 | ET25: 0 | EU25: 0
A26: VO2507 | B26: Stichting Samenwerkingsverband V(S)O 2507 Nijmegen e.o. | C26: 24170.5 | D26: 3571.5 | E26: 495 | F26: 770 | G26: 62 | H26: 143 | I26: 26525 | K26: VO2507 | L26: Stichting Samenwerkingsverband V(S)O 2507 Nijmegen e.o. | M26: 24071.5 | N26: 3520 | O26: 533 | P26: 740 | Q26: 68 | R26: 149 | S26: 5789 | T26: 26527 | U26: 526 | V26: 68 | W26: 149 | X26: 11 | Y26: 203 | Z26: 269 | AA26: 40 | AB26: 0 | AC26: 71 | AD26: 0 | AE26: 57 | AF26: 7 | AG26: 0 | AH26: 9 | AI26: 15 | AJ26: 94 | AK26: 111 | AL26: 10 | AM26: 18 | AN26: 1 | AO26: 0 | AP26: VO2507 | AQ26: Stichting Samenwerkingsverband V(S)O 2507 Nijmegen e.o. | AR26: 23894 | AS26: 3507.5 | AT26: 498 | AU26: 739 | AV26: 72 | AW26: 139 | AX26: 5716 | AY26: 26420 | AZ26: 533 | BA26: 72 | BB26: 139 | BC26: 16 | BD26: 190 | BE26: 265 | BF26: 46 | BG26: 0 | BH26: 67 | BI26: 2 | BJ26: 61 | BK26: 13 | BL26: 0 | BM26: 10 | BN26: 15 | BO26: 79 | BP26: 103 | BQ26: 12 | BR26: 18 | BU26: VO2507 | BV26: Stichting Samenwerkingsverband V(S)O 2507 Nijmegen e.o. | BW26: 23424.5 | BX26: 3294.5 | BY26: 508 | BZ26: 709 | CA26: 92 | CB26: 127 | CC26: 5596 | CD26: 26093 | CE26: 502 | CF26: 92 | CG26: 127 | CH26: 18 | CI26: 189 | CJ26: 242 | CK26: 46 | CL26: 0 | CM26: 69 | CN26: 4 | CO26: 73 | CP26: 11 | CQ26: 0 | CR26: 7 | CS26: 18 | CT26: 75 | CU26: 97 | CV26: 13 | CW26: 20 | CX26: 1 | CY26: 1 | DB26: VO2507 | DC26: Stichting Samenwerkingsverband V(S)O 2507 Nijmegen e.o. | DD26: 24267.5 | DE26: 3684.5 | DF26: 463 | DG26: 730 | DH26: 56 | DI26: 124 | DJ26: 26452 | DK26: 10 | DL26: 98 | DO26: VO2507 | DP26: Stichting Samenwerkingsverband V(S)O 2507 Nijmegen e.o. | DQ26: 24295.5 | DR26: 3607 | DS26: 471 | DT26: 686 | DU26: 45 | DV26: 116 | DW26: 26386 | DX26: 15 | DY26: 91 | DZ26: 24095.5 | EA26: 3607 | EB26: 471 | EC26: 21012 | ED26: 3045 | EF26: VO2507 | EG26: Stichting Samenwerkingsverband V(S)O 2507 Nijmegen e.o. | EH26: 24234.5 | EI26: 3502 | EJ26: 435 | EK26: 709 | EL26: 48 | EM26: 102 | EN26: 26386 | EO26: 15 | EP26: 91 | EQ26: 23922.5 | ER26: 3502 | ES26: 435 | ET26: 0 | EU26: 0
A27: VO2508 | B27: Stichting Samenwerkingsverband Rivierenland | C27: 7623.5 | D27: 1178 | E27: 273 | F27: 306 | G27: 9 | H27: 44 | I27: 9708 | K27: VO2508 | L27: Stichting Samenwerkingsverband Rivierenland | M27: 7304.5 | N27: 1243 | O27: 256 | P27: 298 | Q27: 12 | R27: 42 | S27: 1927 | T27: 9571 | U27: 204 | V27: 12 | W27: 42 | X27: 8 | Y27: 86 | Z27: 73 | AA27: 7 | AB27: 0 | AC27: 6 | AD27: 0 | AE27: 16 | AF27: 1 | AG27: 0 | AH27: 1 | AI27: 8 | AJ27: 19 | AK27: 39 | AL27: 6 | AM27: 7 | AN27: 0 | AO27: 0 | AP27: VO2508 | AQ27: Stichting Samenwerkingsverband Rivierenland | AR27: 6974 | AS27: 1264 | AT27: 230 | AU27: 294 | AV27: 10 | AW27: 39 | AX27: 1885 | AY27: 9277 | AZ27: 200 | BA27: 10 | BB27: 39 | BC27: 9 | BD27: 85 | BE27: 64 | BF27: 4 | BG27: 0 | BH27: 12 | BI27: 0 | BJ27: 13 | BK27: 4 | BL27: 0 | BM27: 0 | BN27: 8 | BO27: 17 | BP27: 29 | BQ27: 4 | BR27: 7 | BU27: VO2508 | BV27: Stichting Samenwerkingsverband Rivierenland | BW27: 6796.5 | BX27: 1238.5 | BY27: 227 | BZ27: 288 | CA27: 9 | CB27: 36 | CC27: 1892 | CD27: 8990 | CE27: 189 | CF27: 9 | CG27: 36 | CH27: 8 | CI27: 91 | CJ27: 61 | CK27: 5 | CL27: 0 | CM27: 10 | CN27: 0 | CO27: 9 | CP27: 4 | CQ27: 0 | CR27: 1 | CS27: 7 | CT27: 20 | CU27: 40 | CV27: 3 | CW27: 8 | CX27: 0 | CY27: 0 | DB27: VO2508 | DC27: Stichting Samenwerkingsverband Rivierenland | DD27: 7984 | DE27: 1173.5 | DF27: 267 | DG27: 293 | DH27: 14 | DI27: 37 | DJ27: 9965.5 | DK27: 9 | DL27: 22 | DO27: VO2508 | DP27: Stichting Samenwerkingsverband Rivierenland | DQ27: 8008 | DR27: 1137 | DS27: 277 | DT27: 304 | DU27: 31 | DV27: 26 | DW27: 9868 | DX27: 10 | DY27: 21 | DZ27: 7980 | EA27: 1137 | EB27: 277 | EC27: 6144 | ED27: 1848 | EF27: VO2508 | EG27: Stichting Samenwerkingsverband Rivierenland | EH27: 8017 | EI27: 1024 | EJ27: 264 | EK27: 274 | EL27: 38 | EM27: 32 | EN27: 9868 | EO27: 10 | EP27: 21 | EQ27: 7982 | ER27: 1024 | ES27: 264 | ET27: 0 | EU27: 0
A28: VO2509 | B28: Stichting Leerlingenzorg NW-Veluwe | C28: 11055.5 | D28: 1124 | E28: 446 | F28: 656 | G28: 13 | H28: 50 | I28: 12725 | K28: VO2509 | L28: Stichting Leerlingenzorg NW-Veluwe | M28: 10839.5 | N28: 1069 | O28: 438 | P28: 687 | Q28: 11 | R28: 39 | S28: 2930 | T28: 12526 | U28: 572 | V28: 11 | W28: 39 | X28: 6 | Y28: 109 | Z28: 167 | AA28: 16 | AB28: 0 | AC28: 14 | AD28: 0 | AE28: 38 | AF28: 5 | AG28: 2 | AH28: 5 | AI28: 9 | AJ28: 7 | AK28: 21 | AL28: 5 | AM28: 4 | AN28: 0 | AO28: 0 | AP28: VO2509 | AQ28: Stichting Leerlingenzorg NW-Veluwe | AR28: 10724.5 | AS28: 1040 | AT28: 415 | AU28: 730 | AV28: 12 | AW28: 38 | AX28: 2953.5 | AY28: 12419 | AZ28: 621 | BA28: 12 | BB28: 38 | BC28: 5 | BD28: 104 | BE28: 162 | BF28: 17 | BG28: 0 | BH28: 17 | BI28: 0 | BJ28: 34 | BK28: 5 | BL28: 2 | BM28: 3 | BN28: 13 | BO28: 7 | BP28: 14 | BQ28: 5 | BR28: 4 | BU28: VO2509 | BV28: Stichting Leerlingenzorg NW-Veluwe | BW28: 10418 | BX28: 975 | BY28: 415 | BZ28: 687 | CA28: 7 | CB28: 44 | CC28: 2892 | CD28: 12178 | CE28: 589 | CF28: 7 | CG28: 44 | CH28: 4 | CI28: 94 | CJ28: 141 | CK28: 16 | CL28: 0 | CM28: 13 | CN28: 0 | CO28: 35 | CP28: 3 | CQ28: 0 | CR28: 2 | CS28: 6 | CT28: 9 | CU28: 15 | CV28: 4 | CW28: 2 | CX28: 0 | CY28: 0 | DB28: VO2509 | DC28: Stichting Leerlingenzorg NW-Veluwe | DD28: 11315 | DE28: 1130 | DF28: 432 | DG28: 551 | DH28: 10 | DI28: 49 | DJ28: 12735.5 | DK28: 5 | DL28: 9 | DO28: VO2509 | DP28: Stichting Leerlingenzorg NW-Veluwe | DQ28: 11600 | DR28: 1118 | DS28: 438 | DT28: 455 | DU28: 9 | DV28: 49 | DW28: 12974 | DX28: 7 | DY28: 10 | DZ28: 11472 | EA28: 1118 | EB28: 438 | EC28: 6396 | ED28: 3066 | EF28: VO2509 | EG28: Stichting Leerlingenzorg NW-Veluwe | EH28: 11497.5 | EI28: 1066 | EJ28: 438 | EK28: 367 | EL28: 11 | EM28: 65 | EN28: 12974 | EO28: 7 | EP28: 10 | EQ28: 11400.5 | ER28: 1066 | ES28: 438 | ET28: 0 | EU28: 0
A29: VO2510 | B29: Stichting Samenwerkingsverband Passend Onderwijs VO Ede, Wageningen en Rhenen | C29: 7015.5 | D29: 764.5 | E29: 270 | F29: 321 | G29: 6 | H29: 43 | I29: 9302 | K29: VO2510 | L29: Stichting Samenwerkingsverband Passend Onderwijs VO Ede, Wageningen en Rhenen | M29: 6895 | N29: 707.5 | O29: 269 | P29: 275 | Q29: 7 | R29: 39 | S29: 1605 | T29: 9150 | U29: 195 | V29: 7 | W29: 39 | X29: 13 | Y29: 67 | Z29: 56 | AA29: 10 | AB29: 1 | AC29: 10 | AD29: 2 | AE29: 13 | AF29: 2 | AG29: 1 | AH29: 1 | AI29: 3 | AJ29: 20 | AK29: 12 | AL29: 4 | AM29: 5 | AN29: 0 | AO29: 0 | AP29: VO2510 | AQ29: Stichting Samenwerkingsverband Passend Onderwijs VO Ede, Wageningen en Rhenen | AR29: 6505.5 | AS29: 700 | AT29: 287 | AU29: 288 | AV29: 3 | AW29: 31 | AX29: 1370 | AY29: 8913 | AZ29: 195 | BA29: 3 | BB29: 31 | BC29: 14 | BD29: 79 | BE29: 61 | BF29: 11 | BG29: 1 | BH29: 19 | BI29: 0 | BJ29: 18 | BK29: 1 | BL29: 1 | BM29: 2 | BN29: 2 | BO29: 16 | BP29: 12 | BQ29: 6 | BR29: 5 | BU29: VO2510 | BV29: Stichting Samenwerkingsverband Passend Onderwijs VO Ede, Wageningen en Rhenen | BW29: 6370 | BX29: 675.5 | BY29: 286 | BZ29: 268 | CA29: 6 | CB29: 29 | CC29: 1328 | CD29: 8787 | CE29: 181 | CF29: 6 | CG29: 29 | CH29: 11 | CI29: 76 | CJ29: 56 | CK29: 11 | CL29: 0 | CM29: 12 | CN29: 1 | CO29: 10 | CP29: 0 | CQ29: 1 | CR29: 2 | CS29: 3 | CT29: 19 | CU29: 12 | CV29: 7 | CW29: 5 | CX29: 0 | CY29: 0 | DB29: VO2510 | DC29: Stichting Samenwerkingsverband Passend Onderwijs VO Ede, Wageningen en Rhenen | DD29: 7171 | DE29: 811.5 | DF29: 308 | DG29: 307 | DH29: 2 | DI29: 39 | DJ29: 9562 | DK29: 5 | DL29: 20 | DO29: VO2510 | DP29: Stichting Samenwerkingsverband Passend Onderwijs VO Ede, Wageningen en Rhenen | DQ29: 7378 | DR29: 643 | DS29: 289 | DT29: 303 | DU29: 17 | DV29: 23 | DW29: 9623 | DX29: 3 | DY29: 20 | DZ29: 7336 | EA29: 643 | EB29: 289 | EC29: 2634 | ED29: 1988 | EF29: VO2510 | EG29: Stichting Samenwerkingsverband Passend Onderwijs VO Ede, Wageningen en Rhenen | EH29: 7273.5 | EI29: 439 | EJ29: 284 | EK29: 320 | EL29: 17 | EM29: 25 | EN29: 9623 | EO29: 3 | EP29: 20 | EQ29: 7228.5 | ER29: 439 | ES29: 284 | ET29: 0 | EU29: 0
A30: VO2511 | B30: Stichting Samenwerkingsverband Passend Voortgezet Onderwijs Barneveld-Veenendaal | C30: 8810 | D30: 1662 | E30: 256 | F30: 239 | G30: 14 | H30: 27 | I30: 7738 | K30: VO2511 | L30: Stichting Samenwerkingsverband Passend Voortgezet Onderwijs Barneveld-Veenendaal | M30: 8791.5 | N30: 1561 | O30: 256 | P30: 243 | Q30: 11 | R30: 25 | S30: 2173.5 | T30: 7609 | U30: 184 | V30: 11 | W30: 25 | X30: 5 | Y30: 54 | Z30: 114 | AA30: 7 | AB30: 0 | AC30: 18 | AD30: 0 | AE30: 40 | AF30: 5 | AG30: 0 | AH30: 4 | AI30: 17 | AJ30: 4 | AK30: 20 | AL30: 8 | AM30: 4 | AN30: 0 | AO30: 0 | AP30: VO2511 | AQ30: Stichting Samenwerkingsverband Passend Voortgezet Onderwijs Barneveld-Veenendaal | AR30: 8925 | AS30: 1427 | AT30: 254 | AU30: 219 | AV30: 9 | AW30: 22 | AX30: 2306 | AY30: 7515 | AZ30: 161 | BA30: 9 | BB30: 22 | BC30: 9 | BD30: 49 | BE30: 98 | BF30: 12 | BG30: 0 | BH30: 10 | BI30: 0 | BJ30: 29 | BK30: 3 | BL30: 0 | BM30: 6 | BN30: 17 | BO30: 5 | BP30: 20 | BQ30: 9 | BR30: 4 | BU30: VO2511 | BV30: Stichting Samenwerkingsverband Passend Voortgezet Onderwijs Barneveld-Veenendaal | BW30: 9022 | BX30: 1223 | BY30: 232 | BZ30: 204 | CA30: 9 | CB30: 15 | CC30: 2198 | CD30: 7324 | CE30: 146 | CF30: 9 | CG30: 15 | CH30: 10 | CI30: 48 | CJ30: 85 | CK30: 9 | CL30: 0 | CM30: 13 | CN30: 0 | CO30: 17 | CP30: 3 | CQ30: 0 | CR30: 5 | CS30: 15 | CT30: 4 | CU30: 22 | CV30: 9 | CW30: 4 | CX30: 0 | CY30: 0 | DB30: VO2511 | DC30: Stichting Samenwerkingsverband Passend Voortgezet Onderwijs Barneveld-Veenendaal | DD30: 8862.5 | DE30: 1638 | DF30: 263 | DG30: 268 | DH30: 8 | DI30: 23 | DJ30: 7783.5 | DK30: 6 | DL30: 6 | DO30: VO2511 | DP30: Stichting Samenwerkingsverband Passend Voortgezet Onderwijs Barneveld-Veenendaal | DQ30: 8917 | DR30: 1536 | DS30: 294 | DT30: 262 | DU30: 6 | DV30: 14 | DW30: 7744 | DX30: 4 | DY30: 9 | DZ30: 8916 | EA30: 1536 | EB30: 294 | EC30: 8724 | ED30: 2009 | EF30: VO2511 | EG30: Stichting Samenwerkingsverband Passend Voortgezet Onderwijs Barneveld-Veenendaal | EH30: 8848 | EI30: 1454 | EJ30: 287 | EK30: 259 | EL30: 11 | EM30: 11 | EN30: 7744 | EO30: 4 | EP30: 9 | EQ30: 8825 | ER30: 1454 | ES30: 287 | ET30: 0 | EU30: 0
A31: VO2601 | B31: Stichting SWV Utrecht/ Stichtse Vecht VO | C31: 15081 | D31: 1148 | E31: 379 | F31: 477 | G31: 17 | H31: 64 | I31: 18436 | K31: VO2601 | L31: Stichting SWV Utrecht/ Stichtse Vecht VO | M31: 14828 | N31: 1161 | O31: 349 | P31: 459 | Q31: 17 | R31: 54 | S31: 2654 | T31: 17871 | U31: 292 | V31: 17 | W31: 54 | X31: 22 | Y31: 145 | Z31: 156 | AA31: 12 | AB31: 0 | AC31: 24 | AD31: 0 | AE31: 8 | AF31: 0 | AG31: 0 | AH31: 2 | AI31: 5 | AJ31: 105 | AK31: 57 | AL31: 8 | AM31: 4 | AN31: 0 | AO31: 0 | AP31: VO2601 | AQ31: Stichting SWV Utrecht/ Stichtse Vecht VO | AR31: 14326 | AS31: 1141 | AT31: 341 | AU31: 484 | AV31: 12 | AW31: 45 | AX31: 2591 | AY31: 17109 | AZ31: 318 | BA31: 12 | BB31: 45 | BC31: 21 | BD31: 145 | BE31: 156 | BF31: 12 | BG31: 0 | BH31: 23 | BI31: 0 | BJ31: 8 | BK31: 0 | BL31: 0 | BM31: 1 | BN31: 5 | BO31: 103 | BP31: 65 | BQ31: 8 | BR31: 4 | BU31: VO2601 | BV31: Stichting SWV Utrecht/ Stichtse Vecht VO | BW31: 13832 | BX31: 1165 | BY31: 324 | BZ31: 490 | CA31: 9 | CB31: 54 | CC31: 2500 | CD31: 16507 | CE31: 329 | CF31: 9 | CG31: 54 | CH31: 15 | CI31: 146 | CJ31: 115 | CK31: 12 | CL31: 0 | CM31: 19 | CN31: 0 | CO31: 7 | CP31: 0 | CQ31: 0 | CR31: 0 | CS31: 4 | CT31: 88 | CU31: 66 | CV31: 9 | CW31: 6 | CX31: 0 | CY31: 0 | DB31: VO2601 | DC31: Stichting SWV Utrecht/ Stichtse Vecht VO | DD31: 15818.5 | DE31: 1184.5 | DF31: 406 | DG31: 493 | DH31: 24 | DI31: 62 | DJ31: 19368 | DK31: 8 | DL31: 81 | DO31: VO2601 | DP31: Stichting SWV Utrecht/ Stichtse Vecht VO | DQ31: 16851.5 | DR31: 779 | DS31: 407 | DT31: 509 | DU31: 28 | DV31: 71 | DW31: 20058 | DX31: 6 | DY31: 68 | DZ31: 16552.5 | EA31: 779 | EB31: 407 | EC31: 2973 | ED31: 2765 | EF31: VO2601 | EG31: Stichting SWV Utrecht/ Stichtse Vecht VO | EH31: 17912 | EI31: 495.5 | EJ31: 395 | EK31: 487 | EL31: 32 | EM31: 64 | EN31: 20058 | EO31: 6 | EP31: 68 | EQ31: 17619 | ER31: 495.5 | ES31: 395 | ET31: 0 | EU31: 0
A32: VO2602 | B32: Stichting Samenwerkingsverband V(S)O Eemland | C32: 16346.5 | D32: 1164 | E32: 484 | F32: 527 | G32: 17 | H32: 60 | I32: 18387 | K32: VO2602 | L32: Stichting Samenwerkingsverband V(S)O Eemland | M32: 15938.5 | N32: 1175.5 | O32: 449 | P32: 513 | Q32: 18 | R32: 56 | S32: 3050.5 | T32: 17943 | U32: 389 | V32: 18 | W32: 56 | X32: 10 | Y32: 114 | Z32: 115 | AA32: 8 | AB32: 0 | AC32: 15 | AD32: 0 | AE32: 28 | AF32: 3 | AG32: 0 | AH32: 2 | AI32: 4 | AJ32: 36 | AK32: 61 | AL32: 6 | AM32: 7 | AN32: 0 | AO32: 0 | AP32: VO2602 | AQ32: Stichting Samenwerkingsverband V(S)O Eemland | AR32: 15708.5 | AS32: 1113 | AT32: 454 | AU32: 508 | AV32: 15 | AW32: 47 | AX32: 2950 | AY32: 17534 | AZ32: 378 | BA32: 15 | BB32: 47 | BC32: 9 | BD32: 121 | BE32: 115 | BF32: 8 | BG32: 0 | BH32: 15 | BI32: 0 | BJ32: 28 | BK32: 3 | BL32: 0 | BM32: 2 | BN32: 4 | BO32: 38 | BP32: 61 | BQ32: 6 | BR32: 7 | BU32: VO2602 | BV32: Stichting Samenwerkingsverband V(S)O Eemland | BW32: 15564.5 | BX32: 1056 | BY32: 455 | BZ32: 505 | CA32: 15 | CB32: 49 | CC32: 2879.5 | CD32: 17229 | CE32: 368 | CF32: 15 | CG32: 49 | CH32: 8 | CI32: 129 | CJ32: 115 | CK32: 8 | CL32: 0 | CM32: 14 | CN32: 0 | CO32: 28 | CP32: 3 | CQ32: 0 | CR32: 1 | CS32: 4 | CT32: 38 | CU32: 57 | CV32: 5 | CW32: 7 | CX32: 0 | CY32: 0 | DB32: VO2602 | DC32: Stichting Samenwerkingsverband V(S)O Eemland | DD32: 16552 | DE32: 1164 | DF32: 490 | DG32: 487 | DH32: 20 | DI32: 65 | DJ32: 18686 | DK32: 8 | DL32: 31 | DO32: VO2602 | DP32: Stichting Samenwerkingsverband V(S)O Eemland | DQ32: 16785 | DR32: 1191 | DS32: 495 | DT32: 474 | DU32: 21 | DV32: 62 | DW32: 19031 | DX32: 9 | DY32: 32 | DZ32: 16611 | EA32: 1191 | EB32: 495 | EC32: 6516 | ED32: 3339 | EF32: VO2602 | EG32: Stichting Samenwerkingsverband V(S)O Eemland | EH32: 16573 | EI32: 1086 | EJ32: 477 | EK32: 481 | EL32: 18 | EM32: 76 | EN32: 19031 | EO32: 9 | EP32: 32 | EQ32: 16461 | ER32: 1086 | ES32: 477 | ET32: 0 | EU32: 0
A33: VO2603 | B33: Samenwerkingsverband Voortgezet Onderwijs Zuidoost Utrecht | C33: 11996.5 | D33: 732 | E33: 213 | F33: 380 | G33: 8 | H33: 54 | I33: 12670 | K33: VO2603 | L33: Samenwerkingsverband Voortgezet Onderwijs Zuidoost Utrecht | M33: 11612.5 | N33: 735 | O33: 197 | P33: 418 | Q33: 10 | R33: 54 | S33: 1952.5 | T33: 12258 | U33: 331 | V33: 10 | W33: 54 | X33: 9 | Y33: 78 | Z33: 112 | AA33: 7 | AB33: 0 | AC33: 18 | AD33: 0 | AE33: 25 | AF33: 0 | AG33: 0 | AH33: 4 | AI33: 14 | AJ33: 33 | AK33: 30 | AL33: 19 | AM33: 7 | AN33: 0 | AO33: 1 | AP33: VO2603 | AQ33: Samenwerkingsverband Voortgezet Onderwijs Zuidoost Utrecht | AR33: 11398 | AS33: 720 | AT33: 199 | AU33: 415 | AV33: 12 | AW33: 53 | AX33: 1959.5 | AY33: 12100 | AZ33: 337 | BA33: 12 | BB33: 53 | BC33: 9 | BD33: 69 | BE33: 105 | BF33: 6 | BG33: 0 | BH33: 14 | BI33: 0 | BJ33: 21 | BK33: 1 | BL33: 0 | BM33: 4 | BN33: 20 | BO33: 33 | BP33: 26 | BQ33: 16 | BR33: 7 | BU33: VO2603 | BV33: Samenwerkingsverband Voortgezet Onderwijs Zuidoost Utrecht | BW33: 11216 | BX33: 703 | BY33: 202 | BZ33: 425 | CA33: 16 | CB33: 57 | CC33: 1961.5 | CD33: 11776 | CE33: 345 | CF33: 16 | CG33: 57 | CH33: 8 | CI33: 72 | CJ33: 100 | CK33: 3 | CL33: 0 | CM33: 14 | CN33: 0 | CO33: 14 | CP33: 0 | CQ33: 0 | CR33: 2 | CS33: 22 | CT33: 30 | CU33: 38 | CV33: 13 | CW33: 6 | CX33: 0 | CY33: 0 | DB33: VO2603 | DC33: Samenwerkingsverband Voortgezet Onderwijs Zuidoost Utrecht | DD33: 12384.5 | DE33: 731 | DF33: 215 | DG33: 401 | DH33: 13 | DI33: 40 | DJ33: 12978 | DK33: 16 | DL33: 32 | DO33: VO2603 | DP33: Samenwerkingsverband Voortgezet Onderwijs Zuidoost Utrecht | DQ33: 12341.5 | DR33: 716 | DS33: 218 | DT33: 388 | DU33: 27 | DV33: 22 | DW33: 12908 | DX33: 18 | DY33: 24 | DZ33: 12293.5 | EA33: 716 | EB33: 218 | EC33: 3624 | ED33: 1477 | EF33: VO2603 | EG33: Samenwerkingsverband Voortgezet Onderwijs Zuidoost Utrecht | EH33: 12221.5 | EI33: 604 | EJ33: 211 | EK33: 330 | EL33: 47 | EM33: 22 | EN33: 12908 | EO33: 18 | EP33: 24 | EQ33: 12174.5 | ER33: 604 | ES33: 211 | ET33: 0 | EU33: 0
A34: VO2604 | B34: Samenwerkingsverband VO Regio Utrecht West | C34: 7355 | D34: 523 | E34: 197 | F34: 142 | G34: 4 | H34: 18 | I34: 7697 | K34: VO2604 | L34: Samenwerkingsverband VO Regio Utrecht West | M34: 7236 | N34: 510 | O34: 181 | P34: 135 | Q34: 5 | R34: 18 | S34: 1828.5 | T34: 7633 | U34: 81 | V34: 5 | W34: 18 | X34: 3 | Y34: 51 | Z34: 86 | AA34: 5 | AB34: 0 | AC34: 10 | AD34: 1 | AE34: 20 | AF34: 3 | AG34: 0 | AH34: 6 | AI34: 5 | AJ34: 24 | AK34: 26 | AL34: 2 | AM34: 1 | AN34: 0 | AO34: 2 | AP34: VO2604 | AQ34: Samenwerkingsverband VO Regio Utrecht West | AR34: 7054 | AS34: 499 | AT34: 169 | AU34: 119 | AV34: 8 | AW34: 20 | AX34: 1757.5 | AY34: 7399 | AZ34: 75 | BA34: 8 | BB34: 20 | BC34: 1 | BD34: 43 | BE34: 76 | BF34: 5 | BG34: 0 | BH34: 11 | BI34: 0 | BJ34: 18 | BK34: 5 | BL34: 0 | BM34: 1 | BN34: 7 | BO34: 22 | BP34: 20 | BQ34: 2 | BR34: 1 | BU34: VO2604 | BV34: Samenwerkingsverband VO Regio Utrecht West | BW34: 7108 | BX34: 538 | BY34: 168 | BZ34: 130 | CA34: 8 | CB34: 20 | CC34: 1845 | CD34: 7350 | CE34: 81 | CF34: 8 | CG34: 20 | CH34: 2 | CI34: 47 | CJ34: 64 | CK34: 5 | CL34: 0 | CM34: 11 | CN34: 0 | CO34: 15 | CP34: 2 | CQ34: 0 | CR34: 0 | CS34: 8 | CT34: 20 | CU34: 28 | CV34: 2 | CW34: 3 | CX34: 0 | CY34: 0 | DB34: VO2604 | DC34: Samenwerkingsverband VO Regio Utrecht West | DD34: 7506 | DE34: 516 | DF34: 205 | DG34: 146 | DH34: 6 | DI34: 16 | DJ34: 7747 | DK34: 2 | DL34: 26 | DO34: VO2604 | DP34: Samenwerkingsverband VO Regio Utrecht West | DQ34: 7477 | DR34: 517 | DS34: 227 | DT34: 154 | DU34: 14 | DV34: 17 | DW34: 7763 | DX34: 2 | DY34: 19 | DZ34: 7477 | EA34: 517 | EB34: 227 | EC34: 3000 | ED34: 1708 | EF34: VO2604 | EG34: Samenwerkingsverband VO Regio Utrecht West | EH34: 7252.5 | EI34: 500 | EJ34: 244 | EK34: 140 | EL34: 14 | EM34: 15 | EN34: 7763 | EO34: 2 | EP34: 19 | EQ34: 7252.5 | ER34: 500 | ES34: 244 | ET34: 0 | EU34: 0
A35: VO2605 | B35: Samenwerkingsverband VO Zuid-Utrecht | C35: 9356 | D35: 1200 | E35: 178 | F35: 291 | G35: 7 | H35: 36 | I35: 11518 | K35: VO2605 | L35: Samenwerkingsverband VO Zuid-Utrecht | M35: 9081.5 | N35: 1164 | O35: 192 | P35: 300 | Q35: 11 | R35: 31 | S35: 2149 | T35: 11114 | U35: 193 | V35: 11 | W35: 31 | X35: 15 | Y35: 92 | Z35: 97 | AA35: 9 | AB35: 0 | AC35: 10 | AD35: 0 | AE35: 24 | AF35: 1 | AG35: 0 | AH35: 3 | AI35: 0 | AJ35: 47 | AK35: 28 | AL35: 11 | AM35: 8 | AN35: 0 | AO35: 0 | AP35: VO2605 | AQ35: Samenwerkingsverband VO Zuid-Utrecht | AR35: 8782 | AS35: 1089 | AT35: 193 | AU35: 309 | AV35: 9 | AW35: 31 | AX35: 1993.5 | AY35: 10847 | AZ35: 200 | BA35: 9 | BB35: 31 | BC35: 12 | BD35: 97 | BE35: 101 | BF35: 7 | BG35: 0 | BH35: 12 | BI35: 0 | BJ35: 34 | BK35: 1 | BL35: 0 | BM35: 1 | BN35: 1 | BO35: 50 | BP35: 30 | BQ35: 8 | BR35: 8 | BU35: VO2605 | BV35: Samenwerkingsverband VO Zuid-Utrecht | BW35: 8484.5 | BX35: 1057 | BY35: 198 | BZ35: 288 | CA35: 5 | CB35: 30 | CC35: 1901 | CD35: 10701 | CE35: 187 | CF35: 5 | CG35: 30 | CH35: 9 | CI35: 92 | CJ35: 75 | CK35: 5 | CL35: 0 | CM35: 12 | CN35: 0 | CO35: 30 | CP35: 2 | CQ35: 0 | CR35: 3 | CS35: 2 | CT35: 51 | CU35: 28 | CV35: 3 | CW35: 7 | CX35: 0 | CY35: 0 | DB35: VO2605 | DC35: Samenwerkingsverband VO Zuid-Utrecht | DD35: 9628.5 | DE35: 1182 | DF35: 178 | DG35: 301 | DH35: 17 | DI35: 28 | DJ35: 11909.5 | DK35: 12 | DL35: 43 | DO35: VO2605 | DP35: Samenwerkingsverband VO Zuid-Utrecht | DQ35: 9678 | DR35: 1097 | DS35: 159 | DT35: 307 | DU35: 18 | DV35: 27 | DW35: 11959 | DX35: 13 | DY35: 31 | DZ35: 9678 | EA35: 1097 | EB35: 159 | EC35: 5820 | ED35: 1183 | EF35: VO2605 | EG35: Samenwerkingsverband VO Zuid-Utrecht | EH35: 9563 | EI35: 970 | EJ35: 169 | EK35: 269 | EL35: 18 | EM35: 31 | EN35: 11959 | EO35: 13 | EP35: 31 | EQ35: 9563 | ER35: 970 | ES35: 169 | ET35: 0 | EU35: 0
A36: VO2701 | B36: Stichting Samenwerkingsverband VO Kop van Noord Holland | C36: 7290.5 | D36: 1302 | E36: 333 | F36: 262 | G36: 7 | H36: 21 | I36: 10061 | K36: VO2701 | L36: Stichting Samenwerkingsverband VO Kop van Noord Holland | M36: 7209.5 | N36: 1315 | O36: 351 | P36: 250 | Q36: 9 | R36: 21 | S36: 2295 | T36: 10036 | U36: 147 | V36: 9 | W36: 21 | X36: 3 | Y36: 100 | Z36: 155 | AA36: 5 | AB36: 0 | AC36: 18 | AD36: 0 | AE36: 92 | AF36: 3 | AG36: 1 | AH36: 7 | AI36: 8 | AJ36: 37 | AK36: 30 | AL36: 1 | AM36: 6 | AN36: 0 | AO36: 0 | AP36: VO2701 | AQ36: Stichting Samenwerkingsverband VO Kop van Noord Holland | AR36: 7197 | AS36: 1393.5 | AT36: 358 | AU36: 230 | AV36: 11 | AW36: 17 | AX36: 2390 | AY36: 10106 | AZ36: 125 | BA36: 11 | BB36: 17 | BC36: 2 | BD36: 103 | BE36: 159 | BF36: 7 | BG36: 0 | BH36: 16 | BI36: 0 | BJ36: 78 | BK36: 3 | BL36: 0 | BM36: 7 | BN36: 20 | BO36: 42 | BP36: 32 | BQ36: 1 | BR36: 6 | BU36: VO2701 | BV36: Stichting Samenwerkingsverband VO Kop van Noord Holland | BW36: 7045 | BX36: 1311 | BY36: 355 | BZ36: 236 | CA36: 10 | CB36: 13 | CC36: 2308 | CD36: 9871 | CE36: 114 | CF36: 10 | CG36: 13 | CH36: 1 | CI36: 121 | CJ36: 124 | CK36: 6 | CL36: 0 | CM36: 10 | CN36: 0 | CO36: 60 | CP36: 7 | CQ36: 0 | CR36: 6 | CS36: 14 | CT36: 40 | CU36: 38 | CV36: 1 | CW36: 4 | CX36: 0 | CY36: 0 | DB36: VO2701 | DC36: Stichting Samenwerkingsverband VO Kop van Noord Holland | DD36: 7562 | DE36: 1253 | DF36: 314 | DG36: 260 | DH36: 6 | DI36: 21 | DJ36: 10224 | DK36: 1 | DL36: 18 | DO36: VO2701 | DP36: Stichting Samenwerkingsverband VO Kop van Noord Holland | DQ36: 7830.5 | DR36: 864 | DS36: 299 | DT36: 288 | DU36: 16 | DV36: 14 | DW36: 10072 | DX36: 0 | DY36: 17 | DZ36: 7692.5 | EA36: 864 | EB36: 299 | EC36: 3219 | ED36: 2135 | EF36: VO2701 | EG36: Stichting Samenwerkingsverband VO Kop van Noord Holland | EH36: 7735 | EI36: 536.5 | EJ36: 305 | EK36: 292 | EL36: 16 | EM36: 14 | EN36: 10072 | EO36: 0 | EP36: 17 | EQ36: 7664 | ER36: 536.5 | ES36: 305 | ET36: 0 | EU36: 0
A37: VO2702 | B37: Samenwerkingsverband VO West-Friesland | C37: 11537.5 | D37: 1381 | E37: 448 | F37: 363 | G37: 12 | H37: 42 | I37: 13454 | K37: VO2702 | L37: Samenwerkingsverband VO West-Friesland | M37: 11464.5 | N37: 1403 | O37: 440 | P37: 358 | Q37: 12 | R37: 41 | S37: 3132.5 | T37: 13356 | U37: 216 | V37: 12 | W37: 41 | X37: 5 | Y37: 137 | Z37: 280 | AA37: 8 | AB37: 0 | AC37: 13 | AD37: 0 | AE37: 155 | AF37: 6 | AG37: 1 | AH37: 7 | AI37: 5 | AJ37: 17 | AK37: 23 | AL37: 8 | AM37: 5 | AN37: 0 | AO37: 0 | AP37: VO2702 | AQ37: Samenwerkingsverband VO West-Friesland | AR37: 11357.5 | AS37: 1373 | AT37: 431 | AU37: 347 | AV37: 13 | AW37: 36 | AX37: 2957.5 | AY37: 13158 | AZ37: 203 | BA37: 13 | BB37: 36 | BC37: 2 | BD37: 142 | BE37: 247 | BF37: 13 | BG37: 0 | BH37: 13 | BI37: 0 | BJ37: 158 | BK37: 4 | BL37: 1 | BM37: 5 | BN37: 7 | BO37: 21 | BP37: 24 | BQ37: 7 | BR37: 5 | BU37: VO2702 | BV37: Samenwerkingsverband VO West-Friesland | BW37: 11112.5 | BX37: 1365 | BY37: 453 | BZ37: 335 | CA37: 18 | CB37: 41 | CC37: 2851.5 | CD37: 12903 | CE37: 192 | CF37: 18 | CG37: 41 | CH37: 4 | CI37: 139 | CJ37: 217 | CK37: 9 | CL37: 0 | CM37: 11 | CN37: 0 | CO37: 129 | CP37: 6 | CQ37: 1 | CR37: 4 | CS37: 11 | CT37: 35 | CU37: 16 | CV37: 7 | CW37: 4 | CX37: 0 | CY37: 0 | DB37: VO2702 | DC37: Samenwerkingsverband VO West-Friesland | DD37: 11484.5 | DE37: 1327 | DF37: 455 | DG37: 394 | DH37: 15 | DI37: 42 | DJ37: 13390.5 | DK37: 2 | DL37: 14 | DO37: VO2702 | DP37: Samenwerkingsverband VO West-Friesland | DQ37: 11687 | DR37: 1003 | DS37: 435 | DT37: 478 | DU37: 7 | DV37: 26 | DW37: 13340 | DX37: 2 | DY37: 10 | DZ37: 11620 | EA37: 1003 | EB37: 435 | EC37: 3588 | ED37: 2926 | EF37: VO2702 | EG37: Samenwerkingsverband VO West-Friesland | EH37: 11781.5 | EI37: 598 | EJ37: 418 | EK37: 499 | EL37: 5 | EM37: 20 | EN37: 13340 | EO37: 2 | EP37: 10 | EQ37: 11716.5 | ER37: 598 | ES37: 418 | ET37: 0 | EU37: 0
A38: VO2703 | B38: Samenwerkingsverband Noord-Kennemerland VO/VSO | C38: 13661 | D38: 1695 | E38: 434 | F38: 397 | G38: 28 | H38: 60 | I38: 14845 | K38: VO2703 | L38: Samenwerkingsverband Noord-Kennemerland VO/VSO | M38: 13332.5 | N38: 1734 | O38: 414 | P38: 371 | Q38: 23 | R38: 46 | S38: 3288 | T38: 14537 | U38: 280 | V38: 23 | W38: 46 | X38: 11 | Y38: 80 | Z38: 265 | AA38: 12 | AB38: 1 | AC38: 28 | AD38: 0 | AE38: 119 | AF38: 4 | AG38: 3 | AH38: 8 | AI38: 14 | AJ38: 25 | AK38: 35 | AL38: 7 | AM38: 10 | AN38: 0 | AO38: 0 | AP38: VO2703 | AQ38: Samenwerkingsverband Noord-Kennemerland VO/VSO | AR38: 12980 | AS38: 1808.5 | AT38: 400 | AU38: 343 | AV38: 19 | AW38: 41 | AX38: 3221 | AY38: 14264 | AZ38: 254 | BA38: 19 | BB38: 41 | BC38: 9 | BD38: 80 | BE38: 264 | BF38: 17 | BG38: 1 | BH38: 22 | BI38: 0 | BJ38: 111 | BK38: 7 | BL38: 2 | BM38: 6 | BN38: 29 | BO38: 34 | BP38: 34 | BQ38: 8 | BR38: 10 | BU38: VO2703 | BV38: Samenwerkingsverband Noord-Kennemerland VO/VSO | BW38: 12768.5 | BX38: 1729 | BY38: 397 | BZ38: 338 | CA38: 13 | CB38: 48 | CC38: 3203.5 | CD38: 13978 | CE38: 240 | CF38: 13 | CG38: 48 | CH38: 11 | CI38: 87 | CJ38: 241 | CK38: 16 | CL38: 0 | CM38: 18 | CN38: 1 | CO38: 111 | CP38: 9 | CQ38: 5 | CR38: 4 | CS38: 31 | CT38: 42 | CU38: 25 | CV38: 7 | CW38: 12 | CX38: 0 | CY38: 0 | DB38: VO2703 | DC38: Samenwerkingsverband Noord-Kennemerland VO/VSO | DD38: 13811.5 | DE38: 1609 | DF38: 434 | DG38: 411 | DH38: 26 | DI38: 56 | DJ38: 14930.5 | DK38: 5 | DL38: 27 | DO38: VO2703 | DP38: Samenwerkingsverband Noord-Kennemerland VO/VSO | DQ38: 14416 | DR38: 1106 | DS38: 433 | DT38: 390 | DU38: 36 | DV38: 43 | DW38: 15128 | DX38: 4 | DY38: 27 | DZ38: 14305 | EA38: 1106 | EB38: 433 | EC38: 3972 | ED38: 2968 | EF38: VO2703 | EG38: Samenwerkingsverband Noord-Kennemerland VO/VSO | EH38: 14645.5 | EI38: 662 | EJ38: 424 | EK38: 419 | EL38: 30 | EM38: 45 | EN38: 15128 | EO38: 4 | EP38: 27 | EQ38: 14536.5 | ER38: 662 | ES38: 424 | ET38: 0 | EU38: 0
A39: VO2704 | B39: SWV Voortgezet Onderwijs Midden Kennemerland 2704 | C39: 7335 | D39: 1009 | E39: 168 | F39: 221 | G39: 30 | H39: 24 | I39: 7938 | K39: VO2704 | L39: SWV Voortgezet Onderwijs Midden Kennemerland 2704 | M39: 7305.5 | N39: 975 | O39: 153 | P39: 194 | Q39: 31 | R39: 19 | S39: 1880 | T39: 7885 | U39: 125 | V39: 31 | W39: 19 | X39: 8 | Y39: 61 | Z39: 68 | AA39: 6 | AB39: 0 | AC39: 8 | AD39: 1 | AE39: 23 | AF39: 3 | AG39: 0 | AH39: 1 | AI39: 3 | AJ39: 5 | AK39: 8 | AL39: 3 | AM39: 1 | AN39: 0 | AO39: 0 | AP39: VO2704 | AQ39: SWV Voortgezet Onderwijs Midden Kennemerland 2704 | AR39: 7186 | AS39: 954 | AT39: 156 | AU39: 189 | AV39: 28 | AW39: 21 | AX39: 1799.5 | AY39: 7787 | AZ39: 113 | BA39: 28 | BB39: 21 | BC39: 10 | BD39: 66 | BE39: 74 | BF39: 8 | BG39: 0 | BH39: 8 | BI39: 0 | BJ39: 20 | BK39: 1 | BL39: 0 | BM39: 1 | BN39: 1 | BO39: 4 | BP39: 7 | BQ39: 2 | BR39: 1 | BU39: VO2704 | BV39: SWV Voortgezet Onderwijs Midden Kennemerland 2704 | BW39: 7092 | BX39: 912 | BY39: 161 | BZ39: 181 | CA39: 26 | CB39: 24 | CC39: 1715 | CD39: 7669 | CE39: 106 | CF39: 26 | CG39: 24 | CH39: 6 | CI39: 69 | CJ39: 67 | CK39: 10 | CL39: 0 | CM39: 7 | CN39: 0 | CO39: 15 | CP39: 1 | CQ39: 0 | CR39: 2 | CS39: 1 | CT39: 5 | CU39: 4 | CV39: 1 | CW39: 0 | CX39: 0 | CY39: 0 | DB39: VO2704 | DC39: SWV Voortgezet Onderwijs Midden Kennemerland 2704 | DD39: 7350.5 | DE39: 986 | DF39: 156 | DG39: 243 | DH39: 25 | DI39: 17 | DJ39: 7887.5 | DK39: 2 | DL39: 5 | DO39: VO2704 | DP39: SWV Voortgezet Onderwijs Midden Kennemerland 2704 | DQ39: 7505 | DR39: 758 | DS39: 159 | DT39: 273 | DU39: 14 | DV39: 12 | DW39: 7824 | DX39: 3 | DY39: 5 | DZ39: 7445 | EA39: 758 | EB39: 159 | EC39: 2925 | ED39: 1225 | EF39: VO2704 | EG39: SWV Voortgezet Onderwijs Midden Kennemerland 2704 | EH39: 7541 | EI39: 487.5 | EJ39: 175 | EK39: 255 | EL39: 14 | EM39: 12 | EN39: 7824 | EO39: 3 | EP39: 5 | EQ39: 7522 | ER39: 487.5 | ES39: 175 | ET39: 0 | EU39: 0
A40: VO2705 | B40: Samenwerkingsverband voortgezet onderwijs/speciaal VO Zuid-Kennemerland | C40: 17086.5 | D40: 1835.5 | E40: 438 | F40: 424 | G40: 21 | H40: 39 | I40: 17685 | K40: VO2705 | L40: Samenwerkingsverband voortgezet onderwijs/speciaal VO Zuid-Kennemerland | M40: 16863 | N40: 1773.5 | O40: 391 | P40: 383 | Q40: 19 | R40: 36 | S40: 3538.5 | T40: 17357 | U40: 265 | V40: 19 | W40: 36 | X40: 10 | Y40: 108 | Z40: 190 | AA40: 10 | AB40: 0 | AC40: 48 | AD40: 0 | AE40: 115 | AF40: 5 | AG40: 0 | AH40: 7 | AI40: 16 | AJ40: 6 | AK40: 15 | AL40: 4 | AM40: 8 | AN40: 0 | AO40: 0 | AP40: VO2705 | AQ40: Samenwerkingsverband voortgezet onderwijs/speciaal VO Zuid-Kennemerland | AR40: 16644.5 | AS40: 1786.5 | AT40: 390 | AU40: 394 | AV40: 18 | AW40: 37 | AX40: 3461 | AY40: 17108 | AZ40: 272 | BA40: 18 | BB40: 37 | BC40: 8 | BD40: 114 | BE40: 183 | BF40: 15 | BG40: 0 | BH40: 32 | BI40: 1 | BJ40: 108 | BK40: 5 | BL40: 0 | BM40: 9 | BN40: 15 | BO40: 8 | BP40: 18 | BQ40: 4 | BR40: 8 | BU40: VO2705 | BV40: Samenwerkingsverband voortgezet onderwijs/speciaal VO Zuid-Kennemerland | BW40: 16198 | BX40: 1814.5 | BY40: 381 | BZ40: 380 | CA40: 18 | CB40: 40 | CC40: 3386 | CD40: 16780 | CE40: 266 | CF40: 18 | CG40: 40 | CH40: 10 | CI40: 104 | CJ40: 169 | CK40: 13 | CL40: 0 | CM40: 23 | CN40: 1 | CO40: 101 | CP40: 3 | CQ40: 2 | CR40: 8 | CS40: 12 | CT40: 14 | CU40: 21 | CV40: 7 | CW40: 12 | CX40: 0 | CY40: 0 | DB40: VO2705 | DC40: Samenwerkingsverband voortgezet onderwijs/speciaal VO Zuid-Kennemerland | DD40: 17284 | DE40: 1812.5 | DF40: 470 | DG40: 430 | DH40: 20 | DI40: 39 | DJ40: 17817.5 | DK40: 5 | DL40: 10 | DO40: VO2705 | DP40: Samenwerkingsverband voortgezet onderwijs/speciaal VO Zuid-Kennemerland | DQ40: 18971.5 | DR40: 58 | DS40: 487 | DT40: 463 | DU40: 12 | DV40: 23 | DW40: 17819 | DX40: 5 | DY40: 13 | DZ40: 18909.5 | EA40: 58 | EB40: 487 | EC40: 330 | ED40: 3388 | EF40: VO2705 | EG40: Samenwerkingsverband voortgezet onderwijs/speciaal VO Zuid-Kennemerland | EH40: 18920.5 | EI40: 55 | EJ40: 484 | EK40: 473 | EL40: 15 | EM40: 20 | EN40: 17819 | EO40: 5 | EP40: 13 | EQ40: 18873.5 | ER40: 55 | ES40: 484 | ET40: 0 | EU40: 0
A41: VO2706 | B41: Coöperatief Samenwerkingsverband Passend Onderwijs VO Zaanstreek u.a. | C41: 8026 | D41: 1614.5 | E41: 373 | F41: 282 | G41: 13 | H41: 21 | I41: 10582 | K41: VO2706 | L41: Coöperatief Samenwerkingsverband Passend Onderwijs VO Zaanstreek u.a. | M41: 7861.5 | N41: 1574.5 | O41: 360 | P41: 293 | Q41: 14 | R41: 19 | S41: 2482 | T41: 10365 | U41: 165 | V41: 14 | W41: 19 | X41: 12 | Y41: 116 | Z41: 98 | AA41: 7 | AB41: 0 | AC41: 22 | AD41: 1 | AE41: 23 | AF41: 0 | AG41: 1 | AH41: 4 | AI41: 5 | AJ41: 23 | AK41: 15 | AL41: 4 | AM41: 3 | AN41: 0 | AO41: 0 | AP41: VO2706 | AQ41: Coöperatief Samenwerkingsverband Passend Onderwijs VO Zaanstreek u.a. | AR41: 7600.5 | AS41: 1604 | AT41: 342 | AU41: 274 | AV41: 15 | AW41: 22 | AX41: 2346.5 | AY41: 10171 | AZ41: 145 | BA41: 15 | BB41: 22 | BC41: 10 | BD41: 119 | BE41: 99 | BF41: 10 | BG41: 0 | BH41: 15 | BI41: 4 | BJ41: 25 | BK41: 1 | BL41: 1 | BM41: 1 | BN41: 1 | BO41: 17 | BP41: 13 | BQ41: 4 | BR41: 3 | BU41: VO2706 | BV41: Coöperatief Samenwerkingsverband Passend Onderwijs VO Zaanstreek u.a. | BW41: 7417 | BX41: 1490 | BY41: 306 | BZ41: 275 | CA41: 20 | CB41: 24 | CC41: 2292.5 | CD41: 9808 | CE41: 140 | CF41: 20 | CG41: 24 | CH41: 10 | CI41: 125 | CJ41: 100 | CK41: 9 | CL41: 0 | CM41: 13 | CN41: 2 | CO41: 27 | CP41: 2 | CQ41: 1 | CR41: 2 | CS41: 1 | CT41: 19 | CU41: 8 | CV41: 6 | CW41: 2 | CX41: 0 | CY41: 0 | DB41: VO2706 | DC41: Coöperatief Samenwerkingsverband Passend Onderwijs VO Zaanstreek u.a. | DD41: 7999 | DE41: 1635.5 | DF41: 378 | DG41: 312 | DH41: 10 | DI41: 16 | DJ41: 10568.5 | DK41: 4 | DL41: 25 | DO41: VO2706 | DP41: Coöperatief Samenwerkingsverband Passend Onderwijs VO Zaanstreek u.a. | DQ41: 7953.5 | DR41: 1582 | DS41: 359 | DT41: 304 | DU41: 5 | DV41: 14 | DW41: 10472 | DX41: 3 | DY41: 29 | DZ41: 7901.5 | EA41: 1582 | EB41: 359 | EC41: 9120 | ED41: 2317 | EF41: VO2706 | EG41: Coöperatief Samenwerkingsverband Passend Onderwijs VO Zaanstreek u.a. | EH41: 7916 | EI41: 1520 | EJ41: 331 | EK41: 315 | EL41: 11 | EM41: 15 | EN41: 10472 | EO41: 3 | EP41: 29 | EQ41: 7858 | ER41: 1520 | ES41: 331 | ET41: 0 | EU41: 0
A42: VO2707 | B42: Samenwerkingsverband Voortgezet Onderwijs Waterland | C42: 6627 | D42: 770.5 | E42: 230 | F42: 245 | G42: 7 | H42: 18 | I42: 9397 | K42: VO2707 | L42: Samenwerkingsverband Voortgezet Onderwijs Waterland | M42: 6593.5 | N42: 770 | O42: 240 | P42: 225 | Q42: 9 | R42: 17 | S42: 1837.5 | T42: 9310 | U42: 123 | V42: 9 | W42: 17 | X42: 4 | Y42: 98 | Z42: 64 | AA42: 11 | AB42: 0 | AC42: 9 | AD42: 0 | AE42: 13 | AF42: 5 | AG42: 0 | AH42: 2 | AI42: 10 | AJ42: 25 | AK42: 8 | AL42: 4 | AM42: 2 | AN42: 0 | AO42: 0 | AP42: VO2707 | AQ42: Samenwerkingsverband Voortgezet Onderwijs Waterland | AR42: 6460.5 | AS42: 809 | AT42: 229 | AU42: 186 | AV42: 9 | AW42: 14 | AX42: 1802 | AY42: 9146 | AZ42: 102 | BA42: 9 | BB42: 14 | BC42: 3 | BD42: 81 | BE42: 65 | BF42: 11 | BG42: 0 | BH42: 8 | BI42: 0 | BJ42: 10 | BK42: 4 | BL42: 0 | BM42: 0 | BN42: 16 | BO42: 25 | BP42: 6 | BQ42: 2 | BR42: 2 | BU42: VO2707 | BV42: Samenwerkingsverband Voortgezet Onderwijs Waterland | BW42: 6400.5 | BX42: 837.5 | BY42: 212 | BZ42: 195 | CA42: 7 | CB42: 13 | CC42: 1804.5 | CD42: 9031 | CE42: 108 | CF42: 7 | CG42: 13 | CH42: 4 | CI42: 83 | CJ42: 59 | CK42: 12 | CL42: 0 | CM42: 7 | CN42: 0 | CO42: 18 | CP42: 2 | CQ42: 0 | CR42: 1 | CS42: 15 | CT42: 20 | CU42: 7 | CV42: 3 | CW42: 4 | CX42: 0 | CY42: 0 | DB42: VO2707 | DC42: Samenwerkingsverband Voortgezet Onderwijs Waterland | DD42: 6810 | DE42: 811 | DF42: 228 | DG42: 212 | DH42: 11 | DI42: 17 | DJ42: 9550.5 | DK42: 5 | DL42: 20 | DO42: VO2707 | DP42: Samenwerkingsverband Voortgezet Onderwijs Waterland | DQ42: 6801 | DR42: 797.5 | DS42: 240 | DT42: 216 | DU42: 8 | DV42: 10 | DW42: 9531 | DX42: 3 | DY42: 18 | DZ42: 6761 | EA42: 797.5 | EB42: 240 | EC42: 4404 | ED42: 1659 | EF42: VO2707 | EG42: Samenwerkingsverband Voortgezet Onderwijs Waterland | EH42: 6812 | EI42: 734 | EJ42: 237 | EK42: 226 | EL42: 12 | EM42: 7 | EN42: 9531 | EO42: 3 | EP42: 18 | EQ42: 6771 | ER42: 734 | ES42: 237 | ET42: 0 | EU42: 0
A43: VO2708 | B43: Vereniging Samenwerkingsverband VO Amsterdam | C43: 32777 | D43: 5898.5 | E43: 1426 | F43: 1058 | G43: 40 | H43: 73 | I43: 37265 | K43: VO2708 | L43: Vereniging Samenwerkingsverband VO Amsterdam | M43: 31734 | N43: 6126.5 | O43: 1372 | P43: 1055 | Q43: 47 | R43: 78 | S43: 7591 | T43: 36468 | U43: 544 | V43: 47 | W43: 78 | X43: 52 | Y43: 459 | Z43: 506 | AA43: 19 | AB43: 0 | AC43: 57 | AD43: 0 | AE43: 178 | AF43: 7 | AG43: 1 | AH43: 33 | AI43: 46 | AJ43: 216 | AK43: 42 | AL43: 31 | AM43: 13 | AN43: 0 | AO43: 0 | AP43: VO2708 | AQ43: Vereniging Samenwerkingsverband VO Amsterdam | AR43: 31101 | AS43: 6008 | AT43: 1345 | AU43: 1029 | AV43: 41 | AW43: 67 | AX43: 7578.5 | AY43: 35972 | AZ43: 491 | BA43: 41 | BB43: 67 | BC43: 47 | BD43: 491 | BE43: 490 | BF43: 25 | BG43: 0 | BH43: 39 | BI43: 1 | BJ43: 187 | BK43: 6 | BL43: 0 | BM43: 40 | BN43: 38 | BO43: 189 | BP43: 43 | BQ43: 33 | BR43: 13 | BU43: VO2708 | BV43: Vereniging Samenwerkingsverband VO Amsterdam | BW43: 30153.5 | BX43: 5580 | BY43: 1283 | BZ43: 1048 | CA43: 41 | CB43: 69 | CC43: 7097.5 | CD43: 34920 | CE43: 488 | CF43: 41 | CG43: 69 | CH43: 44 | CI43: 516 | CJ43: 490 | CK43: 26 | CL43: 1 | CM43: 60 | CN43: 3 | CO43: 204 | CP43: 5 | CQ43: 0 | CR43: 40 | CS43: 30 | CT43: 162 | CU43: 46 | CV43: 22 | CW43: 20 | CX43: 0 | CY43: 0 | DB43: VO2708 | DC43: Vereniging Samenwerkingsverband VO Amsterdam | DD43: 33464.5 | DE43: 5927 | DF43: 1473 | DG43: 1090 | DH43: 33 | DI43: 68 | DJ43: 37971.5 | DK43: 27 | DL43: 190 | DO43: VO2708 | DP43: Vereniging Samenwerkingsverband VO Amsterdam | DQ43: 34140 | DR43: 5745 | DS43: 1479 | DT43: 1148 | DU43: 23 | DV43: 77 | DW43: 38295 | DX43: 17 | DY43: 192 | DZ43: 33804 | EA43: 5745 | EB43: 1479 | EC43: 34629 | ED43: 10171 | EF43: VO2708 | EG43: Vereniging Samenwerkingsverband VO Amsterdam | EH43: 34653 | EI43: 5771.5 | EJ43: 1453 | EK43: 1198 | EL43: 17 | EM43: 59 | EN43: 38295 | EO43: 17 | EP43: 192 | EQ43: 34303 | ER43: 5771.5 | ES43: 1453 | ET43: 0 | EU43: 0
A44: VO2709 | B44: Stichting VO Samenwerkingsverband Amstelland en de Meerlanden | C44: 14853.5 | D44: 1567.5 | E44: 382 | F44: 350 | G44: 21 | H44: 23 | I44: 19642 | K44: VO2709 | L44: Stichting VO Samenwerkingsverband Amstelland en de Meerlanden | M44: 14559 | N44: 1559 | O44: 352 | P44: 338 | Q44: 21 | R44: 28 | S44: 3007.5 | T44: 19179 | U44: 214 | V44: 21 | W44: 28 | X44: 18 | Y44: 106 | Z44: 164 | AA44: 17 | AB44: 0 | AC44: 30 | AD44: 0 | AE44: 31 | AF44: 6 | AG44: 0 | AH44: 7 | AI44: 6 | AJ44: 29 | AK44: 21 | AL44: 3 | AM44: 6 | AN44: 1 | AO44: 0 | AP44: VO2709 | AQ44: Stichting VO Samenwerkingsverband Amstelland en de Meerlanden | AR44: 14204.5 | AS44: 1565.5 | AT44: 299 | AU44: 293 | AV44: 17 | AW44: 36 | AX44: 2913 | AY44: 18671 | AZ44: 181 | BA44: 17 | BB44: 36 | BC44: 18 | BD44: 94 | BE44: 178 | BF44: 15 | BG44: 0 | BH44: 26 | BI44: 2 | BJ44: 35 | BK44: 6 | BL44: 0 | BM44: 7 | BN44: 9 | BO44: 33 | BP44: 17 | BQ44: 2 | BR44: 6 | BU44: VO2709 | BV44: Stichting VO Samenwerkingsverband Amstelland en de Meerlanden | BW44: 13861.5 | BX44: 1576 | BY44: 293 | BZ44: 291 | CA44: 15 | CB44: 35 | CC44: 2889.5 | CD44: 18158 | CE44: 180 | CF44: 15 | CG44: 35 | CH44: 22 | CI44: 89 | CJ44: 139 | CK44: 12 | CL44: 0 | CM44: 22 | CN44: 1 | CO44: 35 | CP44: 6 | CQ44: 0 | CR44: 3 | CS44: 13 | CT44: 33 | CU44: 17 | CV44: 4 | CW44: 5 | CX44: 1 | CY44: 0 | DB44: VO2709 | DC44: Stichting VO Samenwerkingsverband Amstelland en de Meerlanden | DD44: 15145 | DE44: 1599.5 | DF44: 420 | DG44: 367 | DH44: 23 | DI44: 23 | DJ44: 19920.5 | DK44: 1 | DL44: 34 | DO44: VO2709 | DP44: Stichting VO Samenwerkingsverband Amstelland en de Meerlanden | DQ44: 15535 | DR44: 1630 | DS44: 391 | DT44: 374 | DU44: 18 | DV44: 21 | DW44: 20350 | DX44: 4 | DY44: 30 | DZ44: 15489 | EA44: 1630 | EB44: 391 | EC44: 7521 | ED44: 2688 | EF44: VO2709 | EG44: Stichting VO Samenwerkingsverband Amstelland en de Meerlanden | EH44: 16083 | EI44: 1253.5 | EJ44: 384 | EK44: 389 | EL44: 21 | EM44: 21 | EN44: 20350 | EO44: 4 | EP44: 30 | EQ44: 16011 | ER44: 1253.5 | ES44: 384 | ET44: 0 | EU44: 0
A45: VO2710 | B45: Qinas, coöperatie samenwerkende schoolbesturen in het Gooi U.A. | C45: 16649.5 | D45: 1083 | E45: 288 | F45: 326 | G45: 9 | H45: 46 | I45: 16742 | K45: VO2710 | L45: Qinas, coöperatie samenwerkende schoolbesturen in het Gooi U.A. | M45: 16281 | N45: 1066 | O45: 286 | P45: 305 | Q45: 7 | R45: 50 | S45: 2848.5 | T45: 16310 | U45: 176 | V45: 7 | W45: 50 | X45: 7 | Y45: 122 | Z45: 195 | AA45: 12 | AB45: 0 | AC45: 26 | AD45: 0 | AE45: 39 | AF45: 1 | AG45: 0 | AH45: 3 | AI45: 8 | AJ45: 11 | AK45: 24 | AL45: 11 | AM45: 5 | AN45: 0 | AO45: 0 | AP45: VO2710 | AQ45: Qinas, coöperatie samenwerkende schoolbesturen in het Gooi U.A. | AR45: 16058.5 | AS45: 1010 | AT45: 264 | AU45: 305 | AV45: 6 | AW45: 42 | AX45: 2795 | AY45: 16001 | AZ45: 178 | BA45: 6 | BB45: 42 | BC45: 4 | BD45: 123 | BE45: 167 | BF45: 15 | BG45: 0 | BH45: 21 | BI45: 0 | BJ45: 40 | BK45: 0 | BL45: 0 | BM45: 2 | BN45: 6 | BO45: 13 | BP45: 22 | BQ45: 14 | BR45: 5 | BU45: VO2710 | BV45: Qinas, coöperatie samenwerkende schoolbesturen in het Gooi U.A. | BW45: 15848 | BX45: 963 | BY45: 236 | BZ45: 295 | CA45: 10 | CB45: 40 | CC45: 2690.5 | CD45: 15697 | CE45: 173 | CF45: 10 | CG45: 40 | CH45: 5 | CI45: 117 | CJ45: 161 | CK45: 14 | CL45: 0 | CM45: 21 | CN45: 0 | CO45: 40 | CP45: 0 | CQ45: 0 | CR45: 0 | CS45: 7 | CT45: 21 | CU45: 22 | CV45: 10 | CW45: 5 | CX45: 0 | CY45: 0 | DB45: VO2710 | DC45: Qinas, coöperatie samenwerkende schoolbesturen in het Gooi U.A. | DD45: 17098.5 | DE45: 1036 | DF45: 310 | DG45: 322 | DH45: 9 | DI45: 45 | DJ45: 17084 | DK45: 12 | DL45: 8 | DO45: VO2710 | DP45: Qinas, coöperatie samenwerkende schoolbesturen in het Gooi U.A. | DQ45: 17528.5 | DR45: 968 | DS45: 308 | DT45: 305 | DU45: 15 | DV45: 41 | DW45: 17443 | DX45: 7 | DY45: 10 | DZ45: 17500.5 | EA45: 968 | EB45: 308 | EC45: 5406 | ED45: 2121 | EF45: VO2710 | EG45: Qinas, coöperatie samenwerkende schoolbesturen in het Gooi U.A. | EH45: 17529 | EI45: 901 | EJ45: 303 | EK45: 362 | EL45: 12 | EM45: 48 | EN45: 17443 | EO45: 7 | EP45: 10 | EQ45: 17467 | ER45: 901 | ES45: 303 | ET45: 0 | EU45: 0
A46: VO2801 | B46: Samenwerkingsverband Passend Onderwijs VO2801 | C46: 14436 | D46: 1031 | E46: 295 | F46: 322 | G46: 14 | H46: 41 | I46: 14566 | K46: VO2801 | L46: Samenwerkingsverband Passend Onderwijs VO2801 | M46: 14317 | N46: 1036 | O46: 276 | P46: 303 | Q46: 17 | R46: 50 | S46: 2185.5 | T46: 14438 | U46: 230 | V46: 17 | W46: 50 | X46: 11 | Y46: 62 | Z46: 78 | AA46: 21 | AB46: 1 | AC46: 26 | AD46: 1 | AE46: 16 | AF46: 12 | AG46: 0 | AH46: 3 | AI46: 20 | AJ46: 34 | AK46: 28 | AL46: 3 | AM46: 9 | AN46: 0 | AO46: 0 | AP46: VO2801 | AQ46: Samenwerkingsverband Passend Onderwijs VO2801 | AR46: 14277 | AS46: 1069 | AT46: 253 | AU46: 311 | AV46: 17 | AW46: 43 | AX46: 2199 | AY46: 14493 | AZ46: 235 | BA46: 17 | BB46: 43 | BC46: 11 | BD46: 65 | BE46: 82 | BF46: 18 | BG46: 0 | BH46: 18 | BI46: 0 | BJ46: 11 | BK46: 3 | BL46: 0 | BM46: 2 | BN46: 18 | BO46: 30 | BP46: 18 | BQ46: 4 | BR46: 9 | BU46: VO2801 | BV46: Samenwerkingsverband Passend Onderwijs VO2801 | BW46: 14188.5 | BX46: 1047 | BY46: 260 | BZ46: 310 | CA46: 18 | CB46: 44 | CC46: 2191.5 | CD46: 14313 | CE46: 230 | CF46: 18 | CG46: 44 | CH46: 10 | CI46: 70 | CJ46: 91 | CK46: 22 | CL46: 0 | CM46: 20 | CN46: 0 | CO46: 10 | CP46: 3 | CQ46: 0 | CR46: 3 | CS46: 11 | CT46: 25 | CU46: 15 | CV46: 5 | CW46: 8 | CX46: 0 | CY46: 0 | DB46: VO2801 | DC46: Samenwerkingsverband Passend Onderwijs VO2801 | DD46: 14618.5 | DE46: 919 | DF46: 283 | DG46: 326 | DH46: 14 | DI46: 35 | DJ46: 14539.5 | DK46: 3 | DL46: 35 | DO46: VO2801 | DP46: Samenwerkingsverband Passend Onderwijs VO2801 | DQ46: 14790 | DR46: 907.5 | DS46: 286 | DT46: 325 | DU46: 17 | DV46: 22 | DW46: 14738 | DX46: 2 | DY46: 34 | DZ46: 14728 | EA46: 907.5 | EB46: 286 | EC46: 4974 | ED46: 1932 | EF46: VO2801 | EG46: Samenwerkingsverband Passend Onderwijs VO2801 | EH46: 14761 | EI46: 829 | EJ46: 276 | EK46: 318 | EL46: 20 | EM46: 21 | EN46: 14738 | EO46: 2 | EP46: 34 | EQ46: 14715 | ER46: 829 | ES46: 276 | ET46: 0 | EU46: 0
A47: VO2802 | B47: Samenwerkingsverband VO/VSO Midden-Holland en Rijnstreek | C47: 17035.5 | D47: 1156 | E47: 583 | F47: 461 | G47: 18 | H47: 60 | I47: 18801 | K47: VO2802 | L47: Samenwerkingsverband VO/VSO Midden-Holland en Rijnstreek | M47: 16924.5 | N47: 1078 | O47: 573 | P47: 471 | Q47: 17 | R47: 65 | S47: 3578 | T47: 18639 | U47: 305 | V47: 17 | W47: 65 | X47: 23 | Y47: 143 | Z47: 217 | AA47: 21 | AB47: 0 | AC47: 40 | AD47: 0 | AE47: 70 | AF47: 8 | AG47: 2 | AH47: 8 | AI47: 29 | AJ47: 30 | AK47: 44 | AL47: 7 | AM47: 9 | AN47: 0 | AO47: 1 | AP47: VO2802 | AQ47: Samenwerkingsverband VO/VSO Midden-Holland en Rijnstreek | AR47: 16795 | AS47: 1080 | AT47: 531 | AU47: 447 | AV47: 15 | AW47: 61 | AX47: 3507.5 | AY47: 18556 | AZ47: 285 | BA47: 15 | BB47: 61 | BC47: 13 | BD47: 149 | BE47: 221 | BF47: 25 | BG47: 0 | BH47: 26 | BI47: 0 | BJ47: 63 | BK47: 6 | BL47: 1 | BM47: 3 | BN47: 29 | BO47: 29 | BP47: 40 | BQ47: 10 | BR47: 9 | BU47: VO2802 | BV47: Samenwerkingsverband VO/VSO Midden-Holland en Rijnstreek | BW47: 16523 | BX47: 1056 | BY47: 515 | BZ47: 443 | CA47: 19 | CB47: 57 | CC47: 3465.5 | CD47: 18369 | CE47: 264 | CF47: 19 | CG47: 57 | CH47: 13 | CI47: 166 | CJ47: 201 | CK47: 22 | CL47: 0 | CM47: 22 | CN47: 0 | CO47: 63 | CP47: 6 | CQ47: 1 | CR47: 1 | CS47: 24 | CT47: 31 | CU47: 45 | CV47: 10 | CW47: 8 | CX47: 0 | CY47: 0 | DB47: VO2802 | DC47: Samenwerkingsverband VO/VSO Midden-Holland en Rijnstreek | DD47: 17011.5 | DE47: 1201 | DF47: 593 | DG47: 455 | DH47: 17 | DI47: 45 | DJ47: 18796.5 | DK47: 9 | DL47: 32 | DO47: VO2802 | DP47: Samenwerkingsverband VO/VSO Midden-Holland en Rijnstreek | DQ47: 16780.5 | DR47: 1213 | DS47: 624 | DT47: 518 | DU47: 23 | DV47: 36 | DW47: 18754 | DX47: 8 | DY47: 39 | DZ47: 16690.5 | EA47: 1213 | EB47: 624 | EC47: 6852 | ED47: 4424 | EF47: VO2802 | EG47: Samenwerkingsverband VO/VSO Midden-Holland en Rijnstreek | EH47: 16528.5 | EI47: 1142 | EJ47: 632 | EK47: 541 | EL47: 22 | EM47: 30 | EN47: 18754 | EO47: 8 | EP47: 39 | EQ47: 16395.5 | ER47: 1142 | ES47: 632 | ET47: 0 | EU47: 0
A48: VO2803 | B48: Samenwerkingsverband V(S)O Duin- en Bollenstreek | C48: 8884 | D48: 829 | E48: 264 | F48: 305 | G48: 14 | H48: 57 | I48: 11138 | K48: VO2803 | L48: Samenwerkingsverband V(S)O Duin- en Bollenstreek | M48: 8728 | N48: 829 | O48: 225 | P48: 280 | Q48: 16 | R48: 68 | S48: 2351 | T48: 11019 | U48: 183 | V48: 16 | W48: 68 | X48: 8 | Y48: 89 | Z48: 57 | AA48: 8 | AB48: 0 | AC48: 21 | AD48: 0 | AE48: 22 | AF48: 5 | AG48: 0 | AH48: 5 | AI48: 5 | AJ48: 34 | AK48: 18 | AL48: 4 | AM48: 4 | AN48: 0 | AO48: 0 | AP48: VO2803 | AQ48: Samenwerkingsverband V(S)O Duin- en Bollenstreek | AR48: 8669.5 | AS48: 806 | AT48: 209 | AU48: 282 | AV48: 12 | AW48: 54 | AX48: 2278 | AY48: 10946 | AZ48: 177 | BA48: 12 | BB48: 54 | BC48: 7 | BD48: 98 | BE48: 47 | BF48: 5 | BG48: 0 | BH48: 9 | BI48: 1 | BJ48: 25 | BK48: 4 | BL48: 1 | BM48: 2 | BN48: 4 | BO48: 29 | BP48: 19 | BQ48: 5 | BR48: 4 | BU48: VO2803 | BV48: Samenwerkingsverband V(S)O Duin- en Bollenstreek | BW48: 8577 | BX48: 781 | BY48: 211 | BZ48: 262 | CA48: 8 | CB48: 44 | CC48: 2126 | CD48: 10915 | CE48: 163 | CF48: 8 | CG48: 44 | CH48: 7 | CI48: 92 | CJ48: 59 | CK48: 6 | CL48: 0 | CM48: 12 | CN48: 1 | CO48: 22 | CP48: 5 | CQ48: 1 | CR48: 1 | CS48: 8 | CT48: 26 | CU48: 18 | CV48: 3 | CW48: 5 | CX48: 0 | CY48: 0 | DB48: VO2803 | DC48: Samenwerkingsverband V(S)O Duin- en Bollenstreek | DD48: 9007 | DE48: 805 | DF48: 273 | DG48: 290 | DH48: 11 | DI48: 47 | DJ48: 11255 | DK48: 3 | DL48: 34 | DO48: VO2803 | DP48: Samenwerkingsverband V(S)O Duin- en Bollenstreek | DQ48: 9226 | DR48: 788 | DS48: 246 | DT48: 279 | DU48: 26 | DV48: 31 | DW48: 11398 | DX48: 1 | DY48: 28 | DZ48: 9154 | EA48: 788 | EB48: 246 | EC48: 4146 | ED48: 1750 | EF48: VO2803 | EG48: Samenwerkingsverband V(S)O Duin- en Bollenstreek | EH48: 9273 | EI48: 691 | EJ48: 250 | EK48: 294 | EL48: 24 | EM48: 33 | EN48: 11398 | EO48: 1 | EP48: 28 | EQ48: 9241 | ER48: 691 | ES48: 250 | ET48: 0 | EU48: 0
A49: VO2804 | B49: VO_Dordrecht | C49: 5945 | D49: 712.5 | E49: 279 | F49: 209 | G49: 2 | H49: 17 | I49: 6608 | K49: VO2804 | L49: VO_Dordrecht | M49: 5861.5 | N49: 686.5 | O49: 308 | P49: 204 | Q49: 2 | R49: 18 | S49: 1581.5 | T49: 6528 | U49: 146 | V49: 2 | W49: 18 | X49: 5 | Y49: 53 | Z49: 31 | AA49: 2 | AB49: 0 | AC49: 9 | AD49: 0 | AE49: 36 | AF49: 2 | AG49: 0 | AH49: 3 | AI49: 12 | AJ49: 18 | AK49: 16 | AL49: 2 | AM49: 2 | AN49: 0 | AO49: 0 | AP49: VO2804 | AQ49: VO_Dordrecht | AR49: 5818 | AS49: 693 | AT49: 298 | AU49: 180 | AV49: 5 | AW49: 16 | AX49: 1552.5 | AY49: 6546 | AZ49: 121 | BA49: 5 | BB49: 16 | BC49: 4 | BD49: 55 | BE49: 30 | BF49: 4 | BG49: 0 | BH49: 9 | BI49: 0 | BJ49: 34 | BK49: 1 | BL49: 0 | BM49: 4 | BN49: 4 | BO49: 15 | BP49: 18 | BQ49: 3 | BR49: 2 | BU49: VO2804 | BV49: VO_Dordrecht | BW49: 5941.5 | BX49: 721 | BY49: 264 | BZ49: 191 | CA49: 5 | CB49: 13 | CC49: 1590.5 | CD49: 6576 | CE49: 126 | CF49: 5 | CG49: 13 | CH49: 4 | CI49: 61 | CJ49: 29 | CK49: 3 | CL49: 0 | CM49: 6 | CN49: 1 | CO49: 34 | CP49: 0 | CQ49: 0 | CR49: 4 | CS49: 6 | CT49: 9 | CU49: 18 | CV49: 2 | CW49: 3 | CX49: 0 | CY49: 0 | DB49: VO2804 | DC49: VO_Dordrecht | DD49: 5922 | DE49: 702 | DF49: 272 | DG49: 225 | DH49: 2 | DI49: 22 | DJ49: 6536 | DK49: 1 | DL49: 14 | DO49: VO2804 | DP49: VO_Dordrecht | DQ49: 5978 | DR49: 675 | DS49: 269 | DT49: 252 | DU49: 11 | DV49: 18 | DW49: 6504 | DX49: 1 | DY49: 10 | DZ49: 5882 | EA49: 675 | EB49: 269 | EC49: 3549 | ED49: 1743 | EF49: VO2804 | EG49: VO_Dordrecht | EH49: 5978 | EI49: 591.5 | EJ49: 249 | EK49: 254 | EL49: 9 | EM49: 18 | EN49: 6504 | EO49: 1 | EP49: 10 | EQ49: 5904 | ER49: 591.5 | ES49: 249 | ET49: 0 | EU49: 0
A50: VO2805 | B50: Coöperatie Regionaal SWV Passend Onderwijs VO Goeree-Overflakkee U.A. | C50: 2749.5 | D50: 357 | E50: 54 | F50: 38 | G50: 1 | H50: 8 | I50: 2979 | K50: VO2805 | L50: Coöperatie Regionaal SWV Passend Onderwijs VO Goeree-Overflakkee U.A. | M50: 2720.5 | N50: 311 | O50: 61 | P50: 36 | Q50: 1 | R50: 7 | S50: 856 | T50: 2903 | U50: 16 | V50: 1 | W50: 7 | X50: 0 | Y50: 20 | Z50: 35 | AA50: 3 | AB50: 0 | AC50: 1 | AD50: 0 | AE50: 14 | AF50: 0 | AG50: 0 | AH50: 2 | AI50: 5 | AJ50: 2 | AK50: 12 | AL50: 3 | AM50: 2 | AN50: 0 | AO50: 0 | AP50: VO2805 | AQ50: Coöperatie Regionaal SWV Passend Onderwijs VO Goeree-Overflakkee U.A. | AR50: 2746 | AS50: 281 | AT50: 64 | AU50: 31 | AV50: 1 | AW50: 6 | AX50: 809 | AY50: 2874 | AZ50: 8 | BA50: 1 | BB50: 6 | BC50: 1 | BD50: 22 | BE50: 38 | BF50: 2 | BG50: 1 | BH50: 2 | BI50: 0 | BJ50: 10 | BK50: 0 | BL50: 0 | BM50: 2 | BN50: 5 | BO50: 2 | BP50: 8 | BQ50: 3 | BR50: 2 | BU50: VO2805 | BV50: Coöperatie Regionaal SWV Passend Onderwijs VO Goeree-Overflakkee U.A. | BW50: 2778 | BX50: 265 | BY50: 62 | BZ50: 33 | CA50: 1 | CB50: 6 | CC50: 804 | CD50: 2860 | CE50: 14 | CF50: 1 | CG50: 6 | CH50: 1 | CI50: 18 | CJ50: 26 | CK50: 1 | CL50: 1 | CM50: 4 | CN50: 0 | CO50: 12 | CP50: 0 | CQ50: 0 | CR50: 2 | CS50: 4 | CT50: 2 | CU50: 6 | CV50: 2 | CW50: 2 | CX50: 0 | CY50: 0 | DB50: VO2805 | DC50: Coöperatie Regionaal SWV Passend Onderwijs VO Goeree-Overflakkee U.A. | DD50: 2789.5 | DE50: 351 | DF50: 54 | DG50: 35 | DH50: 2 | DI50: 4 | DJ50: 2976.5 | DK50: 1 | DL50: 2 | DO50: VO2805 | DP50: Coöperatie Regionaal SWV Passend Onderwijs VO Goeree-Overflakkee U.A. | DQ50: 2797 | DR50: 335 | DS50: 67 | DT50: 39 | DU50: 1 | DV50: 3 | DW50: 2908 | DX50: 1 | DY50: 2 | DZ50: 2789 | EA50: 335 | EB50: 67 | EC50: 1902 | ED50: 518 | EF50: VO2805 | EG50: Coöperatie Regionaal SWV Passend Onderwijs VO Goeree-Overflakkee U.A. | EH50: 2850 | EI50: 317 | EJ50: 74 | EK50: 36 | EL50: 2 | EM50: 4 | EN50: 2908 | EO50: 1 | EP50: 2 | EQ50: 2820 | ER50: 317 | ES50: 74 | ET50: 0 | EU50: 0
A51: VO2806 | B51: SWV V(S)O Zuid Holland West | C51: 29114 | D51: 2787.5 | E51: 1245 | F51: 819 | G51: 53 | H51: 91 | I51: 32777 | K51: VO2806 | L51: SWV V(S)O Zuid Holland West | M51: 28485 | N51: 2712.5 | O51: 1180 | P51: 817 | Q51: 31 | R51: 101 | S51: 6413.5 | T51: 31890 | U51: 473 | V51: 31 | W51: 101 | X51: 25 | Y51: 319 | Z51: 134 | AA51: 15 | AB51: 0 | AC51: 37 | AD51: 0 | AE51: 70 | AF51: 0 | AG51: 1 | AH51: 5 | AI51: 40 | AJ51: 67 | AK51: 52 | AL51: 5 | AM51: 9 | AN51: 0 | AO51: 0 | AP51: VO2806 | AQ51: SWV V(S)O Zuid Holland West | AR51: 27851 | AS51: 2772 | AT51: 1056 | AU51: 692 | AV51: 34 | AW51: 91 | AX51: 6288 | AY51: 31133 | AZ51: 350 | BA51: 34 | BB51: 91 | BC51: 23 | BD51: 319 | BE51: 129 | BF51: 11 | BG51: 1 | BH51: 31 | BI51: 0 | BJ51: 58 | BK51: 1 | BL51: 1 | BM51: 4 | BN51: 39 | BO51: 64 | BP51: 48 | BQ51: 7 | BR51: 9 | BU51: VO2806 | BV51: SWV V(S)O Zuid Holland West | BW51: 27445 | BX51: 2810 | BY51: 1052 | BZ51: 717 | CA51: 32 | CB51: 84 | CC51: 6084.5 | CD51: 30569 | CE51: 358 | CF51: 32 | CG51: 84 | CH51: 22 | CI51: 337 | CJ51: 149 | CK51: 11 | CL51: 1 | CM51: 29 | CN51: 0 | CO51: 57 | CP51: 0 | CQ51: 1 | CR51: 5 | CS51: 30 | CT51: 56 | CU51: 47 | CV51: 6 | CW51: 7 | CX51: 0 | CY51: 0 | DB51: VO2806 | DC51: SWV V(S)O Zuid Holland West | DD51: 29604 | DE51: 2742 | DF51: 1325 | DG51: 828 | DH51: 27 | DI51: 94 | DJ51: 33531.5 | DK51: 10 | DL51: 63 | DO51: VO2806 | DP51: SWV V(S)O Zuid Holland West | DQ51: 30181 | DR51: 2780.5 | DS51: 1375 | DT51: 790 | DU51: 26 | DV51: 96 | DW51: 34251 | DX51: 11 | DY51: 70 | DZ51: 29905 | EA51: 2780.5 | EB51: 1375 | EC51: 16599 | ED51: 9625 | EF51: VO2806 | EG51: SWV V(S)O Zuid Holland West | EH51: 30877.5 | EI51: 2766.5 | EJ51: 1375 | EK51: 795 | EL51: 23 | EM51: 100 | EN51: 34251 | EO51: 11 | EP51: 70 | EQ51: 30519.5 | ER51: 2766.5 | ES51: 1375 | ET51: 0 | EU51: 0
A52: VO2807 | B52: Stichting Regionaal Samenwerkingsverband Passend Voortgezet Onderwijs Zoetermeer | C52: 7010.5 | D52: 682.5 | E52: 291 | F52: 220 | G52: 5 | H52: 19 | I52: 7306 | K52: VO2807 | L52: Stichting Regionaal Samenwerkingsverband Passend Voortgezet Onderwijs Zoetermeer | M52: 6930 | N52: 673.5 | O52: 292 | P52: 196 | Q52: 5 | R52: 21 | S52: 1783.5 | T52: 7319 | U52: 140 | V52: 5 | W52: 21 | X52: 1 | Y52: 55 | Z52: 41 | AA52: 2 | AB52: 0 | AC52: 11 | AD52: 0 | AE52: 17 | AF52: 1 | AG52: 2 | AH52: 4 | AI52: 8 | AJ52: 19 | AK52: 26 | AL52: 5 | AM52: 6 | AN52: 0 | AO52: 0 | AP52: VO2807 | AQ52: Stichting Regionaal Samenwerkingsverband Passend Voortgezet Onderwijs Zoetermeer | AR52: 6896.5 | AS52: 660 | AT52: 281 | AU52: 188 | AV52: 5 | AW52: 18 | AX52: 1863 | AY52: 7335 | AZ52: 131 | BA52: 5 | BB52: 18 | BC52: 2 | BD52: 55 | BE52: 38 | BF52: 5 | BG52: 0 | BH52: 6 | BI52: 0 | BJ52: 19 | BK52: 0 | BL52: 2 | BM52: 3 | BN52: 7 | BO52: 16 | BP52: 22 | BQ52: 5 | BR52: 6 | BU52: VO2807 | BV52: Stichting Regionaal Samenwerkingsverband Passend Voortgezet Onderwijs Zoetermeer | BW52: 6919 | BX52: 647 | BY52: 235 | BZ52: 194 | CA52: 6 | CB52: 16 | CC52: 1772 | CD52: 7343 | CE52: 130 | CF52: 6 | CG52: 16 | CH52: 2 | CI52: 62 | CJ52: 47 | CK52: 6 | CL52: 0 | CM52: 9 | CN52: 0 | CO52: 22 | CP52: 0 | CQ52: 1 | CR52: 3 | CS52: 7 | CT52: 14 | CU52: 18 | CV52: 5 | CW52: 6 | CX52: 0 | CY52: 0 | DB52: VO2807 | DC52: Stichting Regionaal Samenwerkingsverband Passend Voortgezet Onderwijs Zoetermeer | DD52: 7113.5 | DE52: 702 | DF52: 295 | DG52: 235 | DH52: 2 | DI52: 16 | DJ52: 7281.5 | DK52: 3 | DL52: 15 | DO52: VO2807 | DP52: Stichting Regionaal Samenwerkingsverband Passend Voortgezet Onderwijs Zoetermeer | DQ52: 7081 | DR52: 679.5 | DS52: 263 | DT52: 255 | DU52: 4 | DV52: 19 | DW52: 7155 | DX52: 4 | DY52: 16 | DZ52: 7048 | EA52: 679.5 | EB52: 263 | EC52: 4053 | ED52: 1722 | EF52: VO2807 | EG52: Stichting Regionaal Samenwerkingsverband Passend Voortgezet Onderwijs Zoetermeer | EH52: 7081 | EI52: 675.5 | EJ52: 246 | EK52: 270 | EL52: 8 | EM52: 20 | EN52: 7155 | EO52: 4 | EP52: 16 | EQ52: 7035 | ER52: 675.5 | ES52: 246 | ET52: 0 | EU52: 0
A53: VO2808 | B53: Samenwerkingsverband VO Westland | C53: 5228.5 | D53: 744 | E53: 126 | F53: 147 | G53: 10 | H53: 24 | I53: 6281 | K53: VO2808 | L53: Samenwerkingsverband VO Westland | M53: 5074 | N53: 708.5 | O53: 123 | P53: 146 | Q53: 7 | R53: 17 | S53: 1662 | T53: 6170 | U53: 71 | V53: 7 | W53: 17 | X53: 5 | Y53: 70 | Z53: 68 | AA53: 7 | AB53: 0 | AC53: 10 | AD53: 0 | AE53: 15 | AF53: 1 | AG53: 0 | AH53: 2 | AI53: 7 | AJ53: 4 | AK53: 11 | AL53: 1 | AM53: 4 | AN53: 0 | AO53: 1 | AP53: VO2808 | AQ53: Samenwerkingsverband VO Westland | AR53: 4905.5 | AS53: 712 | AT53: 118 | AU53: 137 | AV53: 5 | AW53: 16 | AX53: 1682.5 | AY53: 6112 | AZ53: 59 | BA53: 5 | BB53: 16 | BC53: 6 | BD53: 72 | BE53: 63 | BF53: 4 | BG53: 0 | BH53: 12 | BI53: 0 | BJ53: 15 | BK53: 2 | BL53: 0 | BM53: 1 | BN53: 7 | BO53: 3 | BP53: 9 | BQ53: 0 | BR53: 4 | BU53: VO2808 | BV53: Samenwerkingsverband VO Westland | BW53: 4862.5 | BX53: 660 | BY53: 115 | BZ53: 136 | CA53: 4 | CB53: 10 | CC53: 1702.5 | CD53: 6132 | CE53: 61 | CF53: 4 | CG53: 10 | CH53: 5 | CI53: 70 | CJ53: 62 | CK53: 3 | CL53: 0 | CM53: 11 | CN53: 0 | CO53: 13 | CP53: 2 | CQ53: 0 | CR53: 0 | CS53: 7 | CT53: 3 | CU53: 7 | CV53: 0 | CW53: 2 | CX53: 0 | CY53: 1 | DB53: VO2808 | DC53: Samenwerkingsverband VO Westland | DD53: 5293.5 | DE53: 815 | DF53: 143 | DG53: 141 | DH53: 5 | DI53: 26 | DJ53: 6320 | DK53: 1 | DL53: 5 | DO53: VO2808 | DP53: Samenwerkingsverband VO Westland | DQ53: 5298 | DR53: 819 | DS53: 141 | DT53: 141 | DU53: 3 | DV53: 16 | DW53: 6309 | DX53: 0 | DY53: 4 | DZ53: 5297 | EA53: 819 | EB53: 141 | EC53: 4731 | ED53: 994 | EF53: VO2808 | EG53: Samenwerkingsverband VO Westland | EH53: 5176 | EI53: 788.5 | EJ53: 142 | EK53: 146 | EL53: 6 | EM53: 21 | EN53: 6309 | EO53: 0 | EP53: 4 | EQ53: 5176 | ER53: 788.5 | ES53: 142 | ET53: 0 | EU53: 0
A54: VO2809 | B54: Stichting Samenwerkingsverband VO Delflanden | C54: 7573.5 | D54: 390 | E54: 297 | F54: 187 | G54: 13 | H54: 16 | I54: 9000 | K54: VO2809 | L54: Stichting Samenwerkingsverband VO Delflanden | M54: 7511 | N54: 380 | O54: 297 | P54: 195 | Q54: 11 | R54: 14 | S54: 1393 | T54: 8861 | U54: 110 | V54: 11 | W54: 14 | X54: 3 | Y54: 82 | Z54: 38 | AA54: 5 | AB54: 0 | AC54: 10 | AD54: 0 | AE54: 10 | AF54: 1 | AG54: 0 | AH54: 2 | AI54: 13 | AJ54: 8 | AK54: 11 | AL54: 4 | AM54: 1 | AN54: 0 | AO54: 0 | AP54: VO2809 | AQ54: Stichting Samenwerkingsverband VO Delflanden | AR54: 7515.5 | AS54: 397 | AT54: 287 | AU54: 180 | AV54: 8 | AW54: 13 | AX54: 1436.5 | AY54: 8817 | AZ54: 93 | BA54: 8 | BB54: 13 | BC54: 5 | BD54: 82 | BE54: 43 | BF54: 6 | BG54: 0 | BH54: 7 | BI54: 0 | BJ54: 10 | BK54: 1 | BL54: 1 | BM54: 2 | BN54: 13 | BO54: 7 | BP54: 7 | BQ54: 4 | BR54: 1 | BU54: VO2809 | BV54: Stichting Samenwerkingsverband VO Delflanden | BW54: 7483 | BX54: 389 | BY54: 286 | BZ54: 175 | CA54: 10 | CB54: 16 | CC54: 1440 | CD54: 8673 | CE54: 84 | CF54: 10 | CG54: 16 | CH54: 5 | CI54: 86 | CJ54: 49 | CK54: 7 | CL54: 0 | CM54: 6 | CN54: 1 | CO54: 10 | CP54: 4 | CQ54: 1 | CR54: 1 | CS54: 14 | CT54: 8 | CU54: 3 | CV54: 4 | CW54: 1 | CX54: 0 | CY54: 0 | DB54: VO2809 | DC54: Stichting Samenwerkingsverband VO Delflanden | DD54: 7641.5 | DE54: 376 | DF54: 295 | DG54: 188 | DH54: 8 | DI54: 16 | DJ54: 9079.5 | DK54: 2 | DL54: 9 | DO54: VO2809 | DP54: Stichting Samenwerkingsverband VO Delflanden | DQ54: 7763 | DR54: 392 | DS54: 307 | DT54: 193 | DU54: 10 | DV54: 23 | DW54: 9196 | DX54: 2 | DY54: 8 | DZ54: 7710 | EA54: 392 | EB54: 307 | EC54: 2598 | ED54: 2275 | EF54: VO2809 | EG54: Stichting Samenwerkingsverband VO Delflanden | EH54: 7732.5 | EI54: 433 | EJ54: 325 | EK54: 190 | EL54: 5 | EM54: 32 | EN54: 9196 | EO54: 2 | EP54: 8 | EQ54: 7658.5 | ER54: 433 | ES54: 325 | ET54: 0 | EU54: 0
A55: VO2810 | B55: Samenwerkingsverband Koers VO | C55: 43629.5 | D55: 6222 | E55: 1828 | F55: 1720 | G55: 46 | H55: 173 | I55: 52159 | K55: VO2810 | L55: Samenwerkingsverband Koers VO | M55: 43267 | N55: 6208.5 | O55: 1853 | P55: 1655 | Q55: 32 | R55: 160 | S55: 12126.5 | T55: 51457 | U55: 1028 | V55: 32 | W55: 160 | X55: 56 | Y55: 571 | Z55: 374 | AA55: 23 | AB55: 0 | AC55: 40 | AD55: 8 | AE55: 116 | AF55: 6 | AG55: 2 | AH55: 12 | AI55: 25 | AJ55: 171 | AK55: 54 | AL55: 29 | AM55: 18 | AN55: 0 | AO55: 0 | AP55: VO2810 | AQ55: Samenwerkingsverband Koers VO | AR55: 43062 | AS55: 6303.5 | AT55: 1772 | AU55: 1581 | AV55: 35 | AW55: 119 | AX55: 12120.5 | AY55: 51413 | AZ55: 961 | BA55: 35 | BB55: 119 | BC55: 70 | BD55: 550 | BE55: 331 | BF55: 28 | BG55: 0 | BH55: 41 | BI55: 1 | BJ55: 116 | BK55: 6 | BL55: 2 | BM55: 10 | BN55: 24 | BO55: 173 | BP55: 70 | BQ55: 27 | BR55: 18 | BU55: VO2810 | BV55: Samenwerkingsverband Koers VO | BW55: 42556 | BX55: 6114 | BY55: 1748 | BZ55: 1549 | CA55: 34 | CB55: 120 | CC55: 11612 | CD55: 50742 | CE55: 937 | CF55: 34 | CG55: 120 | CH55: 55 | CI55: 557 | CJ55: 329 | CK55: 22 | CL55: 0 | CM55: 35 | CN55: 0 | CO55: 106 | CP55: 7 | CQ55: 1 | CR55: 12 | CS55: 30 | CT55: 157 | CU55: 75 | CV55: 28 | CW55: 24 | CX55: 0 | CY55: 0 | DB55: VO2810 | DC55: Samenwerkingsverband Koers VO | DD55: 44472 | DE55: 5980.5 | DF55: 1960 | DG55: 1724 | DH55: 34 | DI55: 184 | DJ55: 52435.5 | DK55: 30 | DL55: 166 | DO55: VO2810 | DP55: Samenwerkingsverband Koers VO | DQ55: 45242.5 | DR55: 5859.5 | DS55: 2089 | DT55: 1719 | DU55: 49 | DV55: 193 | DW55: 53265 | DX55: 26 | DY55: 129 | DZ55: 44982.5 | EA55: 5859.5 | EB55: 2089 | EC55: 34476 | ED55: 14483 | EF55: VO2810 | EG55: Samenwerkingsverband Koers VO | EH55: 45801.5 | EI55: 5746 | EJ55: 2069 | EK55: 1761 | EL55: 57 | EM55: 197 | EN55: 53265 | EO55: 26 | EP55: 129 | EQ55: 45434.5 | ER55: 5746 | ES55: 2069 | ET55: 0 | EU55: 0
A56: VO2811 | B56: Stichting Samenwerkingsverband Voortgezet Onderwijs Nieuwe Waterweg Noord | C56: 8832.5 | D56: 1209 | E56: 383 | F56: 272 | G56: 7 | H56: 17 | I56: 10082 | K56: VO2811 | L56: Stichting Samenwerkingsverband Voortgezet Onderwijs Nieuwe Waterweg Noord | M56: 8763 | N56: 1176 | O56: 363 | P56: 257 | Q56: 5 | R56: 19 | S56: 2434.5 | T56: 10137 | U56: 136 | V56: 5 | W56: 19 | X56: 9 | Y56: 112 | Z56: 81 | AA56: 5 | AB56: 0 | AC56: 8 | AD56: 0 | AE56: 24 | AF56: 1 | AG56: 0 | AH56: 1 | AI56: 2 | AJ56: 37 | AK56: 8 | AL56: 5 | AM56: 8 | AN56: 0 | AO56: 0 | AP56: VO2811 | AQ56: Stichting Samenwerkingsverband Voortgezet Onderwijs Nieuwe Waterweg Noord | AR56: 8573 | AS56: 1181 | AT56: 344 | AU56: 249 | AV56: 2 | AW56: 11 | AX56: 2473.5 | AY56: 10083 | AZ56: 126 | BA56: 2 | BB56: 11 | BC56: 8 | BD56: 115 | BE56: 78 | BF56: 3 | BG56: 0 | BH56: 5 | BI56: 0 | BJ56: 27 | BK56: 1 | BL56: 1 | BM56: 0 | BN56: 1 | BO56: 30 | BP56: 11 | BQ56: 4 | BR56: 8 | BU56: VO2811 | BV56: Stichting Samenwerkingsverband Voortgezet Onderwijs Nieuwe Waterweg Noord | BW56: 8342 | BX56: 1191 | BY56: 336 | BZ56: 263 | CA56: 2 | CB56: 15 | CC56: 2374 | CD56: 10021 | CE56: 134 | CF56: 2 | CG56: 15 | CH56: 8 | CI56: 121 | CJ56: 73 | CK56: 2 | CL56: 0 | CM56: 4 | CN56: 0 | CO56: 21 | CP56: 1 | CQ56: 1 | CR56: 0 | CS56: 3 | CT56: 23 | CU56: 11 | CV56: 6 | CW56: 8 | CX56: 0 | CY56: 0 | DB56: VO2811 | DC56: Stichting Samenwerkingsverband Voortgezet Onderwijs Nieuwe Waterweg Noord | DD56: 8965 | DE56: 1218 | DF56: 362 | DG56: 280 | DH56: 8 | DI56: 17 | DJ56: 10042.5 | DK56: 4 | DL56: 27 | DO56: VO2811 | DP56: Stichting Samenwerkingsverband Voortgezet Onderwijs Nieuwe Waterweg Noord | DQ56: 9027 | DR56: 1200 | DS56: 347 | DT56: 335 | DU56: 7 | DV56: 23 | DW56: 10080 | DX56: 3 | DY56: 21 | DZ56: 8942 | EA56: 1200 | EB56: 347 | EC56: 7230 | ED56: 2527 | EF56: VO2811 | EG56: Stichting Samenwerkingsverband Voortgezet Onderwijs Nieuwe Waterweg Noord | EH56: 8781 | EI56: 1205 | EJ56: 361 | EK56: 375 | EL56: 7 | EM56: 22 | EN56: 10080 | EO56: 3 | EP56: 21 | EQ56: 8708 | ER56: 1205 | ES56: 361 | ET56: 0 | EU56: 0
A57: VO2812 | B57: Samenwerkingsverband VO Voorne-Putten-Rozenburg | C57: 9058 | D57: 962.5 | E57: 284 | F57: 281 | G57: 5 | H57: 33 | I57: 9140 | K57: VO2812 | L57: Samenwerkingsverband VO Voorne-Putten-Rozenburg | M57: 9031 | N57: 960 | O57: 281 | P57: 304 | Q57: 4 | R57: 40 | S57: 2649.5 | T57: 9090 | U57: 193 | V57: 4 | W57: 40 | X57: 12 | Y57: 99 | Z57: 96 | AA57: 5 | AB57: 0 | AC57: 3 | AD57: 0 | AE57: 50 | AF57: 0 | AG57: 0 | AH57: 1 | AI57: 5 | AJ57: 22 | AK57: 13 | AL57: 5 | AM57: 3 | AN57: 0 | AO57: 0 | AP57: VO2812 | AQ57: Samenwerkingsverband VO Voorne-Putten-Rozenburg | AR57: 9183 | AS57: 1020.5 | AT57: 260 | AU57: 292 | AV57: 5 | AW57: 23 | AX57: 2659.5 | AY57: 9219 | AZ57: 184 | BA57: 5 | BB57: 23 | BC57: 10 | BD57: 98 | BE57: 105 | BF57: 5 | BG57: 0 | BH57: 4 | BI57: 0 | BJ57: 50 | BK57: 0 | BL57: 0 | BM57: 1 | BN57: 6 | BO57: 12 | BP57: 12 | BQ57: 2 | BR57: 3 | BU57: VO2812 | BV57: Samenwerkingsverband VO Voorne-Putten-Rozenburg | BW57: 9190 | BX57: 1048.5 | BY57: 226 | BZ57: 277 | CA57: 3 | CB57: 28 | CC57: 2677.5 | CD57: 9202 | CE57: 175 | CF57: 3 | CG57: 28 | CH57: 11 | CI57: 91 | CJ57: 103 | CK57: 5 | CL57: 0 | CM57: 4 | CN57: 0 | CO57: 48 | CP57: 1 | CQ57: 0 | CR57: 2 | CS57: 4 | CT57: 10 | CU57: 15 | CV57: 2 | CW57: 1 | CX57: 0 | CY57: 0 | DB57: VO2812 | DC57: Samenwerkingsverband VO Voorne-Putten-Rozenburg | DD57: 9082 | DE57: 873.5 | DF57: 278 | DG57: 275 | DH57: 5 | DI57: 28 | DJ57: 9131.5 | DK57: 2 | DL57: 15 | DO57: VO2812 | DP57: Samenwerkingsverband VO Voorne-Putten-Rozenburg | DQ57: 8923.5 | DR57: 916 | DS57: 281 | DT57: 289 | DU57: 15 | DV57: 36 | DW57: 9101 | DX57: 0 | DY57: 10 | DZ57: 8917.5 | EA57: 916 | EB57: 281 | EC57: 6078 | ED57: 1953 | EF57: VO2812 | EG57: Samenwerkingsverband VO Voorne-Putten-Rozenburg | EH57: 8628.5 | EI57: 1013 | EJ57: 279 | EK57: 297 | EL57: 17 | EM57: 33 | EN57: 9101 | EO57: 0 | EP57: 10 | EQ57: 8588.5 | ER57: 1013 | ES57: 279 | ET57: 0 | EU57: 0
A58: VO2813 | B58: SWV VO Oost-IJsselmonde/West-Alblasserwaard | C58: 6725.5 | D58: 511 | E58: 203 | F58: 174 | G58: 7 | H58: 16 | I58: 7741 | K58: VO2813 | L58: SWV VO Oost-IJsselmonde/West-Alblasserwaard | M58: 6722.5 | N58: 578 | O58: 217 | P58: 182 | Q58: 9 | R58: 13 | S58: 1757.5 | T58: 7778 | U58: 114 | V58: 9 | W58: 13 | X58: 4 | Y58: 64 | Z58: 75 | AA58: 6 | AB58: 0 | AC58: 10 | AD58: 0 | AE58: 24 | AF58: 1 | AG58: 1 | AH58: 7 | AI58: 21 | AJ58: 13 | AK58: 19 | AL58: 8 | AM58: 2 | AN58: 0 | AO58: 2 | AP58: VO2813 | AQ58: SWV VO Oost-IJsselmonde/West-Alblasserwaard | AR58: 6659.5 | AS58: 606 | AT58: 204 | AU58: 165 | AV58: 5 | AW58: 9 | AX58: 1723.5 | AY58: 7660 | AZ58: 99 | BA58: 5 | BB58: 9 | BC58: 3 | BD58: 63 | BE58: 78 | BF58: 4 | BG58: 1 | BH58: 12 | BI58: 0 | BJ58: 28 | BK58: 1 | BL58: 2 | BM58: 7 | BN58: 24 | BO58: 14 | BP58: 19 | BQ58: 5 | BR58: 2 | BU58: VO2813 | BV58: SWV VO Oost-IJsselmonde/West-Alblasserwaard | BW58: 6395 | BX58: 609 | BY58: 182 | BZ58: 167 | CA58: 4 | CB58: 10 | CC58: 1642 | CD58: 7461 | CE58: 105 | CF58: 4 | CG58: 10 | CH58: 2 | CI58: 60 | CJ58: 77 | CK58: 1 | CL58: 0 | CM58: 8 | CN58: 0 | CO58: 22 | CP58: 1 | CQ58: 1 | CR58: 5 | CS58: 29 | CT58: 13 | CU58: 19 | CV58: 4 | CW58: 3 | CX58: 0 | CY58: 0 | DB58: VO2813 | DC58: SWV VO Oost-IJsselmonde/West-Alblasserwaard | DD58: 6799.5 | DE58: 495 | DF58: 193 | DG58: 174 | DH58: 8 | DI58: 17 | DJ58: 7837 | DK58: 6 | DL58: 10 | DO58: VO2813 | DP58: SWV VO Oost-IJsselmonde/West-Alblasserwaard | DQ58: 6722 | DR58: 450 | DS58: 210 | DT58: 206 | DU58: 8 | DV58: 22 | DW58: 7845 | DX58: 5 | DY58: 8 | DZ58: 6721 | EA58: 450 | EB58: 210 | EC58: 2562 | ED58: 1589 | EF58: VO2813 | EG58: SWV VO Oost-IJsselmonde/West-Alblasserwaard | EH58: 6510.5 | EI58: 427 | EJ58: 227 | EK58: 204 | EL58: 6 | EM58: 22 | EN58: 7845 | EO58: 5 | EP58: 8 | EQ58: 6510.5 | ER58: 427 | ES58: 227 | ET58: 0 | EU58: 0
A59: VO2814 | B59: Stichting Samenwerkingsverband VO Passend Onderwijs Gorinchem e.o. | C59: 8555.5 | D59: 781 | E59: 290 | F59: 192 | G59: 9 | H59: 33 | I59: 9862 | K59: VO2814 | L59: Stichting Samenwerkingsverband VO Passend Onderwijs Gorinchem e.o. | M59: 8455.5 | N59: 776 | O59: 270 | P59: 170 | Q59: 10 | R59: 24 | S59: 2221 | T59: 9761 | U59: 102 | V59: 10 | W59: 24 | X59: 8 | Y59: 60 | Z59: 74 | AA59: 8 | AB59: 0 | AC59: 10 | AD59: 0 | AE59: 47 | AF59: 5 | AG59: 2 | AH59: 3 | AI59: 8 | AJ59: 15 | AK59: 15 | AL59: 6 | AM59: 10 | AN59: 0 | AO59: 0 | AP59: VO2814 | AQ59: Stichting Samenwerkingsverband VO Passend Onderwijs Gorinchem e.o. | AR59: 8289 | AS59: 802 | AT59: 252 | AU59: 164 | AV59: 7 | AW59: 25 | AX59: 2191 | AY59: 9637 | AZ59: 90 | BA59: 7 | BB59: 25 | BC59: 8 | BD59: 66 | BE59: 55 | BF59: 9 | BG59: 0 | BH59: 4 | BI59: 0 | BJ59: 39 | BK59: 3 | BL59: 2 | BM59: 4 | BN59: 6 | BO59: 17 | BP59: 16 | BQ59: 5 | BR59: 4 | BU59: VO2814 | BV59: Stichting Samenwerkingsverband VO Passend Onderwijs Gorinchem e.o. | BW59: 8045 | BX59: 825 | BY59: 235 | BZ59: 173 | CA59: 7 | CB59: 15 | CC59: 2160 | CD59: 9444 | CE59: 99 | CF59: 7 | CG59: 15 | CH59: 4 | CI59: 70 | CJ59: 51 | CK59: 6 | CL59: 0 | CM59: 5 | CN59: 0 | CO59: 37 | CP59: 3 | CQ59: 1 | CR59: 3 | CS59: 5 | CT59: 19 | CU59: 14 | CV59: 3 | CW59: 4 | CX59: 0 | CY59: 0 | DB59: VO2814 | DC59: Stichting Samenwerkingsverband VO Passend Onderwijs Gorinchem e.o. | DD59: 8623 | DE59: 799 | DF59: 286 | DG59: 195 | DH59: 9 | DI59: 27 | DJ59: 9849.5 | DK59: 4 | DL59: 12 | DO59: VO2814 | DP59: Stichting Samenwerkingsverband VO Passend Onderwijs Gorinchem e.o. | DQ59: 8520 | DR59: 801 | DS59: 276 | DT59: 201 | DU59: 14 | DV59: 19 | DW59: 9766 | DX59: 4 | DY59: 9 | DZ59: 8470 | EA59: 801 | EB59: 276 | EC59: 4668 | ED59: 1925 | EF59: VO2814 | EG59: Stichting Samenwerkingsverband VO Passend Onderwijs Gorinchem e.o. | EH59: 8346.5 | EI59: 778 | EJ59: 275 | EK59: 192 | EL59: 18 | EM59: 22 | EN59: 9766 | EO59: 4 | EP59: 9 | EQ59: 8299.5 | ER59: 778 | ES59: 275 | ET59: 0 | EU59: 0
A60: VO2901 | B60: Stichting Passend voortgezet Onderwijs Walcheren | C60: 5261 | D60: 514 | E60: 146 | F60: 191 | G60: 10 | H60: 17 | I60: 5830 | K60: VO2901 | L60: Stichting Passend voortgezet Onderwijs Walcheren | M60: 5224.5 | N60: 537 | O60: 140 | P60: 178 | Q60: 12 | R60: 19 | S60: 1327 | T60: 5819 | U60: 91 | V60: 12 | W60: 19 | X60: 2 | Y60: 85 | Z60: 100 | AA60: 11 | AB60: 0 | AC60: 8 | AD60: 0 | AE60: 19 | AF60: 1 | AG60: 0 | AH60: 1 | AI60: 2 | AJ60: 18 | AK60: 29 | AL60: 2 | AM60: 3 | AN60: 0 | AO60: 0 | AP60: VO2901 | AQ60: Stichting Passend voortgezet Onderwijs Walcheren | AR60: 5166.5 | AS60: 539 | AT60: 140 | AU60: 153 | AV60: 10 | AW60: 13 | AX60: 1320 | AY60: 5770 | AZ60: 75 | BA60: 10 | BB60: 13 | BC60: 1 | BD60: 77 | BE60: 92 | BF60: 11 | BG60: 0 | BH60: 2 | BI60: 0 | BJ60: 24 | BK60: 1 | BL60: 0 | BM60: 1 | BN60: 1 | BO60: 19 | BP60: 28 | BQ60: 2 | BR60: 3 | BU60: VO2901 | BV60: Stichting Passend voortgezet Onderwijs Walcheren | BW60: 5159 | BX60: 565 | BY60: 132 | BZ60: 136 | CA60: 8 | CB60: 12 | CC60: 1269.5 | CD60: 5814 | CE60: 58 | CF60: 8 | CG60: 12 | CH60: 1 | CI60: 77 | CJ60: 77 | CK60: 11 | CL60: 0 | CM60: 4 | CN60: 0 | CO60: 26 | CP60: 2 | CQ60: 0 | CR60: 0 | CS60: 1 | CT60: 16 | CU60: 27 | CV60: 2 | CW60: 3 | CX60: 0 | CY60: 0 | DB60: VO2901 | DC60: Stichting Passend voortgezet Onderwijs Walcheren | DD60: 5334 | DE60: 493 | DF60: 152 | DG60: 175 | DH60: 9 | DI60: 19 | DJ60: 5857.5 | DK60: 2 | DL60: 23 | DO60: VO2901 | DP60: Stichting Passend voortgezet Onderwijs Walcheren | DQ60: 5429 | DR60: 344 | DS60: 164 | DT60: 185 | DU60: 12 | DV60: 18 | DW60: 5810 | DX60: 2 | DY60: 22 | DZ60: 5365 | EA60: 344 | EB60: 164 | EC60: 0 | ED60: 1232 | EF60: VO2901 | EG60: Stichting Passend voortgezet Onderwijs Walcheren | EH60: 5625 | EI60: 0 | EJ60: 176 | EK60: 172 | EL60: 34 | EM60: 18 | EN60: 5810 | EO60: 2 | EP60: 22 | EQ60: 5553 | ER60: 0 | ES60: 176 | ET60: 0 | EU60: 0
A61: VO2902 | B61: Coöperatie Samenwerkingsverband Passend Voortgezet Onderwijs Oosterschelderegio | C61: 5655.5 | D61: 412 | E61: 161 | F61: 195 | G61: 13 | H61: 29 | I61: 6624 | K61: VO2902 | L61: Coöperatie Samenwerkingsverband Passend Voortgezet Onderwijs Oosterschelderegio | M61: 5647.5 | N61: 450 | O61: 157 | P61: 207 | Q61: 13 | R61: 25 | S61: 1425.5 | T61: 6633 | U61: 147 | V61: 13 | W61: 25 | X61: 6 | Y61: 54 | Z61: 83 | AA61: 9 | AB61: 0 | AC61: 6 | AD61: 0 | AE61: 20 | AF61: 1 | AG61: 1 | AH61: 1 | AI61: 6 | AJ61: 53 | AK61: 41 | AL61: 3 | AM61: 4 | AN61: 0 | AO61: 0 | AP61: VO2902 | AQ61: Coöperatie Samenwerkingsverband Passend Voortgezet Onderwijs Oosterschelderegio | AR61: 5660 | AS61: 481 | AT61: 155 | AU61: 158 | AV61: 13 | AW61: 21 | AX61: 1449.5 | AY61: 6626 | AZ61: 106 | BA61: 13 | BB61: 21 | BC61: 4 | BD61: 48 | BE61: 92 | BF61: 10 | BG61: 0 | BH61: 7 | BI61: 0 | BJ61: 21 | BK61: 0 | BL61: 1 | BM61: 0 | BN61: 5 | BO61: 50 | BP61: 40 | BQ61: 1 | BR61: 4 | BU61: VO2902 | BV61: Coöperatie Samenwerkingsverband Passend Voortgezet Onderwijs Oosterschelderegio | BW61: 5594.5 | BX61: 529 | BY61: 161 | BZ61: 153 | CA61: 9 | CB61: 12 | CC61: 1431 | CD61: 6613 | CE61: 95 | CF61: 9 | CG61: 12 | CH61: 4 | CI61: 54 | CJ61: 89 | CK61: 9 | CL61: 0 | CM61: 5 | CN61: 1 | CO61: 23 | CP61: 0 | CQ61: 0 | CR61: 0 | CS61: 8 | CT61: 44 | CU61: 34 | CV61: 0 | CW61: 5 | CX61: 0 | CY61: 0 | DB61: VO2902 | DC61: Coöperatie Samenwerkingsverband Passend Voortgezet Onderwijs Oosterschelderegio | DD61: 5701.5 | DE61: 402.5 | DF61: 167 | DG61: 165 | DH61: 9 | DI61: 25 | DJ61: 6696.5 | DK61: 3 | DL61: 43 | DO61: VO2902 | DP61: Coöperatie Samenwerkingsverband Passend Voortgezet Onderwijs Oosterschelderegio | DQ61: 5623.5 | DR61: 289 | DS61: 166 | DT61: 161 | DU61: 14 | DV61: 23 | DW61: 6549 | DX61: 3 | DY61: 41 | DZ61: 5620.5 | EA61: 289 | EB61: 166 | EC61: 1152 | ED61: 1162 | EF61: VO2902 | EG61: Coöperatie Samenwerkingsverband Passend Voortgezet Onderwijs Oosterschelderegio | EH61: 5500.5 | EI61: 192 | EJ61: 166 | EK61: 169 | EL61: 15 | EM61: 11 | EN61: 6549 | EO61: 3 | EP61: 41 | EQ61: 5499.5 | ER61: 192 | ES61: 166 | ET61: 0 | EU61: 0
A62: VO2903 | B62: Samenwerkingsverband Voortgezet Onderwijs Zeeuws-Vlaanderen | C62: 4485.5 | D62: 598 | E62: 180 | F62: 198 | G62: 4 | H62: 14 | I62: 5343 | K62: VO2903 | L62: Samenwerkingsverband Voortgezet Onderwijs Zeeuws-Vlaanderen | M62: 4584.5 | N62: 543 | O62: 190 | P62: 162 | Q62: 4 | R62: 13 | S62: 1406.5 | T62: 5406 | U62: 93 | V62: 4 | W62: 13 | X62: 1 | Y62: 68 | Z62: 56 | AA62: 7 | AB62: 0 | AC62: 4 | AD62: 0 | AE62: 22 | AF62: 6 | AG62: 0 | AH62: 2 | AI62: 10 | AJ62: 11 | AK62: 47 | AL62: 4 | AM62: 1 | AN62: 0 | AO62: 0 | AP62: VO2903 | AQ62: Samenwerkingsverband Voortgezet Onderwijs Zeeuws-Vlaanderen | AR62: 4707.5 | AS62: 505 | AT62: 203 | AU62: 139 | AV62: 6 | AW62: 13 | AX62: 1394.5 | AY62: 5525 | AZ62: 67 | BA62: 6 | BB62: 13 | BC62: 1 | BD62: 71 | BE62: 66 | BF62: 8 | BG62: 0 | BH62: 6 | BI62: 0 | BJ62: 28 | BK62: 7 | BL62: 0 | BM62: 1 | BN62: 13 | BO62: 9 | BP62: 44 | BQ62: 3 | BR62: 1 | BU62: VO2903 | BV62: Samenwerkingsverband Voortgezet Onderwijs Zeeuws-Vlaanderen | BW62: 4809 | BX62: 438 | BY62: 192 | BZ62: 118 | CA62: 6 | CB62: 12 | CC62: 1302.5 | CD62: 5550 | CE62: 47 | CF62: 6 | CG62: 12 | CH62: 3 | CI62: 68 | CJ62: 64 | CK62: 7 | CL62: 1 | CM62: 5 | CN62: 0 | CO62: 31 | CP62: 8 | CQ62: 0 | CR62: 2 | CS62: 8 | CT62: 7 | CU62: 37 | CV62: 2 | CW62: 2 | CX62: 0 | CY62: 0 | DB62: VO2903 | DC62: Samenwerkingsverband Voortgezet Onderwijs Zeeuws-Vlaanderen | DD62: 4354 | DE62: 624 | DF62: 190 | DG62: 207 | DH62: 3 | DI62: 10 | DJ62: 5235 | DK62: 4 | DL62: 15 | DO62: VO2903 | DP62: Samenwerkingsverband Voortgezet Onderwijs Zeeuws-Vlaanderen | DQ62: 4279 | DR62: 528 | DS62: 205 | DT62: 208 | DU62: 4 | DV62: 9 | DW62: 5060 | DX62: 5 | DY62: 13 | DZ62: 4242 | EA62: 528 | EB62: 205 | EC62: 2952 | ED62: 1582 | EF62: VO2903 | EG62: Samenwerkingsverband Voortgezet Onderwijs Zeeuws-Vlaanderen | EH62: 4204 | EI62: 492 | EJ62: 226 | EK62: 223 | EL62: 5 | EM62: 9 | EN62: 5060 | EO62: 5 | EP62: 13 | EQ62: 4160 | ER62: 492 | ES62: 226 | ET62: 0 | EU62: 0
A63: VO3001 | B63: Stichting Samenwerkingsverband VO Bergen op Zoom e.o. | C63: 6530 | D63: 745 | E63: 146 | F63: 259 | G63: 5 | H63: 27 | I63: 7358 | K63: VO3001 | L63: Stichting Samenwerkingsverband VO Bergen op Zoom e.o. | M63: 6592 | N63: 745 | O63: 149 | P63: 239 | Q63: 6 | R63: 28 | S63: 1710 | T63: 7426 | U63: 155 | V63: 6 | W63: 28 | X63: 4 | Y63: 80 | Z63: 63 | AA63: 11 | AB63: 0 | AC63: 19 | AD63: 1 | AE63: 7 | AF63: 2 | AG63: 0 | AH63: 2 | AI63: 1 | AJ63: 22 | AK63: 46 | AL63: 4 | AM63: 1 | AN63: 0 | AO63: 0 | AP63: VO3001 | AQ63: Stichting Samenwerkingsverband VO Bergen op Zoom e.o. | AR63: 6577.5 | AS63: 762 | AT63: 146 | AU63: 231 | AV63: 6 | AW63: 25 | AX63: 1756 | AY63: 7468 | AZ63: 153 | BA63: 6 | BB63: 25 | BC63: 2 | BD63: 76 | BE63: 71 | BF63: 17 | BG63: 0 | BH63: 15 | BI63: 1 | BJ63: 6 | BK63: 4 | BL63: 0 | BM63: 2 | BN63: 0 | BO63: 17 | BP63: 38 | BQ63: 4 | BR63: 1 | BU63: VO3001 | BV63: Stichting Samenwerkingsverband VO Bergen op Zoom e.o. | BW63: 6492.5 | BX63: 809 | BY63: 176 | BZ63: 228 | CA63: 8 | CB63: 24 | CC63: 1702.5 | CD63: 7450 | CE63: 154 | CF63: 8 | CG63: 24 | CH63: 4 | CI63: 70 | CJ63: 76 | CK63: 13 | CL63: 0 | CM63: 14 | CN63: 0 | CO63: 13 | CP63: 6 | CQ63: 0 | CR63: 2 | CS63: 6 | CT63: 13 | CU63: 29 | CV63: 3 | CW63: 2 | CX63: 0 | CY63: 0 | DB63: VO3001 | DC63: Stichting Samenwerkingsverband VO Bergen op Zoom e.o. | DD63: 6487 | DE63: 810 | DF63: 154 | DG63: 237 | DH63: 6 | DI63: 27 | DJ63: 7350 | DK63: 3 | DL63: 22 | DO63: VO3001 | DP63: Stichting Samenwerkingsverband VO Bergen op Zoom e.o. | DQ63: 6367.5 | DR63: 825 | DS63: 156 | DT63: 236 | DU63: 10 | DV63: 20 | DW63: 7225 | DX63: 5 | DY63: 20 | DZ63: 6273.5 | EA63: 825 | EB63: 156 | EC63: 4662 | ED63: 1050 | EF63: VO3001 | EG63: Stichting Samenwerkingsverband VO Bergen op Zoom e.o. | EH63: 6260.5 | EI63: 777 | EJ63: 150 | EK63: 219 | EL63: 10 | EM63: 21 | EN63: 7225 | EO63: 5 | EP63: 20 | EQ63: 6196.5 | ER63: 777 | ES63: 150 | ET63: 0 | EU63: 0
A64: VO3002 | B64: Stichting Samenwerkingsverband VO Roosendaal e.o. | C64: 6871 | D64: 771 | E64: 283 | F64: 239 | G64: 12 | H64: 34 | I64: 8283 | K64: VO3002 | L64: Stichting Samenwerkingsverband VO Roosendaal e.o. | M64: 6781 | N64: 758 | O64: 281 | P64: 218 | Q64: 9 | R64: 36 | S64: 1597 | T64: 8198 | U64: 151 | V64: 9 | W64: 36 | X64: 4 | Y64: 63 | Z64: 72 | AA64: 14 | AB64: 1 | AC64: 16 | AD64: 1 | AE64: 11 | AF64: 0 | AG64: 1 | AH64: 1 | AI64: 1 | AJ64: 5 | AK64: 16 | AL64: 7 | AM64: 9 | AN64: 0 | AO64: 1 | AP64: VO3002 | AQ64: Stichting Samenwerkingsverband VO Roosendaal e.o. | AR64: 6928 | AS64: 772 | AT64: 261 | AU64: 219 | AV64: 5 | AW64: 31 | AX64: 1634 | AY64: 8297 | AZ64: 145 | BA64: 5 | BB64: 31 | BC64: 6 | BD64: 68 | BE64: 66 | BF64: 14 | BG64: 0 | BH64: 10 | BI64: 1 | BJ64: 8 | BK64: 1 | BL64: 1 | BM64: 1 | BN64: 3 | BO64: 6 | BP64: 20 | BQ64: 4 | BR64: 9 | BU64: VO3002 | BV64: Stichting Samenwerkingsverband VO Roosendaal e.o. | BW64: 6977.5 | BX64: 758 | BY64: 235 | BZ64: 230 | CA64: 2 | CB64: 21 | CC64: 1612 | CD64: 8330 | CE64: 156 | CF64: 2 | CG64: 21 | CH64: 7 | CI64: 67 | CJ64: 68 | CK64: 15 | CL64: 0 | CM64: 8 | CN64: 1 | CO64: 6 | CP64: 2 | CQ64: 0 | CR64: 3 | CS64: 5 | CT64: 4 | CU64: 19 | CV64: 2 | CW64: 7 | CX64: 0 | CY64: 1 | DB64: VO3002 | DC64: Stichting Samenwerkingsverband VO Roosendaal e.o. | DD64: 6758 | DE64: 834 | DF64: 278 | DG64: 239 | DH64: 14 | DI64: 35 | DJ64: 8261.5 | DK64: 7 | DL64: 7 | DO64: VO3002 | DP64: Stichting Samenwerkingsverband VO Roosendaal e.o. | DQ64: 6651 | DR64: 858 | DS64: 270 | DT64: 232 | DU64: 22 | DV64: 30 | DW64: 8240 | DX64: 7 | DY64: 6 | DZ64: 6650 | EA64: 858 | EB64: 270 | EC64: 0 | ED64: 1806 | EF64: VO3002 | EG64: Stichting Samenwerkingsverband VO Roosendaal e.o. | EH64: 7260 | EI64: 0 | EJ64: 258 | EK64: 223 | EL64: 23 | EM64: 23 | EN64: 8240 | EO64: 7 | EP64: 6 | EQ64: 7258 | ER64: 0 | ES64: 258 | ET64: 0 | EU64: 0
A65: VO3003 | B65: St. Regionaal Samenwerkingsverband Breda en omgeving | C65: 19922 | D65: 2501 | E65: 498 | F65: 665 | G65: 30 | H65: 78 | I65: 23113 | K65: VO3003 | L65: St. Regionaal Samenwerkingsverband Breda en omgeving | M65: 19672.5 | N65: 2382 | O65: 502 | P65: 663 | Q65: 32 | R65: 79 | S65: 4871 | T65: 22727 | U65: 444 | V65: 32 | W65: 79 | X65: 23 | Y65: 196 | Z65: 158 | AA65: 57 | AB65: 0 | AC65: 47 | AD65: 1 | AE65: 47 | AF65: 19 | AG65: 0 | AH65: 15 | AI65: 9 | AJ65: 19 | AK65: 51 | AL65: 21 | AM65: 12 | AN65: 0 | AO65: 0 | AP65: VO3003 | AQ65: St. Regionaal Samenwerkingsverband Breda en omgeving | AR65: 19363 | AS65: 2450.5 | AT65: 493 | AU65: 593 | AV65: 31 | AW65: 71 | AX65: 4863 | AY65: 22499 | AZ65: 379 | BA65: 31 | BB65: 71 | BC65: 28 | BD65: 186 | BE65: 148 | BF65: 56 | BG65: 0 | BH65: 53 | BI65: 0 | BJ65: 52 | BK65: 12 | BL65: 0 | BM65: 31 | BN65: 11 | BO65: 22 | BP65: 49 | BQ65: 24 | BR65: 12 | BU65: VO3003 | BV65: St. Regionaal Samenwerkingsverband Breda en omgeving | BW65: 19382.5 | BX65: 2510 | BY65: 467 | BZ65: 569 | CA65: 32 | CB65: 76 | CC65: 4708 | CD65: 22416 | CE65: 362 | CF65: 32 | CG65: 76 | CH65: 25 | CI65: 182 | CJ65: 127 | CK65: 53 | CL65: 0 | CM65: 38 | CN65: 0 | CO65: 52 | CP65: 12 | CQ65: 1 | CR65: 32 | CS65: 8 | CT65: 21 | CU65: 40 | CV65: 18 | CW65: 24 | CX65: 0 | CY65: 0 | DB65: VO3003 | DC65: St. Regionaal Samenwerkingsverband Breda en omgeving | DD65: 20067 | DE65: 2552 | DF65: 504 | DG65: 684 | DH65: 25 | DI65: 76 | DJ65: 23262 | DK65: 12 | DL65: 14 | DO65: VO3003 | DP65: St. Regionaal Samenwerkingsverband Breda en omgeving | DQ65: 19869 | DR65: 2763.5 | DS65: 510 | DT65: 689 | DU65: 34 | DV65: 59 | DW65: 23210 | DX65: 11 | DY65: 12 | DZ65: 19697 | EA65: 2763.5 | EB65: 510 | EC65: 15585 | ED65: 3458 | EF65: VO3003 | EG65: St. Regionaal Samenwerkingsverband Breda en omgeving | EH65: 20165 | EI65: 2597.5 | EJ65: 494 | EK65: 673 | EL65: 71 | EM65: 51 | EN65: 23210 | EO65: 11 | EP65: 12 | EQ65: 20040 | ER65: 2597.5 | ES65: 494 | ET65: 0 | EU65: 0
A66: VO3004 | B66: Samenwerkingsverband Passend Onderwijs VO Tilburg e.o. | C66: 15651 | D66: 1775 | E66: 214 | F66: 478 | G66: 44 | H66: 81 | I66: 17052 | K66: VO3004 | L66: Samenwerkingsverband Passend Onderwijs VO Tilburg e.o. | M66: 15346.5 | N66: 1760 | O66: 227 | P66: 451 | Q66: 44 | R66: 69 | S66: 3571.5 | T66: 16808 | U66: 291 | V66: 44 | W66: 69 | X66: 19 | Y66: 141 | Z66: 324 | AA66: 43 | AB66: 1 | AC66: 39 | AD66: 1 | AE66: 53 | AF66: 11 | AG66: 2 | AH66: 5 | AI66: 13 | AJ66: 41 | AK66: 29 | AL66: 6 | AM66: 11 | AN66: 0 | AO66: 0 | AP66: VO3004 | AQ66: Samenwerkingsverband Passend Onderwijs VO Tilburg e.o. | AR66: 15135 | AS66: 1647 | AT66: 221 | AU66: 425 | AV66: 43 | AW66: 74 | AX66: 3334.5 | AY66: 16588 | AZ66: 274 | BA66: 43 | BB66: 74 | BC66: 16 | BD66: 135 | BE66: 309 | BF66: 37 | BG66: 4 | BH66: 30 | BI66: 1 | BJ66: 51 | BK66: 8 | BL66: 1 | BM66: 3 | BN66: 13 | BO66: 37 | BP66: 24 | BQ66: 5 | BR66: 11 | BU66: VO3004 | BV66: Samenwerkingsverband Passend Onderwijs VO Tilburg e.o. | BW66: 15139.5 | BX66: 1531 | BY66: 223 | BZ66: 391 | CA66: 45 | CB66: 51 | CC66: 3399 | CD66: 16566 | CE66: 229 | CF66: 45 | CG66: 51 | CH66: 18 | CI66: 144 | CJ66: 311 | CK66: 30 | CL66: 4 | CM66: 38 | CN66: 1 | CO66: 52 | CP66: 11 | CQ66: 0 | CR66: 4 | CS66: 18 | CT66: 28 | CU66: 23 | CV66: 4 | CW66: 13 | CX66: 0 | CY66: 0 | DB66: VO3004 | DC66: Samenwerkingsverband Passend Onderwijs VO Tilburg e.o. | DD66: 15760 | DE66: 1812 | DF66: 212 | DG66: 484 | DH66: 47 | DI66: 75 | DJ66: 17220 | DK66: 8 | DL66: 44 | DO66: VO3004 | DP66: Samenwerkingsverband Passend Onderwijs VO Tilburg e.o. | DQ66: 15797 | DR66: 1700 | DS66: 227 | DT66: 535 | DU66: 65 | DV66: 62 | DW66: 17275 | DX66: 7 | DY66: 40 | DZ66: 15546 | EA66: 1700 | EB66: 227 | EC66: 9516 | ED66: 1645 | EF66: VO3004 | EG66: Samenwerkingsverband Passend Onderwijs VO Tilburg e.o. | EH66: 15717.5 | EI66: 1586 | EJ66: 235 | EK66: 570 | EL66: 71 | EM66: 50 | EN66: 17275 | EO66: 7 | EP66: 40 | EQ66: 15523.5 | ER66: 1586 | ES66: 235 | ET66: 0 | EU66: 0
A67: VO3005 | B67: SWV Voortgezet Onderwijs de Meierij | C67: 16840.5 | D67: 1506 | E67: 659 | F67: 716 | G67: 9 | H67: 95 | I67: 19199 | K67: VO3005 | L67: SWV Voortgezet Onderwijs de Meierij | M67: 16721.5 | N67: 1499 | O67: 656 | P67: 734 | Q67: 12 | R67: 96 | S67: 3601.5 | T67: 19007 | U67: 467 | V67: 10 | W67: 94 | X67: 14 | Y67: 240 | Z67: 287 | AA67: 14 | AB67: 0 | AC67: 22 | AD67: 2 | AE67: 105 | AF67: 12 | AG67: 2 | AH67: 8 | AI67: 24 | AJ67: 56 | AK67: 27 | AL67: 6 | AM67: 6 | AN67: 0 | AO67: 0 | AP67: VO3005 | AQ67: SWV Voortgezet Onderwijs de Meierij | AR67: 16923 | AS67: 1481 | AT67: 637 | AU67: 713 | AV67: 15 | AW67: 98 | AX67: 3649.5 | AY67: 18529 | AZ67: 459 | BA67: 13 | BB67: 97 | BC67: 14 | BD67: 225 | BE67: 315 | BF67: 16 | BG67: 0 | BH67: 20 | BI67: 1 | BJ67: 122 | BK67: 13 | BL67: 0 | BM67: 2 | BN67: 20 | BO67: 62 | BP67: 30 | BQ67: 7 | BR67: 6 | BU67: VO3005 | BV67: SWV Voortgezet Onderwijs de Meierij | BW67: 16773 | BX67: 1529 | BY67: 611 | BZ67: 692 | CA67: 17 | CB67: 84 | CC67: 3609 | CD67: 18205 | CE67: 432 | CF67: 17 | CG67: 84 | CH67: 9 | CI67: 251 | CJ67: 323 | CK67: 18 | CL67: 0 | CM67: 14 | CN67: 0 | CO67: 113 | CP67: 10 | CQ67: 0 | CR67: 1 | CS67: 18 | CT67: 70 | CU67: 19 | CV67: 6 | CW67: 8 | CX67: 0 | CY67: 1 | DB67: VO3005 | DC67: SWV Voortgezet Onderwijs de Meierij | DD67: 16897 | DE67: 1621 | DF67: 661 | DG67: 685 | DH67: 8 | DI67: 82 | DJ67: 19280 | DK67: 8 | DL67: 52 | DO67: VO3005 | DP67: SWV Voortgezet Onderwijs de Meierij | DQ67: 17333.5 | DR67: 1179 | DS67: 673 | DT67: 678 | DU67: 22 | DV67: 62 | DW67: 19359 | DX67: 8 | DY67: 45 | DZ67: 17256.5 | EA67: 1179 | EB67: 673 | EC67: 4638 | ED67: 4487 | EF67: VO3005 | EG67: SWV Voortgezet Onderwijs de Meierij | EH67: 17498.5 | EI67: 773 | EJ67: 641 | EK67: 706 | EL67: 26 | EM67: 51 | EN67: 19359 | EO67: 8 | EP67: 45 | EQ67: 17415.5 | ER67: 773 | ES67: 641 | ET67: 0 | EU67: 0
A68: VO3006 | B68: Stichting samenwerkingsverband Voortgezet Onderwijs 30-06 | C68: 11348.5 | D68: 2656 | E68: 518 | F68: 458 | G68: 20 | H68: 55 | I68: 14790 | K68: VO3006 | L68: Stichting samenwerkingsverband Voortgezet Onderwijs 30-06 | M68: 11252.5 | N68: 2740.5 | O68: 492 | P68: 435 | Q68: 18 | R68: 60 | S68: 3281 | T68: 14709 | U68: 260 | V68: 20 | W68: 62 | X68: 9 | Y68: 179 | Z68: 165 | AA68: 6 | AB68: 0 | AC68: 22 | AD68: 0 | AE68: 47 | AF68: 3 | AG68: 0 | AH68: 6 | AI68: 22 | AJ68: 42 | AK68: 51 | AL68: 12 | AM68: 13 | AN68: 0 | AO68: 0 | AP68: VO3006 | AQ68: Stichting samenwerkingsverband Voortgezet Onderwijs 30-06 | AR68: 11083.5 | AS68: 2685.5 | AT68: 465 | AU68: 423 | AV68: 17 | AW68: 56 | AX68: 3111.5 | AY68: 15065 | AZ68: 238 | BA68: 19 | BB68: 57 | BC68: 10 | BD68: 190 | BE68: 186 | BF68: 3 | BG68: 0 | BH68: 16 | BI68: 0 | BJ68: 47 | BK68: 4 | BL68: 0 | BM68: 5 | BN68: 22 | BO68: 40 | BP68: 46 | BQ68: 13 | BR68: 13 | BU68: VO3006 | BV68: Stichting samenwerkingsverband Voortgezet Onderwijs 30-06 | BW68: 11173 | BX68: 2490 | BY68: 431 | BZ68: 429 | CA68: 17 | CB68: 62 | CC68: 3096.5 | CD68: 14973 | CE68: 216 | CF68: 17 | CG68: 62 | CH68: 12 | CI68: 201 | CJ68: 193 | CK68: 3 | CL68: 0 | CM68: 12 | CN68: 0 | CO68: 46 | CP68: 4 | CQ68: 0 | CR68: 6 | CS68: 25 | CT68: 38 | CU68: 43 | CV68: 11 | CW68: 15 | CX68: 0 | CY68: 1 | DB68: VO3006 | DC68: Stichting samenwerkingsverband Voortgezet Onderwijs 30-06 | DD68: 11226 | DE68: 2511 | DF68: 481 | DG68: 470 | DH68: 23 | DI68: 50 | DJ68: 14600.5 | DK68: 8 | DL68: 58 | DO68: VO3006 | DP68: Stichting samenwerkingsverband Voortgezet Onderwijs 30-06 | DQ68: 11151.5 | DR68: 2301.5 | DS68: 464 | DT68: 516 | DU68: 19 | DV68: 37 | DW68: 14357 | DX68: 4 | DY68: 60 | DZ68: 11122.5 | EA68: 2301.5 | EB68: 464 | EC68: =ROUND(ER68*(1+$O$1),2) -> 13200 | ED68: =ROUND(ES68*(1+$P$1),2) -> 3003 | EF68: VO3006 | EG68: Stichting samenwerkingsverband Voortgezet Onderwijs 30-06 | EH68: 10862 | EI68: 2200 | EJ68: 429 | EK68: 543 | EL68: 24 | EM68: 38 | EN68: 14357 | EO68: 4 | EP68: 60 | EQ68: 10793 | ER68: 2200 | ES68: 429 | ET68: =ROUND(FK68*(1+$P$1),2) -> 0 | EU68: 0
A69: VO3007 | B69: Stichting Regionaal samenwerkingsverband v PO Eindhoven en Kempenland | C69: 23761.5 | D69: 4319 | E69: 489 | F69: 901 | G69: 39 | H69: 106 | I69: 26391 | K69: VO3007 | L69: Stichting Regionaal samenwerkingsverband v PO Eindhoven en Kempenland | M69: 23315.5 | N69: 4443 | O69: 500 | P69: 963 | Q69: 38 | R69: 107 | S69: 6339.5 | T69: 26234 | U69: 648 | V69: 38 | W69: 107 | X69: 47 | Y69: 268 | Z69: 742 | AA69: 36 | AB69: 1 | AC69: 29 | AD69: 5 | AE69: 216 | AF69: 16 | AG69: 0 | AH69: 9 | AI69: 22 | AJ69: 212 | AK69: 49 | AL69: 5 | AM69: 11 | AN69: 8 | AO69: 1 | AP69: VO3007 | AQ69: Stichting Regionaal samenwerkingsverband v PO Eindhoven en Kempenland | AR69: 23098.5 | AS69: 4293 | AT69: 471 | AU69: 916 | AV69: 32 | AW69: 107 | AX69: 6004.5 | AY69: 26077 | AZ69: 615 | BA69: 32 | BB69: 107 | BC69: 42 | BD69: 259 | BE69: 648 | BF69: 27 | BG69: 1 | BH69: 10 | BI69: 13 | BJ69: 232 | BK69: 15 | BL69: 0 | BM69: 2 | BN69: 23 | BO69: 196 | BP69: 42 | BQ69: 3 | BR69: 11 | BU69: VO3007 | BV69: Stichting Regionaal samenwerkingsverband v PO Eindhoven en Kempenland | BW69: 23133 | BX69: 4064 | BY69: 451 | BZ69: 915 | CA69: 42 | CB69: 93 | CC69: 5895.5 | CD69: 25971 | CE69: 592 | CF69: 42 | CG69: 93 | CH69: 49 | CI69: 274 | CJ69: 625 | CK69: 22 | CL69: 1 | CM69: 7 | CN69: 12 | CO69: 211 | CP69: 10 | CQ69: 0 | CR69: 2 | CS69: 29 | CT69: 176 | CU69: 41 | CV69: 2 | CW69: 17 | CX69: 1 | CY69: 0 | DB69: VO3007 | DC69: Stichting Regionaal samenwerkingsverband v PO Eindhoven en Kempenland | DD69: 24474 | DE69: 3984.5 | DF69: 486 | DG69: 852 | DH69: 45 | DI69: 93 | DJ69: 26393.5 | DK69: 5 | DL69: 199 | DO69: VO3007 | DP69: Stichting Regionaal samenwerkingsverband v PO Eindhoven en Kempenland | DQ69: 25925 | DR69: 2845.5 | DS69: 486 | DT69: 909 | DU69: 44 | DV69: 96 | DW69: 26635 | DX69: 5 | DY69: 192 | DZ69: 25698 | EA69: 2845.5 | EB69: 486 | EC69: 10473 | ED69: 3101 | EF69: VO3007 | EG69: Stichting Regionaal samenwerkingsverband v PO Eindhoven en Kempenland | EH69: 26995 | EI69: 1745.5 | EJ69: 443 | EK69: 914 | EL69: 48 | EM69: 102 | EN69: 26635 | EO69: 5 | EP69: 192 | EQ69: 26833 | ER69: 1745.5 | ES69: 443 | ET69: 0 | EU69: 0
A70: VO3008 | B70: Swv passend onderwijs VO-VSO Helmond-Peelland | C70: 12893 | D70: 1569 | E70: 438 | F70: 684 | G70: 26 | H70: 49 | I70: 16151 | K70: VO3008 | L70: Swv passend onderwijs VO-VSO Helmond-Peelland | M70: 12848.5 | N70: 1538 | O70: 448 | P70: 677 | Q70: 30 | R70: 55 | S70: 3309.5 | T70: 15995 | U70: 501 | V70: 30 | W70: 55 | X70: 37 | Y70: 139 | Z70: 238 | AA70: 17 | AB70: 0 | AC70: 20 | AD70: 0 | AE70: 55 | AF70: 3 | AG70: 0 | AH70: 4 | AI70: 26 | AJ70: 99 | AK70: 13 | AL70: 1 | AM70: 6 | AN70: 0 | AO70: 1 | AP70: VO3008 | AQ70: Swv passend onderwijs VO-VSO Helmond-Peelland | AR70: 12902 | AS70: 1560.5 | AT70: 416 | AU70: 700 | AV70: 24 | AW70: 53 | AX70: 3226.5 | AY70: 15941 | AZ70: 503 | BA70: 24 | BB70: 53 | BC70: 41 | BD70: 156 | BE70: 238 | BF70: 17 | BG70: 0 | BH70: 2 | BI70: 0 | BJ70: 55 | BK70: 3 | BL70: 0 | BM70: 0 | BN70: 27 | BO70: 100 | BP70: 12 | BQ70: 1 | BR70: 6 | BU70: VO3008 | BV70: Swv passend onderwijs VO-VSO Helmond-Peelland | BW70: 13007 | BX70: 1561 | BY70: 376 | BZ70: 681 | CA70: 21 | CB70: 53 | CC70: 3312 | CD70: 15807 | CE70: 472 | CF70: 21 | CG70: 53 | CH70: 51 | CI70: 158 | CJ70: 240 | CK70: 14 | CL70: 0 | CM70: 1 | CN70: 0 | CO70: 63 | CP70: 2 | CQ70: 0 | CR70: 0 | CS70: 19 | CT70: 81 | CU70: 14 | CV70: 1 | CW70: 10 | CX70: 0 | CY70: 0 | DB70: VO3008 | DC70: Swv passend onderwijs VO-VSO Helmond-Peelland | DD70: 12892.5 | DE70: 1567 | DF70: 431 | DG70: 637 | DH70: 31 | DI70: 37 | DJ70: 16175.5 | DK70: 3 | DL70: 90 | DO70: VO3008 | DP70: Swv passend onderwijs VO-VSO Helmond-Peelland | DQ70: 12909.5 | DR70: 1498 | DS70: 416 | DT70: 647 | DU70: 16 | DV70: 20 | DW70: 16163 | DX70: 3 | DY70: 91 | DZ70: 12829.5 | EA70: 1498 | EB70: 416 | EC70: 6138 | ED70: 2744 | EF70: VO3008 | EG70: Swv passend onderwijs VO-VSO Helmond-Peelland | EH70: 13155 | EI70: 1023 | EJ70: 392 | EK70: 646 | EL70: 28 | EM70: 26 | EN70: 16163 | EO70: 3 | EP70: 91 | EQ70: 13089 | ER70: 1023 | ES70: 392 | ET70: 0 | EU70: 0
A71: VO3009 | B71: Stichting Samenwerkingsverband Voortgezet Onderwijs De Langstraat 30-09 | C71: 6253 | D71: 1068 | E71: 233 | F71: 199 | G71: 9 | H71: 34 | I71: 8395 | K71: VO3009 | L71: Stichting Samenwerkingsverband Voortgezet Onderwijs De Langstraat 30-09 | M71: 6287 | N71: 1055 | O71: 219 | P71: 175 | Q71: 6 | R71: 32 | S71: 2044.5 | T71: 8426 | U71: 114 | V71: 6 | W71: 32 | X71: 3 | Y71: 58 | Z71: 119 | AA71: 22 | AB71: 0 | AC71: 19 | AD71: 0 | AE71: 52 | AF71: 9 | AG71: 2 | AH71: 6 | AI71: 16 | AJ71: 14 | AK71: 21 | AL71: 0 | AM71: 1 | AN71: 0 | AO71: 0 | AP71: VO3009 | AQ71: Stichting Samenwerkingsverband Voortgezet Onderwijs De Langstraat 30-09 | AR71: 6277 | AS71: 994 | AT71: 223 | AU71: 165 | AV71: 8 | AW71: 26 | AX71: 1996 | AY71: 8405 | AZ71: 97 | BA71: 8 | BB71: 26 | BC71: 4 | BD71: 64 | BE71: 111 | BF71: 14 | BG71: 0 | BH71: 16 | BI71: 0 | BJ71: 52 | BK71: 7 | BL71: 0 | BM71: 8 | BN71: 18 | BO71: 12 | BP71: 18 | BQ71: 0 | BR71: 1 | BU71: VO3009 | BV71: Stichting Samenwerkingsverband Voortgezet Onderwijs De Langstraat 30-09 | BW71: 6267 | BX71: 995.5 | BY71: 200 | BZ71: 152 | CA71: 6 | CB71: 22 | CC71: 1993.5 | CD71: 8446 | CE71: 87 | CF71: 6 | CG71: 22 | CH71: 1 | CI71: 64 | CJ71: 96 | CK71: 17 | CL71: 0 | CM71: 14 | CN71: 0 | CO71: 49 | CP71: 7 | CQ71: 0 | CR71: 5 | CS71: 11 | CT71: 13 | CU71: 18 | CV71: 1 | CW71: 2 | CX71: 0 | CY71: 0 | DB71: VO3009 | DC71: Stichting Samenwerkingsverband Voortgezet Onderwijs De Langstraat 30-09 | DD71: 6223 | DE71: 1025 | DF71: 227 | DG71: 192 | DH71: 9 | DI71: 31 | DJ71: 8314.5 | DK71: 2 | DL71: 15 | DO71: VO3009 | DP71: Stichting Samenwerkingsverband Voortgezet Onderwijs De Langstraat 30-09 | DQ71: 6223.5 | DR71: 979 | DS71: 220 | DT71: 186 | DU71: 17 | DV71: 27 | DW71: 8339 | DX71: 4 | DY71: 13 | DZ71: 6199.5 | EA71: 979 | EB71: 220 | EC71: 4926 | ED71: 1596 | EF71: VO3009 | EG71: Stichting Samenwerkingsverband Voortgezet Onderwijs De Langstraat 30-09 | EH71: 6244.5 | EI71: 821 | EJ71: 228 | EK71: 194 | EL71: 19 | EM71: 23 | EN71: 8339 | EO71: 4 | EP71: 13 | EQ71: 6198.5 | ER71: 821 | ES71: 228 | ET71: 0 | EU71: 0
A72: VO3101 | B72: Stichting Samenwerkingsverband VOVSO Noord-Limburg | C72: 11493 | D72: 1299 | E72: 346 | F72: 522 | G72: 16 | H72: 53 | I72: 13288 | K72: VO3101 | L72: Stichting Samenwerkingsverband VOVSO Noord-Limburg | M72: 11645 | N72: 1342 | O72: 342 | P72: 498 | Q72: 14 | R72: 55 | S72: 3140 | T72: 13322 | U72: 354 | V72: 14 | W72: 55 | X72: 10 | Y72: 134 | Z72: 160 | AA72: 12 | AB72: 0 | AC72: 16 | AD72: 0 | AE72: 90 | AF72: 4 | AG72: 0 | AH72: 6 | AI72: 14 | AJ72: 37 | AK72: 24 | AL72: 3 | AM72: 7 | AN72: 0 | AO72: 0 | AP72: VO3101 | AQ72: Stichting Samenwerkingsverband VOVSO Noord-Limburg | AR72: 11871.5 | AS72: 1285 | AT72: 330 | AU72: 456 | AV72: 12 | AW72: 44 | AX72: 3040.5 | AY72: 13499 | AZ72: 310 | BA72: 12 | BB72: 44 | BC72: 9 | BD72: 137 | BE72: 147 | BF72: 7 | BG72: 1 | BH72: 15 | BI72: 0 | BJ72: 95 | BK72: 7 | BL72: 0 | BM72: 5 | BN72: 14 | BO72: 36 | BP72: 19 | BQ72: 5 | BR72: 7 | BU72: VO3101 | BV72: Stichting Samenwerkingsverband VOVSO Noord-Limburg | BW72: 11887.5 | BX72: 1269 | BY72: 320 | BZ72: 471 | CA72: 16 | CB72: 37 | CC72: 2987.5 | CD72: 13489 | CE72: 323 | CF72: 16 | CG72: 37 | CH72: 12 | CI72: 136 | CJ72: 129 | CK72: 8 | CL72: 1 | CM72: 13 | CN72: 0 | CO72: 95 | CP72: 8 | CQ72: 0 | CR72: 5 | CS72: 16 | CT72: 38 | CU72: 21 | CV72: 7 | CW72: 13 | CX72: 0 | CY72: 2 | DB72: VO3101 | DC72: Stichting Samenwerkingsverband VOVSO Noord-Limburg | DD72: 11216 | DE72: 1316 | DF72: 348 | DG72: 520 | DH72: 16 | DI72: 46 | DJ72: 13103 | DK72: 7 | DL72: 47 | DO72: VO3101 | DP72: Stichting Samenwerkingsverband VOVSO Noord-Limburg | DQ72: 11193.5 | DR72: 1251 | DS72: 367 | DT72: 494 | DU72: 17 | DV72: 28 | DW72: 13154 | DX72: 7 | DY72: 43 | DZ72: 11103.5 | EA72: 1251 | EB72: 367 | EC72: 5220 | ED72: 2660 | EF72: VO3101 | EG72: Stichting Samenwerkingsverband VOVSO Noord-Limburg | EH72: 11114 | EI72: 870 | EJ72: 380 | EK72: 435 | EL72: 22 | EM72: 35 | EN72: 13154 | EO72: 7 | EP72: 43 | EQ72: 11016 | ER72: 870 | ES72: 380 | ET72: 0 | EU72: 0
A73: VO3102 | B73: Stichting Samenwerkingsverband Passend Onderwijs VO/VSO 31.02 | C73: 7859 | D73: 1156 | E73: 169 | F73: 424 | G73: 14 | H73: 33 | I73: 9777 | K73: VO3102 | L73: Stichting Samenwerkingsverband Passend Onderwijs VO/VSO 31.02 | M73: 7601 | N73: 1234.5 | O73: 152 | P73: 447 | Q73: 13 | R73: 29 | S73: 2146.5 | T73: 9675 | U73: 322 | V73: 13 | W73: 29 | X73: 7 | Y73: 118 | Z73: 112 | AA73: 3 | AB73: 1 | AC73: 6 | AD73: 0 | AE73: 43 | AF73: 4 | AG73: 0 | AH73: 4 | AI73: 7 | AJ73: 11 | AK73: 10 | AL73: 3 | AM73: 7 | AN73: 0 | AO73: 1 | AP73: VO3102 | AQ73: Stichting Samenwerkingsverband Passend Onderwijs VO/VSO 31.02 | AR73: 7444 | AS73: 1301.5 | AT73: 156 | AU73: 450 | AV73: 13 | AW73: 24 | AX73: 2102 | AY73: 9561 | AZ73: 317 | BA73: 13 | BB73: 24 | BC73: 9 | BD73: 124 | BE73: 113 | BF73: 5 | BG73: 0 | BH73: 3 | BI73: 0 | BJ73: 46 | BK73: 2 | BL73: 0 | BM73: 0 | BN73: 11 | BO73: 12 | BP73: 8 | BQ73: 3 | BR73: 7 | BU73: VO3102 | BV73: Stichting Samenwerkingsverband Passend Onderwijs VO/VSO 31.02 | BW73: 7352.5 | BX73: 1357.5 | BY73: 149 | BZ73: 415 | CA73: 11 | CB73: 19 | CC73: 2143 | CD73: 9515 | CE73: 273 | CF73: 11 | CG73: 19 | CH73: 10 | CI73: 132 | CJ73: 113 | CK73: 5 | CL73: 0 | CM73: 10 | CN73: 0 | CO73: 55 | CP73: 3 | CQ73: 0 | CR73: 0 | CS73: 10 | CT73: 10 | CU73: 11 | CV73: 3 | CW73: 7 | CX73: 0 | CY73: 0 | DB73: VO3102 | DC73: Stichting Samenwerkingsverband Passend Onderwijs VO/VSO 31.02 | DD73: 7798 | DE73: 1135 | DF73: 171 | DG73: 397 | DH73: 13 | DI73: 31 | DJ73: 9643.5 | DK73: 3 | DL73: 9 | DO73: VO3102 | DP73: Stichting Samenwerkingsverband Passend Onderwijs VO/VSO 31.02 | DQ73: 7620 | DR73: 1074 | DS73: 186 | DT73: 375 | DU73: 15 | DV73: 20 | DW73: 9508 | DX73: 3 | DY73: 8 | DZ73: 7538 | EA73: 1074 | EB73: 186 | EC73: 5811 | ED73: 1372 | EF73: VO3102 | EG73: Stichting Samenwerkingsverband Passend Onderwijs VO/VSO 31.02 | EH73: 7514 | EI73: 968.5 | EJ73: 196 | EK73: 375 | EL73: 13 | EM73: 19 | EN73: 9508 | EO73: 3 | EP73: 8 | EQ73: 7359 | ER73: 968.5 | ES73: 196 | ET73: 0 | EU73: 0
A74: VO3103 | B74: Stichting Samenwerkingsverband VO Weert Nederweert Cranendonck | C74: 3957 | D74: 310 | E74: 159 | F74: 202 | G74: 6 | H74: 10 | I74: 4592 | K74: VO3103 | L74: Stichting Samenwerkingsverband VO Weert Nederweert Cranendonck | M74: 3949.5 | N74: 293 | O74: 154 | P74: 201 | Q74: 7 | R74: 10 | S74: 1011 | T74: 4517 | U74: 136 | V74: 7 | W74: 10 | X74: 14 | Y74: 51 | Z74: 67 | AA74: 6 | AB74: 0 | AC74: 8 | AD74: 0 | AE74: 8 | AF74: 1 | AG74: 0 | AH74: 1 | AI74: 10 | AJ74: 28 | AK74: 6 | AL74: 0 | AM74: 0 | AN74: 0 | AO74: 0 | AP74: VO3103 | AQ74: Stichting Samenwerkingsverband VO Weert Nederweert Cranendonck | AR74: 4035.5 | AS74: 298 | AT74: 154 | AU74: 189 | AV74: 5 | AW74: 14 | AX74: 1038.5 | AY74: 4556 | AZ74: 134 | BA74: 5 | BB74: 14 | BC74: 12 | BD74: 43 | BE74: 89 | BF74: 8 | BG74: 0 | BH74: 4 | BI74: 0 | BJ74: 10 | BK74: 2 | BL74: 0 | BM74: 1 | BN74: 8 | BO74: 26 | BP74: 4 | BQ74: 0 | BR74: 0 | BU74: VO3103 | BV74: Stichting Samenwerkingsverband VO Weert Nederweert Cranendonck | BW74: 4105 | BX74: 305 | BY74: 143 | BZ74: 159 | CA74: 5 | CB74: 13 | CC74: 1014.5 | CD74: 4592 | CE74: 110 | CF74: 5 | CG74: 13 | CH74: 16 | CI74: 33 | CJ74: 97 | CK74: 5 | CL74: 0 | CM74: 5 | CN74: 0 | CO74: 9 | CP74: 0 | CQ74: 0 | CR74: 2 | CS74: 7 | CT74: 28 | CU74: 4 | CV74: 1 | CW74: 1 | CX74: 0 | CY74: 0 | DB74: VO3103 | DC74: Stichting Samenwerkingsverband VO Weert Nederweert Cranendonck | DD74: 3958 | DE74: 345 | DF74: 139 | DG74: 178 | DH74: 4 | DI74: 13 | DJ74: 4645.5 | DK74: 0 | DL74: 17 | DO74: VO3103 | DP74: Stichting Samenwerkingsverband VO Weert Nederweert Cranendonck | DQ74: 3809.5 | DR74: 356 | DS74: 132 | DT74: 163 | DU74: 6 | DV74: 10 | DW74: 4469 | DX74: 0 | DY74: 13 | DZ74: 3724.5 | EA74: 356 | EB74: 132 | EC74: 2148 | ED74: 868 | EF74: VO3103 | EG74: Stichting Samenwerkingsverband VO Weert Nederweert Cranendonck | EH74: 3811.5 | EI74: 358 | EJ74: 124 | EK74: 159 | EL74: 8 | EM74: 10 | EN74: 4469 | EO74: 0 | EP74: 13 | EQ74: 3702.5 | ER74: 358 | ES74: 124 | ET74: 0 | EU74: 0
A75: VO3104 | B75: Stichting Samenwerkingsverband Passend Onderwijs VO 31-04 | C75: 7584.5 | D75: 473 | E75: 154 | F75: 343 | G75: 13 | H75: 36 | I75: 7756 | K75: VO3104 | L75: Stichting Samenwerkingsverband Passend Onderwijs VO 31-04 | M75: 7722.5 | N75: 465 | O75: 158 | P75: 377 | Q75: 15 | R75: 35 | S75: 1611 | T75: 7920 | U75: 285 | V75: 15 | W75: 35 | X75: 6 | Y75: 86 | Z75: 71 | AA75: 2 | AB75: 1 | AC75: 4 | AD75: 0 | AE75: 34 | AF75: 0 | AG75: 0 | AH75: 1 | AI75: 6 | AJ75: 2 | AK75: 6 | AL75: 1 | AM75: 7 | AN75: 0 | AO75: 0 | AP75: VO3104 | AQ75: Stichting Samenwerkingsverband Passend Onderwijs VO 31-04 | AR75: 7692 | AS75: 491.5 | AT75: 157 | AU75: 357 | AV75: 18 | AW75: 36 | AX75: 1592.5 | AY75: 7940 | AZ75: 267 | BA75: 18 | BB75: 36 | BC75: 7 | BD75: 83 | BE75: 76 | BF75: 2 | BG75: 1 | BH75: 8 | BI75: 0 | BJ75: 26 | BK75: 1 | BL75: 0 | BM75: 1 | BN75: 4 | BO75: 4 | BP75: 0 | BQ75: 0 | BR75: 7 | BU75: VO3104 | BV75: Stichting Samenwerkingsverband Passend Onderwijs VO 31-04 | BW75: 7763 | BX75: 495 | BY75: 154 | BZ75: 315 | CA75: 14 | CB75: 39 | CC75: 1551 | CD75: 8019 | CE75: 222 | CF75: 14 | CG75: 39 | CH75: 10 | CI75: 83 | CJ75: 77 | CK75: 1 | CL75: 0 | CM75: 9 | CN75: 0 | CO75: 31 | CP75: 3 | CQ75: 0 | CR75: 2 | CS75: 6 | CT75: 4 | CU75: 2 | CV75: 0 | CW75: 5 | CX75: 0 | CY75: 0 | DB75: VO3104 | DC75: Stichting Samenwerkingsverband Passend Onderwijs VO 31-04 | DD75: 7337.5 | DE75: 428 | DF75: 147 | DG75: 298 | DH75: 11 | DI75: 38 | DJ75: 7544.5 | DK75: 1 | DL75: 0 | DO75: VO3104 | DP75: Stichting Samenwerkingsverband Passend Onderwijs VO 31-04 | DQ75: 7376 | DR75: 390 | DS75: 154 | DT75: 279 | DU75: 14 | DV75: 32 | DW75: 7400 | DX75: 1 | DY75: 1 | DZ75: 7318 | EA75: 390 | EB75: 154 | EC75: 2568 | ED75: 1043 | EF75: VO3104 | EG75: Stichting Samenwerkingsverband Passend Onderwijs VO 31-04 | EH75: 7034.5 | EI75: 428 | EJ75: 149 | EK75: 275 | EL75: 10 | EM75: 31 | EN75: 7400 | EO75: 1 | EP75: 1 | EQ75: 6985.5 | ER75: 428 | ES75: 149 | ET75: 0 | EU75: 0
A76: VO3105 | B76: St. SWV Passen Onderwijs VO Maastricht e.o. | C76: 9565.5 | D76: 448 | E76: 180 | F76: 384 | G76: 26 | H76: 44 | I76: 9589 | K76: VO3105 | L76: St. SWV Passen Onderwijs VO Maastricht e.o. | M76: 9669 | N76: 442 | O76: 179 | P76: 443 | Q76: 18 | R76: 43 | S76: 1811.5 | T76: 9702 | U76: 346 | V76: 18 | W76: 43 | X76: 5 | Y76: 92 | Z76: 131 | AA76: 6 | AB76: 1 | AC76: 9 | AD76: 0 | AE76: 6 | AF76: 1 | AG76: 0 | AH76: 0 | AI76: 15 | AJ76: 2 | AK76: 7 | AL76: 0 | AM76: 3 | AN76: 1 | AO76: 1 | AP76: VO3105 | AQ76: St. SWV Passen Onderwijs VO Maastricht e.o. | AR76: 9632 | AS76: 469 | AT76: 179 | AU76: 397 | AV76: 21 | AW76: 31 | AX76: 1843.5 | AY76: 8585 | AZ76: 297 | BA76: 21 | BB76: 31 | BC76: 9 | BD76: 91 | BE76: 133 | BF76: 7 | BG76: 1 | BH76: 10 | BI76: 1 | BJ76: 5 | BK76: 1 | BL76: 0 | BM76: 0 | BN76: 11 | BO76: 3 | BP76: 3 | BQ76: 0 | BR76: 3 | BU76: VO3105 | BV76: St. SWV Passen Onderwijs VO Maastricht e.o. | BW76: 9628.5 | BX76: 498 | BY76: 179 | BZ76: 386 | CA76: 19 | CB76: 30 | CC76: 1898 | CD76: 9769 | CE76: 284 | CF76: 19 | CG76: 30 | CH76: 13 | CI76: 89 | CJ76: 121 | CK76: 6 | CL76: 0 | CM76: 7 | CN76: 1 | CO76: 6 | CP76: 1 | CQ76: 0 | CR76: 0 | CS76: 13 | CT76: 3 | CU76: 3 | CV76: 0 | CW76: 3 | CX76: 0 | CY76: 0 | DB76: VO3105 | DC76: St. SWV Passen Onderwijs VO Maastricht e.o. | DD76: 9767.5 | DE76: 409 | DF76: 202 | DG76: 384 | DH76: 20 | DI76: 34 | DJ76: 9734 | DK76: 0 | DL76: 4 | DO76: VO3105 | DP76: St. SWV Passen Onderwijs VO Maastricht e.o. | DQ76: 9511 | DR76: 428 | DS76: 217 | DT76: 366 | DU76: 7 | DV76: 23 | DW76: 9538 | DX76: 0 | DY76: 3 | DZ76: 9411 | EA76: 428 | EB76: 217 | EC76: 2364 | ED76: 1554 | EF76: VO3105 | EG76: St. SWV Passen Onderwijs VO Maastricht e.o. | EH76: 9143 | EI76: 394 | EJ76: 222 | EK76: 365 | EL76: 10 | EM76: 28 | EN76: 9538 | EO76: 0 | EP76: 3 | EQ76: 9059 | ER76: 394 | ES76: 222 | ET76: 0 | EU76: 0
A77: VO3106 | B77: Samenwerkingsverband Passend Onderwijs VO Parkstad e.o. 3106 | C77: 10029 | D77: 1199 | E77: 477 | F77: 618 | G77: 29 | H77: 32 | I77: 11790 | K77: VO3106 | L77: Samenwerkingsverband Passend Onderwijs VO Parkstad e.o. 3106 | M77: 10239 | N77: 1128 | O77: 459 | P77: 640 | Q77: 25 | R77: 40 | S77: 2543.5 | T77: 11849 | U77: 402 | V77: 25 | W77: 40 | X77: 21 | Y77: 217 | Z77: 77 | AA77: 9 | AB77: 0 | AC77: 5 | AD77: 0 | AE77: 14 | AF77: 2 | AG77: 0 | AH77: 1 | AI77: 5 | AJ77: 2 | AK77: 10 | AL77: 2 | AM77: 7 | AN77: 0 | AO77: 0 | AP77: VO3106 | AQ77: Samenwerkingsverband Passend Onderwijs VO Parkstad e.o. 3106 | AR77: 10258.5 | AS77: 1113 | AT77: 439 | AU77: 588 | AV77: 24 | AW77: 31 | AX77: 2507 | AY77: 12996 | AZ77: 374 | BA77: 24 | BB77: 31 | BC77: 17 | BD77: 197 | BE77: 60 | BF77: 8 | BG77: 0 | BH77: 5 | BI77: 0 | BJ77: 18 | BK77: 2 | BL77: 0 | BM77: 1 | BN77: 6 | BO77: 4 | BP77: 3 | BQ77: 2 | BR77: 7 | BU77: VO3106 | BV77: Samenwerkingsverband Passend Onderwijs VO Parkstad e.o. 3106 | BW77: 10392 | BX77: 1157 | BY77: 418 | BZ77: 568 | CA77: 28 | CB77: 34 | CC77: 2600 | CD77: 11969 | CE77: 368 | CF77: 28 | CG77: 34 | CH77: 17 | CI77: 183 | CJ77: 63 | CK77: 6 | CL77: 0 | CM77: 9 | CN77: 0 | CO77: 24 | CP77: 2 | CQ77: 0 | CR77: 1 | CS77: 6 | CT77: 6 | CU77: 4 | CV77: 1 | CW77: 2 | CX77: 0 | CY77: 0 | DB77: VO3106 | DC77: Samenwerkingsverband Passend Onderwijs VO Parkstad e.o. 3106 | DD77: 9992.5 | DE77: 1198 | DF77: 472 | DG77: 578 | DH77: 26 | DI77: 26 | DJ77: 11713 | DK77: 1 | DL77: 2 | DO77: VO3106 | DP77: Samenwerkingsverband Passend Onderwijs VO Parkstad e.o. 3106 | DQ77: 9895.5 | DR77: 1210 | DS77: 468 | DT77: 562 | DU77: 4 | DV77: 12 | DW77: 11695 | DX77: 0 | DY77: 2 | DZ77: 9842.5 | EA77: 1210 | EB77: 468 | EC77: 7128 | ED77: 3584 | EF77: VO3106 | EG77: Samenwerkingsverband Passend Onderwijs VO Parkstad e.o. 3106 | EH77: 9453.5 | EI77: 1188 | EJ77: 512 | EK77: 561 | EL77: 13 | EM77: 13 | EN77: 11695 | EO77: 0 | EP77: 2 | EQ77: 9398.5 | ER77: 1188 | ES77: 512 | ET77: 0 | EU77: 0
C78: =SUM(C3:C77) -> 855165 | D78: 104990 | E78: 29170 | F78: 31231 | G78: 1164 | H78: 3417 | I78: 989651 | M78: =SUM(M3:M77) -> 844970.5 | N78: =SUM(N3:N77) -> 104342 | O78: 28520 | P78: 30842 | Q78: 1103 | R78: 3323 | S78: 213633.5 | T78: 977623 | U78: 20519 | V78: 1103 | W78: 3323 | X78: 850 | Y78: 9473 | Z78: 11646 | AA78: 879 | AB78: 14 | AC78: 1371 | AD78: 32 | AE78: 3723 | AF78: 315 | AG78: 56 | AH78: 380 | AI78: 951 | AJ78: 2456 | AK78: 1857 | AL78: 404 | AM78: 483 | AN78: 13 | AO78: 15 | AR78: =SUM(AR3:AR77) -> 835353 | AS78: =SUM(AS3:AS77) -> 103539.5 | AT78: 27444 | AU78: 29808 | AV78: 1059 | AW78: 3032 | AX78: 209323.5 | AY78: 967410 | AZ78: 19485 | BA78: 1059 | BB78: 3032 | BC78: 825 | BD78: 9498 | BE78: 11247 | BF78: 922 | BG78: 22 | BH78: 1175 | BI78: 37 | BJ78: 3592 | BK78: 287 | BL78: 51 | BM78: 335 | BN78: 955 | BO78: 2343 | BP78: 1717 | BQ78: 380 | BR78: 477 | BW78: =SUM(BW3:BW77) -> 825942.5 | BX78: 101205 | BY78: 26665 | BZ78: 29004 | CA78: 1072 | CB78: 2917 | CC78: 204571 | CD78: 954845 | CE78: 18541 | CF78: 1072 | CG78: 2917 | CH78: 803 | CI78: 9566 | CJ78: 10606 | CK78: 876 | CL78: 20 | CM78: 1104 | CN78: 51 | CO78: 3461 | CP78: 284 | CQ78: 47 | CR78: 295 | CS78: 949 | CT78: 2195 | CU78: 1652 | CV78: 348 | CW78: 534 | DC78: =SUM(DC3:DC77) -> 0 | DD78: 866033.5 | DE78: 103694 | DF78: 29715 | DG78: 30373 | DH78: 1151 | DI78: 3174 | DJ78: 997290.5 | DQ78: =SUM(DQ3:DQ77) -> 877374 | DR78: 93593 | DS78: 29906 | DT78: 30127 | DU78: 1390 | DV78: 2696 | DW78: 1000378 | EH78: =SUM(EH3:EH77) -> 879657 | EI78: 81441.5 | EJ78: 29564 | EK78: =SUM(EK3:EK77) -> 29892 | EL78: 1592 | EM78: 2676 | EN78: 1000378
C80: =+C78+D78+E78 -> 989325 | D80: =D78/C80 -> 0.1061228615 | E80: =E78/C80 -> 0.0294847497 | F80: =F78/C80 -> 0.03156798827 | G80: =G78/C80 -> 0.001176559776 | H80: =H78/C80 -> 0.003453870063 | M80: =+M78+N78+O78 -> 977832.5 | N80: =N78/M80 -> 0.1067074371 | O80: =O78/M80 -> 0.02916654949 | P80: =P78/M80 -> 0.03154118931 | Q80: =Q78/M80 -> 0.001128005052 | R80: =R78/M80 -> 0.003398332537 | S80: =S78/M80 -> 0.2184765796 | U80: =U78/M80 -> 0.02098416651 | V80: =V78/M80 -> 0.001128005052 | W80: =W78/M80 -> 0.003398332537 | X80: =X78/M80 -> 0.0008692695324 | Y80: =Y78/M80 -> 0.009687753271 | Z80: =SUM(Z78:AI78)/M80 -> 0.01980605063 | AR80: =+AR78+AS78+AT78 -> 966336.5 | AS80: =AS78/AR80 -> 0.1071464236 | AT80: =AT78/AR80 -> 0.02840004491 | AU80: =AU78/AR80 -> 0.03084639771 | AV80: =AV78/AR80 -> 0.001095891545 | AW80: =AW78/AR80 -> 0.003137623385 | AX80: =AX78/AR80 -> 0.2166155371 | AZ80: =AZ78/AR80 -> 0.02016378353 | BA80: =BA78/AR80 -> 0.001095891545 | BB80: =BB78/AR80 -> 0.003137623385 | BC80: =BC78/AR80 -> 0.0008537398722 | BD80: =BD78/AR80 -> 0.00982887431 | BE80: =SUM(BE78:BN78)/AR80 -> 0.01927175471 | BW80: =+BW78+BX78+BY78 -> 953812.5 | BX80: =BX78/BW80 -> 0.1061057598 | BY80: =BY78/BW80 -> 0.02795622829 | BZ80: =BZ78/BW80 -> 0.03040849224 | CA80: =CA78/BW80 -> 0.001123910622 | CB80: =CB78/BW80 -> 0.003058253063 | CC80: =CC78/BW80 -> 0.214477164 | CE80: =CE78/BW80 -> 0.01943883101 | CF80: =CF78/BW80 -> 0.001123910622 | CG80: =CG78/BW80 -> 0.003058253063 | CH80: =CH78/BW80 -> 0.0008418845423 | CI80: =CI78/BW80 -> 0.01002922482 | CJ80: =SUM(CJ78:CS78)/BW80 -> 0.01854976738 | DD80: =+DD78+DE78+DF78 -> 999442.5 | DE80: =DE78/DD80 -> 0.1037518417 | DF80: =DF78/DD80 -> 0.02973157535 | DG80: =DG78/DD80 -> 0.03038994239 | DH80: =DH78/DD80 -> 0.00115164204 | DI80: =DI78/DD80 -> 0.003175770492 | DQ80: =+DQ78+DR78+DS78 -> 1000873 | DR80: =DR78/DQ80 -> 0.09351136458 | DS80: =DS78/DQ80 -> 0.02987991483 | DT80: =DT78/DQ80 -> 0.03010072207 | DU80: =DU78/DQ80 -> 0.001388787588 | DV80: =DV78/DQ80 -> 0.002693648445
T81: vmbo34 | U81: tot vo | BW81: oud verkeerd | BX81: 0.1055797655 | BY81: 0.02794402001 | BZ81: 0.03022923751 | CA81: 0.001120143194 | CB81: 0.003045911765 | CC81: 0.210807919 | CE81: 0.01939456887 | CF81: 0.001120143194 | CG81: 0.003045911765 | CH81: 0.0008390624861 | CI81: 0.009995606155 | CJ81: 0.01835176656 | DJ81: =DD80-DJ78 -> 2152
Q82: Regionale ondersteuningsvoorziening | T82: =ROUND(V82/$S$78,0) -> 224 | U82: =ROUND(V82/$M$80,0) -> 49 | V82: 47885000 | AV82: Regionale ondersteuningsvoorziening | AY82: =ROUND((AX78*228-10000000)/$S$78,2) -> 176.59 | CA82: Regionale ondersteuningsvoorziening | CB82: 228 | CC82: =CB82*$CC$78 -> 46642188
Q83: Rebound | T83: =ROUND(V83/$S$78,0) -> 89 | U83: =ROUND(V83/$M$80,0) -> 19 | V83: 19000000 | AV83: Rebound | AY83: 94 | CA83: Rebound | CB83: 94 | CC83: =CB83*$CC$78 -> 19229674
Q84: Herstart en Op de rails | T84: =ROUND(V84/$S$78,0) -> 89 | U84: =ROUND(V84/$M$80,0) -> 19 | V84: 19000000 | AV84: Herstart en Op de rails | AY84: 92 | CA84: Herstart en Op de rails | CB84: 92 | CC84: =CB84*$CC$78 -> 18820532
Q85: bedrag licht ondersteuning | T85: =SUM(T82:T84) -> 402 | U85: =SUM(U82:U84) -> 87 | AV85: bedrag licht ondersteuning | AY85: =SUM(AY82:AY84) -> 362.59
Q86: RVC bekostiging | U86: =ROUND(V86/$M$80,0) -> 7 | V86: 7000000

Sheet verwijzing (hidden)
A1: A1 | B1: B1 | C1: C1 | D1: D1 | E1: E1 | F1: F1 | G1: G1 | H1: H1 | I1: I1 | J1: J1 | K1: K1 | L1: L1 | M1: M1 | N1: N1 | O1: O1 | P1: P1 | Q1: Q1 | R1: R1 | S1: S1 | T1: T1 | U1: U1 | V1: V1 | W1: W1 | X1: X1 | Y1: Y1 | Z1: Z1 | AA1: AA1 | AB1: AB1 | AC1: AC1 | AD1: AD1 | AE1: AE1 | AF1: AF1 | AG1: AG1 | AH1: AH1 | AI1: AI1 | AJ1: AJ1 | AK1: AK1 | AL1: AL1 | AM1: AM1 | AN1: AN1 | AO1: AO1 | AP1: AP1 | AQ1: AQ1 | AR1: AR1 | AS1: AS1 | AT1: AT1 | AU1: AU1 | AV1: AV1 | AW1: AW1 | AX1: AX1 | AY1: AY1 | AZ1: AZ1 | BA1: BA1 | BB1: BB1 | BC1: BC1 | BD1: BD1 | BE1: BE1 | BF1: BF1 | BG1: BG1 | BH1: BH1 | BI1: BI1 | BJ1: BJ1 | BK1: BK1 | BL1: BL1 | BM1: BM1 | BN1: BN1 | BO1: BO1 | BP1: BP1 | BQ1: BQ1 | BR1: BR1 | BS1: BS1 | BT1: BT1 | BU1: BU1 | BV1: BV1 | BW1: BW1 | BX1: BX1 | BY1: BY1 | BZ1: BZ1 | CA1: CA1 | CB1: CB1 | CC1: CC1 | CD1: CD1 | CE1: CE1 | CF1: CF1 | CG1: CG1 | CH1: CH1 | CI1: CI1 | CJ1: CJ1 | CK1: CK1 | CL1: CL1 | CM1: CM1 | CN1: CN1 | CO1: CO1 | CP1: CP1 | CQ1: CQ1 | CR1: CR1 | CS1: CS1 | CT1: CT1 | CU1: CU1 | CV1: CV1 | CW1: CW1 | CX1: CX1 | CY1: CY1 | CZ1: CZ1 | DA1: DA1 | DB1: DB1 | DC1: DC1 | DD1: DD1 | DE1: DE1 | DF1: DF1 | DG1: DG1 | DH1: DH1 | DI1: DI1 | DJ1: DJ1 | DK1: DK1 | DL1: DL1 | DM1: DM1 | DN1: DN1 | DO1: DO1 | DP1: DP1 | DQ1: DQ1 | DR1: DR1 | DS1: DS1 | DT1: DT1 | DU1: DU1 | DV1: DV1 | DW1: DW1 | DX1: DX1 | DY1: DY1 | DZ1: DZ1 | EA1: EA1 | EB1: EB1 | EC1: EC1 | ED1: ED1 | EE1: EE1 | EF1: EF1 | EG1: EG1 | EH1: EH1 | EI1: EI1 | EJ1: EJ1 | EK1: EK1 | EL1: EL1 | EM1: EM1 | EN1: EN1 | EO1: EO1 | EP1: EP1 | EQ1: EQ1 | ER1: ER1 | ES1: ES1 | ET1: ET1 | EU1: EU1 | EV1: EV1 | EW1: EW1 | EX1: EX1 | EY1: EY1 | EZ1: EZ1 | FA1: FA1 | FB1: FB1 | FC1: FC1 | FD1: FD1 | FE1: FE1 | FF1: FF1 | FG1: FG1 | FH1: FH1 | FI1: FI1 | FJ1: FJ1 | FK1: FK1 | FL1: FL1 | FM1: FM1 | FN1: FN1 | FO1: FO1 | FP1: FP1 | FQ1: FQ1 | FR1: FR1 | FS1: FS1 | FT1: FT1 | FU1: FU1 | FV1: FV1 | FW1: FW1 | FX1: FX1 | FY1: FY1 | FZ1: FZ1 | GA1: GA1 | GB1: GB1 | GC1: GC1 | GD1: GD1 | GE1: GE1 | GF1: GF1 | GG1: GG1 | GH1: GH1 | GI1: GI1 | GJ1: GJ1 | GK1: GK1 | GL1: GL1 | GM1: GM1 | GN1: GN1 | GO1: GO1 | GP1: GP1 | GQ1: GQ1 | GR1: GR1 | GS1: GS1 | GT1: GT1 | GU1: GU1 | GV1: GV1 | GW1: GW1 | GX1: GX1 | GY1: GY1 | GZ1: GZ1 | HA1: HA1
A2: A2 | B2: B2 | C2: C2 | D2: D2 | E2: E2 | F2: F2 | G2: G2 | H2: H2 | I2: I2 | J2: J2 | K2: K2 | L2: L2 | M2: M2 | N2: N2 | O2: O2 | P2: P2 | Q2: Q2 | R2: R2 | S2: S2 | T2: T2 | U2: U2 | V2: V2 | W2: W2 | X2: X2 | Y2: Y2 | Z2: Z2 | AA2: AA2 | AB2: AB2 | AC2: AC2 | AD2: AD2 | AE2: AE2 | AF2: AF2 | AG2: AG2 | AH2: AH2 | AI2: AI2 | AJ2: AJ2 | AK2: AK2 | AL2: AL2 | AM2: AM2 | AN2: AN2 | AO2: AO2 | AP2: AP2 | AQ2: AQ2 | AR2: AR2 | AS2: AS2 | AT2: AT2 | AU2: AU2 | AV2: AV2 | AW2: AW2 | AX2: AX2 | AY2: AY2 | AZ2: AZ2 | BA2: BA2 | BB2: BB2 | BC2: BC2 | BD2: BD2 | BE2: BE2 | BF2: BF2 | BG2: BG2 | BH2: BH2 | BI2: BI2 | BJ2: BJ2 | BK2: BK2 | BL2: BL2 | BM2: BM2 | BN2: BN2 | BO2: BO2 | BP2: BP2 | BQ2: BQ2 | BR2: BR2 | BS2: BS2 | BT2: BT2 | BU2: BU2 | BV2: BV2 | BW2: BW2 | BX2: BX2 | BY2: BY2 | BZ2: BZ2 | CA2: CA2 | CB2: CB2 | CC2: CC2 | CD2: CD2 | CE2: CE2 | CF2: CF2 | CG2: CG2 | CH2: CH2 | CI2: CI2 | CJ2: CJ2 | CK2: CK2 | CL2: CL2 | CM2: CM2 | CN2: CN2 | CO2: CO2 | CP2: CP2 | CQ2: CQ2 | CR2: CR2 | CS2: CS2 | CT2: CT2 | CU2: CU2 | CV2: CV2 | CW2: CW2 | CX2: CX2 | CY2: CY2 | CZ2: CZ2 | DA2: DA2 | DB2: DB2 | DC2: DC2 | DD2: DD2 | DE2: DE2 | DF2: DF2 | DG2: DG2 | DH2: DH2 | DI2: DI2 | DJ2: DJ2 | DK2: DK2 | DL2: DL2 | DM2: DM2 | DN2: DN2 | DO2: DO2 | DP2: DP2 | DQ2: DQ2 | DR2: DR2 | DS2: DS2 | DT2: DT2 | DU2: DU2 | DV2: DV2 | DW2: DW2 | DX2: DX2 | DY2: DY2 | DZ2: DZ2 | EA2: EA2 | EB2: EB2 | EC2: EC2 | ED2: ED2 | EE2: EE2 | EF2: EF2 | EG2: EG2 | EH2: EH2 | EI2: EI2 | EJ2: EJ2 | EK2: EK2 | EL2: EL2 | EM2: EM2 | EN2: EN2 | EO2: EO2 | EP2: EP2 | EQ2: EQ2 | ER2: ER2 | ES2: ES2 | ET2: ET2 | EU2: EU2 | EV2: EV2 | EW2: EW2 | EX2: EX2 | EY2: EY2 | EZ2: EZ2 | FA2: FA2 | FB2: FB2 | FC2: FC2 | FD2: FD2 | FE2: FE2 | FF2: FF2 | FG2: FG2 | FH2: FH2 | FI2: FI2 | FJ2: FJ2 | FK2: FK2 | FL2: FL2 | FM2: FM2 | FN2: FN2 | FO2: FO2 | FP2: FP2 | FQ2: FQ2 | FR2: FR2 | FS2: FS2 | FT2: FT2 | FU2: FU2 | FV2: FV2 | FW2: FW2 | FX2: FX2 | FY2: FY2 | FZ2: FZ2 | GA2: GA2 | GB2: GB2 | GC2: GC2 | GD2: GD2 | GE2: GE2 | GF2: GF2 | GG2: GG2 | GH2: GH2 | GI2: GI2 | GJ2: GJ2 | GK2: GK2 | GL2: GL2 | GM2: GM2 | GN2: GN2 | GO2: GO2 | GP2: GP2 | GQ2: GQ2 | GR2: GR2 | GS2: GS2 | GT2: GT2 | GU2: GU2 | GV2: GV2 | GW2: GW2 | GX2: GX2 | GY2: GY2 | GZ2: GZ2 | HA2: HA2
A3: A3 | B3: B3 | C3: C3 | D3: D3 | E3: E3 | F3: F3 | G3: G3 | H3: H3 | I3: I3 | J3: J3 | K3: K3 | L3: L3 | M3: M3 | N3: N3 | O3: O3 | P3: P3 | Q3: Q3 | R3: R3 | S3: S3 | T3: T3 | U3: U3 | V3: V3 | W3: W3 | X3: X3 | Y3: Y3 | Z3: Z3 | AA3: AA3 | AB3: AB3 | AC3: AC3 | AD3: AD3 | AE3: AE3 | AF3: AF3 | AG3: AG3 | AH3: AH3 | AI3: AI3 | AJ3: AJ3 | AK3: AK3 | AL3: AL3 | AM3: AM3 | AN3: AN3 | AO3: AO3 | AP3: AP3 | AQ3: AQ3 | AR3: AR3 | AS3: AS3 | AT3: AT3 | AU3: AU3 | AV3: AV3 | AW3: AW3 | AX3: AX3 | AY3: AY3 | AZ3: AZ3 | BA3: BA3 | BB3: BB3 | BC3: BC3 | BD3: BD3 | BE3: BE3 | BF3: BF3 | BG3: BG3 | BH3: BH3 | BI3: BI3 | BJ3: BJ3 | BK3: BK3 | BL3: BL3 | BM3: BM3 | BN3: BN3 | BO3: BO3 | BP3: BP3 | BQ3: BQ3 | BR3: BR3 | BS3: BS3 | BT3: BT3 | BU3: BU3 | BV3: BV3 | BW3: BW3 | BX3: BX3 | BY3: BY3 | BZ3: BZ3 | CA3: CA3 | CB3: CB3 | CC3: CC3 | CD3: CD3 | CE3: CE3 | CF3: CF3 | CG3: CG3 | CH3: CH3 | CI3: CI3 | CJ3: CJ3 | CK3: CK3 | CL3: CL3 | CM3: CM3 | CN3: CN3 | CO3: CO3 | CP3: CP3 | CQ3: CQ3 | CR3: CR3 | CS3: CS3 | CT3: CT3 | CU3: CU3 | CV3: CV3 | CW3: CW3 | CX3: CX3 | CY3: CY3 | CZ3: CZ3 | DA3: DA3 | DB3: DB3 | DC3: DC3 | DD3: DD3 | DE3: DE3 | DF3: DF3 | DG3: DG3 | DH3: DH3 | DI3: DI3 | DJ3: DJ3 | DK3: DK3 | DL3: DL3 | DM3: DM3 | DN3: DN3 | DO3: DO3 | DP3: DP3 | DQ3: DQ3 | DR3: DR3 | DS3: DS3 | DT3: DT3 | DU3: DU3 | DV3: DV3 | DW3: DW3 | DX3: DX3 | DY3: DY3 | DZ3: DZ3 | EA3: EA3 | EB3: EB3 | EC3: EC3 | ED3: ED3 | EE3: EE3 | EF3: EF3 | EG3: EG3 | EH3: EH3 | EI3: EI3 | EJ3: EJ3 | EK3: EK3 | EL3: EL3 | EM3: EM3 | EN3: EN3 | EO3: EO3 | EP3: EP3 | EQ3: EQ3 | ER3: ER3 | ES3: ES3 | ET3: ET3 | EU3: EU3 | EV3: EV3 | EW3: EW3 | EX3: EX3 | EY3: EY3 | EZ3: EZ3 | FA3: FA3 | FB3: FB3 | FC3: FC3 | FD3: FD3 | FE3: FE3 | FF3: FF3 | FG3: FG3 | FH3: FH3 | FI3: FI3 | FJ3: FJ3 | FK3: FK3 | FL3: FL3 | FM3: FM3 | FN3: FN3 | FO3: FO3 | FP3: FP3 | FQ3: FQ3 | FR3: FR3 | FS3: FS3 | FT3: FT3 | FU3: FU3 | FV3: FV3 | FW3: FW3 | FX3: FX3 | FY3: FY3 | FZ3: FZ3 | GA3: GA3 | GB3: GB3 | GC3: GC3 | GD3: GD3 | GE3: GE3 | GF3: GF3 | GG3: GG3 | GH3: GH3 | GI3: GI3 | GJ3: GJ3 | GK3: GK3 | GL3: GL3 | GM3: GM3 | GN3: GN3 | GO3: GO3 | GP3: GP3 | GQ3: GQ3 | GR3: GR3 | GS3: GS3 | GT3: GT3 | GU3: GU3 | GV3: GV3 | GW3: GW3 | GX3: GX3 | GY3: GY3 | GZ3: GZ3 | HA3: HA3
A4: A4 | B4: B4 | C4: C4 | D4: D4 | E4: E4 | F4: F4 | G4: G4 | H4: H4 | I4: I4 | J4: J4 | K4: K4 | L4: L4 | M4: M4 | N4: N4 | O4: O4 | P4: P4 | Q4: Q4 | R4: R4 | S4: S4 | T4: T4 | U4: U4 | V4: V4 | W4: W4 | X4: X4 | Y4: Y4 | Z4: Z4 | AA4: AA4 | AB4: AB4 | AC4: AC4 | AD4: AD4 | AE4: AE4 | AF4: AF4 | AG4: AG4 | AH4: AH4 | AI4: AI4 | AJ4: AJ4 | AK4: AK4 | AL4: AL4 | AM4: AM4 | AN4: AN4 | AO4: AO4 | AP4: AP4 | AQ4: AQ4 | AR4: AR4 | AS4: AS4 | AT4: AT4 | AU4: AU4 | AV4: AV4 | AW4: AW4 | AX4: AX4 | AY4: AY4 | AZ4: AZ4 | BA4: BA4 | BB4: BB4 | BC4: BC4 | BD4: BD4 | BE4: BE4 | BF4: BF4 | BG4: BG4 | BH4: BH4 | BI4: BI4 | BJ4: BJ4 | BK4: BK4 | BL4: BL4 | BM4: BM4 | BN4: BN4 | BO4: BO4 | BP4: BP4 | BQ4: BQ4 | BR4: BR4 | BS4: BS4 | BT4: BT4 | BU4: BU4 | BV4: BV4 | BW4: BW4 | BX4: BX4 | BY4: BY4 | BZ4: BZ4 | CA4: CA4 | CB4: CB4 | CC4: CC4 | CD4: CD4 | CE4: CE4 | CF4: CF4 | CG4: CG4 | CH4: CH4 | CI4: CI4 | CJ4: CJ4 | CK4: CK4 | CL4: CL4 | CM4: CM4 | CN4: CN4 | CO4: CO4 | CP4: CP4 | CQ4: CQ4 | CR4: CR4 | CS4: CS4 | CT4: CT4 | CU4: CU4 | CV4: CV4 | CW4: CW4 | CX4: CX4 | CY4: CY4 | CZ4: CZ4 | DA4: DA4 | DB4: DB4 | DC4: DC4 | DD4: DD4 | DE4: DE4 | DF4: DF4 | DG4: DG4 | DH4: DH4 | DI4: DI4 | DJ4: DJ4 | DK4: DK4 | DL4: DL4 | DM4: DM4 | DN4: DN4 | DO4: DO4 | DP4: DP4 | DQ4: DQ4 | DR4: DR4 | DS4: DS4 | DT4: DT4 | DU4: DU4 | DV4: DV4 | DW4: DW4 | DX4: DX4 | DY4: DY4 | DZ4: DZ4 | EA4: EA4 | EB4: EB4 | EC4: EC4 | ED4: ED4 | EE4: EE4 | EF4: EF4 | EG4: EG4 | EH4: EH4 | EI4: EI4 | EJ4: EJ4 | EK4: EK4 | EL4: EL4 | EM4: EM4 | EN4: EN4 | EO4: EO4 | EP4: EP4 | EQ4: EQ4 | ER4: ER4 | ES4: ES4 | ET4: ET4 | EU4: EU4 | EV4: EV4 | EW4: EW4 | EX4: EX4 | EY4: EY4 | EZ4: EZ4 | FA4: FA4 | FB4: FB4 | FC4: FC4 | FD4: FD4 | FE4: FE4 | FF4: FF4 | FG4: FG4 | FH4: FH4 | FI4: FI4 | FJ4: FJ4 | FK4: FK4 | FL4: FL4 | FM4: FM4 | FN4: FN4 | FO4: FO4 | FP4: FP4 | FQ4: FQ4 | FR4: FR4 | FS4: FS4 | FT4: FT4 | FU4: FU4 | FV4: FV4 | FW4: FW4 | FX4: FX4 | FY4: FY4 | FZ4: FZ4 | GA4: GA4 | GB4: GB4 | GC4: GC4 | GD4: GD4 | GE4: GE4 | GF4: GF4 | GG4: GG4 | GH4: GH4 | GI4: GI4 | GJ4: GJ4 | GK4: GK4 | GL4: GL4 | GM4: GM4 | GN4: GN4 | GO4: GO4 | GP4: GP4 | GQ4: GQ4 | GR4: GR4 | GS4: GS4 | GT4: GT4 | GU4: GU4 | GV4: GV4 | GW4: GW4 | GX4: GX4 | GY4: GY4 | GZ4: GZ4 | HA4: HA4
A5: A5 | B5: B5 | C5: C5 | D5: D5 | E5: E5 | F5: F5 | G5: G5 | H5: H5 | I5: I5 | J5: J5 | K5: K5 | L5: L5 | M5: M5 | N5: N5 | O5: O5 | P5: P5 | Q5: Q5 | R5: R5 | S5: S5 | T5: T5 | U5: U5 | V5: V5 | W5: W5 | X5: X5 | Y5: Y5 | Z5: Z5 | AA5: AA5 | AB5: AB5 | AC5: AC5 | AD5: AD5 | AE5: AE5 | AF5: AF5 | AG5: AG5 | AH5: AH5 | AI5: AI5 | AJ5: AJ5 | AK5: AK5 | AL5: AL5 | AM5: AM5 | AN5: AN5 | AO5: AO5 | AP5: AP5 | AQ5: AQ5 | AR5: AR5 | AS5: AS5 | AT5: AT5 | AU5: AU5 | AV5: AV5 | AW5: AW5 | AX5: AX5 | AY5: AY5 | AZ5: AZ5 | BA5: BA5 | BB5: BB5 | BC5: BC5 | BD5: BD5 | BE5: BE5 | BF5: BF5 | BG5: BG5 | BH5: BH5 | BI5: BI5 | BJ5: BJ5 | BK5: BK5 | BL5: BL5 | BM5: BM5 | BN5: BN5 | BO5: BO5 | BP5: BP5 | BQ5: BQ5 | BR5: BR5 | BS5: BS5 | BT5: BT5 | BU5: BU5 | BV5: BV5 | BW5: BW5 | BX5: BX5 | BY5: BY5 | BZ5: BZ5 | CA5: CA5 | CB5: CB5 | CC5: CC5 | CD5: CD5 | CE5: CE5 | CF5: CF5 | CG5: CG5 | CH5: CH5 | CI5: CI5 | CJ5: CJ5 | CK5: CK5 | CL5: CL5 | CM5: CM5 | CN5: CN5 | CO5: CO5 | CP5: CP5 | CQ5: CQ5 | CR5: CR5 | CS5: CS5 | CT5: CT5 | CU5: CU5 | CV5: CV5 | CW5: CW5 | CX5: CX5 | CY5: CY5 | CZ5: CZ5 | DA5: DA5 | DB5: DB5 | DC5: DC5 | DD5: DD5 | DE5: DE5 | DF5: DF5 | DG5: DG5 | DH5: DH5 | DI5: DI5 | DJ5: DJ5 | DK5: DK5 | DL5: DL5 | DM5: DM5 | DN5: DN5 | DO5: DO5 | DP5: DP5 | DQ5: DQ5 | DR5: DR5 | DS5: DS5 | DT5: DT5 | DU5: DU5 | DV5: DV5 | DW5: DW5 | DX5: DX5 | DY5: DY5 | DZ5: DZ5 | EA5: EA5 | EB5: EB5 | EC5: EC5 | ED5: ED5 | EE5: EE5 | EF5: EF5 | EG5: EG5 | EH5: EH5 | EI5: EI5 | EJ5: EJ5 | EK5: EK5 | EL5: EL5 | EM5: EM5 | EN5: EN5 | EO5: EO5 | EP5: EP5 | EQ5: EQ5 | ER5: ER5 | ES5: ES5 | ET5: ET5 | EU5: EU5 | EV5: EV5 | EW5: EW5 | EX5: EX5 | EY5: EY5 | EZ5: EZ5 | FA5: FA5 | FB5: FB5 | FC5: FC5 | FD5: FD5 | FE5: FE5 | FF5: FF5 | FG5: FG5 | FH5: FH5 | FI5: FI5 | FJ5: FJ5 | FK5: FK5 | FL5: FL5 | FM5: FM5 | FN5: FN5 | FO5: FO5 | FP5: FP5 | FQ5: FQ5 | FR5: FR5 | FS5: FS5 | FT5: FT5 | FU5: FU5 | FV5: FV5 | FW5: FW5 | FX5: FX5 | FY5: FY5 | FZ5: FZ5 | GA5: GA5 | GB5: GB5 | GC5: GC5 | GD5: GD5 | GE5: GE5 | GF5: GF5 | GG5: GG5 | GH5: GH5 | GI5: GI5 | GJ5: GJ5 | GK5: GK5 | GL5: GL5 | GM5: GM5 | GN5: GN5 | GO5: GO5 | GP5: GP5 | GQ5: GQ5 | GR5: GR5 | GS5: GS5 | GT5: GT5 | GU5: GU5 | GV5: GV5 | GW5: GW5 | GX5: GX5 | GY5: GY5 | GZ5: GZ5 | HA5: HA5
A6: A6 | B6: B6 | C6: C6 | D6: D6 | E6: E6 | F6: F6 | G6: G6 | H6: H6 | I6: I6 | J6: J6 | K6: K6 | L6: L6 | M6: M6 | N6: N6 | O6: O6 | P6: P6 | Q6: Q6 | R6: R6 | S6: S6 | T6: T6 | U6: U6 | V6: V6 | W6: W6 | X6: X6 | Y6: Y6 | Z6: Z6 | AA6: AA6 | AB6: AB6 | AC6: AC6 | AD6: AD6 | AE6: AE6 | AF6: AF6 | AG6: AG6 | AH6: AH6 | AI6: AI6 | AJ6: AJ6 | AK6: AK6 | AL6: AL6 | AM6: AM6 | AN6: AN6 | AO6: AO6 | AP6: AP6 | AQ6: AQ6 | AR6: AR6 | AS6: AS6 | AT6: AT6 | AU6: AU6 | AV6: AV6 | AW6: AW6 | AX6: AX6 | AY6: AY6 | AZ6: AZ6 | BA6: BA6 | BB6: BB6 | BC6: BC6 | BD6: BD6 | BE6: BE6 | BF6: BF6 | BG6: BG6 | BH6: BH6 | BI6: BI6 | BJ6: BJ6 | BK6: BK6 | BL6: BL6 | BM6: BM6 | BN6: BN6 | BO6: BO6 | BP6: BP6 | BQ6: BQ6 | BR6: BR6 | BS6: BS6 | BT6: BT6 | BU6: BU6 | BV6: BV6 | BW6: BW6 | BX6: BX6 | BY6: BY6 | BZ6: BZ6 | CA6: CA6 | CB6: CB6 | CC6: CC6 | CD6: CD6 | CE6: CE6 | CF6: CF6 | CG6: CG6 | CH6: CH6 | CI6: CI6 | CJ6: CJ6 | CK6: CK6 | CL6: CL6 | CM6: CM6 | CN6: CN6 | CO6: CO6 | CP6: CP6 | CQ6: CQ6 | CR6: CR6 | CS6: CS6 | CT6: CT6 | CU6: CU6 | CV6: CV6 | CW6: CW6 | CX6: CX6 | CY6: CY6 | CZ6: CZ6 | DA6: DA6 | DB6: DB6 | DC6: DC6 | DD6: DD6 | DE6: DE6 | DF6: DF6 | DG6: DG6 | DH6: DH6 | DI6: DI6 | DJ6: DJ6 | DK6: DK6 | DL6: DL6 | DM6: DM6 | DN6: DN6 | DO6: DO6 | DP6: DP6 | DQ6: DQ6 | DR6: DR6 | DS6: DS6 | DT6: DT6 | DU6: DU6 | DV6: DV6 | DW6: DW6 | DX6: DX6 | DY6: DY6 | DZ6: DZ6 | EA6: EA6 | EB6: EB6 | EC6: EC6 | ED6: ED6 | EE6: EE6 | EF6: EF6 | EG6: EG6 | EH6: EH6 | EI6: EI6 | EJ6: EJ6 | EK6: EK6 | EL6: EL6 | EM6: EM6 | EN6: EN6 | EO6: EO6 | EP6: EP6 | EQ6: EQ6 | ER6: ER6 | ES6: ES6 | ET6: ET6 | EU6: EU6 | EV6: EV6 | EW6: EW6 | EX6: EX6 | EY6: EY6 | EZ6: EZ6 | FA6: FA6 | FB6: FB6 | FC6: FC6 | FD6: FD6 | FE6: FE6 | FF6: FF6 | FG6: FG6 | FH6: FH6 | FI6: FI6 | FJ6: FJ6 | FK6: FK6 | FL6: FL6 | FM6: FM6 | FN6: FN6 | FO6: FO6 | FP6: FP6 | FQ6: FQ6 | FR6: FR6 | FS6: FS6 | FT6: FT6 | FU6: FU6 | FV6: FV6 | FW6: FW6 | FX6: FX6 | FY6: FY6 | FZ6: FZ6 | GA6: GA6 | GB6: GB6 | GC6: GC6 | GD6: GD6 | GE6: GE6 | GF6: GF6 | GG6: GG6 | GH6: GH6 | GI6: GI6 | GJ6: GJ6 | GK6: GK6 | GL6: GL6 | GM6: GM6 | GN6: GN6 | GO6: GO6 | GP6: GP6 | GQ6: GQ6 | GR6: GR6 | GS6: GS6 | GT6: GT6 | GU6: GU6 | GV6: GV6 | GW6: GW6 | GX6: GX6 | GY6: GY6 | GZ6: GZ6 | HA6: HA6
A7: A7 | B7: B7 | C7: C7 | D7: D7 | E7: E7 | F7: F7 | G7: G7 | H7: H7 | I7: I7 | J7: J7 | K7: K7 | L7: L7 | M7: M7 | N7: N7 | O7: O7 | P7: P7 | Q7: Q7 | R7: R7 | S7: S7 | T7: T7 | U7: U7 | V7: V7 | W7: W7 | X7: X7 | Y7: Y7 | Z7: Z7 | AA7: AA7 | AB7: AB7 | AC7: AC7 | AD7: AD7 | AE7: AE7 | AF7: AF7 | AG7: AG7 | AH7: AH7 | AI7: AI7 | AJ7: AJ7 | AK7: AK7 | AL7: AL7 | AM7: AM7 | AN7: AN7 | AO7: AO7 | AP7: AP7 | AQ7: AQ7 | AR7: AR7 | AS7: AS7 | AT7: AT7 | AU7: AU7 | AV7: AV7 | AW7: AW7 | AX7: AX7 | AY7: AY7 | AZ7: AZ7 | BA7: BA7 | BB7: BB7 | BC7: BC7 | BD7: BD7 | BE7: BE7 | BF7: BF7 | BG7: BG7 | BH7: BH7 | BI7: BI7 | BJ7: BJ7 | BK7: BK7 | BL7: BL7 | BM7: BM7 | BN7: BN7 | BO7: BO7 | BP7: BP7 | BQ7: BQ7 | BR7: BR7 | BS7: BS7 | BT7: BT7 | BU7: BU7 | BV7: BV7 | BW7: BW7 | BX7: BX7 | BY7: BY7 | BZ7: BZ7 | CA7: CA7 | CB7: CB7 | CC7: CC7 | CD7: CD7 | CE7: CE7 | CF7: CF7 | CG7: CG7 | CH7: CH7 | CI7: CI7 | CJ7: CJ7 | CK7: CK7 | CL7: CL7 | CM7: CM7 | CN7: CN7 | CO7: CO7 | CP7: CP7 | CQ7: CQ7 | CR7: CR7 | CS7: CS7 | CT7: CT7 | CU7: CU7 | CV7: CV7 | CW7: CW7 | CX7: CX7 | CY7: CY7 | CZ7: CZ7 | DA7: DA7 | DB7: DB7 | DC7: DC7 | DD7: DD7 | DE7: DE7 | DF7: DF7 | DG7: DG7 | DH7: DH7 | DI7: DI7 | DJ7: DJ7 | DK7: DK7 | DL7: DL7 | DM7: DM7 | DN7: DN7 | DO7: DO7 | DP7: DP7 | DQ7: DQ7 | DR7: DR7 | DS7: DS7 | DT7: DT7 | DU7: DU7 | DV7: DV7 | DW7: DW7 | DX7: DX7 | DY7: DY7 | DZ7: DZ7 | EA7: EA7 | EB7: EB7 | EC7: EC7 | ED7: ED7 | EE7: EE7 | EF7: EF7 | EG7: EG7 | EH7: EH7 | EI7: EI7 | EJ7: EJ7 | EK7: EK7 | EL7: EL7 | EM7: EM7 | EN7: EN7 | EO7: EO7 | EP7: EP7 | EQ7: EQ7 | ER7: ER7 | ES7: ES7 | ET7: ET7 | EU7: EU7 | EV7: EV7 | EW7: EW7 | EX7: EX7 | EY7: EY7 | EZ7: EZ7 | FA7: FA7 | FB7: FB7 | FC7: FC7 | FD7: FD7 | FE7: FE7 | FF7: FF7 | FG7: FG7 | FH7: FH7 | FI7: FI7 | FJ7: FJ7 | FK7: FK7 | FL7: FL7 | FM7: FM7 | FN7: FN7 | FO7: FO7 | FP7: FP7 | FQ7: FQ7 | FR7: FR7 | FS7: FS7 | FT7: FT7 | FU7: FU7 | FV7: FV7 | FW7: FW7 | FX7: FX7 | FY7: FY7 | FZ7: FZ7 | GA7: GA7 | GB7: GB7 | GC7: GC7 | GD7: GD7 | GE7: GE7 | GF7: GF7 | GG7: GG7 | GH7: GH7 | GI7: GI7 | GJ7: GJ7 | GK7: GK7 | GL7: GL7 | GM7: GM7 | GN7: GN7 | GO7: GO7 | GP7: GP7 | GQ7: GQ7 | GR7: GR7 | GS7: GS7 | GT7: GT7 | GU7: GU7 | GV7: GV7 | GW7: GW7 | GX7: GX7 | GY7: GY7 | GZ7: GZ7 | HA7: HA7
A8: A8 | B8: B8 | C8: C8 | D8: D8 | E8: E8 | F8: F8 | G8: G8 | H8: H8 | I8: I8 | J8: J8 | K8: K8 | L8: L8 | M8: M8 | N8: N8 | O8: O8 | P8: P8 | Q8: Q8 | R8: R8 | S8: S8 | T8: T8 | U8: U8 | V8: V8 | W8: W8 | X8: X8 | Y8: Y8 | Z8: Z8 | AA8: AA8 | AB8: AB8 | AC8: AC8 | AD8: AD8 | AE8: AE8 | AF8: AF8 | AG8: AG8 | AH8: AH8 | AI8: AI8 | AJ8: AJ8 | AK8: AK8 | AL8: AL8 | AM8: AM8 | AN8: AN8 | AO8: AO8 | AP8: AP8 | AQ8: AQ8 | AR8: AR8 | AS8: AS8 | AT8: AT8 | AU8: AU8 | AV8: AV8 | AW8: AW8 | AX8: AX8 | AY8: AY8 | AZ8: AZ8 | BA8: BA8 | BB8: BB8 | BC8: BC8 | BD8: BD8 | BE8: BE8 | BF8: BF8 | BG8: BG8 | BH8: BH8 | BI8: BI8 | BJ8: BJ8 | BK8: BK8 | BL8: BL8 | BM8: BM8 | BN8: BN8 | BO8: BO8 | BP8: BP8 | BQ8: BQ8 | BR8: BR8 | BS8: BS8 | BT8: BT8 | BU8: BU8 | BV8: BV8 | BW8: BW8 | BX8: BX8 | BY8: BY8 | BZ8: BZ8 | CA8: CA8 | CB8: CB8 | CC8: CC8 | CD8: CD8 | CE8: CE8 | CF8: CF8 | CG8: CG8 | CH8: CH8 | CI8: CI8 | CJ8: CJ8 | CK8: CK8 | CL8: CL8 | CM8: CM8 | CN8: CN8 | CO8: CO8 | CP8: CP8 | CQ8: CQ8 | CR8: CR8 | CS8: CS8 | CT8: CT8 | CU8: CU8 | CV8: CV8 | CW8: CW8 | CX8: CX8 | CY8: CY8 | CZ8: CZ8 | DA8: DA8 | DB8: DB8 | DC8: DC8 | DD8: DD8 | DE8: DE8 | DF8: DF8 | DG8: DG8 | DH8: DH8 | DI8: DI8 | DJ8: DJ8 | DK8: DK8 | DL8: DL8 | DM8: DM8 | DN8: DN8 | DO8: DO8 | DP8: DP8 | DQ8: DQ8 | DR8: DR8 | DS8: DS8 | DT8: DT8 | DU8: DU8 | DV8: DV8 | DW8: DW8 | DX8: DX8 | DY8: DY8 | DZ8: DZ8 | EA8: EA8 | EB8: EB8 | EC8: EC8 | ED8: ED8 | EE8: EE8 | EF8: EF8 | EG8: EG8 | EH8: EH8 | EI8: EI8 | EJ8: EJ8 | EK8: EK8 | EL8: EL8 | EM8: EM8 | EN8: EN8 | EO8: EO8 | EP8: EP8 | EQ8: EQ8 | ER8: ER8 | ES8: ES8 | ET8: ET8 | EU8: EU8 | EV8: EV8 | EW8: EW8 | EX8: EX8 | EY8: EY8 | EZ8: EZ8 | FA8: FA8 | FB8: FB8 | FC8: FC8 | FD8: FD8 | FE8: FE8 | FF8: FF8 | FG8: FG8 | FH8: FH8 | FI8: FI8 | FJ8: FJ8 | FK8: FK8 | FL8: FL8 | FM8: FM8 | FN8: FN8 | FO8: FO8 | FP8: FP8 | FQ8: FQ8 | FR8: FR8 | FS8: FS8 | FT8: FT8 | FU8: FU8 | FV8: FV8 | FW8: FW8 | FX8: FX8 | FY8: FY8 | FZ8: FZ8 | GA8: GA8 | GB8: GB8 | GC8: GC8 | GD8: GD8 | GE8: GE8 | GF8: GF8 | GG8: GG8 | GH8: GH8 | GI8: GI8 | GJ8: GJ8 | GK8: GK8 | GL8: GL8 | GM8: GM8 | GN8: GN8 | GO8: GO8 | GP8: GP8 | GQ8: GQ8 | GR8: GR8 | GS8: GS8 | GT8: GT8 | GU8: GU8 | GV8: GV8 | GW8: GW8 | GX8: GX8 | GY8: GY8 | GZ8: GZ8 | HA8: HA8
A9: A9 | B9: B9 | C9: C9 | D9: D9 | E9: E9 | F9: F9 | G9: G9 | H9: H9 | I9: I9 | J9: J9 | K9: K9 | L9: L9 | M9: M9 | N9: N9 | O9: O9 | P9: P9 | Q9: Q9 | R9: R9 | S9: S9 | T9: T9 | U9: U9 | V9: V9 | W9: W9 | X9: X9 | Y9: Y9 | Z9: Z9 | AA9: AA9 | AB9: AB9 | AC9: AC9 | AD9: AD9 | AE9: AE9 | AF9: AF9 | AG9: AG9 | AH9: AH9 | AI9: AI9 | AJ9: AJ9 | AK9: AK9 | AL9: AL9 | AM9: AM9 | AN9: AN9 | AO9: AO9 | AP9: AP9 | AQ9: AQ9 | AR9: AR9 | AS9: AS9 | AT9: AT9 | AU9: AU9 | AV9: AV9 | AW9: AW9 | AX9: AX9 | AY9: AY9 | AZ9: AZ9 | BA9: BA9 | BB9: BB9 | BC9: BC9 | BD9: BD9 | BE9: BE9 | BF9: BF9 | BG9: BG9 | BH9: BH9 | BI9: BI9 | BJ9: BJ9 | BK9: BK9 | BL9: BL9 | BM9: BM9 | BN9: BN9 | BO9: BO9 | BP9: BP9 | BQ9: BQ9 | BR9: BR9 | BS9: BS9 | BT9: BT9 | BU9: BU9 | BV9: BV9 | BW9: BW9 | BX9: BX9 | BY9: BY9 | BZ9: BZ9 | CA9: CA9 | CB9: CB9 | CC9: CC9 | CD9: CD9 | CE9: CE9 | CF9: CF9 | CG9: CG9 | CH9: CH9 | CI9: CI9 | CJ9: CJ9 | CK9: CK9 | CL9: CL9 | CM9: CM9 | CN9: CN9 | CO9: CO9 | CP9: CP9 | CQ9: CQ9 | CR9: CR9 | CS9: CS9 | CT9: CT9 | CU9: CU9 | CV9: CV9 | CW9: CW9 | CX9: CX9 | CY9: CY9 | CZ9: CZ9 | DA9: DA9 | DB9: DB9 | DC9: DC9 | DD9: DD9 | DE9: DE9 | DF9: DF9 | DG9: DG9 | DH9: DH9 | DI9: DI9 | DJ9: DJ9 | DK9: DK9 | DL9: DL9 | DM9: DM9 | DN9: DN9 | DO9: DO9 | DP9: DP9 | DQ9: DQ9 | DR9: DR9 | DS9: DS9 | DT9: DT9 | DU9: DU9 | DV9: DV9 | DW9: DW9 | DX9: DX9 | DY9: DY9 | DZ9: DZ9 | EA9: EA9 | EB9: EB9 | EC9: EC9 | ED9: ED9 | EE9: EE9 | EF9: EF9 | EG9: EG9 | EH9: EH9 | EI9: EI9 | EJ9: EJ9 | EK9: EK9 | EL9: EL9 | EM9: EM9 | EN9: EN9 | EO9: EO9 | EP9: EP9 | EQ9: EQ9 | ER9: ER9 | ES9: ES9 | ET9: ET9 | EU9: EU9 | EV9: EV9 | EW9: EW9 | EX9: EX9 | EY9: EY9 | EZ9: EZ9 | FA9: FA9 | FB9: FB9 | FC9: FC9 | FD9: FD9 | FE9: FE9 | FF9: FF9 | FG9: FG9 | FH9: FH9 | FI9: FI9 | FJ9: FJ9 | FK9: FK9 | FL9: FL9 | FM9: FM9 | FN9: FN9 | FO9: FO9 | FP9: FP9 | FQ9: FQ9 | FR9: FR9 | FS9: FS9 | FT9: FT9 | FU9: FU9 | FV9: FV9 | FW9: FW9 | FX9: FX9 | FY9: FY9 | FZ9: FZ9 | GA9: GA9 | GB9: GB9 | GC9: GC9 | GD9: GD9 | GE9: GE9 | GF9: GF9 | GG9: GG9 | GH9: GH9 | GI9: GI9 | GJ9: GJ9 | GK9: GK9 | GL9: GL9 | GM9: GM9 | GN9: GN9 | GO9: GO9 | GP9: GP9 | GQ9: GQ9 | GR9: GR9 | GS9: GS9 | GT9: GT9 | GU9: GU9 | GV9: GV9 | GW9: GW9 | GX9: GX9 | GY9: GY9 | GZ9: GZ9 | HA9: HA9
A10: A10 | B10: B10 | C10: C10 | D10: D10 | E10: E10 | F10: F10 | G10: G10 | H10: H10 | I10: I10 | J10: J10 | K10: K10 | L10: L10 | M10: M10 | N10: N10 | O10: O10 | P10: P10 | Q10: Q10 | R10: R10 | S10: S10 | T10: T10 | U10: U10 | V10: V10 | W10: W10 | X10: X10 | Y10: Y10 | Z10: Z10 | AA10: AA10 | AB10: AB10 | AC10: AC10 | AD10: AD10 | AE10: AE10 | AF10: AF10 | AG10: AG10 | AH10: AH10 | AI10: AI10 | AJ10: AJ10 | AK10: AK10 | AL10: AL10 | AM10: AM10 | AN10: AN10 | AO10: AO10 | AP10: AP10 | AQ10: AQ10 | AR10: AR10 | AS10: AS10 | AT10: AT10 | AU10: AU10 | AV10: AV10 | AW10: AW10 | AX10: AX10 | AY10: AY10 | AZ10: AZ10 | BA10: BA10 | BB10: BB10 | BC10: BC10 | BD10: BD10 | BE10: BE10 | BF10: BF10 | BG10: BG10 | BH10: BH10 | BI10: BI10 | BJ10: BJ10 | BK10: BK10 | BL10: BL10 | BM10: BM10 | BN10: BN10 | BO10: BO10 | BP10: BP10 | BQ10: BQ10 | BR10: BR10 | BS10: BS10 | BT10: BT10 | BU10: BU10 | BV10: BV10 | BW10: BW10 | BX10: BX10 | BY10: BY10 | BZ10: BZ10 | CA10: CA10 | CB10: CB10 | CC10: CC10 | CD10: CD10 | CE10: CE10 | CF10: CF10 | CG10: CG10 | CH10: CH10 | CI10: CI10 | CJ10: CJ10 | CK10: CK10 | CL10: CL10 | CM10: CM10 | CN10: CN10 | CO10: CO10 | CP10: CP10 | CQ10: CQ10 | CR10: CR10 | CS10: CS10 | CT10: CT10 | CU10: CU10 | CV10: CV10 | CW10: CW10 | CX10: CX10 | CY10: CY10 | CZ10: CZ10 | DA10: DA10 | DB10: DB10 | DC10: DC10 | DD10: DD10 | DE10: DE10 | DF10: DF10 | DG10: DG10 | DH10: DH10 | DI10: DI10 | DJ10: DJ10 | DK10: DK10 | DL10: DL10 | DM10: DM10 | DN10: DN10 | DO10: DO10 | DP10: DP10 | DQ10: DQ10 | DR10: DR10 | DS10: DS10 | DT10: DT10 | DU10: DU10 | DV10: DV10 | DW10: DW10 | DX10: DX10 | DY10: DY10 | DZ10: DZ10 | EA10: EA10 | EB10: EB10 | EC10: EC10 | ED10: ED10 | EE10: EE10 | EF10: EF10 | EG10: EG10 | EH10: EH10 | EI10: EI10 | EJ10: EJ10 | EK10: EK10 | EL10: EL10 | EM10: EM10 | EN10: EN10 | EO10: EO10 | EP10: EP10 | EQ10: EQ10 | ER10: ER10 | ES10: ES10 | ET10: ET10 | EU10: EU10 | EV10: EV10 | EW10: EW10 | EX10: EX10 | EY10: EY10 | EZ10: EZ10 | FA10: FA10 | FB10: FB10 | FC10: FC10 | FD10: FD10 | FE10: FE10 | FF10: FF10 | FG10: FG10 | FH10: FH10 | FI10: FI10 | FJ10: FJ10 | FK10: FK10 | FL10: FL10 | FM10: FM10 | FN10: FN10 | FO10: FO10 | FP10: FP10 | FQ10: FQ10 | FR10: FR10 | FS10: FS10 | FT10: FT10 | FU10: FU10 | FV10: FV10 | FW10: FW10 | FX10: FX10 | FY10: FY10 | FZ10: FZ10 | GA10: GA10 | GB10: GB10 | GC10: GC10 | GD10: GD10 | GE10: GE10 | GF10: GF10 | GG10: GG10 | GH10: GH10 | GI10: GI10 | GJ10: GJ10 | GK10: GK10 | GL10: GL10 | GM10: GM10 | GN10: GN10 | GO10: GO10 | GP10: GP10 | GQ10: GQ10 | GR10: GR10 | GS10: GS10 | GT10: GT10 | GU10: GU10 | GV10: GV10 | GW10: GW10 | GX10: GX10 | GY10: GY10 | GZ10: GZ10 | HA10: HA10
A11: A11 | B11: B11 | C11: C11 | D11: D11 | E11: E11 | F11: F11 | G11: G11 | H11: H11 | I11: I11 | J11: J11 | K11: K11 | L11: L11 | M11: M11 | N11: N11 | O11: O11 | P11: P11 | Q11: Q11 | R11: R11 | S11: S11 | T11: T11 | U11: U11 | V11: V11 | W11: W11 | X11: X11 | Y11: Y11 | Z11: Z11 | AA11: AA11 | AB11: AB11 | AC11: AC11 | AD11: AD11 | AE11: AE11 | AF11: AF11 | AG11: AG11 | AH11: AH11 | AI11: AI11 | AJ11: AJ11 | AK11: AK11 | AL11: AL11 | AM11: AM11 | AN11: AN11 | AO11: AO11 | AP11: AP11 | AQ11: AQ11 | AR11: AR11 | AS11: AS11 | AT11: AT11 | AU11: AU11 | AV11: AV11 | AW11: AW11 | AX11: AX11 | AY11: AY11 | AZ11: AZ11 | BA11: BA11 | BB11: BB11 | BC11: BC11 | BD11: BD11 | BE11: BE11 | BF11: BF11 | BG11: BG11 | BH11: BH11 | BI11: BI11 | BJ11: BJ11 | BK11: BK11 | BL11: BL11 | BM11: BM11 | BN11: BN11 | BO11: BO11 | BP11: BP11 | BQ11: BQ11 | BR11: BR11 | BS11: BS11 | BT11: BT11 | BU11: BU11 | BV11: BV11 | BW11: BW11 | BX11: BX11 | BY11: BY11 | BZ11: BZ11 | CA11: CA11 | CB11: CB11 | CC11: CC11 | CD11: CD11 | CE11: CE11 | CF11: CF11 | CG11: CG11 | CH11: CH11 | CI11: CI11 | CJ11: CJ11 | CK11: CK11 | CL11: CL11 | CM11: CM11 | CN11: CN11 | CO11: CO11 | CP11: CP11 | CQ11: CQ11 | CR11: CR11 | CS11: CS11 | CT11: CT11 | CU11: CU11 | CV11: CV11 | CW11: CW11 | CX11: CX11 | CY11: CY11 | CZ11: CZ11 | DA11: DA11 | DB11: DB11 | DC11: DC11 | DD11: DD11 | DE11: DE11 | DF11: DF11 | DG11: DG11 | DH11: DH11 | DI11: DI11 | DJ11: DJ11 | DK11: DK11 | DL11: DL11 | DM11: DM11 | DN11: DN11 | DO11: DO11 | DP11: DP11 | DQ11: DQ11 | DR11: DR11 | DS11: DS11 | DT11: DT11 | DU11: DU11 | DV11: DV11 | DW11: DW11 | DX11: DX11 | DY11: DY11 | DZ11: DZ11 | EA11: EA11 | EB11: EB11 | EC11: EC11 | ED11: ED11 | EE11: EE11 | EF11: EF11 | EG11: EG11 | EH11: EH11 | EI11: EI11 | EJ11: EJ11 | EK11: EK11 | EL11: EL11 | EM11: EM11 | EN11: EN11 | EO11: EO11 | EP11: EP11 | EQ11: EQ11 | ER11: ER11 | ES11: ES11 | ET11: ET11 | EU11: EU11 | EV11: EV11 | EW11: EW11 | EX11: EX11 | EY11: EY11 | EZ11: EZ11 | FA11: FA11 | FB11: FB11 | FC11: FC11 | FD11: FD11 | FE11: FE11 | FF11: FF11 | FG11: FG11 | FH11: FH11 | FI11: FI11 | FJ11: FJ11 | FK11: FK11 | FL11: FL11 | FM11: FM11 | FN11: FN11 | FO11: FO11 | FP11: FP11 | FQ11: FQ11 | FR11: FR11 | FS11: FS11 | FT11: FT11 | FU11: FU11 | FV11: FV11 | FW11: FW11 | FX11: FX11 | FY11: FY11 | FZ11: FZ11 | GA11: GA11 | GB11: GB11 | GC11: GC11 | GD11: GD11 | GE11: GE11 | GF11: GF11 | GG11: GG11 | GH11: GH11 | GI11: GI11 | GJ11: GJ11 | GK11: GK11 | GL11: GL11 | GM11: GM11 | GN11: GN11 | GO11: GO11 | GP11: GP11 | GQ11: GQ11 | GR11: GR11 | GS11: GS11 | GT11: GT11 | GU11: GU11 | GV11: GV11 | GW11: GW11 | GX11: GX11 | GY11: GY11 | GZ11: GZ11 | HA11: HA11
A12: A12 | B12: B12 | C12: C12 | D12: D12 | E12: E12 | F12: F12 | G12: G12 | H12: H12 | I12: I12 | J12: J12 | K12: K12 | L12: L12 | M12: M12 | N12: N12 | O12: O12 | P12: P12 | Q12: Q12 | R12: R12 | S12: S12 | T12: T12 | U12: U12 | V12: V12 | W12: W12 | X12: X12 | Y12: Y12 | Z12: Z12 | AA12: AA12 | AB12: AB12 | AC12: AC12 | AD12: AD12 | AE12: AE12 | AF12: AF12 | AG12: AG12 | AH12: AH12 | AI12: AI12 | AJ12: AJ12 | AK12: AK12 | AL12: AL12 | AM12: AM12 | AN12: AN12 | AO12: AO12 | AP12: AP12 | AQ12: AQ12 | AR12: AR12 | AS12: AS12 | AT12: AT12 | AU12: AU12 | AV12: AV12 | AW12: AW12 | AX12: AX12 | AY12: AY12 | AZ12: AZ12 | BA12: BA12 | BB12: BB12 | BC12: BC12 | BD12: BD12 | BE12: BE12 | BF12: BF12 | BG12: BG12 | BH12: BH12 | BI12: BI12 | BJ12: BJ12 | BK12: BK12 | BL12: BL12 | BM12: BM12 | BN12: BN12 | BO12: BO12 | BP12: BP12 | BQ12: BQ12 | BR12: BR12 | BS12: BS12 | BT12: BT12 | BU12: BU12 | BV12: BV12 | BW12: BW12 | BX12: BX12 | BY12: BY12 | BZ12: BZ12 | CA12: CA12 | CB12: CB12 | CC12: CC12 | CD12: CD12 | CE12: CE12 | CF12: CF12 | CG12: CG12 | CH12: CH12 | CI12: CI12 | CJ12: CJ12 | CK12: CK12 | CL12: CL12 | CM12: CM12 | CN12: CN12 | CO12: CO12 | CP12: CP12 | CQ12: CQ12 | CR12: CR12 | CS12: CS12 | CT12: CT12 | CU12: CU12 | CV12: CV12 | CW12: CW12 | CX12: CX12 | CY12: CY12 | CZ12: CZ12 | DA12: DA12 | DB12: DB12 | DC12: DC12 | DD12: DD12 | DE12: DE12 | DF12: DF12 | DG12: DG12 | DH12: DH12 | DI12: DI12 | DJ12: DJ12 | DK12: DK12 | DL12: DL12 | DM12: DM12 | DN12: DN12 | DO12: DO12 | DP12: DP12 | DQ12: DQ12 | DR12: DR12 | DS12: DS12 | DT12: DT12 | DU12: DU12 | DV12: DV12 | DW12: DW12 | DX12: DX12 | DY12: DY12 | DZ12: DZ12 | EA12: EA12 | EB12: EB12 | EC12: EC12 | ED12: ED12 | EE12: EE12 | EF12: EF12 | EG12: EG12 | EH12: EH12 | EI12: EI12 | EJ12: EJ12 | EK12: EK12 | EL12: EL12 | EM12: EM12 | EN12: EN12 | EO12: EO12 | EP12: EP12 | EQ12: EQ12 | ER12: ER12 | ES12: ES12 | ET12: ET12 | EU12: EU12 | EV12: EV12 | EW12: EW12 | EX12: EX12 | EY12: EY12 | EZ12: EZ12 | FA12: FA12 | FB12: FB12 | FC12: FC12 | FD12: FD12 | FE12: FE12 | FF12: FF12 | FG12: FG12 | FH12: FH12 | FI12: FI12 | FJ12: FJ12 | FK12: FK12 | FL12: FL12 | FM12: FM12 | FN12: FN12 | FO12: FO12 | FP12: FP12 | FQ12: FQ12 | FR12: FR12 | FS12: FS12 | FT12: FT12 | FU12: FU12 | FV12: FV12 | FW12: FW12 | FX12: FX12 | FY12: FY12 | FZ12: FZ12 | GA12: GA12 | GB12: GB12 | GC12: GC12 | GD12: GD12 | GE12: GE12 | GF12: GF12 | GG12: GG12 | GH12: GH12 | GI12: GI12 | GJ12: GJ12 | GK12: GK12 | GL12: GL12 | GM12: GM12 | GN12: GN12 | GO12: GO12 | GP12: GP12 | GQ12: GQ12 | GR12: GR12 | GS12: GS12 | GT12: GT12 | GU12: GU12 | GV12: GV12 | GW12: GW12 | GX12: GX12 | GY12: GY12 | GZ12: GZ12 | HA12: HA12
A13: A13 | B13: B13 | C13: C13 | D13: D13 | E13: E13 | F13: F13 | G13: G13 | H13: H13 | I13: I13 | J13: J13 | K13: K13 | L13: L13 | M13: M13 | N13: N13 | O13: O13 | P13: P13 | Q13: Q13 | R13: R13 | S13: S13 | T13: T13 | U13: U13 | V13: V13 | W13: W13 | X13: X13 | Y13: Y13 | Z13: Z13 | AA13: AA13 | AB13: AB13 | AC13: AC13 | AD13: AD13 | AE13: AE13 | AF13: AF13 | AG13: AG13 | AH13: AH13 | AI13: AI13 | AJ13: AJ13 | AK13: AK13 | AL13: AL13 | AM13: AM13 | AN13: AN13 | AO13: AO13 | AP13: AP13 | AQ13: AQ13 | AR13: AR13 | AS13: AS13 | AT13: AT13 | AU13: AU13 | AV13: AV13 | AW13: AW13 | AX13: AX13 | AY13: AY13 | AZ13: AZ13 | BA13: BA13 | BB13: BB13 | BC13: BC13 | BD13: BD13 | BE13: BE13 | BF13: BF13 | BG13: BG13 | BH13: BH13 | BI13: BI13 | BJ13: BJ13 | BK13: BK13 | BL13: BL13 | BM13: BM13 | BN13: BN13 | BO13: BO13 | BP13: BP13 | BQ13: BQ13 | BR13: BR13 | BS13: BS13 | BT13: BT13 | BU13: BU13 | BV13: BV13 | BW13: BW13 | BX13: BX13 | BY13: BY13 | BZ13: BZ13 | CA13: CA13 | CB13: CB13 | CC13: CC13 | CD13: CD13 | CE13: CE13 | CF13: CF13 | CG13: CG13 | CH13: CH13 | CI13: CI13 | CJ13: CJ13 | CK13: CK13 | CL13: CL13 | CM13: CM13 | CN13: CN13 | CO13: CO13 | CP13: CP13 | CQ13: CQ13 | CR13: CR13 | CS13: CS13 | CT13: CT13 | CU13: CU13 | CV13: CV13 | CW13: CW13 | CX13: CX13 | CY13: CY13 | CZ13: CZ13 | DA13: DA13 | DB13: DB13 | DC13: DC13 | DD13: DD13 | DE13: DE13 | DF13: DF13 | DG13: DG13 | DH13: DH13 | DI13: DI13 | DJ13: DJ13 | DK13: DK13 | DL13: DL13 | DM13: DM13 | DN13: DN13 | DO13: DO13 | DP13: DP13 | DQ13: DQ13 | DR13: DR13 | DS13: DS13 | DT13: DT13 | DU13: DU13 | DV13: DV13 | DW13: DW13 | DX13: DX13 | DY13: DY13 | DZ13: DZ13 | EA13: EA13 | EB13: EB13 | EC13: EC13 | ED13: ED13 | EE13: EE13 | EF13: EF13 | EG13: EG13 | EH13: EH13 | EI13: EI13 | EJ13: EJ13 | EK13: EK13 | EL13: EL13 | EM13: EM13 | EN13: EN13 | EO13: EO13 | EP13: EP13 | EQ13: EQ13 | ER13: ER13 | ES13: ES13 | ET13: ET13 | EU13: EU13 | EV13: EV13 | EW13: EW13 | EX13: EX13 | EY13: EY13 | EZ13: EZ13 | FA13: FA13 | FB13: FB13 | FC13: FC13 | FD13: FD13 | FE13: FE13 | FF13: FF13 | FG13: FG13 | FH13: FH13 | FI13: FI13 | FJ13: FJ13 | FK13: FK13 | FL13: FL13 | FM13: FM13 | FN13: FN13 | FO13: FO13 | FP13: FP13 | FQ13: FQ13 | FR13: FR13 | FS13: FS13 | FT13: FT13 | FU13: FU13 | FV13: FV13 | FW13: FW13 | FX13: FX13 | FY13: FY13 | FZ13: FZ13 | GA13: GA13 | GB13: GB13 | GC13: GC13 | GD13: GD13 | GE13: GE13 | GF13: GF13 | GG13: GG13 | GH13: GH13 | GI13: GI13 | GJ13: GJ13 | GK13: GK13 | GL13: GL13 | GM13: GM13 | GN13: GN13 | GO13: GO13 | GP13: GP13 | GQ13: GQ13 | GR13: GR13 | GS13: GS13 | GT13: GT13 | GU13: GU13 | GV13: GV13 | GW13: GW13 | GX13: GX13 | GY13: GY13 | GZ13: GZ13 | HA13: HA13
A14: A14 | B14: B14 | C14: C14 | D14: D14 | E14: E14 | F14: F14 | G14: G14 | H14: H14 | I14: I14 | J14: J14 | K14: K14 | L14: L14 | M14: M14 | N14: N14 | O14: O14 | P14: P14 | Q14: Q14 | R14: R14 | S14: S14 | T14: T14 | U14: U14 | V14: V14 | W14: W14 | X14: X14 | Y14: Y14 | Z14: Z14 | AA14: AA14 | AB14: AB14 | AC14: AC14 | AD14: AD14 | AE14: AE14 | AF14: AF14 | AG14: AG14 | AH14: AH14 | AI14: AI14 | AJ14: AJ14 | AK14: AK14 | AL14: AL14 | AM14: AM14 | AN14: AN14 | AO14: AO14 | AP14: AP14 | AQ14: AQ14 | AR14: AR14 | AS14: AS14 | AT14: AT14 | AU14: AU14 | AV14: AV14 | AW14: AW14 | AX14: AX14 | AY14: AY14 | AZ14: AZ14 | BA14: BA14 | BB14: BB14 | BC14: BC14 | BD14: BD14 | BE14: BE14 | BF14: BF14 | BG14: BG14 | BH14: BH14 | BI14: BI14 | BJ14: BJ14 | BK14: BK14 | BL14: BL14 | BM14: BM14 | BN14: BN14 | BO14: BO14 | BP14: BP14 | BQ14: BQ14 | BR14: BR14 | BS14: BS14 | BT14: BT14 | BU14: BU14 | BV14: BV14 | BW14: BW14 | BX14: BX14 | BY14: BY14 | BZ14: BZ14 | CA14: CA14 | CB14: CB14 | CC14: CC14 | CD14: CD14 | CE14: CE14 | CF14: CF14 | CG14: CG14 | CH14: CH14 | CI14: CI14 | CJ14: CJ14 | CK14: CK14 | CL14: CL14 | CM14: CM14 | CN14: CN14 | CO14: CO14 | CP14: CP14 | CQ14: CQ14 | CR14: CR14 | CS14: CS14 | CT14: CT14 | CU14: CU14 | CV14: CV14 | CW14: CW14 | CX14: CX14 | CY14: CY14 | CZ14: CZ14 | DA14: DA14 | DB14: DB14 | DC14: DC14 | DD14: DD14 | DE14: DE14 | DF14: DF14 | DG14: DG14 | DH14: DH14 | DI14: DI14 | DJ14: DJ14 | DK14: DK14 | DL14: DL14 | DM14: DM14 | DN14: DN14 | DO14: DO14 | DP14: DP14 | DQ14: DQ14 | DR14: DR14 | DS14: DS14 | DT14: DT14 | DU14: DU14 | DV14: DV14 | DW14: DW14 | DX14: DX14 | DY14: DY14 | DZ14: DZ14 | EA14: EA14 | EB14: EB14 | EC14: EC14 | ED14: ED14 | EE14: EE14 | EF14: EF14 | EG14: EG14 | EH14: EH14 | EI14: EI14 | EJ14: EJ14 | EK14: EK14 | EL14: EL14 | EM14: EM14 | EN14: EN14 | EO14: EO14 | EP14: EP14 | EQ14: EQ14 | ER14: ER14 | ES14: ES14 | ET14: ET14 | EU14: EU14 | EV14: EV14 | EW14: EW14 | EX14: EX14 | EY14: EY14 | EZ14: EZ14 | FA14: FA14 | FB14: FB14 | FC14: FC14 | FD14: FD14 | FE14: FE14 | FF14: FF14 | FG14: FG14 | FH14: FH14 | FI14: FI14 | FJ14: FJ14 | FK14: FK14 | FL14: FL14 | FM14: FM14 | FN14: FN14 | FO14: FO14 | FP14: FP14 | FQ14: FQ14 | FR14: FR14 | FS14: FS14 | FT14: FT14 | FU14: FU14 | FV14: FV14 | FW14: FW14 | FX14: FX14 | FY14: FY14 | FZ14: FZ14 | GA14: GA14 | GB14: GB14 | GC14: GC14 | GD14: GD14 | GE14: GE14 | GF14: GF14 | GG14: GG14 | GH14: GH14 | GI14: GI14 | GJ14: GJ14 | GK14: GK14 | GL14: GL14 | GM14: GM14 | GN14: GN14 | GO14: GO14 | GP14: GP14 | GQ14: GQ14 | GR14: GR14 | GS14: GS14 | GT14: GT14 | GU14: GU14 | GV14: GV14 | GW14: GW14 | GX14: GX14 | GY14: GY14 | GZ14: GZ14 | HA14: HA14
A15: A15 | B15: B15 | C15: C15 | D15: D15 | E15: E15 | F15: F15 | G15: G15 | H15: H15 | I15: I15 | J15: J15 | K15: K15 | L15: L15 | M15: M15 | N15: N15 | O15: O15 | P15: P15 | Q15: Q15 | R15: R15 | S15: S15 | T15: T15 | U15: U15 | V15: V15 | W15: W15 | X15: X15 | Y15: Y15 | Z15: Z15 | AA15: AA15 | AB15: AB15 | AC15: AC15 | AD15: AD15 | AE15: AE15 | AF15: AF15 | AG15: AG15 | AH15: AH15 | AI15: AI15 | AJ15: AJ15 | AK15: AK15 | AL15: AL15 | AM15: AM15 | AN15: AN15 | AO15: AO15 | AP15: AP15 | AQ15: AQ15 | AR15: AR15 | AS15: AS15 | AT15: AT15 | AU15: AU15 | AV15: AV15 | AW15: AW15 | AX15: AX15 | AY15: AY15 | AZ15: AZ15 | BA15: BA15 | BB15: BB15 | BC15: BC15 | BD15: BD15 | BE15: BE15 | BF15: BF15 | BG15: BG15 | BH15: BH15 | BI15: BI15 | BJ15: BJ15 | BK15: BK15 | BL15: BL15 | BM15: BM15 | BN15: BN15 | BO15: BO15 | BP15: BP15 | BQ15: BQ15 | BR15: BR15 | BS15: BS15 | BT15: BT15 | BU15: BU15 | BV15: BV15 | BW15: BW15 | BX15: BX15 | BY15: BY15 | BZ15: BZ15 | CA15: CA15 | CB15: CB15 | CC15: CC15 | CD15: CD15 | CE15: CE15 | CF15: CF15 | CG15: CG15 | CH15: CH15 | CI15: CI15 | CJ15: CJ15 | CK15: CK15 | CL15: CL15 | CM15: CM15 | CN15: CN15 | CO15: CO15 | CP15: CP15 | CQ15: CQ15 | CR15: CR15 | CS15: CS15 | CT15: CT15 | CU15: CU15 | CV15: CV15 | CW15: CW15 | CX15: CX15 | CY15: CY15 | CZ15: CZ15 | DA15: DA15 | DB15: DB15 | DC15: DC15 | DD15: DD15 | DE15: DE15 | DF15: DF15 | DG15: DG15 | DH15: DH15 | DI15: DI15 | DJ15: DJ15 | DK15: DK15 | DL15: DL15 | DM15: DM15 | DN15: DN15 | DO15: DO15 | DP15: DP15 | DQ15: DQ15 | DR15: DR15 | DS15: DS15 | DT15: DT15 | DU15: DU15 | DV15: DV15 | DW15: DW15 | DX15: DX15 | DY15: DY15 | DZ15: DZ15 | EA15: EA15 | EB15: EB15 | EC15: EC15 | ED15: ED15 | EE15: EE15 | EF15: EF15 | EG15: EG15 | EH15: EH15 | EI15: EI15 | EJ15: EJ15 | EK15: EK15 | EL15: EL15 | EM15: EM15 | EN15: EN15 | EO15: EO15 | EP15: EP15 | EQ15: EQ15 | ER15: ER15 | ES15: ES15 | ET15: ET15 | EU15: EU15 | EV15: EV15 | EW15: EW15 | EX15: EX15 | EY15: EY15 | EZ15: EZ15 | FA15: FA15 | FB15: FB15 | FC15: FC15 | FD15: FD15 | FE15: FE15 | FF15: FF15 | FG15: FG15 | FH15: FH15 | FI15: FI15 | FJ15: FJ15 | FK15: FK15 | FL15: FL15 | FM15: FM15 | FN15: FN15 | FO15: FO15 | FP15: FP15 | FQ15: FQ15 | FR15: FR15 | FS15: FS15 | FT15: FT15 | FU15: FU15 | FV15: FV15 | FW15: FW15 | FX15: FX15 | FY15: FY15 | FZ15: FZ15 | GA15: GA15 | GB15: GB15 | GC15: GC15 | GD15: GD15 | GE15: GE15 | GF15: GF15 | GG15: GG15 | GH15: GH15 | GI15: GI15 | GJ15: GJ15 | GK15: GK15 | GL15: GL15 | GM15: GM15 | GN15: GN15 | GO15: GO15 | GP15: GP15 | GQ15: GQ15 | GR15: GR15 | GS15: GS15 | GT15: GT15 | GU15: GU15 | GV15: GV15 | GW15: GW15 | GX15: GX15 | GY15: GY15 | GZ15: GZ15 | HA15: HA15
A16: A16 | B16: B16 | C16: C16 | D16: D16 | E16: E16 | F16: F16 | G16: G16 | H16: H16 | I16: I16 | J16: J16 | K16: K16 | L16: L16 | M16: M16 | N16: N16 | O16: O16 | P16: P16 | Q16: Q16 | R16: R16 | S16: S16 | T16: T16 | U16: U16 | V16: V16 | W16: W16 | X16: X16 | Y16: Y16 | Z16: Z16 | AA16: AA16 | AB16: AB16 | AC16: AC16 | AD16: AD16 | AE16: AE16 | AF16: AF16 | AG16: AG16 | AH16: AH16 | AI16: AI16 | AJ16: AJ16 | AK16: AK16 | AL16: AL16 | AM16: AM16 | AN16: AN16 | AO16: AO16 | AP16: AP16 | AQ16: AQ16 | AR16: AR16 | AS16: AS16 | AT16: AT16 | AU16: AU16 | AV16: AV16 | AW16: AW16 | AX16: AX16 | AY16: AY16 | AZ16: AZ16 | BA16: BA16 | BB16: BB16 | BC16: BC16 | BD16: BD16 | BE16: BE16 | BF16: BF16 | BG16: BG16 | BH16: BH16 | BI16: BI16 | BJ16: BJ16 | BK16: BK16 | BL16: BL16 | BM16: BM16 | BN16: BN16 | BO16: BO16 | BP16: BP16 | BQ16: BQ16 | BR16: BR16 | BS16: BS16 | BT16: BT16 | BU16: BU16 | BV16: BV16 | BW16: BW16 | BX16: BX16 | BY16: BY16 | BZ16: BZ16 | CA16: CA16 | CB16: CB16 | CC16: CC16 | CD16: CD16 | CE16: CE16 | CF16: CF16 | CG16: CG16 | CH16: CH16 | CI16: CI16 | CJ16: CJ16 | CK16: CK16 | CL16: CL16 | CM16: CM16 | CN16: CN16 | CO16: CO16 | CP16: CP16 | CQ16: CQ16 | CR16: CR16 | CS16: CS16 | CT16: CT16 | CU16: CU16 | CV16: CV16 | CW16: CW16 | CX16: CX16 | CY16: CY16 | CZ16: CZ16 | DA16: DA16 | DB16: DB16 | DC16: DC16 | DD16: DD16 | DE16: DE16 | DF16: DF16 | DG16: DG16 | DH16: DH16 | DI16: DI16 | DJ16: DJ16 | DK16: DK16 | DL16: DL16 | DM16: DM16 | DN16: DN16 | DO16: DO16 | DP16: DP16 | DQ16: DQ16 | DR16: DR16 | DS16: DS16 | DT16: DT16 | DU16: DU16 | DV16: DV16 | DW16: DW16 | DX16: DX16 | DY16: DY16 | DZ16: DZ16 | EA16: EA16 | EB16: EB16 | EC16: EC16 | ED16: ED16 | EE16: EE16 | EF16: EF16 | EG16: EG16 | EH16: EH16 | EI16: EI16 | EJ16: EJ16 | EK16: EK16 | EL16: EL16 | EM16: EM16 | EN16: EN16 | EO16: EO16 | EP16: EP16 | EQ16: EQ16 | ER16: ER16 | ES16: ES16 | ET16: ET16 | EU16: EU16 | EV16: EV16 | EW16: EW16 | EX16: EX16 | EY16: EY16 | EZ16: EZ16 | FA16: FA16 | FB16: FB16 | FC16: FC16 | FD16: FD16 | FE16: FE16 | FF16: FF16 | FG16: FG16 | FH16: FH16 | FI16: FI16 | FJ16: FJ16 | FK16: FK16 | FL16: FL16 | FM16: FM16 | FN16: FN16 | FO16: FO16 | FP16: FP16 | FQ16: FQ16 | FR16: FR16 | FS16: FS16 | FT16: FT16 | FU16: FU16 | FV16: FV16 | FW16: FW16 | FX16: FX16 | FY16: FY16 | FZ16: FZ16 | GA16: GA16 | GB16: GB16 | GC16: GC16 | GD16: GD16 | GE16: GE16 | GF16: GF16 | GG16: GG16 | GH16: GH16 | GI16: GI16 | GJ16: GJ16 | GK16: GK16 | GL16: GL16 | GM16: GM16 | GN16: GN16 | GO16: GO16 | GP16: GP16 | GQ16: GQ16 | GR16: GR16 | GS16: GS16 | GT16: GT16 | GU16: GU16 | GV16: GV16 | GW16: GW16 | GX16: GX16 | GY16: GY16 | GZ16: GZ16 | HA16: HA16
A17: A17 | B17: B17 | C17: C17 | D17: D17 | E17: E17 | F17: F17 | G17: G17 | H17: H17 | I17: I17 | J17: J17 | K17: K17 | L17: L17 | M17: M17 | N17: N17 | O17: O17 | P17: P17 | Q17: Q17 | R17: R17 | S17: S17 | T17: T17 | U17: U17 | V17: V17 | W17: W17 | X17: X17 | Y17: Y17 | Z17: Z17 | AA17: AA17 | AB17: AB17 | AC17: AC17 | AD17: AD17 | AE17: AE17 | AF17: AF17 | AG17: AG17 | AH17: AH17 | AI17: AI17 | AJ17: AJ17 | AK17: AK17 | AL17: AL17 | AM17: AM17 | AN17: AN17 | AO17: AO17 | AP17: AP17 | AQ17: AQ17 | AR17: AR17 | AS17: AS17 | AT17: AT17 | AU17: AU17 | AV17: AV17 | AW17: AW17 | AX17: AX17 | AY17: AY17 | AZ17: AZ17 | BA17: BA17 | BB17: BB17 | BC17: BC17 | BD17: BD17 | BE17: BE17 | BF17: BF17 | BG17: BG17 | BH17: BH17 | BI17: BI17 | BJ17: BJ17 | BK17: BK17 | BL17: BL17 | BM17: BM17 | BN17: BN17 | BO17: BO17 | BP17: BP17 | BQ17: BQ17 | BR17: BR17 | BS17: BS17 | BT17: BT17 | BU17: BU17 | BV17: BV17 | BW17: BW17 | BX17: BX17 | BY17: BY17 | BZ17: BZ17 | CA17: CA17 | CB17: CB17 | CC17: CC17 | CD17: CD17 | CE17: CE17 | CF17: CF17 | CG17: CG17 | CH17: CH17 | CI17: CI17 | CJ17: CJ17 | CK17: CK17 | CL17: CL17 | CM17: CM17 | CN17: CN17 | CO17: CO17 | CP17: CP17 | CQ17: CQ17 | CR17: CR17 | CS17: CS17 | CT17: CT17 | CU17: CU17 | CV17: CV17 | CW17: CW17 | CX17: CX17 | CY17: CY17 | CZ17: CZ17 | DA17: DA17 | DB17: DB17 | DC17: DC17 | DD17: DD17 | DE17: DE17 | DF17: DF17 | DG17: DG17 | DH17: DH17 | DI17: DI17 | DJ17: DJ17 | DK17: DK17 | DL17: DL17 | DM17: DM17 | DN17: DN17 | DO17: DO17 | DP17: DP17 | DQ17: DQ17 | DR17: DR17 | DS17: DS17 | DT17: DT17 | DU17: DU17 | DV17: DV17 | DW17: DW17 | DX17: DX17 | DY17: DY17 | DZ17: DZ17 | EA17: EA17 | EB17: EB17 | EC17: EC17 | ED17: ED17 | EE17: EE17 | EF17: EF17 | EG17: EG17 | EH17: EH17 | EI17: EI17 | EJ17: EJ17 | EK17: EK17 | EL17: EL17 | EM17: EM17 | EN17: EN17 | EO17: EO17 | EP17: EP17 | EQ17: EQ17 | ER17: ER17 | ES17: ES17 | ET17: ET17 | EU17: EU17 | EV17: EV17 | EW17: EW17 | EX17: EX17 | EY17: EY17 | EZ17: EZ17 | FA17: FA17 | FB17: FB17 | FC17: FC17 | FD17: FD17 | FE17: FE17 | FF17: FF17 | FG17: FG17 | FH17: FH17 | FI17: FI17 | FJ17: FJ17 | FK17: FK17 | FL17: FL17 | FM17: FM17 | FN17: FN17 | FO17: FO17 | FP17: FP17 | FQ17: FQ17 | FR17: FR17 | FS17: FS17 | FT17: FT17 | FU17: FU17 | FV17: FV17 | FW17: FW17 | FX17: FX17 | FY17: FY17 | FZ17: FZ17 | GA17: GA17 | GB17: GB17 | GC17: GC17 | GD17: GD17 | GE17: GE17 | GF17: GF17 | GG17: GG17 | GH17: GH17 | GI17: GI17 | GJ17: GJ17 | GK17: GK17 | GL17: GL17 | GM17: GM17 | GN17: GN17 | GO17: GO17 | GP17: GP17 | GQ17: GQ17 | GR17: GR17 | GS17: GS17 | GT17: GT17 | GU17: GU17 | GV17: GV17 | GW17: GW17 | GX17: GX17 | GY17: GY17 | GZ17: GZ17 | HA17: HA17
A18: A18 | B18: B18 | C18: C18 | D18: D18 | E18: E18 | F18: F18 | G18: G18 | H18: H18 | I18: I18 | J18: J18 | K18: K18 | L18: L18 | M18: M18 | N18: N18 | O18: O18 | P18: P18 | Q18: Q18 | R18: R18 | S18: S18 | T18: T18 | U18: U18 | V18: V18 | W18: W18 | X18: X18 | Y18: Y18 | Z18: Z18 | AA18: AA18 | AB18: AB18 | AC18: AC18 | AD18: AD18 | AE18: AE18 | AF18: AF18 | AG18: AG18 | AH18: AH18 | AI18: AI18 | AJ18: AJ18 | AK18: AK18 | AL18: AL18 | AM18: AM18 | AN18: AN18 | AO18: AO18 | AP18: AP18 | AQ18: AQ18 | AR18: AR18 | AS18: AS18 | AT18: AT18 | AU18: AU18 | AV18: AV18 | AW18: AW18 | AX18: AX18 | AY18: AY18 | AZ18: AZ18 | BA18: BA18 | BB18: BB18 | BC18: BC18 | BD18: BD18 | BE18: BE18 | BF18: BF18 | BG18: BG18 | BH18: BH18 | BI18: BI18 | BJ18: BJ18 | BK18: BK18 | BL18: BL18 | BM18: BM18 | BN18: BN18 | BO18: BO18 | BP18: BP18 | BQ18: BQ18 | BR18: BR18 | BS18: BS18 | BT18: BT18 | BU18: BU18 | BV18: BV18 | BW18: BW18 | BX18: BX18 | BY18: BY18 | BZ18: BZ18 | CA18: CA18 | CB18: CB18 | CC18: CC18 | CD18: CD18 | CE18: CE18 | CF18: CF18 | CG18: CG18 | CH18: CH18 | CI18: CI18 | CJ18: CJ18 | CK18: CK18 | CL18: CL18 | CM18: CM18 | CN18: CN18 | CO18: CO18 | CP18: CP18 | CQ18: CQ18 | CR18: CR18 | CS18: CS18 | CT18: CT18 | CU18: CU18 | CV18: CV18 | CW18: CW18 | CX18: CX18 | CY18: CY18 | CZ18: CZ18 | DA18: DA18 | DB18: DB18 | DC18: DC18 | DD18: DD18 | DE18: DE18 | DF18: DF18 | DG18: DG18 | DH18: DH18 | DI18: DI18 | DJ18: DJ18 | DK18: DK18 | DL18: DL18 | DM18: DM18 | DN18: DN18 | DO18: DO18 | DP18: DP18 | DQ18: DQ18 | DR18: DR18 | DS18: DS18 | DT18: DT18 | DU18: DU18 | DV18: DV18 | DW18: DW18 | DX18: DX18 | DY18: DY18 | DZ18: DZ18 | EA18: EA18 | EB18: EB18 | EC18: EC18 | ED18: ED18 | EE18: EE18 | EF18: EF18 | EG18: EG18 | EH18: EH18 | EI18: EI18 | EJ18: EJ18 | EK18: EK18 | EL18: EL18 | EM18: EM18 | EN18: EN18 | EO18: EO18 | EP18: EP18 | EQ18: EQ18 | ER18: ER18 | ES18: ES18 | ET18: ET18 | EU18: EU18 | EV18: EV18 | EW18: EW18 | EX18: EX18 | EY18: EY18 | EZ18: EZ18 | FA18: FA18 | FB18: FB18 | FC18: FC18 | FD18: FD18 | FE18: FE18 | FF18: FF18 | FG18: FG18 | FH18: FH18 | FI18: FI18 | FJ18: FJ18 | FK18: FK18 | FL18: FL18 | FM18: FM18 | FN18: FN18 | FO18: FO18 | FP18: FP18 | FQ18: FQ18 | FR18: FR18 | FS18: FS18 | FT18: FT18 | FU18: FU18 | FV18: FV18 | FW18: FW18 | FX18: FX18 | FY18: FY18 | FZ18: FZ18 | GA18: GA18 | GB18: GB18 | GC18: GC18 | GD18: GD18 | GE18: GE18 | GF18: GF18 | GG18: GG18 | GH18: GH18 | GI18: GI18 | GJ18: GJ18 | GK18: GK18 | GL18: GL18 | GM18: GM18 | GN18: GN18 | GO18: GO18 | GP18: GP18 | GQ18: GQ18 | GR18: GR18 | GS18: GS18 | GT18: GT18 | GU18: GU18 | GV18: GV18 | GW18: GW18 | GX18: GX18 | GY18: GY18 | GZ18: GZ18 | HA18: HA18
A19: A19 | B19: B19 | C19: C19 | D19: D19 | E19: E19 | F19: F19 | G19: G19 | H19: H19 | I19: I19 | J19: J19 | K19: K19 | L19: L19 | M19: M19 | N19: N19 | O19: O19 | P19: P19 | Q19: Q19 | R19: R19 | S19: S19 | T19: T19 | U19: U19 | V19: V19 | W19: W19 | X19: X19 | Y19: Y19 | Z19: Z19 | AA19: AA19 | AB19: AB19 | AC19: AC19 | AD19: AD19 | AE19: AE19 | AF19: AF19 | AG19: AG19 | AH19: AH19 | AI19: AI19 | AJ19: AJ19 | AK19: AK19 | AL19: AL19 | AM19: AM19 | AN19: AN19 | AO19: AO19 | AP19: AP19 | AQ19: AQ19 | AR19: AR19 | AS19: AS19 | AT19: AT19 | AU19: AU19 | AV19: AV19 | AW19: AW19 | AX19: AX19 | AY19: AY19 | AZ19: AZ19 | BA19: BA19 | BB19: BB19 | BC19: BC19 | BD19: BD19 | BE19: BE19 | BF19: BF19 | BG19: BG19 | BH19: BH19 | BI19: BI19 | BJ19: BJ19 | BK19: BK19 | BL19: BL19 | BM19: BM19 | BN19: BN19 | BO19: BO19 | BP19: BP19 | BQ19: BQ19 | BR19: BR19 | BS19: BS19 | BT19: BT19 | BU19: BU19 | BV19: BV19 | BW19: BW19 | BX19: BX19 | BY19: BY19 | BZ19: BZ19 | CA19: CA19 | CB19: CB19 | CC19: CC19 | CD19: CD19 | CE19: CE19 | CF19: CF19 | CG19: CG19 | CH19: CH19 | CI19: CI19 | CJ19: CJ19 | CK19: CK19 | CL19: CL19 | CM19: CM19 | CN19: CN19 | CO19: CO19 | CP19: CP19 | CQ19: CQ19 | CR19: CR19 | CS19: CS19 | CT19: CT19 | CU19: CU19 | CV19: CV19 | CW19: CW19 | CX19: CX19 | CY19: CY19 | CZ19: CZ19 | DA19: DA19 | DB19: DB19 | DC19: DC19 | DD19: DD19 | DE19: DE19 | DF19: DF19 | DG19: DG19 | DH19: DH19 | DI19: DI19 | DJ19: DJ19 | DK19: DK19 | DL19: DL19 | DM19: DM19 | DN19: DN19 | DO19: DO19 | DP19: DP19 | DQ19: DQ19 | DR19: DR19 | DS19: DS19 | DT19: DT19 | DU19: DU19 | DV19: DV19 | DW19: DW19 | DX19: DX19 | DY19: DY19 | DZ19: DZ19 | EA19: EA19 | EB19: EB19 | EC19: EC19 | ED19: ED19 | EE19: EE19 | EF19: EF19 | EG19: EG19 | EH19: EH19 | EI19: EI19 | EJ19: EJ19 | EK19: EK19 | EL19: EL19 | EM19: EM19 | EN19: EN19 | EO19: EO19 | EP19: EP19 | EQ19: EQ19 | ER19: ER19 | ES19: ES19 | ET19: ET19 | EU19: EU19 | EV19: EV19 | EW19: EW19 | EX19: EX19 | EY19: EY19 | EZ19: EZ19 | FA19: FA19 | FB19: FB19 | FC19: FC19 | FD19: FD19 | FE19: FE19 | FF19: FF19 | FG19: FG19 | FH19: FH19 | FI19: FI19 | FJ19: FJ19 | FK19: FK19 | FL19: FL19 | FM19: FM19 | FN19: FN19 | FO19: FO19 | FP19: FP19 | FQ19: FQ19 | FR19: FR19 | FS19: FS19 | FT19: FT19 | FU19: FU19 | FV19: FV19 | FW19: FW19 | FX19: FX19 | FY19: FY19 | FZ19: FZ19 | GA19: GA19 | GB19: GB19 | GC19: GC19 | GD19: GD19 | GE19: GE19 | GF19: GF19 | GG19: GG19 | GH19: GH19 | GI19: GI19 | GJ19: GJ19 | GK19: GK19 | GL19: GL19 | GM19: GM19 | GN19: GN19 | GO19: GO19 | GP19: GP19 | GQ19: GQ19 | GR19: GR19 | GS19: GS19 | GT19: GT19 | GU19: GU19 | GV19: GV19 | GW19: GW19 | GX19: GX19 | GY19: GY19 | GZ19: GZ19 | HA19: HA19
